Workbook

Sheet Sommaire (hidden)
A2: Rapport sur les finances communales - exercice 2020
B4: Sommaire
A6: 1 | B6: Population
A7: 1.1 | B7: Population | C7: Population
A9: 2 | B9: Compte de résultat
A10: 2.1 | B10: Compte de résultats par nature par commune | C10: Compte de résultats
A11: 2.2 | B11: Compte de résultats pas nature en Fr. par habitant | C11: Compte de résultats en Fr. par habitant
A12: 2.3 | B12: Compte de résultats par nature en Fr. par habitant par commune | C12: Compte de résultats en Fr. par commune
A13: 2.4 | B13: Vue d'ensemble | C13: Vue d'ensemble
A14: 2.5 | B14: Vue d'ensemble par commune | C14: Vue d'ensemble par commune
A15: 2.6 | B15: Résultats à 3 niveaux | C15: Résultats à 3 niveaux
A16: 2.7 | B16: Résultats à 3 nivaux par commune | C16: Résultats à 3 niveaux par commune
A17: 2.8 | B17: Autofinancement | C17: Autofinancement
A18: 2.9 | B18: Autofinancement par commune | C18: Autofinancement par commune
A19: 2.10 | B19: Compte de résultats par fonction | C19: Compte de résultats par fonction
A20: 2.11 | B20: Compte de résultats par fonction par commune | C20: Compte de résultats fonctionnel par commune
A22: 3 | B22: Bilan
A23: 3.2 | B23: Bilan de l'ensemble des communes | C23: Bilan de l'ensemble des communes
A24: 3.3 | B24: Bilan par commune | C24: Bilan par commune
A25: 3.4 | B25: Tableau du bilan | C25: Tableau du bilan
A26: 3.5 | B26: Tableau de l'endettement | C26: Endettement
A27: 3.6 | B27: Tableau de l'endettement par commune | C27: Endettement par commune
A29: 4 | B29: Comptes des investissements
A30: 4.1 | B30: Investissements de l'ensemble des communes | C30: Investissements
A31: 4.2 | B31: Investissements par commune | C31: Investissements par commune
A33: 5 | B33: Indicateurs financiers
A34: 5.1 | B34: Définition des indicateurs financiers | C34: Définition des indicateurs financiers
A35: 5.2 | B35: Quotient de l'endettement net et degré d'autofinancement | C35: Degré d'autofinancement
A36: 5.3 | B36: Quotité de la charge des intérêts et dette brute par rapport aux revenus | C36: Dette brute par rapport aux revenus
A37: 5.4 | B37: Quotité d'investissement et quotité de la charge financière | C37: Quotités d'investissement et charges financière
A38: 5.5 | B38: Quotité d'autofinancement et quotité de la charge des intérêts nets | C38: Quotité d''autofinancement
A39: 5.6 | B39: Quotient de l'excédent au bilan | C39: Quotient excédent du bilan
A40: 5.7 | B40: Récapitulatif de l'ensemble des communes | C40: Récapitulatif
A41: 5.8 | B41: Récapitulatif par commune | C41: Récapitulatif par commune

Sheet Base de données pop. (hidden)
A1: N° | B1: Communes | C1: 2020 | M1: N° | N1: Communes | O1: 2020
A2: 1 | B2: Boécourt | C2: 923 | G2: Ne pas effectuer de tri avec cette feuille, c'est la base de donnée. | M2: 1 | N2: Alle | O2: =C34 -> 1,895
A3: 2 | B3: Bourrignon | C3: 270 | M3: 2 | N3: Basse-Allaine | O3: =C36 -> 1,241
A4: 3 | B4: Châtillon | C4: 485 | M4: 3 | N4: Beurnevésin | O4: =C37 -> 119
A5: 4 | B5: Courchapoix | C5: 446 | F5: Population par district | M5: 4 | N5: Boécourt | O5: =C2 -> 923
A6: 5 | B6: Courrendlin | C6: 3,631 | F6: Delémont | H6: =SUM(C2:C20) -> 38,954 | M6: 5 | N6: Boncourt | O6: =C38 -> 1,195
A7: 6 | B7: Courroux | C7: 3,313 | F7: Franches-Montagnes | H7: =SUM(C21:C33) -> 10,479 | M7: 6 | N7: Bonfol | O7: =C39 -> 663
A8: 7 | B8: Courtételle | C8: 2,644 | F8: Porrentruy | H8: =SUM(C34:C54) -> 24,276 | M8: 7 | N8: Bourrignon | O8: =C3 -> 270
A9: 8 | B9: Delémont | C9: 12,618 | H9: =SUM(H6:H8) -> 73,709 | M9: 8 | N9: Bure | O9: =C40 -> 645
A10: 9 | B10: Develier | C10: 1,371 | M10: 9 | N10: Châtillon | O10: =C4 -> 485
A11: 10 | B11: Ederswiler | C11: 118 | M11: 10 | N11: Clos du Doubs | O11: =C41 -> 1,263
A12: 11 | B12: Haute-Sorne | C12: 7,167 | M12: 11 | N12: Coeuve | O12: =C42 -> 740
A13: 12 | B13: Mervelier | C13: 528 | M13: 12 | N13: Cornol | O13: =C43 -> 1,028
A14: 13 | B14: Mettembert | C14: 108 | M14: 13 | N14: Courchapoix | O14: =C5 -> 446
A15: 14 | B15: Movelier | C15: 415 | M15: 14 | N15: Courchavon | O15: =C44 -> 314
A16: 15 | B16: Pleigne | C16: 349 | M16: 15 | N16: Courgenay | O16: =C45 -> 2,400
A17: 16 | B17: Rossemaison | C17: 687 | M17: 16 | N17: Courrendlin | O17: =C6 -> 3,631
A18: 17 | B18: Saulcy | C18: 255 | M18: 17 | N18: Courroux | O18: =C7 -> 3,313
A19: 18 | B19: Soyhières | C19: 436 | M19: 18 | N19: Courtedoux | O19: =C46 -> 755
A20: 19 | B20: Val Terbi | C20: 3,190 | M20: 19 | N20: Courtételle | O20: =C8 -> 2,644
A21: 20 | B21: Le Bémont | C21: 324 | M21: 20 | N21: Damphreux | O21: =C47 -> 181
A22: 21 | B22: Les Bois | C22: 1,246 | M22: 21 | N22: Delémont | O22: =C9 -> 12,618
A23: 22 | B23: Les Breuleux | C23: 1,528 | M23: 22 | N23: Develier | O23: =C10 -> 1,371
A24: 23 | B24: La Chaux-B. | C24: 96 | M24: 23 | N24: Ederswiler | O24: =C11 -> 118
A25: 24 | B25: Les Enfers | C25: 149 | M25: 24 | N25: Fahy | O25: =C48 -> 347
A26: 25 | B26: Les Genevez | C26: 516 | M26: 25 | N26: Fontenais | O26: =C49 -> 1,690
A27: 26 | B27: Lajoux | C27: 671 | M27: 26 | N27: Grandfontaine | O27: =C50 -> 387
A28: 27 | B28: Montfaucon | C28: 572 | M28: 27 | N28: Haute-Ajoie | O28: =C51 -> 1,096
A29: 28 | B29: Muriaux | C29: 490 | M29: 28 | N29: Haute-Sorne | O29: =C12 -> 7,167
A30: 29 | B30: Le Noirmont | C30: 1,914 | M30: 29 | N30: La Baroche | O30: =C35 -> 1,135
A31: 30 | B31: Saignelégier | C31: 2,615 | M31: 30 | N31: La Chaux-B. | O31: =C24 -> 96
A32: 31 | B32: Saint-Brais | C32: 227 | M32: 31 | N32: Lajoux | O32: =C27 -> 671
A33: 32 | B33: Soubey | C33: 131 | M33: 32 | N33: Le Bémont | O33: =C21 -> 324
A34: 33 | B34: Alle | C34: 1,895 | M34: 33 | N34: Le Noirmont | O34: =C30 -> 1,914
A35: 34 | B35: La Baroche | C35: 1,135 | M35: 34 | N35: Les Bois | O35: =C22 -> 1,246
A36: 35 | B36: Basse-Allaine | C36: 1,241 | M36: 35 | N36: Les Breuleux | O36: =C23 -> 1,528
A37: 36 | B37: Beurnevésin | C37: 119 | M37: 36 | N37: Les Enfers | O37: =C25 -> 149
A38: 37 | B38: Boncourt | C38: 1,195 | M38: 37 | N38: Les Genevez | O38: =C26 -> 516
A39: 38 | B39: Bonfol | C39: 663 | M39: 38 | N39: Lugnez | O39: =C52 -> 188
A40: 39 | B40: Bure | C40: 645 | M40: 39 | N40: Mervelier | O40: =C13 -> 528
A41: 40 | B41: Clos du Doubs | C41: 1,263 | M41: 40 | N41: Mettembert | O41: =C14 -> 108
A42: 41 | B42: Coeuve | C42: 740 | M42: 41 | N42: Montfaucon | O42: =C28 -> 572
A43: 42 | B43: Cornol | C43: 1,028 | M43: 42 | N43: Movelier | O43: =C15 -> 415
A44: 43 | B44: Courchavon | C44: 314 | M44: 43 | N44: Muriaux | O44: =C29 -> 490
A45: 44 | B45: Courgenay | C45: 2,400 | M45: 44 | N45: Pleigne | O45: =C16 -> 349
A46: 45 | B46: Courtedoux | C46: 755 | M46: 45 | N46: Porrentruy | O46: =C53 -> 6,434
A47: 46 | B47: Damphreux | C47: 181 | M47: 46 | N47: Rossemaison | O47: =C17 -> 687
A48: 47 | B48: Fahy | C48: 347 | M48: 47 | N48: Saignelégier | O48: =C31 -> 2,615
A49: 48 | B49: Fontenais | C49: 1,690 | M49: 48 | N49: Saint-Brais | O49: =C32 -> 227
A50: 49 | B50: Grandfontaine | C50: 387 | M50: 49 | N50: Saulcy | O50: =C18 -> 255
A51: 50 | B51: Haute-Ajoie | C51: 1,096 | M51: 50 | N51: Soubey | O51: =C33 -> 131
A52: 51 | B52: Lugnez | C52: 188 | M52: 51 | N52: Soyhières | O52: =C19 -> 436
A53: 52 | B53: Porrentruy | C53: 6,434 | M53: 52 | N53: Val Terbi | O53: =C20 -> 3,190
A54: 53 | B54: Vendlincourt | C54: 560 | M54: 53 | N54: Vendlincourt | O54: =C54 -> 560
B55: Total | C55: =SUM(C2:C54) -> 73,709 | N55: Total | O55: =SUM(O2:O54) -> 73,709

Sheet Population (hidden)
B3: moins de 200 habitants | E3: 201 à 500 habitants | G3: 501 à 1'000 habitants | J3: 1'001 à 2'000 habitants | M3: 2001 à 3'000 habitant | P3: plus de 3'000 habitant
A5: 1 | B5: La Chaux | C5: ='Base de données pop.'!C24 -> 96 | D5: 9 | E5: Saint-Brais | F5: ='Base de données pop.'!C32 -> 227 | G5: 22 | H5: Les Genevez | I5: ='Base de données pop.'!C26 -> 516 | J5: 33 | K5: Cornol | L5: ='Base de données pop.'!C43 -> 1,028 | M5: 45 | N5: Courgenay | O5: ='Base de données pop.'!C45 -> 2,400 | P5: 48 | Q5: Val Terbi | R5: ='Base de données pop.'!C20 -> 3,190
A6: 2 | B6: Mettembert | C6: ='Base de données pop.'!C14 -> 108 | D6: 10 | E6: Saulcy | F6: ='Base de données pop.'!C18 -> 255 | G6: 23 | H6: Mervelier | I6: ='Base de données pop.'!C13 -> 528 | J6: 34 | K6: Haute-Ajoie | L6: ='Base de données pop.'!C51 -> 1,096 | M6: 46 | N6: Saignelégier | O6: ='Base de données pop.'!C31 -> 2,615 | P6: 49 | Q6: Courroux | R6: ='Base de données pop.'!C7 -> 3,313
A7: 3 | B7: Ederswiler | C7: ='Base de données pop.'!C11 -> 118 | D7: 11 | E7: Bourrignon | F7: ='Base de données pop.'!C3 -> 270 | G7: 24 | H7: Vendlincourt | I7: ='Base de données pop.'!C54 -> 560 | J7: 35 | K7: La Baroche | L7: ='Base de données pop.'!C35 -> 1,135 | M7: 47 | N7: Courtételle | O7: ='Base de données pop.'!C8 -> 2,644 | P7: 50 | Q7: Courrendlin | R7: ='Base de données pop.'!C6 -> 3,631
A8: 4 | B8: Beurnevésin | C8: ='Base de données pop.'!C37 -> 119 | D8: 12 | E8: Courchavon | F8: ='Base de données pop.'!C44 -> 314 | G8: 25 | H8: Montfaucon | I8: ='Base de données pop.'!C28 -> 572 | J8: 36 | K8: Boncourt | L8: ='Base de données pop.'!C38 -> 1,195 | O8: =SUM(O5:O7) -> 7,659 | P8: 51 | Q8: Porrentruy | R8: ='Base de données pop.'!C53 -> 6,434
A9: 5 | B9: Soubey | C9: ='Base de données pop.'!C33 -> 131 | D9: 13 | E9: Le Bémont | F9: ='Base de données pop.'!C21 -> 324 | G9: 26 | H9: Bure | I9: ='Base de données pop.'!C40 -> 645 | J9: 37 | K9: Basse-Allaine | L9: ='Base de données pop.'!C36 -> 1,241 | N9: moyenne | O9: =O8/5 -> 1,531.80 | P9: 52 | Q9: Haute-Sorne | R9: ='Base de données pop.'!C12 -> 7,167
A10: 6 | B10: Les Enfers | C10: ='Base de données pop.'!C25 -> 149 | D10: 14 | E10: Fahy | F10: ='Base de données pop.'!C48 -> 347 | G10: 27 | H10: Bonfol | I10: ='Base de données pop.'!C39 -> 663 | J10: 38 | K10: Les Bois | L10: ='Base de données pop.'!C22 -> 1,246 | P10: 53 | Q10: Delémont | R10: ='Base de données pop.'!C9 -> 12,618
A11: 7 | B11: Damphreux | C11: ='Base de données pop.'!C47 -> 181 | D11: 15 | E11: Pleigne | F11: ='Base de données pop.'!C16 -> 349 | G11: 28 | H11: Lajoux | I11: ='Base de données pop.'!C27 -> 671 | J11: 39 | K11: Clos du Doubs | L11: ='Base de données pop.'!C41 -> 1,263 | R11: =SUM(R5:R10) -> 36,353
A12: 8 | B12: Lugnez | C12: ='Base de données pop.'!C52 -> 188 | D12: 16 | E12: Grandfontaine | F12: ='Base de données pop.'!C50 -> 387 | G12: 29 | H12: Rossemaison | I12: ='Base de données pop.'!C17 -> 687 | J12: 40 | K12: Develier | L12: ='Base de données pop.'!C10 -> 1,371 | Q12: moyenne | R12: =R11/4 -> 9,088.25
C13: =SUM(C5:C12) -> 1,090 | D13: 17 | E13: Movelier | F13: ='Base de données pop.'!C15 -> 415 | G13: 30 | H13: Coeuve | I13: ='Base de données pop.'!C42 -> 740 | J13: 41 | K13: Les Breuleux | L13: ='Base de données pop.'!C23 -> 1,528
B14: moyenne | C14: =C13/8 -> 136.25 | D14: 18 | E14: Soyhières | F14: ='Base de données pop.'!C19 -> 436 | G14: 31 | H14: Courdedoux | I14: ='Base de données pop.'!C46 -> 755 | J14: 42 | K14: Fontenais | L14: ='Base de données pop.'!C49 -> 1,690 | S14: =C13+F18+I16+L17+O8+R11 -> 73,709
D15: 19 | E15: Courchapoix | F15: ='Base de données pop.'!C5 -> 446 | G15: 32 | H15: Boécourt | I15: ='Base de données pop.'!C2 -> 923 | J15: 43 | K15: Alle | L15: ='Base de données pop.'!C34 -> 1,895 | S15: =S14/53 -> 1,391
D16: 20 | E16: Châtillon | F16: ='Base de données pop.'!C4 -> 485 | I16: =SUM(I5:I15) -> 7,260 | J16: 44 | K16: Le Noirmont | L16: ='Base de données pop.'!C30 -> 1,914 | U16: MOINS DE 1000 HABITANTS
D17: 21 | E17: Muriaux | F17: ='Base de données pop.'!C29 -> 490 | H17: moyenne | I17: =I16/11 -> 660.00 | L17: =SUM(L5:L16) -> 16,602 | U17: =C13+F18+I16 -> 13,095
F18: =SUM(F5:F17) -> 4,745 | K18: moyenne | L18: =L17/12 -> 1,383.50
E19: moyenne | F19: =F18/13 -> 365.00
B21: =C13+F18+I16+L17+O8+R11 -> 73,709
K23: Par Disctrict | L23: Delémont | O23: 38,954
B24: 8 communes de moins 200 habitants | C24: =C13 -> 1,090 | E24: =C24*100/B21 -> 1.48 | L24: Franches-Montagnes | O24: 10479
B25: 13 communes de 200 à 500 habitants | C25: =F18 -> 4,745 | E25: =C25*100/B21 -> 6.44 | F25: =E24+E25 -> 7.92 | L25: Porrentruy | O25: 24276
B26: 11 communes de 501 à 1'000 habitants | C26: =I16 -> 7,260 | E26: =C26*100/B21 -> 9.85 | L26: Total | O26: =SUM(O23:O25) -> 73,709
B27: 12 communes de 1'001 à 2'000 habitants | C27: =L17 -> 16,602 | E27: =C27*100/B21 -> 22.52
B28: 3 communes de 2'001 à 3'000 habitants | C28: =O8 -> 7,659 | E28: =C28*100/B21 -> 10.39
B29: 6 communes de plus 3'000 habitants | C29: =R11 -> 36,353 | E29: =C29*100/B21 -> 49.32
C30: =SUM(C24:C29) -> 73,709 | E30: =C30*100/B21 -> 100.00

Sheet 4.1 Comptes 2020 natures (hidden)
A1: Comptes de résultats par natures 2020
A2: Comptes consolidés de l'ensemble des communes et par district | E2: ='Base de données pop.'!C2 -> 923 | F2: ='Base de données pop.'!C3 -> 270 | G2: ='Base de données pop.'!C4 -> 485 | H2: ='Base de données pop.'!C5 -> 446 | I2: ='Base de données pop.'!C6 -> 3,631 | J2: ='Base de données pop.'!C7 -> 3,313 | K2: ='Base de données pop.'!C8 -> 2,644 | L2: ='Base de données pop.'!C9 -> 12,618 | M2: ='Base de données pop.'!C10 -> 1,371 | N2: ='Base de données pop.'!C11 -> 118 | O2: ='Base de données pop.'!C12 -> 7,167 | P2: ='Base de données pop.'!C13 -> 528 | Q2: ='Base de données pop.'!C14 -> 108 | R2: ='Base de données pop.'!C15 -> 415 | S2: ='Base de données pop.'!C16 -> 349 | T2: ='Base de données pop.'!C17 -> 687 | U2: ='Base de données pop.'!C18 -> 255 | V2: ='Base de données pop.'!C19 -> 436 | W2: ='Base de données pop.'!C20 -> 3,190 | X2: ='Base de données pop.'!C21 -> 324 | Y2: ='Base de données pop.'!C22 -> 1,246 | Z2: ='Base de données pop.'!C23 -> 1,528 | AA2: ='Base de données pop.'!C24 -> 96 | AB2: ='Base de données pop.'!C25 -> 149 | AC2: ='Base de données pop.'!C26 -> 516 | AD2: ='Base de données pop.'!C27 -> 671 | AE2: ='Base de données pop.'!C28 -> 572 | AF2: ='Base de données pop.'!C29 -> 490 | AG2: ='Base de données pop.'!C30 -> 1,914 | AH2: ='Base de données pop.'!C31 -> 2,615 | AI2: ='Base de données pop.'!C32 -> 227 | AJ2: ='Base de données pop.'!C33 -> 131 | AK2: ='Base de données pop.'!C34 -> 1,895 | AL2: ='Base de données pop.'!C35 -> 1,135 | AM2: ='Base de données pop.'!C36 -> 1,241 | AN2: ='Base de données pop.'!C37 -> 119 | AO2: ='Base de données pop.'!C38 -> 1,195 | AP2: ='Base de données pop.'!C39 -> 663 | AQ2: ='Base de données pop.'!C40 -> 645 | AR2: ='Base de données pop.'!C41 -> 1,263 | AS2: ='Base de données pop.'!C42 -> 740 | AT2: ='Base de données pop.'!C43 -> 1,028 | AU2: ='Base de données pop.'!C44 -> 314 | AV2: ='Base de données pop.'!C45 -> 2,400 | AW2: ='Base de données pop.'!C46 -> 755 | AX2: ='Base de données pop.'!C47 -> 181 | AY2: ='Base de données pop.'!C48 -> 347 | AZ2: ='Base de données pop.'!C49 -> 1,690 | BA2: ='Base de données pop.'!C50 -> 387 | BB2: ='Base de données pop.'!C51 -> 1,096 | BC2: ='Base de données pop.'!C52 -> 188 | BD2: ='Base de données pop.'!C53 -> 6,434 | BE2: ='Base de données pop.'!C54 -> 560 | BF2: =SUM(E2:BE2) -> 73,709 | BG2: =SUM(E2:W2) -> 38,954 | BH2: =SUM(X2:AJ2) -> 10,479 | BI2: =SUM(AK2:BE2) -> 24,276
E3: Boécourt | F3: Bourrignon | G3: Châtillon | H3: Courchapoix | I3: Courrendlin | J3: Courroux | K3: Courtételle | L3: Delémont | M3: Develier | N3: Ederswiler | O3: Haute-Sorne | P3: Mervelier | Q3: Mettembert | R3: Movelier | S3: Pleigne | T3: Rossemaison | U3: Saulcy | V3: Soyhières | W3: Val Terbi | X3: Le Bémont | Y3: Les Bois | Z3: Les Breuleux | AA3: La Chaux-B. | AB3: Les Enfers | AC3: Les Genevez | AD3: Lajoux | AE3: Montfaucon | AF3: Muriaux | AG3: Le Noirmont | AH3: Saignelégier | AI3: Saint-Brais | AJ3: Soubey | AK3: Alle | AL3: La Baroche | AM3: Basse-Allaine | AN3: Beurnevésin | AO3: Boncourt | AP3: Bonfol | AQ3: Bure | AR3: Clos du Doubs | AS3: Coeuve | AT3: Cornol | AU3: Courchavon | AV3: Courgenay | AW3: Courtedoux | AX3: Damphreux | AY3: Fahy | AZ3: Fontenais | BA3: Grandfontaine | BB3: Haute-Ajoie | BC3: Lugnez | BD3: Porrentruy | BE3: Vendlincourt | BF3: Total | BG3: Delémont | BH3: Franches-Montagnes | BI3: Porrentruy
A4: 3 | D4: Charges | E4: =E5+E15+E27+E31+E39+E43+E53+E56+E64 -> 4,023,666.78 | F4: =F5+F15+F27+F31+F39+F43+F53+F56+F64 -> 1,024,476.59 | G4: 1,740,654.22 | H4: 1,738,507.71 | I4: 14,077,081.51 | J4: 13,356,921.64 | K4: 10,198,838.44 | L4: 99,120,550.03 | M4: 7,172,640.66 | N4: 465,190.74 | O4: 25,574,369.95 | P4: 2,024,389.12 | Q4: 378,615.28 | R4: 1,537,836.38 | S4: 1,356,352.42 | T4: 2,616,219.57 | U4: 1,004,618.05 | V4: 2,420,187.28 | W4: 11,757,343.74 | X4: 1,847,199.77 | Y4: 5,662,732.25 | Z4: 10,836,534.83 | AA4: 644,533.20 | AB4: 827,991.57 | AC4: 2,724,908.76 | AD4: 3,423,946.59 | AE4: 2,683,306.15 | AF4: 3,714,434.56 | AG4: 8,821,935.77 | AH4: 11,584,752.48 | AI4: 1,149,199.80 | AJ4: 642,235.65 | AK4: 7,998,191.83 | AL4: 5,756,760.12 | AM4: 4,612,595.87 | AN4: 564,123.19 | AO4: 8,348,710.66 | AP4: 3,777,958.18 | AQ4: 2,500,263.61 | AR4: 7,195,879.46 | AS4: 3,007,875.98 | AT4: 4,356,503.23 | AU4: 2,657,434.18 | AV4: 8,937,021.19 | AW4: 2,950,588.56 | AX4: 741,246.20 | AY4: 1,487,464.80 | AZ4: 7,023,916.00 | BA4: 1,739,103.08 | BB4: 5,671,248.47 | BC4: 636,352.83 | BD4: 40,471,114.47 | BE4: 2,395,635.41 | BF4: 378,982,158.81 | BG4: 201,588,460.11 | BH4: 54,563,711.38 | BI4: 122,829,987.32
B5: 30 | D5: Charges du personnel | E5: =E6+E7+E8+E9+E10+E11+E12+E13 -> 469,778.30 | F5: =F6+F7+F8+F9+F10+F11+F12+F13 -> 52,868.70 | G5: 138,719.95 | H5: 234,232.20 | I5: 2,617,814.40 | J5: 2,914,897.70 | K5: 1,077,446.90 | L5: 23,819,035.59 | M5: 1,243,052.80 | N5: 41,572.05 | O5: 3,587,375.60 | P5: 166,881.05 | Q5: 69,596.65 | R5: 238,242.75 | S5: 120,756.95 | T5: 294,788.00 | U5: 115,430.85 | V5: 341,297.20 | W5: 2,126,563.20 | X5: 99,578.50 | Y5: 1,250,675.80 | Z5: 1,631,716.45 | AA5: 93,557.60 | AB5: 66,462.90 | AC5: 273,450.15 | AD5: 563,074.20 | AE5: 297,597.05 | AF5: 357,056.90 | AG5: 965,251.90 | AH5: 1,837,860.75 | AI5: 100,313.85 | AJ5: 66,337.75 | AK5: 773,698.35 | AL5: 644,888.10 | AM5: 494,732.75 | AN5: 66,430.30 | AO5: 1,270,590.70 | AP5: 791,661.35 | AQ5: 242,934.65 | AR5: 1,102,114.80 | AS5: 441,282.85 | AT5: 438,562.50 | AU5: 107,092.01 | AV5: 1,008,536.25 | AW5: 474,540.20 | AX5: 87,538.05 | AY5: 141,865.75 | AZ5: 873,403.60 | BA5: 118,392.90 | BB5: 1,272,093.46 | BC5: 72,984.60 | BD5: 10,704,463.39 | BE5: 319,536.65 | BF5: 68,720,627.85 | BG5: 39,670,350.84 | BH5: 7,602,933.80 | BI5: 21,447,343.21
C6: 300 | D6: Autorités et commissions | E6: 39,726.80 | F6: 20,005.00 | G6: 28,557.55 | H6: 40,361.70 | I6: 184,074.80 | J6: 138,815.60 | K6: 101,565.45 | L6: 740,241.35 | M6: 64,924.70 | N6: 17,779.15 | O6: 280,834.75 | P6: 36,162.70 | Q6: 14,663.75 | R6: 25,162.50 | S6: 26,418.55 | T6: 56,803.75 | U6: 12,439.20 | V6: 56,966.95 | W6: 94,890.60 | X6: 38,284.55 | Y6: 57,691.45 | Z6: 51,033.65 | AA6: 6,537.50 | AB6: 11,586.25 | AC6: 23,330.00 | AD6: 19,312.50 | AE6: 22,530.00 | AF6: 26,236.60 | AG6: 87,676.05 | AH6: 56,826.10 | AI6: 19,636.65 | AJ6: 14,782.50 | AK6: 149,613.35 | AL6: 48,609.70 | AM6: 48,095.40 | AN6: 17,777.90 | AO6: 92,852.15 | AP6: 26,215.00 | AQ6: 41,030.50 | AR6: 73,895.75 | AS6: 35,003.75 | AT6: 38,675.00 | AU6: 13,515.00 | AV6: 55,690.00 | AW6: 53,708.50 | AX6: 11,516.80 | AY6: 13,207.60 | AZ6: 51,975.00 | BA6: 23,159.75 | BB6: 51,638.65 | BC6: 13,464.38 | BD6: 248,561.75 | BE6: 25,733.40 | BF6: =SUM(E6:BE6) -> 3,549,797.98 | BG6: =SUM(E6:W6) -> 1,980,394.85 | BH6: =SUM(X6:AJ6) -> 435,463.80 | BI6: =SUM(AK6:BE6) -> 1,133,939.33
C7: 301 | D7: Personnel administratif et d'exploitation | E7: 353,234.50 | F7: 29,497.50 | G7: 93,244.30 | H7: 155,747.80 | I7: 1,972,008.00 | J7: 2,148,131.00 | K7: 756,238.90 | L7: 18,872,107.21 | M7: 986,668.75 | N7: 19,295.70 | O7: 2,678,680.45 | P7: 99,918.60 | Q7: 45,454.50 | R7: 165,458.35 | S7: 86,308.70 | T7: 192,726.20 | U7: 90,240.75 | V7: 236,030.50 | W7: 1,693,877.50 | X7: 50,249.20 | Y7: 1,003,412.45 | Z7: 1,319,934.85 | AA7: 75,019.20 | AB7: 48,607.80 | AC7: 209,865.40 | AD7: 443,644.70 | AE7: 226,017.45 | AF7: 260,713.40 | AG7: 703,604.90 | AH7: 1,453,365.90 | AI7: 69,600.85 | AJ7: 43,579.95 | AK7: 607,490.43 | AL7: 492,810.20 | AM7: 376,129.60 | AN7: 38,080.05 | AO7: 985,572.95 | AP7: 642,913.35 | AQ7: 161,848.00 | AR7: 875,386.50 | AS7: 335,351.10 | AT7: 329,942.75 | AU7: 77,225.61 | AV7: 767,052.60 | AW7: 347,283.10 | AX7: 61,791.50 | AY7: 109,173.00 | AZ7: 672,529.85 | BA7: 75,503.80 | BB7: 1,000,025.96 | BC7: 49,275.15 | BD7: 8,615,847.04 | BE7: 249,341.50 | BF7: =SUM(E7:BE7) -> 53,453,059.30 | BG7: =SUM(E7:W7) -> 30,674,869.21 | BH7: =SUM(X7:AJ7) -> 5,907,616.05 | BI7: =SUM(AK7:BE7) -> 16,870,574.04
C8: 302 | D8: Enseignants | E8: 0.00 | F8: 0.00 | G8: 0.00 | H8: 0.00 | I8: 0.00 | J8: 0.00 | K8: 0.00 | L8: 0.00 | M8: 0.00 | N8: 0.00 | O8: 0.00 | P8: 0.00 | Q8: 0.00 | R8: 0.00 | S8: 0.00 | T8: 0.00 | U8: 0.00 | V8: 0.00 | W8: 0.00 | X8: 0.00 | Y8: 0.00 | Z8: 0.00 | AA8: 0.00 | AB8: 0.00 | AC8: 0.00 | AD8: 0.00 | AE8: 0.00 | AF8: 0.00 | AG8: 3,645.00 | AH8: 0.00 | AI8: 0.00 | AJ8: 0.00 | AK8: 0.00 | AL8: 0.00 | AM8: 0.00 | AN8: 0.00 | AO8: 0.00 | AP8: 0.00 | AQ8: 0.00 | AR8: 0.00 | AS8: 0.00 | AT8: 0.00 | AU8: 0.00 | AV8: 0.00 | AW8: 0.00 | AX8: 0.00 | AY8: 0.00 | AZ8: 0.00 | BA8: 0.00 | BB8: 0.00 | BC8: 0.00 | BD8: 0.00 | BE8: 0.00 | BF8: 3,645.00 | BG8: 0.00 | BH8: 3,645.00 | BI8: 0.00
C9: 303 | D9: Personnel temporaire administratif et d'exploitation | E9: 0.00 | F9: 0.00 | G9: 0.00 | H9: 0.00 | I9: 0.00 | J9: 0.00 | K9: 0.00 | L9: 0.00 | M9: 4,000.00 | N9: 0.00 | O9: 0.00 | P9: 0.00 | Q9: 0.00 | R9: 0.00 | S9: 0.00 | T9: 0.00 | U9: 0.00 | V9: 0.00 | W9: 0.00 | X9: 0.00 | Y9: 0.00 | Z9: 0.00 | AA9: 0.00 | AB9: 0.00 | AC9: 0.00 | AD9: 0.00 | AE9: 0.00 | AF9: 0.00 | AG9: 0.00 | AH9: 0.00 | AI9: 200.00 | AJ9: 0.00 | AK9: 0.00 | AL9: 0.00 | AM9: 0.00 | AN9: 600.00 | AO9: 0.00 | AP9: 0.00 | AQ9: 0.00 | AR9: 0.00 | AS9: 0.00 | AT9: 0.00 | AU9: 0.00 | AV9: 0.00 | AW9: 495.00 | AX9: 0.00 | AY9: 0.00 | AZ9: 0.00 | BA9: 250.00 | BB9: 1,243.65 | BC9: 0.00 | BD9: 0.00 | BE9: 0.00 | BF9: 6,788.65 | BG9: 4,000.00 | BH9: 200.00 | BI9: 2,588.65
C10: 304 | D10: Allocations et indemnités | E10: 0.00 | F10: 0.00 | G10: 0.00 | H10: 0.00 | I10: 0.00 | J10: 21,891.70 | K10: 0.00 | L10: 0.00 | M10: 0.00 | N10: 0.00 | O10: 0.00 | P10: 0.00 | Q10: 0.00 | R10: 0.00 | S10: 0.00 | T10: 0.00 | U10: 0.00 | V10: 0.00 | W10: 0.00 | X10: 0.00 | Y10: 0.00 | Z10: 0.00 | AA10: 0.00 | AB10: 0.00 | AC10: 0.00 | AD10: 0.00 | AE10: 0.00 | AF10: 0.00 | AG10: 0.00 | AH10: 50,000.00 | AI10: 1,787.90 | AJ10: 0.00 | AK10: 0.00 | AL10: 0.00 | AM10: 0.00 | AN10: 0.00 | AO10: 0.00 | AP10: 0.00 | AQ10: 0.00 | AR10: 0.00 | AS10: 0.00 | AT10: 0.00 | AU10: 0.20 | AV10: 0.00 | AW10: 0.00 | AX10: 0.00 | AY10: 0.00 | AZ10: 0.00 | BA10: 0.00 | BB10: 0.00 | BC10: 0.00 | BD10: 0.00 | BE10: 0.00 | BF10: 73,679.80 | BG10: 21,891.70 | BH10: 51,787.90 | BI10: 0.20
C11: 305 | D11: Charges de l'employeur | E11: 71,655.30 | F11: 3,196.70 | G11: 15,608.20 | H11: 36,391.70 | I11: 441,332.05 | J11: 587,782.30 | K11: 182,192.40 | L11: 3,909,190.34 | M11: 181,654.75 | N11: 3,432.40 | O11: 604,659.60 | P11: 22,058.25 | Q11: 8,688.40 | R11: 46,774.10 | S11: 7,551.90 | T11: 44,657.80 | U11: 11,920.90 | V11: 45,804.55 | W11: 321,191.80 | X11: 9,402.30 | Y11: 184,566.10 | Z11: 241,614.55 | AA11: 11,005.60 | AB11: 6,208.85 | AC11: 34,500.15 | AD11: 91,969.20 | AE11: 47,316.00 | AF11: 69,079.65 | AG11: 160,850.35 | AH11: 273,141.25 | AI11: 8,928.45 | AJ11: 7,975.30 | AK11: 3,673.35 | AL11: 101,762.20 | AM11: 68,846.55 | AN11: 9,421.05 | AO11: 176,629.75 | AP11: 117,275.70 | AQ11: 37,614.70 | AR11: 147,964.10 | AS11: 67,450.90 | AT11: 58,909.15 | AU11: 15,156.85 | AV11: 176,281.50 | AW11: 65,428.15 | AX11: 13,463.55 | AY11: 19,018.85 | AZ11: 142,468.00 | BA11: 18,004.35 | BB11: 202,120.00 | BC11: 9,727.47 | BD11: 1,762,238.00 | BE11: 44,461.75 | BF11: 10,950,217.11 | BG11: 6,545,743.44 | BH11: 1,146,557.75 | BI11: 3,257,915.92
C12: 306 | D12: Prestations sociales de l'employeur | E12: 0.00 | F12: 0.00 | G12: 0.00 | H12: 0.00 | I12: 3,029.75 | J12: 0.00 | K12: 0.00 | L12: 52,415.50 | M12: 0.00 | N12: 0.00 | O12: 0.00 | P12: 0.00 | Q12: 0.00 | R12: 0.00 | S12: 0.00 | T12: 0.00 | U12: 0.00 | V12: 0.00 | W12: 0.00 | X12: 0.00 | Y12: 0.00 | Z12: 500.00 | AA12: 0.00 | AB12: 0.00 | AC12: 0.00 | AD12: 0.00 | AE12: 0.00 | AF12: 0.00 | AG12: 0.00 | AH12: 0.00 | AI12: 0.00 | AJ12: 0.00 | AK12: 0.00 | AL12: 0.00 | AM12: 0.00 | AN12: 0.00 | AO12: 0.00 | AP12: 0.00 | AQ12: 0.00 | AR12: 0.00 | AS12: 0.00 | AT12: 0.00 | AU12: 0.00 | AV12: 200.00 | AW12: 0.00 | AX12: 0.00 | AY12: 0.00 | AZ12: 0.00 | BA12: 0.00 | BB12: 0.00 | BC12: 0.00 | BD12: 0.00 | BE12: 0.00 | BF12: 56,145.25 | BG12: 55,445.25 | BH12: 500.00 | BI12: 200.00
C13: 309 | D13: Autres charges du personnel | E13: 5,161.70 | F13: 169.50 | G13: 1,309.90 | H13: 1,731.00 | I13: 17,369.80 | J13: 18,277.10 | K13: 37,450.15 | L13: 245,081.19 | M13: 5,804.60 | N13: 1,064.80 | O13: 23,200.80 | P13: 8,741.50 | Q13: 790.00 | R13: 847.80 | S13: 477.80 | T13: 600.25 | U13: 830.00 | V13: 2,495.20 | W13: 16,603.30 | X13: 1,642.45 | Y13: 5,005.80 | Z13: 18,633.40 | AA13: 995.30 | AB13: 60.00 | AC13: 5,754.60 | AD13: 8,147.80 | AE13: 1,733.60 | AF13: 1,027.25 | AG13: 9,475.60 | AH13: 4,527.50 | AI13: 160.00 | AJ13: 0.00 | AK13: 12,921.22 | AL13: 1,706.00 | AM13: 1,661.20 | AN13: 551.30 | AO13: 15,535.85 | AP13: 5,257.30 | AQ13: 2,441.45 | AR13: 4,868.45 | AS13: 3,477.10 | AT13: 11,035.60 | AU13: 1,194.35 | AV13: 9,312.15 | AW13: 7,625.45 | AX13: 766.20 | AY13: 466.30 | AZ13: 6,430.75 | BA13: 1,475.00 | BB13: 17,065.20 | BC13: 517.60 | BD13: 77,816.60 | BE13: 0.00 | BF13: 627,294.76 | BG13: 388,006.39 | BH13: 57,163.30 | BI13: 182,125.07
B15: 31 | D15: Charges de biens et de services et autres charges d'exploitation | E15: =E16+E17+E18+E19+E20+E21+E22+E23+E24+E25 -> 519,678.63 | F15: =F16+F17+F18+F19+F20+F21+F22+F23+F24+F25 -> 202,592.20 | G15: 246,367.93 | H15: 280,771.84 | I15: 2,704,298.43 | J15: 1,972,283.51 | K15: 1,626,060.57 | L15: 19,861,849.82 | M15: 1,747,147.69 | N15: 68,313.80 | O15: 3,520,162.80 | P15: 488,433.90 | Q15: 47,140.00 | R15: 254,198.46 | S15: 386,409.94 | T15: 611,756.07 | U15: 223,291.88 | V15: 564,276.35 | W15: 1,803,554.98 | X15: 490,521.30 | Y15: 1,195,834.96 | Z15: 2,504,201.29 | AA15: 136,646.64 | AB15: 215,664.14 | AC15: 742,142.79 | AD15: 810,737.99 | AE15: 887,967.67 | AF15: 923,720.35 | AG15: 1,706,747.25 | AH15: 2,481,753.76 | AI15: 281,189.75 | AJ15: 231,857.45 | AK15: 1,277,781.81 | AL15: 1,458,495.62 | AM15: 1,016,617.37 | AN15: 135,760.01 | AO15: 1,482,198.24 | AP15: 514,900.34 | AQ15: 454,314.43 | AR15: 1,494,728.99 | AS15: 529,720.28 | AT15: 692,277.75 | AU15: 398,705.82 | AV15: 1,744,115.84 | AW15: 549,955.64 | AX15: 141,601.74 | AY15: 386,145.29 | AZ15: 1,031,824.70 | BA15: 515,024.40 | BB15: 1,018,327.40 | BC15: 137,825.36 | BD15: 6,312,440.31 | BE15: 419,378.25 | BF15: 71,449,713.73 | BG15: 37,128,588.80 | BH15: 12,608,985.34 | BI15: 21,712,139.59
C16: 310 | D16: Charges de matériel et de marchandises | E16: 55,216.90 | F16: 17,773.20 | G16: 13,179.00 | H16: 29,018.05 | I16: 299,491.60 | J16: 280,154.94 | K16: 232,572.43 | L16: 1,813,266.84 | M16: 195,669.40 | N16: 8,782.20 | O16: 521,631.95 | P16: 58,745.26 | Q16: 8,429.85 | R16: 33,989.85 | S16: 39,834.95 | T16: 56,088.62 | U16: 17,970.78 | V16: 43,294.11 | W16: 238,295.07 | X16: 77,326.91 | Y16: 147,569.15 | Z16: 323,157.26 | AA16: 4,009.05 | AB16: 24,456.76 | AC16: 94,991.53 | AD16: 65,444.45 | AE16: 64,890.10 | AF16: 94,914.85 | AG16: 231,201.77 | AH16: 378,342.25 | AI16: 5,324.65 | AJ16: 24,142.70 | AK16: 224,379.17 | AL16: 107,239.77 | AM16: 53,173.83 | AN16: 21,760.95 | AO16: 219,526.18 | AP16: 68,909.02 | AQ16: 13,090.75 | AR16: 93,357.25 | AS16: 76,560.15 | AT16: 105,349.89 | AU16: 25,540.24 | AV16: 180,495.65 | AW16: 35,621.60 | AX16: 14,664.81 | AY16: 84,169.05 | AZ16: 75,485.40 | BA16: 20,002.24 | BB16: 95,778.13 | BC16: 4,022.55 | BD16: 722,014.81 | BE16: 65,327.38 | BF16: =SUM(E16:BE16) -> 7,805,645.25 | BG16: =SUM(E16:W16) -> 3,963,405.00 | BH16: =SUM(X16:AJ16) -> 1,535,771.43 | BI16: =SUM(AK16:BE16) -> 2,306,468.82
C17: 311 | D17: Immobilisations ne pouvant être portées à l'actif | E17: 56,305.05 | F17: 3,401.30 | G17: 13,078.20 | H17: 13,830.30 | I17: 92,166.90 | J17: 23,736.65 | K17: 30,295.15 | L17: 588,837.65 | M17: 154,568.40 | N17: 5,300.40 | O17: 121,475.56 | P17: 24,804.90 | Q17: 198.15 | R17: 1,035.65 | S17: 4,601.55 | T17: 19,765.65 | U17: 6,736.35 | V17: 32,402.35 | W17: 65,770.40 | X17: 6,452.60 | Y17: 26,589.56 | Z17: 41,306.50 | AA17: 0.00 | AB17: 200.00 | AC17: 17,661.65 | AD17: 62,960.19 | AE17: 20,278.95 | AF17: 48,215.40 | AG17: 80,883.45 | AH17: 37,997.73 | AI17: 534.00 | AJ17: 1,000.00 | AK17: 119,338.29 | AL17: 4,404.15 | AM17: 19,472.95 | AN17: 14,530.75 | AO17: 33,538.23 | AP17: 16,448.80 | AQ17: 17,452.00 | AR17: 75,329.50 | AS17: 33,578.40 | AT17: 79,368.80 | AU17: 28,149.20 | AV17: 116,905.60 | AW17: 4,072.60 | AX17: 89.00 | AY17: 5,603.10 | AZ17: 39,231.10 | BA17: 30,567.60 | BB17: 80,762.22 | BC17: 0.00 | BD17: 141,475.94 | BE17: 74,095.00 | BF17: =SUM(E17:BE17) -> 2,536,803.82 | BG17: 1,258,310.56 | BH17: 344,080.03 | BI17: 934,413.23
C18: 312 | D18: Alimentations et éliminations des biens-fonds du PA | E18: 66,682.35 | F18: 52,326.50 | G18: 23,694.80 | H18: 22,343.25 | I18: 773,407.20 | J18: 663,417.50 | K18: 363,053.15 | L18: 10,872,252.63 | M18: 852,361.00 | N18: 12,277.65 | O18: 470,341.28 | P18: 35,686.95 | Q18: 9,335.90 | R18: 41,681.75 | S18: 38,916.90 | T18: 168,984.60 | U18: 62,290.73 | V18: 47,300.05 | W18: 256,606.73 | X18: 134,227.40 | Y18: 245,262.10 | Z18: 387,455.80 | AA18: 45,375.00 | AB18: 37,797.90 | AC18: 134,609.60 | AD18: 159,485.20 | AE18: 210,695.85 | AF18: 134,814.60 | AG18: 306,738.35 | AH18: 582,468.15 | AI18: 97,360.30 | AJ18: 31,945.80 | AK18: 117,744.50 | AL18: 102,683.55 | AM18: 266,295.75 | AN18: 29,055.55 | AO18: 313,126.25 | AP18: 272,512.50 | AQ18: 107,014.50 | AR18: 190,392.35 | AS18: 122,456.55 | AT18: 123,320.85 | AU18: 62,565.25 | AV18: 354,496.60 | AW18: 38,410.95 | AX18: 40,778.60 | AY18: 82,644.85 | AZ18: 273,617.45 | BA18: 56,744.80 | BB18: 251,741.86 | BC18: 38,255.63 | BD18: 902,576.07 | BE18: 36,355.05 | BF18: 21,123,986.43 | BG18: 14,832,960.92 | BH18: 2,508,236.05 | BI18: 3,782,789.46
C19: 313 | D19: Prestations de services et honoraires | E19: 79,418.28 | F19: 80,937.60 | G19: 107,112.58 | H19: 28,598.65 | I19: 757,052.24 | J19: 643,962.64 | K19: 344,199.73 | L19: 3,351,727.32 | M19: 232,953.69 | N19: 18,347.60 | O19: 1,334,038.26 | P19: 156,336.79 | Q19: 21,805.30 | R19: 73,208.95 | S19: 128,739.14 | T19: 168,660.75 | U19: 60,563.04 | V19: 281,800.29 | W19: 579,434.35 | X19: 188,468.56 | Y19: 402,251.00 | Z19: 1,026,983.98 | AA19: 48,903.19 | AB19: 125,449.68 | AC19: 322,648.90 | AD19: 249,740.26 | AE19: 387,432.43 | AF19: 472,350.39 | AG19: 584,640.06 | AH19: 776,415.99 | AI19: 90,631.40 | AJ19: 75,801.05 | AK19: 434,488.55 | AL19: 664,747.25 | AM19: 364,999.39 | AN19: 41,511.75 | AO19: 529,426.94 | AP19: 104,161.76 | AQ19: 130,140.85 | AR19: 577,117.44 | AS19: 152,131.28 | AT19: 177,162.83 | AU19: 129,366.88 | AV19: 455,199.91 | AW19: 276,641.05 | AX19: 40,832.88 | AY19: 102,946.94 | AZ19: 338,993.44 | BA19: 288,009.46 | BB19: 315,744.87 | BC19: 40,915.03 | BD19: 1,784,059.23 | BE19: 127,461.17 | BF19: 20,276,672.99 | BG19: 8,448,897.20 | BH19: 4,751,716.89 | BI19: 7,076,058.90
C20: 314 | D20: Gros entretien et entretien courtant du PA | E20: 115,774.20 | F20: 57,280.00 | G20: 59,538.49 | H20: 146,517.05 | I20: 441,044.57 | J20: 224,906.54 | K20: 464,857.10 | L20: 1,338,737.31 | M20: 216,524.00 | N20: 6,753.80 | O20: 698,992.20 | P20: 127,772.75 | Q20: 2,945.85 | R20: 75,880.55 | S20: 124,329.80 | T20: 125,223.05 | U20: 49,052.00 | V20: 86,079.05 | W20: 235,417.63 | X20: 22,891.15 | Y20: 212,977.71 | Z20: 394,315.35 | AA20: 25,368.65 | AB20: 14,427.65 | AC20: 208,072.99 | AD20: 97,562.80 | AE20: 134,944.40 | AF20: 143,246.05 | AG20: 351,787.15 | AH20: 431,394.35 | AI20: 47,839.20 | AJ20: 81,647.25 | AK20: 224,135.60 | AL20: 300,916.37 | AM20: 142,587.90 | AN20: 13,980.55 | AO20: 395,618.15 | AP20: 100,872.00 | AQ20: 130,598.30 | AR20: 309,127.05 | AS20: 53,415.70 | AT20: 109,651.00 | AU20: 54,529.50 | AV20: 264,026.05 | AW20: 76,053.70 | AX20: 27,435.80 | AY20: 68,794.20 | AZ20: 134,673.80 | BA20: 91,012.20 | BB20: 148,618.51 | BC20: 40,557.05 | BD20: 896,552.62 | BE20: 47,917.05 | BF20: 10,395,173.74 | BG20: 4,597,625.94 | BH20: 2,166,474.70 | BI20: 3,631,073.10
C21: 315 | D21: Entretien des biens mobiliers et des immobilisations corporelles du PA | E21: 33,160.45 | F21: 13,144.00 | G21: 13,012.65 | H21: 19,904.35 | I21: 139,783.15 | J21: 14,920.45 | K21: 87,676.21 | L21: 961,037.26 | M21: 60,398.75 | N21: 2,010.90 | O21: 225,862.60 | P21: 9,061.85 | Q21: 2,462.45 | R21: 21,264.91 | S21: 5,574.40 | T21: 12,791.85 | U21: 8,484.37 | V21: 21,722.80 | W21: 125,111.69 | X21: 1,710.90 | Y21: 88,235.45 | Z21: 63,613.00 | AA21: 7,642.25 | AB21: 4,579.85 | AC21: 43,070.87 | AD21: 91,199.82 | AE21: 50,073.35 | AF21: 3,215.11 | AG21: 101,860.78 | AH21: 42,911.10 | AI21: 26,422.00 | AJ21: 8,458.90 | AK21: 19,682.60 | AL21: 130,910.10 | AM21: 45,568.55 | AN21: 0.00 | AO21: 53,688.15 | AP21: 30,417.95 | AQ21: 34,032.78 | AR21: 69,959.10 | AS21: 40,182.85 | AT21: 41,152.50 | AU21: 22,513.55 | AV21: 55,247.50 | AW21: 28,331.30 | AX21: 7,319.65 | AY21: 12,657.45 | AZ21: 43,482.15 | BA21: 8,746.35 | BB21: 79,870.60 | BC21: 5,420.05 | BD21: 418,725.61 | BE21: 42,182.35 | BF21: 3,500,469.61 | BG21: 1,777,385.09 | BH21: 532,993.38 | BI21: 1,190,091.14
C22: 316 | D22: Loyers - crédits-bails (leasing) - baux à fermes - taxes d'utilisation | E22: 3,877.20 | F22: 2,836.05 | G22: 592.35 | H22: 4,124.90 | I22: 67,837.45 | J22: 35,406.95 | K22: 32,914.00 | L22: 918,761.95 | M22: 31,486.55 | N22: 1,200.00 | O22: 106,532.35 | P22: 0.00 | Q22: 0.00 | R22: 0.00 | S22: 0.00 | T22: 1,400.10 | U22: 0.00 | V22: 4,800.00 | W22: 113,662.35 | X22: 22,247.63 | Y22: 14,700.00 | Z22: 160,248.00 | AA22: 0.00 | AB22: 800.00 | AC22: 3,464.65 | AD22: 44,942.40 | AE22: 2,466.85 | AF22: 0.00 | AG22: 2,221.50 | AH22: 108,949.10 | AI22: 0.00 | AJ22: 0.00 | AK22: 0.00 | AL22: 8,966.90 | AM22: 14,951.50 | AN22: 600.00 | AO22: 36,000.00 | AP22: 38,674.30 | AQ22: 0.00 | AR22: 42,741.80 | AS22: 9,738.15 | AT22: 0.00 | AU22: 0.00 | AV22: 10,485.75 | AW22: 19,104.05 | AX22: 0.00 | AY22: 2,739.70 | AZ22: 39,756.00 | BA22: 5,880.40 | BB22: 7,695.55 | BC22: 0.00 | BD22: 784,348.18 | BE22: 600.00 | BF22: 2,707,754.61 | BG22: 1,325,432.20 | BH22: 360,040.13 | BI22: 1,022,282.28
C23: 317 | D23: Indemnités et dédommagements | E23: 17,503.35 | F23: 1,752.40 | G23: 604.65 | H23: 899.24 | I23: 28,163.15 | J23: 42,359.65 | K23: 18,593.90 | L23: 64,472.58 | M23: 12,326.15 | N23: 155.00 | O23: 70,768.10 | P23: 2,739.30 | Q23: 1,309.70 | R23: 1,237.35 | S23: 5,823.75 | T23: 26,207.65 | U23: 2,740.60 | V23: 3,163.65 | W23: 17,203.55 | X23: 21,221.95 | Y23: 7,060.80 | Z23: 29,995.40 | AA23: 409.30 | AB23: 555.10 | AC23: 2,853.75 | AD23: 7,892.90 | AE23: 6,814.00 | AF23: 0.00 | AG23: 15,978.50 | AH23: 7,793.05 | AI23: 1,696.20 | AJ23: 535.10 | AK23: 30,402.10 | AL23: 14,366.80 | AM23: 14,784.80 | AN23: 441.60 | AO23: 26,087.35 | AP23: 2,674.60 | AQ23: 460.85 | AR23: 19,156.20 | AS23: 26,910.70 | AT23: 6,889.85 | AU23: 1,633.00 | AV23: 30,778.50 | AW23: 1,433.00 | AX23: 621.30 | AY23: 3,792.70 | AZ23: 19,720.01 | BA23: 3,060.35 | BB23: 16,871.30 | BC23: 333.50 | BD23: 37,357.50 | BE23: 1,109.30 | BF23: 679,715.08 | BG23: 318,023.72 | BH23: 102,806.05 | BI23: 258,885.31
C24: 318 | D24: Réévaluations de créances | E24: 89,412.95 | F24: -26,908.85 | G24: 11,187.51 | H24: 12,827.40 | I24: 72,341.65 | J24: 19,718.15 | K24: 30,462.05 | L24: -232,397.17 | M24: -62,640.25 | N24: 10,535.05 | O24: -43,121.85 | P24: 73,096.10 | Q24: 59.45 | R24: 5,899.45 | S24: 37,242.85 | T24: 27,840.80 | U24: 14,764.90 | V24: 42,514.50 | W24: 165,098.11 | X24: 14,489.35 | Y24: 35,962.44 | Z24: 60,436.40 | AA24: 3,963.70 | AB24: 6,037.40 | AC24: -86,221.95 | AD24: 24,341.87 | AE24: 7,432.09 | AF24: 25,173.35 | AG24: 24,837.69 | AH24: 103,564.94 | AI24: 10,692.70 | AJ24: 6,779.65 | AK24: 107,611.00 | AL24: 106,511.78 | AM24: 93,838.60 | AN24: 13,878.86 | AO24: -158,108.51 | AP24: -121,128.74 | AQ24: 21,423.00 | AR24: 101,567.40 | AS24: 12,355.10 | AT24: 26,849.83 | AU24: 72,190.80 | AV24: 255,480.28 | AW24: 59,543.09 | AX24: 9,683.80 | AY24: 22,797.30 | AZ24: 63,552.60 | BA24: 11,001.00 | BB24: 13,653.96 | BC24: 7,580.95 | BD24: 465,875.65 | BE24: 21,039.00 | BF24: 1,692,619.18 | BG24: 247,932.80 | BH24: 237,489.63 | BI24: 1,207,196.75
C25: 319 | D25: Divers charges d'exploitation | E25: 2,327.90 | F25: 50.00 | G25: 4,367.70 | H25: 2,708.65 | I25: 33,010.52 | J25: 23,700.04 | K25: 21,436.85 | L25: 185,153.45 | M25: 53,500.00 | N25: 2,951.20 | O25: 13,642.35 | P25: 190.00 | Q25: 593.35 | R25: 0.00 | S25: 1,346.60 | T25: 4,793.00 | U25: 689.11 | V25: 1,199.55 | W25: 6,955.10 | X25: 1,484.85 | Y25: 15,226.75 | Z25: 16,689.60 | AA25: 975.50 | AB25: 1,359.80 | AC25: 990.80 | AD25: 7,168.10 | AE25: 2,939.65 | AF25: 1,790.60 | AG25: 6,598.00 | AH25: 11,917.10 | AI25: 689.30 | AJ25: 1,547.00 | AK25: 0.00 | AL25: 17,748.95 | AM25: 944.10 | AN25: 0.00 | AO25: 33,295.50 | AP25: 1,358.15 | AQ25: 101.40 | AR25: 15,980.90 | AS25: 2,391.40 | AT25: 22,532.20 | AU25: 2,217.40 | AV25: 21,000.00 | AW25: 10,744.30 | AX25: 175.90 | AY25: 0.00 | AZ25: 3,312.75 | BA25: 0.00 | BB25: 7,590.40 | BC25: 740.60 | BD25: 159,454.70 | BE25: 3,291.95 | BF25: 730,873.02 | BG25: 358,615.37 | BH25: 69,377.05 | BI25: 302,880.60
B27: 33 | D27: Amortissements du patrimoine administratif | E27: =E28+E29 -> 505,358.98 | F27: =F28+F29 -> 79,584.00 | G27: 36,441.00 | H27: 100,260.00 | I27: 742,648.80 | J27: 1,008,330.10 | K27: 562,251.40 | L27: 5,119,062.61 | M27: 264,426.14 | N27: 54,734.79 | O27: 1,311,445.05 | P27: 137,078.00 | Q27: 12,845.00 | R27: 94,900.00 | S27: 67,550.00 | T27: 149,143.30 | U27: 33,009.11 | V27: 155,409.55 | W27: 954,867.77 | X27: 51,671.15 | Y27: 263,696.45 | Z27: 310,449.91 | AA27: 40,237.30 | AB27: 700.00 | AC27: 97,340.80 | AD27: 175,409.64 | AE27: 112,900.00 | AF27: 46,101.55 | AG27: 602,139.00 | AH27: 1,126,485.45 | AI27: 73,520.05 | AJ27: 11,220.00 | AK27: 421,564.00 | AL27: 383,847.70 | AM27: 263,850.00 | AN27: 18,600.00 | AO27: 613,524.00 | AP27: 67,350.00 | AQ27: 206,488.85 | AR27: 591,914.85 | AS27: 132,899.80 | AT27: 236,006.67 | AU27: 432,093.90 | AV27: 435,318.16 | AW27: 106,477.27 | AX27: 31,410.00 | AY27: 186,165.00 | AZ27: 571,793.05 | BA27: 29,040.00 | BB27: 381,409.63 | BC27: 12,476.00 | BD27: 3,229,816.74 | BE27: 102,578.57 | BF27: 22,755,841.09 | BG27: 11,389,345.60 | BH27: 2,911,871.30 | BI27: 8,454,624.19
C28: 330 | D28: Amortissements des immobilisations corporelles du PA | E28: 472,574.35 | F28: 67,904.00 | G28: 34,694.50 | H28: 100,260.00 | I28: 724,428.80 | J28: 999,558.70 | K28: 562,251.40 | L28: 5,119,062.61 | M28: 262,596.14 | N28: 54,734.79 | O28: 1,286,437.70 | P28: 137,078.00 | Q28: 12,845.00 | R28: 94,900.00 | S28: 67,550.00 | T28: 149,143.30 | U28: 33,009.11 | V28: 137,500.00 | W28: 900,538.02 | X28: 51,671.15 | Y28: 263,696.45 | Z28: 310,449.91 | AA28: 40,237.30 | AB28: 700.00 | AC28: 92,315.80 | AD28: 175,409.64 | AE28: 112,900.00 | AF28: 46,101.55 | AG28: 602,139.00 | AH28: 1,086,320.45 | AI28: 73,520.05 | AJ28: 11,220.00 | AK28: 421,564.00 | AL28: 383,847.70 | AM28: 244,100.00 | AN28: 18,600.00 | AO28: 603,124.00 | AP28: 67,350.00 | AQ28: 206,488.85 | AR28: 582,914.85 | AS28: 132,899.80 | AT28: 235,543.45 | AU28: 432,093.90 | AV28: 435,318.16 | AW28: 106,477.27 | AX28: 31,410.00 | AY28: 181,665.00 | AZ28: 529,888.05 | BA28: 29,040.00 | BB28: 381,409.63 | BC28: 12,476.00 | BD28: 2,959,471.24 | BE28: 102,578.57 | BF28: =SUM(E28:BE28) -> 22,182,008.19 | BG28: =SUM(E28:W28) -> 11,217,066.42 | BH28: =SUM(X28:AJ28) -> 2,866,681.30 | BI28: =SUM(AK28:BE28) -> 8,098,260.47
C29: 332 | D29: Amortissements des immobilisations incorporelles du PA | E29: 32,784.63 | F29: 11,680.00 | G29: 1,746.50 | H29: 0.00 | I29: 18,220.00 | J29: 8,771.40 | K29: 0.00 | L29: 0.00 | M29: 1,830.00 | N29: 0.00 | O29: 25,007.35 | P29: 0.00 | Q29: 0.00 | R29: 0.00 | S29: 0.00 | T29: 0.00 | U29: 0.00 | V29: 17,909.55 | W29: 54,329.75 | X29: 0.00 | Y29: 0.00 | Z29: 0.00 | AA29: 0.00 | AB29: 0.00 | AC29: 5,025.00 | AD29: 0.00 | AE29: 0.00 | AF29: 0.00 | AG29: 0.00 | AH29: 40,165.00 | AI29: 0.00 | AJ29: 0.00 | AK29: 0.00 | AL29: 0.00 | AM29: 19,750.00 | AN29: 0.00 | AO29: 10,400.00 | AP29: 0.00 | AQ29: 0.00 | AR29: 9,000.00 | AS29: 0.00 | AT29: 463.22 | AU29: 0.00 | AV29: 0.00 | AW29: 0.00 | AX29: 0.00 | AY29: 4,500.00 | AZ29: 41,905.00 | BA29: 0.00 | BB29: 0.00 | BC29: 0.00 | BD29: 270,345.50 | BE29: 0.00 | BF29: 573,832.90 | BG29: 172,279.18 | BH29: 45,190.00 | BI29: 356,363.72
B31: 34 | D31: Charges financières | E31: =E32+E33+E34+E35+E36+E37 -> 37,127.64 | F31: =F32+F33+F34+F35+F36+F37 -> 62,765.89 | G31: 112,446.58 | H31: 79,602.07 | I31: 644,111.71 | J31: 388,099.95 | K31: 190,806.37 | L31: 2,138,375.63 | M31: 72,055.42 | N31: 7,695.90 | O31: 409,269.40 | P31: 49,806.81 | Q31: 9,325.53 | R31: 44,096.62 | S31: 62,506.13 | T31: 106,712.10 | U31: 13,829.21 | V31: 64,346.25 | W31: 236,226.93 | X31: 17,824.56 | Y31: 178,118.55 | Z31: 49,261.87 | AA31: 4,961.05 | AB31: 18,235.50 | AC31: 50,857.46 | AD31: 152,122.31 | AE31: 38,360.71 | AF31: 53,662.75 | AG31: 142,241.90 | AH31: 353,256.83 | AI31: 24,821.81 | AJ31: 43,716.78 | AK31: 241,663.17 | AL31: 190,129.10 | AM31: 163,768.80 | AN31: 28,646.12 | AO31: 259,653.78 | AP31: 66,745.50 | AQ31: 71,227.80 | AR31: 266,678.92 | AS31: 117,832.13 | AT31: 180,860.45 | AU31: 23,204.25 | AV31: 205,298.78 | AW31: 65,965.85 | AX31: 13,236.20 | AY31: 16,514.06 | AZ31: 330,999.18 | BA31: 11,552.11 | BB31: 114,102.89 | BC31: 450.20 | BD31: 982,517.89 | BE31: 70,288.95 | BF31: 9,277,984.35 | BG31: 4,729,206.14 | BH31: 1,127,442.08 | BI31: 3,421,336.13
C32: 340 | D32: Charges d'intérets | E32: 37,127.64 | F32: 43,881.44 | G32: 66,290.35 | H32: 62,822.72 | I32: 476,365.76 | J32: 324,152.54 | K32: 131,053.32 | L32: 1,943,625.13 | M32: 61,736.90 | N32: 7,695.90 | O32: 346,158.65 | P32: 39,215.76 | Q32: 9,095.53 | R32: 36,877.37 | S32: 56,844.93 | T32: 52,274.20 | U32: 8,304.64 | V32: 54,207.25 | W32: 223,986.68 | X32: 6,223.36 | Y32: 178,266.70 | Z32: 12,115.22 | AA32: 4,856.65 | AB32: 7,098.21 | AC32: 43,994.56 | AD32: 123,255.96 | AE32: 38,160.71 | AF32: 2,733.00 | AG32: 95,232.30 | AH32: 230,636.38 | AI32: 18,670.16 | AJ32: 5,498.28 | AK32: 143,147.37 | AL32: 146,946.05 | AM32: 134,214.10 | AN32: 18,970.07 | AO32: 79,061.43 | AP32: 58,479.55 | AQ32: 71,227.80 | AR32: 89,632.52 | AS32: 87,952.63 | AT32: 152,171.45 | AU32: 23,204.25 | AV32: 200,299.78 | AW32: 64,946.78 | AX32: 7,348.80 | AY32: 16,514.06 | AZ32: 317,070.18 | BA32: 9,109.76 | BB32: 91,910.14 | BC32: 0.00 | BD32: 888,941.00 | BE32: 49,137.50 | BF32: =SUM(E32:BE32) -> 7,398,743.42 | BG32: =SUM(E32:W32) -> 3,981,716.71 | BH32: =SUM(X32:AJ32) -> 766,741.49 | BI32: =SUM(AK32:BE32) -> 2,650,285.22
C33: 341 | D33: Pertes sur les placements financiers et les immobilisations du PF | E33: 0.00 | F33: 0.00 | G33: 0.00 | H33: 0.00 | I33: 0.00 | J33: 0.00 | K33: 0.00 | L33: 0.00 | M33: 0.00 | N33: 0.00 | O33: 0.00 | P33: 0.00 | Q33: 0.00 | R33: 0.00 | S33: 0.00 | T33: 0.00 | U33: 0.00 | V33: 0.00 | W33: 0.00 | X33: 0.00 | Y33: -148.15 | Z33: 0.00 | AA33: 0.00 | AB33: 0.00 | AC33: 0.00 | AD33: 0.00 | AE33: 0.00 | AF33: 0.00 | AG33: 0.00 | AH33: 100,000.00 | AI33: 0.00 | AJ33: 0.00 | AK33: 0.00 | AL33: 582.85 | AM33: 0.00 | AN33: 0.00 | AO33: 0.00 | AP33: 0.00 | AQ33: 0.00 | AR33: 0.00 | AS33: 0.00 | AT33: 0.00 | AU33: 0.00 | AV33: 0.00 | AW33: 0.00 | AX33: 0.00 | AY33: 0.00 | AZ33: 0.00 | BA33: 3.00 | BB33: 0.00 | BC33: 0.00 | BD33: 0.00 | BE33: 0.00 | BF33: 100,437.70 | BG33: 0.00 | BH33: 99,851.85 | BI33: 585.85
C34: 342 | D34: Frais d'acquisitions des capitaux et frais administratifs | E34: 0.00 | F34: 0.00 | G34: 0.00 | H34: 0.00 | I34: 0.00 | J34: 0.00 | K34: 0.00 | L34: 0.00 | M34: 0.00 | N34: 0.00 | O34: 0.00 | P34: 0.00 | Q34: 0.00 | R34: 0.00 | S34: 0.00 | T34: 0.00 | U34: 0.00 | V34: 0.00 | W34: 0.00 | X34: 0.00 | Y34: 0.00 | Z34: 0.00 | AA34: 0.00 | AB34: 0.00 | AC34: 0.00 | AD34: 0.00 | AE34: 0.00 | AF34: 0.00 | AG34: 0.00 | AH34: 0.00 | AI34: 0.00 | AJ34: 0.00 | AK34: 0.00 | AL34: 0.00 | AM34: 0.00 | AN34: 0.00 | AO34: 0.00 | AP34: 0.00 | AQ34: 0.00 | AR34: 0.00 | AS34: 0.00 | AT34: 0.00 | AU34: 0.00 | AV34: 0.00 | AW34: 0.00 | AX34: 0.00 | AY34: 0.00 | AZ34: 0.00 | BA34: 0.00 | BB34: 0.00 | BC34: 0.00 | BD34: 0.00 | BE34: 0.00 | BF34: 0.00 | BG34: 0.00 | BH34: 0.00 | BI34: 0.00
C35: 343 | D35: Charges pour les biens-fonds du PF | E35: 0.00 | F35: 18,879.75 | G35: 46,156.23 | H35: 16,779.35 | I35: 166,165.95 | J35: 32,347.41 | K35: 57,281.15 | L35: 194,150.50 | M35: 10,282.55 | N35: 0.00 | O35: 58,647.85 | P35: 10,591.05 | Q35: 190.00 | R35: 7,219.25 | S35: 861.20 | T35: 41,584.10 | U35: 5,524.57 | V35: 10,139.00 | W35: 12,231.25 | X35: 8,867.90 | Y35: 0.00 | Z35: 37,146.65 | AA35: 104.40 | AB35: 9,155.95 | AC35: 6,862.90 | AD35: 28,826.35 | AE35: 0.00 | AF35: 50,929.15 | AG35: 46,999.60 | AH35: 22,620.45 | AI35: 613.20 | AJ35: 38,218.50 | AK35: 98,515.80 | AL35: 34,703.05 | AM35: 29,322.35 | AN35: 8,715.85 | AO35: 180,592.35 | AP35: 5,723.40 | AQ35: 0.00 | AR35: 177,046.40 | AS35: 29,857.35 | AT35: 28,689.00 | AU35: 0.00 | AV35: 0.00 | AW35: 0.00 | AX35: 0.00 | AY35: 0.00 | AZ35: 13,929.00 | BA35: 2,439.35 | BB35: 21,112.75 | BC35: 435.20 | BD35: 93,576.89 | BE35: 18,659.35 | BF35: 1,682,694.30 | BG35: 689,031.16 | BH35: 250,345.05 | BI35: 743,318.09
C36: 344 | D36: Réévaluations des immobilisations du PF | E36: 0.00 | F36: 0.00 | G36: 0.00 | H36: 0.00 | I36: 1,580.00 | J36: 31,600.00 | K36: 2,471.90 | L36: 600.00 | M36: 0.00 | N36: 0.00 | O36: 4,462.90 | P36: 0.00 | Q36: 40.00 | R36: 0.00 | S36: 4,800.00 | T36: 12,853.80 | U36: 0.00 | V36: 0.00 | W36: 0.00 | X36: 0.00 | Y36: 0.00 | Z36: 0.00 | AA36: 0.00 | AB36: 0.00 | AC36: 0.00 | AD36: 40.00 | AE36: 200.00 | AF36: 0.00 | AG36: 0.00 | AH36: 0.00 | AI36: 5,130.85 | AJ36: 0.00 | AK36: 0.00 | AL36: 0.00 | AM36: 0.00 | AN36: 0.00 | AO36: 0.00 | AP36: 0.00 | AQ36: 0.00 | AR36: 0.00 | AS36: 22.15 | AT36: 0.00 | AU36: 0.00 | AV36: 4,999.00 | AW36: 0.00 | AX36: 5,300.00 | AY36: 0.00 | AZ36: 0.00 | BA36: 0.00 | BB36: 1,080.00 | BC36: 15.00 | BD36: 0.00 | BE36: 0.00 | BF36: 75,195.60 | BG36: 58,408.60 | BH36: 5,370.85 | BI36: 11,416.15
C37: 349 | D37: Autres charges financières | E37: 0.00 | F37: 4.70 | G37: 0.00 | H37: 0.00 | I37: 0.00 | J37: 0.00 | K37: 0.00 | L37: 0.00 | M37: 35.97 | N37: 0.00 | O37: 0.00 | P37: 0.00 | Q37: 0.00 | R37: 0.00 | S37: 0.00 | T37: 0.00 | U37: 0.00 | V37: 0.00 | W37: 9.00 | X37: 2,733.30 | Y37: 0.00 | Z37: 0.00 | AA37: 0.00 | AB37: 1,981.34 | AC37: 0.00 | AD37: 0.00 | AE37: 0.00 | AF37: 0.60 | AG37: 10.00 | AH37: 0.00 | AI37: 407.60 | AJ37: 0.00 | AK37: 0.00 | AL37: 7,897.15 | AM37: 232.35 | AN37: 960.20 | AO37: 0.00 | AP37: 2,542.55 | AQ37: 0.00 | AR37: 0.00 | AS37: 0.00 | AT37: 0.00 | AU37: 0.00 | AV37: 0.00 | AW37: 1,019.07 | AX37: 587.40 | AY37: 0.00 | AZ37: 0.00 | BA37: 0.00 | BB37: 0.00 | BC37: 0.00 | BD37: 0.00 | BE37: 2,492.10 | BF37: 20,913.33 | BG37: 49.67 | BH37: 5,132.84 | BI37: 15,730.82
B39: 35 | D39: Attributions aux financements spéciaux des capitaux de tiers | E39: =E40+E41 -> 21,282.55 | F39: =F40+F41 -> 5,654.61 | G39: 1,061.63 | H39: 120,781.35 | I39: 19,367.90 | J39: 8,283.80 | K39: 122,829.97 | L39: 0.00 | M39: 117,208.31 | N39: 15,373.15 | O39: 657,388.09 | P39: 43,166.75 | Q39: 0.00 | R39: 125.00 | S39: 0.00 | T39: 0.00 | U39: 26,815.05 | V39: 1,850.70 | W39: 0.00 | X39: 44,369.70 | Y39: 304.90 | Z39: 15,054.60 | AA39: 7,247.15 | AB39: 7,500.00 | AC39: 978.98 | AD39: 4,605.65 | AE39: 6,363.23 | AF39: 88,954.00 | AG39: 65,396.30 | AH39: 35,174.75 | AI39: 16,158.54 | AJ39: 3,000.00 | AK39: 114,602.63 | AL39: 86,259.73 | AM39: 0.00 | AN39: 668.62 | AO39: 747.60 | AP39: 15,096.00 | AQ39: 12,042.10 | AR39: 88,595.55 | AS39: 107,667.17 | AT39: 56,674.66 | AU39: 86,982.50 | AV39: 12,044.98 | AW39: 15,048.00 | AX39: 117.04 | AY39: 310.00 | AZ39: 8,658.30 | BA39: 23,493.55 | BB39: 38,678.46 | BC39: 0.00 | BD39: 6,315.00 | BE39: 12,780.29 | BF39: 2,143,078.84 | BG39: 1,161,188.86 | BH39: 295,107.80 | BI39: 686,782.18
C40: 350 | D40: Attributions aux financements spéciaux des capitaux de tiers | E40: 0.00 | F40: 0.00 | G40: 0.00 | H40: 120,781.35 | I40: 0.00 | J40: 0.00 | K40: 0.00 | L40: 0.00 | M40: 0.00 | N40: 8,500.00 | O40: 0.00 | P40: 0.00 | Q40: 0.00 | R40: 0.00 | S40: 0.00 | T40: 0.00 | U40: 0.00 | V40: 0.00 | W40: 0.00 | X40: 0.00 | Y40: 0.00 | Z40: 0.00 | AA40: 7,247.15 | AB40: 0.00 | AC40: 0.00 | AD40: 0.00 | AE40: 1,918.77 | AF40: 0.00 | AG40: 0.00 | AH40: 0.00 | AI40: 5,707.06 | AJ40: 0.00 | AK40: 0.00 | AL40: 0.00 | AM40: 0.00 | AN40: 0.00 | AO40: 0.00 | AP40: 0.00 | AQ40: 0.00 | AR40: 0.00 | AS40: 1.70 | AT40: 41.18 | AU40: 0.00 | AV40: 11,695.48 | AW40: 0.00 | AX40: 0.00 | AY40: 0.00 | AZ40: 0.00 | BA40: 0.00 | BB40: 0.00 | BC40: 0.00 | BD40: 0.00 | BE40: 0.00 | BF40: =SUM(E40:BE40) -> 155,892.69 | BG40: =SUM(E40:W40) -> 129,281.35 | BH40: =SUM(X40:AJ40) -> 14,872.98 | BI40: =SUM(AK40:BE40) -> 11,738.36
C41: 351 | D41: Attributions aux financements spéciaux du capital propres | E41: 21,282.55 | F41: 5,654.61 | G41: 1,061.63 | H41: 0.00 | I41: 19,367.90 | J41: 8,283.80 | K41: 122,829.97 | L41: 0.00 | M41: 117,208.31 | N41: 6,873.15 | O41: 657,388.09 | P41: 43,166.75 | Q41: 0.00 | R41: 125.00 | S41: 0.00 | T41: 0.00 | U41: 26,815.05 | V41: 1,850.70 | W41: 0.00 | X41: 44,369.70 | Y41: 304.90 | Z41: 15,054.60 | AA41: 0.00 | AB41: 7,500.00 | AC41: 978.98 | AD41: 4,605.65 | AE41: 4,444.46 | AF41: 88,954.00 | AG41: 65,396.30 | AH41: 35,174.75 | AI41: 10,451.48 | AJ41: 3,000.00 | AK41: 114,602.63 | AL41: 86,259.73 | AM41: 0.00 | AN41: 668.62 | AO41: 747.60 | AP41: 15,096.00 | AQ41: 12,042.10 | AR41: 88,595.55 | AS41: 107,665.47 | AT41: 56,633.48 | AU41: 86,982.50 | AV41: 349.50 | AW41: 15,048.00 | AX41: 117.04 | AY41: 310.00 | AZ41: 8,658.30 | BA41: 23,493.55 | BB41: 38,678.46 | BC41: 0.00 | BD41: 6,315.00 | BE41: 12,780.29 | BF41: 1,987,186.15 | BG41: 1,031,907.51 | BH41: 280,234.82 | BI41: 675,043.82
B43: 36 | D43: Charges de transferts | E43: =E44+E45+E46+E47+E48+E49+E50+E51 -> 2,101,514.68 | F43: =F44+F45+F46+F47+F48+F49+F50+F51 -> 589,661.20 | G43: 1,202,802.73 | H43: 907,863.06 | I43: 7,034,034.50 | J43: 6,605,868.58 | K43: 6,436,830.13 | L43: 41,767,548.05 | M43: 3,627,365.89 | N43: 277,501.05 | O43: 16,016,770.96 | P43: 1,094,747.10 | Q43: 239,708.10 | R43: 894,037.55 | S43: 719,129.40 | T43: 1,451,893.15 | U43: 592,241.95 | V43: 1,233,799.98 | W43: 6,100,130.71 | X43: 637,066.70 | Y43: 2,774,101.59 | Z43: 5,897,174.91 | AA43: 199,092.81 | AB43: 342,326.43 | AC43: 1,402,107.38 | AD43: 1,597,934.30 | AE43: 1,252,974.64 | AF43: 1,188,304.51 | AG43: 4,915,413.32 | AH43: 5,572,120.94 | AI43: 508,206.90 | AJ43: 285,052.52 | AK43: 4,782,606.28 | AL43: 2,724,949.72 | AM43: 2,643,058.25 | AN43: 312,725.97 | AO43: 4,680,237.54 | AP43: 1,927,933.59 | AQ43: 1,413,255.78 | AR43: 3,049,796.35 | AS43: 1,619,302.95 | AT43: 2,752,121.20 | AU43: 770,045.00 | AV43: 5,457,729.53 | AW43: 1,728,941.60 | AX43: 456,009.37 | AY43: 698,464.70 | AZ43: 3,904,784.57 | BA43: 841,600.12 | BB43: 2,700,481.75 | BC43: 409,932.67 | BD43: 18,426,457.14 | BE43: 1,455,572.70 | BF43: 188,221,332.50 | BG43: 98,893,448.77 | BH43: 26,571,876.95 | BI43: 62,756,006.78
C44: 360 | D44: Parts de revenus destinés à des collectivités publiques | E44: 1,410.10 | F44: 1,400.00 | G44: 1,413.50 | H44: 1,040.00 | I44: 11,662.50 | J44: 161,013.05 | K44: 4,100.00 | L44: 19,717.45 | M44: 2,760.00 | N44: 0.00 | O44: 78,285.35 | P44: 1,260.00 | Q44: 220.00 | R44: 1,420.00 | S44: 1,060.00 | T44: 5,553.00 | U44: 840.00 | V44: 1,320.00 | W44: 7,220.00 | X44: 1,891.00 | Y44: 6,866.85 | Z44: 0.00 | AA44: 353.40 | AB44: 1,257.40 | AC44: 12,494.40 | AD44: 3,770.40 | AE44: 3,430.60 | AF44: 1,349.90 | AG44: 10,736.20 | AH44: 14,195.00 | AI44: 1,571.00 | AJ44: 2,340.60 | AK44: 5,164.80 | AL44: 4,160.00 | AM44: 5,126.40 | AN44: 620.00 | AO44: 762.60 | AP44: 186.00 | AQ44: 2,140.00 | AR44: 4,603.80 | AS44: 1,824.60 | AT44: 3,057.60 | AU44: 1,400.40 | AV44: 1,599.60 | AW44: 1,560.00 | AX44: 0.00 | AY44: 1,723.20 | AZ44: 4,218.80 | BA44: 2,129.60 | BB44: 5,654.00 | BC44: 0.00 | BD44: 15,407.80 | BE44: 2,450.00 | BF44: =SUM(E44:BE44) -> 425,740.90 | BG44: =SUM(E44:W44) -> 301,694.95 | BH44: =SUM(X44:AJ44) -> 60,256.75 | BI44: =SUM(AK44:BE44) -> 63,789.20
C45: 361 | D45: Dédommagements aux collectivités publiques | E45: 1,617,649.88 | F45: 415,740.25 | G45: 908,649.38 | H45: 659,241.76 | I45: 4,522,563.70 | J45: 4,188,846.43 | K45: 4,764,292.92 | L45: 17,681,550.86 | M45: 2,502,956.42 | N45: 148,016.25 | O45: 11,257,898.91 | P45: 844,860.75 | Q45: 181,627.60 | R45: 709,137.45 | S45: 527,245.10 | T45: 1,098,222.40 | U45: 420,570.85 | V45: 787,625.26 | W45: 4,387,628.09 | X45: 442,632.50 | Y45: 2,024,753.08 | Z45: 2,315,391.06 | AA45: 154,256.61 | AB45: 261,305.68 | AC45: 988,083.39 | AD45: 1,142,533.80 | AE45: 868,244.94 | AF45: 960,094.21 | AG45: 3,194,972.79 | AH45: 3,222,646.05 | AI45: 388,301.20 | AJ45: 202,260.60 | AK45: 3,775,707.80 | AL45: 2,018,588.32 | AM45: 1,852,338.30 | AN45: 202,117.70 | AO45: 1,515,674.15 | AP45: 1,330,011.20 | AQ45: 1,040,232.08 | AR45: 2,137,503.25 | AS45: 1,174,981.79 | AT45: 2,042,313.90 | AU45: 505,162.15 | AV45: 3,893,362.83 | AW45: 1,319,510.55 | AX45: 306,296.85 | AY45: 519,829.25 | AZ45: 2,946,848.27 | BA45: 651,682.82 | BB45: 1,917,031.65 | BC45: 292,269.64 | BD45: 8,803,216.35 | BE45: 1,036,457.25 | BF45: 113,070,936.27 | BG45: 57,624,324.26 | BH45: 16,165,475.91 | BI45: 39,281,136.10
C46: 362 | D46: Péréquation financière et compensation de charges | E46: 0.00 | F46: 6,500.00 | G46: 0.00 | H46: 0.00 | I46: 144,368.00 | J46: 137,171.00 | K46: 182,436.00 | L46: 920,430.50 | M46: 56,291.00 | N46: 42,332.10 | O46: 230,163.00 | P46: 0.00 | Q46: 3,539.00 | R46: 0.00 | S46: 0.00 | T46: 49,133.95 | U46: 4,300.00 | V46: 18,015.00 | W46: 0.00 | X46: 0.00 | Y46: 0.00 | Z46: 2,537,577.00 | AA46: 0.00 | AB46: 0.00 | AC46: 31,717.00 | AD46: 0.00 | AE46: 0.00 | AF46: 0.00 | AG46: 375,788.00 | AH46: 0.00 | AI46: 0.00 | AJ46: 0.00 | AK46: 0.00 | AL46: 35,713.00 | AM46: 0.00 | AN46: 0.00 | AO46: 1,752,363.00 | AP46: 6,367.00 | AQ46: 13,147.00 | AR46: 0.00 | AS46: 0.00 | AT46: 0.00 | AU46: 115,158.00 | AV46: 125,359.00 | AW46: 15,262.00 | AX46: 0.00 | AY46: 0.00 | AZ46: 33,596.00 | BA46: 3,776.00 | BB46: 52,605.00 | BC46: 0.00 | BD46: 272,347.00 | BE46: 0.00 | BF46: 7,165,454.55 | BG46: 1,794,679.55 | BH46: 2,945,082.00 | BI46: 2,425,693.00
C47: 363 | D47: Subventions à des collectivités publiques et des tiers | E47: 474,228.70 | F47: 164,166.95 | G47: 292,739.85 | H47: 247,581.30 | I47: 2,355,440.30 | J47: 2,089,732.10 | K47: 1,486,001.21 | L47: 19,014,344.16 | M47: 858,100.35 | N47: 85,840.70 | O47: 4,417,542.40 | P47: 248,626.35 | Q47: 54,321.50 | R47: 179,718.10 | S47: 190,824.30 | T47: 298,983.80 | U47: 156,325.10 | V47: 423,356.72 | W47: 1,705,282.62 | X47: 192,543.20 | Y47: 734,831.66 | Z47: 1,031,192.85 | AA47: 44,482.80 | AB47: 79,763.35 | AC47: 369,812.59 | AD47: 427,125.00 | AE47: 377,411.10 | AF47: 219,262.90 | AG47: 1,319,138.33 | AH47: 2,313,652.89 | AI47: 117,227.70 | AJ47: 80,451.32 | AK47: 1,001,733.68 | AL47: 666,488.40 | AM47: 783,703.55 | AN47: 108,839.77 | AO47: 1,411,437.79 | AP47: 591,369.39 | AQ47: 351,717.35 | AR47: 900,885.30 | AS47: 436,286.56 | AT47: 706,749.70 | AU47: 148,294.45 | AV47: 1,416,357.10 | AW47: 386,299.85 | AX47: 148,191.52 | AY47: 173,933.25 | AZ47: 905,073.50 | BA47: 184,011.70 | BB47: 725,191.10 | BC47: 116,079.03 | BD47: 9,335,485.99 | BE47: 411,697.45 | BF47: 62,959,878.63 | BG47: 34,743,156.51 | BH47: 7,306,895.69 | BI47: 20,909,826.43
C48: 364 | D48: Réévaluations des prets du PA | E48: 0.00 | F48: 0.00 | G48: 0.00 | H48: 0.00 | I48: 0.00 | J48: 0.00 | K48: 0.00 | L48: 0.00 | M48: 0.00 | N48: 0.00 | O48: 0.00 | P48: 0.00 | Q48: 0.00 | R48: 0.00 | S48: 0.00 | T48: 0.00 | U48: 0.00 | V48: 0.00 | W48: 0.00 | X48: 0.00 | Y48: 0.00 | Z48: 0.00 | AA48: 0.00 | AB48: 0.00 | AC48: 0.00 | AD48: 0.00 | AE48: 0.00 | AF48: 0.00 | AG48: 0.00 | AH48: 0.00 | AI48: 0.00 | AJ48: 0.00 | AK48: 0.00 | AL48: 0.00 | AM48: 0.00 | AN48: 0.00 | AO48: 0.00 | AP48: 0.00 | AQ48: 0.00 | AR48: 0.00 | AS48: 0.00 | AT48: 0.00 | AU48: 0.00 | AV48: 0.00 | AW48: 0.00 | AX48: 0.00 | AY48: 0.00 | AZ48: 0.00 | BA48: 0.00 | BB48: 0.00 | BC48: 0.00 | BD48: 0.00 | BE48: 4,968.00 | BF48: 4,968.00 | BG48: 0.00 | BH48: 0.00 | BI48: 4,968.00
C49: 365 | D49: Réévaluations des participations du PA | E49: 0.00 | F49: 0.00 | G49: 0.00 | H49: 0.00 | I49: 0.00 | J49: 0.00 | K49: 0.00 | L49: 0.00 | M49: 0.00 | N49: 0.00 | O49: 0.00 | P49: 0.00 | Q49: 0.00 | R49: 0.00 | S49: 0.00 | T49: 0.00 | U49: 8,100.00 | V49: 0.00 | W49: 0.00 | X49: 0.00 | Y49: 0.00 | Z49: 0.00 | AA49: 0.00 | AB49: 0.00 | AC49: 0.00 | AD49: 0.00 | AE49: 0.00 | AF49: 0.00 | AG49: 0.00 | AH49: 0.00 | AI49: 0.00 | AJ49: 0.00 | AK49: 0.00 | AL49: 0.00 | AM49: 0.00 | AN49: 0.00 | AO49: 0.00 | AP49: 0.00 | AQ49: 0.00 | AR49: 0.00 | AS49: 0.00 | AT49: 0.00 | AU49: 0.00 | AV49: 0.00 | AW49: 0.00 | AX49: 0.00 | AY49: 0.00 | AZ49: 0.00 | BA49: 0.00 | BB49: 0.00 | BC49: 0.00 | BD49: 0.00 | BE49: 0.00 | BF49: 8,100.00 | BG49: 8,100.00 | BH49: 0.00 | BI49: 0.00
C50: 366 | D50: Amortissements des subventions des investissements | E50: 0.00 | F50: 0.00 | G50: 0.00 | H50: 0.00 | I50: 0.00 | J50: 0.00 | K50: 0.00 | L50: 0.00 | M50: 0.00 | N50: 0.00 | O50: 15,247.55 | P50: 0.00 | Q50: 0.00 | R50: 0.00 | S50: 0.00 | T50: 0.00 | U50: 0.00 | V50: 0.00 | W50: 0.00 | X50: 0.00 | Y50: 0.00 | Z50: 0.00 | AA50: 0.00 | AB50: 0.00 | AC50: 0.00 | AD50: 0.00 | AE50: 0.00 | AF50: 0.00 | AG50: 0.00 | AH50: 0.00 | AI50: 0.00 | AJ50: 0.00 | AK50: 0.00 | AL50: 0.00 | AM50: 0.00 | AN50: 0.00 | AO50: 0.00 | AP50: 0.00 | AQ50: 0.00 | AR50: 0.00 | AS50: 0.00 | AT50: 0.00 | AU50: 0.00 | AV50: 0.00 | AW50: 0.00 | AX50: 0.00 | AY50: 0.00 | AZ50: 0.00 | BA50: 0.00 | BB50: 0.00 | BC50: 0.00 | BD50: 0.00 | BE50: 0.00 | BF50: 15,247.55 | BG50: 15,247.55 | BH50: 0.00 | BI50: 0.00
C51: 369 | D51: Différentes charges de transfert à des collectivités publiques et tiers | E51: 8,226.00 | F51: 1,854.00 | G51: 0.00 | H51: 0.00 | I51: 0.00 | J51: 29,106.00 | K51: 0.00 | L51: 4,131,505.08 | M51: 207,258.12 | N51: 1,312.00 | O51: 17,633.75 | P51: 0.00 | Q51: 0.00 | R51: 3,762.00 | S51: 0.00 | T51: 0.00 | U51: 2,106.00 | V51: 3,483.00 | W51: 0.00 | X51: 0.00 | Y51: 7,650.00 | Z51: 13,014.00 | AA51: 0.00 | AB51: 0.00 | AC51: 0.00 | AD51: 24,505.10 | AE51: 3,888.00 | AF51: 7,597.50 | AG51: 14,778.00 | AH51: 21,627.00 | AI51: 1,107.00 | AJ51: 0.00 | AK51: 0.00 | AL51: 0.00 | AM51: 1,890.00 | AN51: 1,148.50 | AO51: 0.00 | AP51: 0.00 | AQ51: 6,019.35 | AR51: 6,804.00 | AS51: 6,210.00 | AT51: 0.00 | AU51: 30.00 | AV51: 21,051.00 | AW51: 6,309.20 | AX51: 1,521.00 | AY51: 2,979.00 | AZ51: 15,048.00 | BA51: 0.00 | BB51: 0.00 | BC51: 1,584.00 | BD51: 0.00 | BE51: 0.00 | BF51: 4,571,006.60 | BG51: 4,406,245.95 | BH51: 94,166.60 | BI51: 70,594.05
B53: 37 | D53: Subventions à redistribuer | E53: =E54 -> 0.00 | F53: =F54 -> 0.00 | G53: 0.00 | H53: 0.00 | I53: 0.00 | J53: 0.00 | K53: 0.00 | L53: 0.00 | M53: 1,665.00 | N53: 0.00 | O53: 0.00 | P53: 0.00 | Q53: 0.00 | R53: 0.00 | S53: 0.00 | T53: 0.00 | U53: 0.00 | V53: 0.00 | W53: 0.00 | X53: 436,150.35 | Y53: 0.00 | Z53: 428,675.80 | AA53: 144,190.65 | AB53: 177,102.60 | AC53: 155,601.20 | AD53: 0.00 | AE53: 0.00 | AF53: 570,898.30 | AG53: 419,239.40 | AH53: 0.00 | AI53: 4,988.90 | AJ53: 0.00 | AK53: 0.00 | AL53: 0.00 | AM53: 26,868.70 | AN53: 0.00 | AO53: 0.00 | AP53: 1,228.30 | AQ53: 0.00 | AR53: 57,050.00 | AS53: 0.00 | AT53: 0.00 | AU53: 0.00 | AV53: 42,255.65 | AW53: 9,660.00 | AX53: 0.00 | AY53: 0.00 | AZ53: 0.00 | BA53: 0.00 | BB53: 0.00 | BC53: 0.00 | BD53: 0.00 | BE53: 0.00 | BF53: 2,475,574.85 | BG53: 1,665.00 | BH53: 2,336,847.20 | BI53: 137,062.65
C54: 370 | D54: Subventions à redistribuer à des collectivités publiques et des tiers | E54: 0.00 | F54: 0.00 | G54: 0.00 | H54: 0.00 | I54: 0.00 | J54: 0.00 | K54: 0.00 | L54: 0.00 | M54: 1,665.00 | N54: 0.00 | O54: 0.00 | P54: 0.00 | Q54: 0.00 | R54: 0.00 | S54: 0.00 | T54: 0.00 | U54: 0.00 | V54: 0.00 | W54: 0.00 | X54: 436,150.35 | Y54: 0.00 | Z54: 428,675.80 | AA54: 144,190.65 | AB54: 177,102.60 | AC54: 155,601.20 | AD54: 0.00 | AE54: 0.00 | AF54: 570,898.30 | AG54: 419,239.40 | AH54: 0.00 | AI54: 4,988.90 | AJ54: 0.00 | AK54: 0.00 | AL54: 0.00 | AM54: 26,868.70 | AN54: 0.00 | AO54: 0.00 | AP54: 1,228.30 | AQ54: 0.00 | AR54: 57,050.00 | AS54: 0.00 | AT54: 0.00 | AU54: 0.00 | AV54: 42,255.65 | AW54: 9,660.00 | AX54: 0.00 | AY54: 0.00 | AZ54: 0.00 | BA54: 0.00 | BB54: 0.00 | BC54: 0.00 | BD54: 0.00 | BE54: 0.00 | BF54: =SUM(E54:BE54) -> 2,475,574.85 | BG54: =SUM(E54:W54) -> 1,665.00 | BH54: =SUM(X54:AJ54) -> 2,336,847.20 | BI54: =SUM(AK54:BE54) -> 137,062.65
B56: 38 | D56: Charges extraordinaires | E56: =E57+E58+E59+E60+E61+E62 -> 320,000.00 | F56: =F57+F58+F59+F60+F61+F62 -> 0.00 | G56: 0.00 | H56: 541.19 | I56: 105.77 | J56: 400,000.00 | K56: 0.00 | L56: 0.00 | M56: 0.00 | N56: 0.00 | O56: 8,838.05 | P56: 8,327.56 | Q56: 0.00 | R56: 0.00 | S56: 0.00 | T56: 0.10 | U56: 0.00 | V56: 0.00 | W56: 250,000.00 | X56: 70,000.00 | Y56: 0.00 | Z56: 0.00 | AA56: 0.00 | AB56: 0.00 | AC56: 2,430.00 | AD56: 0.00 | AE56: 0.00 | AF56: 400,000.00 | AG56: 0.00 | AH56: 150,000.00 | AI56: 140,000.00 | AJ56: 0.00 | AK56: 240,000.00 | AL56: 208,871.40 | AM56: 0.00 | AN56: 492.17 | AO56: 0.00 | AP56: 300,000.00 | AQ56: 100,000.00 | AR56: 545,000.00 | AS56: 0.00 | AT56: 0.00 | AU56: 826,972.20 | AV56: 0.00 | AW56: 0.00 | AX56: 3,985.00 | AY56: 58,000.00 | AZ56: 150,000.00 | BA56: 200,000.00 | BB56: 100,000.00 | BC56: 0.00 | BD56: 809,104.00 | BE56: 0.00 | BF56: 5,292,667.44 | BG56: 987,812.67 | BH56: 762,430.00 | BI56: 3,542,424.77
C57: 380 | D57: Charges extraordinaires du personnel administratif et d'exploitation | E57: 0.00 | F57: 0.00 | G57: 0.00 | H57: 0.00 | I57: 0.00 | J57: 0.00 | K57: 0.00 | L57: 0.00 | M57: 0.00 | N57: 0.00 | O57: 0.00 | P57: 0.00 | Q57: 0.00 | R57: 0.00 | S57: 0.00 | T57: 0.00 | U57: 0.00 | V57: 0.00 | W57: 0.00 | X57: 0.00 | Y57: 0.00 | Z57: 0.00 | AA57: 0.00 | AB57: 0.00 | AC57: 0.00 | AD57: 0.00 | AE57: 0.00 | AF57: 0.00 | AG57: 0.00 | AH57: 0.00 | AI57: 0.00 | AJ57: 0.00 | AK57: 0.00 | AL57: 581.40 | AM57: 0.00 | AN57: 0.00 | AO57: 0.00 | AP57: 0.00 | AQ57: 0.00 | AR57: 0.00 | AS57: 0.00 | AT57: 0.00 | AU57: 0.00 | AV57: 0.00 | AW57: 0.00 | AX57: 0.00 | AY57: 0.00 | AZ57: 0.00 | BA57: 0.00 | BB57: 0.00 | BC57: 0.00 | BD57: 0.00 | BE57: 0.00 | BF57: =SUM(E57:BE57) -> 581.40 | BG57: =SUM(E57:W57) -> 0.00 | BH57: =SUM(X57:AJ57) -> 0.00 | BI57: =SUM(AK57:BE57) -> 581.40
C58: 381 | D58: charges extraordinaires de biens et de services d'exploitation | E58: 0.00 | F58: 0.00 | G58: 0.00 | H58: 339.50 | I58: 0.00 | J58: 0.00 | K58: 0.00 | L58: 0.00 | M58: 0.00 | N58: 0.00 | O58: 8,838.05 | P58: 0.00 | Q58: 0.00 | R58: 0.00 | S58: 0.00 | T58: 0.10 | U58: 0.00 | V58: 0.00 | W58: 0.00 | X58: 0.00 | Y58: 0.00 | Z58: 0.00 | AA58: 0.00 | AB58: 0.00 | AC58: 0.00 | AD58: 0.00 | AE58: 0.00 | AF58: 0.00 | AG58: 0.00 | AH58: 0.00 | AI58: 0.00 | AJ58: 0.00 | AK58: 0.00 | AL58: 0.00 | AM58: 0.00 | AN58: 0.00 | AO58: 0.00 | AP58: 0.00 | AQ58: 0.00 | AR58: 0.00 | AS58: 0.00 | AT58: 0.00 | AU58: 0.00 | AV58: 0.00 | AW58: 0.00 | AX58: 0.00 | AY58: 0.00 | AZ58: 0.00 | BA58: 0.00 | BB58: 0.00 | BC58: 0.00 | BD58: 0.00 | BE58: 0.00 | BF58: 9,177.65 | BG58: 9,177.65 | BH58: 0.00 | BI58: 0.00
C59: 384 | D59: Charges extraordinaires financières et comptables | E59: 0.00 | F59: 0.00 | G59: 0.00 | H59: 0.00 | I59: 105.77 | J59: 0.00 | K59: 0.00 | L59: 0.00 | M59: 0.00 | N59: 0.00 | O59: 0.00 | P59: 0.00 | Q59: 0.00 | R59: 0.00 | S59: 0.00 | T59: 0.00 | U59: 0.00 | V59: 0.00 | W59: 0.00 | X59: 0.00 | Y59: 0.00 | Z59: 0.00 | AA59: 0.00 | AB59: 0.00 | AC59: 2,430.00 | AD59: 0.00 | AE59: 0.00 | AF59: 0.00 | AG59: 0.00 | AH59: 0.00 | AI59: 0.00 | AJ59: 0.00 | AK59: 0.00 | AL59: 0.00 | AM59: 0.00 | AN59: 458.05 | AO59: 0.00 | AP59: 0.00 | AQ59: 0.00 | AR59: 0.00 | AS59: 0.00 | AT59: 0.00 | AU59: 0.00 | AV59: 0.00 | AW59: 0.00 | AX59: 0.00 | AY59: 0.00 | AZ59: 0.00 | BA59: 0.00 | BB59: 0.00 | BC59: 0.00 | BD59: 9,104.00 | BE59: 0.00 | BF59: 12,097.82 | BG59: 105.77 | BH59: 2,430.00 | BI59: 9,562.05
C60: 385 | D60: Attributions extraordinaires aux financements spéciaux | E60: 0.00 | F60: 0.00 | G60: 0.00 | H60: 0.00 | I60: 0.00 | J60: 0.00 | K60: 0.00 | L60: 0.00 | M60: 0.00 | N60: 0.00 | O60: 0.00 | P60: 0.00 | Q60: 0.00 | R60: 0.00 | S60: 0.00 | T60: 0.00 | U60: 0.00 | V60: 0.00 | W60: 0.00 | X60: 0.00 | Y60: 0.00 | Z60: 0.00 | AA60: 0.00 | AB60: 0.00 | AC60: 0.00 | AD60: 0.00 | AE60: 0.00 | AF60: 0.00 | AG60: 0.00 | AH60: 0.00 | AI60: 0.00 | AJ60: 0.00 | AK60: 0.00 | AL60: 0.00 | AM60: 0.00 | AN60: 0.00 | AO60: 0.00 | AP60: 0.00 | AQ60: 0.00 | AR60: 25,000.00 | AS60: 0.00 | AT60: 0.00 | AU60: 0.00 | AV60: 0.00 | AW60: 0.00 | AX60: 0.00 | AY60: 0.00 | AZ60: 0.00 | BA60: 0.00 | BB60: 0.00 | BC60: 0.00 | BD60: 0.00 | BE60: 0.00 | BF60: 25,000.00 | BG60: 0.00 | BH60: 0.00 | BI60: 25,000.00
C61: 386 | D61: Charges de transfert extraordinaires au collectivités et aux tiers | E61: 0.00 | F61: 0.00 | G61: 0.00 | H61: 0.00 | I61: 0.00 | J61: 0.00 | K61: 0.00 | L61: 0.00 | M61: 0.00 | N61: 0.00 | O61: 0.00 | P61: 0.00 | Q61: 0.00 | R61: 0.00 | S61: 0.00 | T61: 0.00 | U61: 0.00 | V61: 0.00 | W61: 0.00 | X61: 0.00 | Y61: 0.00 | Z61: 0.00 | AA61: 0.00 | AB61: 0.00 | AC61: 0.00 | AD61: 0.00 | AE61: 0.00 | AF61: 0.00 | AG61: 0.00 | AH61: 0.00 | AI61: 0.00 | AJ61: 0.00 | AK61: 0.00 | AL61: 0.00 | AM61: 0.00 | AN61: 0.00 | AO61: 0.00 | AP61: 0.00 | AQ61: 0.00 | AR61: 0.00 | AS61: 0.00 | AT61: 0.00 | AU61: 0.00 | AV61: 0.00 | AW61: 0.00 | AX61: 0.00 | AY61: 0.00 | AZ61: 0.00 | BA61: 0.00 | BB61: 0.00 | BC61: 0.00 | BD61: 0.00 | BE61: 0.00 | BF61: 0.00 | BG61: 0.00 | BH61: 0.00 | BI61: 0.00
C62: 389 | D62: Attributions au capital propre | E62: 320,000.00 | F62: 0.00 | G62: 0.00 | H62: 201.69 | I62: 0.00 | J62: 400,000.00 | K62: 0.00 | L62: 0.00 | M62: 0.00 | N62: 0.00 | O62: 0.00 | P62: 8,327.56 | Q62: 0.00 | R62: 0.00 | S62: 0.00 | T62: 0.00 | U62: 0.00 | V62: 0.00 | W62: 250,000.00 | X62: 70,000.00 | Y62: 0.00 | Z62: 0.00 | AA62: 0.00 | AB62: 0.00 | AC62: 0.00 | AD62: 0.00 | AE62: 0.00 | AF62: 400,000.00 | AG62: 0.00 | AH62: 150,000.00 | AI62: 140,000.00 | AJ62: 0.00 | AK62: 240,000.00 | AL62: 208,290.00 | AM62: 0.00 | AN62: 34.12 | AO62: 0.00 | AP62: 300,000.00 | AQ62: 100,000.00 | AR62: 520,000.00 | AS62: 0.00 | AT62: 0.00 | AU62: 826,972.20 | AV62: 0.00 | AW62: 0.00 | AX62: 3,985.00 | AY62: 58,000.00 | AZ62: 150,000.00 | BA62: 200,000.00 | BB62: 100,000.00 | BC62: 0.00 | BD62: 800,000.00 | BE62: 0.00 | BF62: 5,245,810.57 | BG62: 978,529.25 | BH62: 760,000.00 | BI62: 3,507,281.32
B64: 39 | D64: Imputations internes | E64: =E65+E66+E67+E68+E69+E70+E71+E72 -> 48,926.00 | F64: =F65+F66+F67+F68+F69+F70+F71+F72 -> 31,349.99 | G64: 2,814.40 | H64: 14,456.00 | I64: 314,700.00 | J64: 59,158.00 | K64: 182,613.10 | L64: 6,414,678.33 | M64: 99,719.41 | N64: 0.00 | O64: 63,120.00 | P64: 35,947.95 | Q64: 0.00 | R64: 12,236.00 | S64: 0.00 | T64: 1,926.85 | U64: 0.00 | V64: 59,207.25 | W64: 286,000.15 | X64: 17.51 | Y64: 0.00 | Z64: 0.00 | AA64: 18,600.00 | AB64: 0.00 | AC64: 0.00 | AD64: 120,062.50 | AE64: 87,142.85 | AF64: 85,736.20 | AG64: 5,506.70 | AH64: 28,100.00 | AI64: 0.00 | AJ64: 1,051.15 | AK64: 146,275.59 | AL64: 59,318.75 | AM64: 3,700.00 | AN64: 800.00 | AO64: 41,758.80 | AP64: 93,043.10 | AQ64: 0.00 | AR64: 0.00 | AS64: 59,170.80 | AT64: 0.00 | AU64: 12,338.50 | AV64: 31,722.00 | AW64: 0.00 | AX64: 7,348.80 | AY64: 0.00 | AZ64: 152,452.60 | BA64: 0.00 | BB64: 46,154.88 | BC64: 2,684.00 | BD64: 0.00 | BE64: 15,500.00 | BF64: 8,645,338.16 | BG64: 7,626,853.43 | BH64: 346,216.91 | BI64: 672,267.82
C65: 390 | D65: Approvisionnement en matériel et en marchandises | E65: 0.00 | F65: 200.00 | G65: 0.00 | H65: 0.00 | I65: 0.00 | J65: 0.00 | K65: 0.00 | L65: 30,000.00 | M65: 1,200.00 | N65: 0.00 | O65: 0.00 | P65: 0.00 | Q65: 0.00 | R65: 0.00 | S65: 0.00 | T65: 1,926.85 | U65: 0.00 | V65: 0.00 | W65: 13,000.00 | X65: 0.00 | Y65: 0.00 | Z65: 0.00 | AA65: 0.00 | AB65: 0.00 | AC65: 0.00 | AD65: 200.00 | AE65: 0.00 | AF65: 0.00 | AG65: 3,468.15 | AH65: 0.00 | AI65: 0.00 | AJ65: 0.00 | AK65: 0.00 | AL65: 0.00 | AM65: 0.00 | AN65: 0.00 | AO65: 0.00 | AP65: 800.00 | AQ65: 0.00 | AR65: 0.00 | AS65: 0.00 | AT65: 0.00 | AU65: 0.00 | AV65: 0.00 | AW65: 0.00 | AX65: 0.00 | AY65: 0.00 | AZ65: 0.00 | BA65: 0.00 | BB65: 0.00 | BC65: 0.00 | BD65: 0.00 | BE65: 0.00 | BF65: =SUM(E65:BE65) -> 50,795.00 | BG65: =SUM(E65:W65) -> 46,326.85 | BH65: =SUM(X65:AJ65) -> 3,668.15 | BI65: =SUM(AK65:BE65) -> 800.00
C66: 391 | D66: Prestations de services | E66: 48,926.00 | F66: 6,201.55 | G66: 0.00 | H66: 14,100.00 | I66: 21,400.00 | J66: 59,158.00 | K66: 182,613.10 | L66: 1,164,503.75 | M66: 55,922.40 | N66: 0.00 | O66: 0.00 | P66: 35,947.95 | Q66: 0.00 | R66: 12,236.00 | S66: 0.00 | T66: 0.00 | U66: 0.00 | V66: 59,207.25 | W66: 88,799.00 | X66: 0.00 | Y66: 0.00 | Z66: 0.00 | AA66: 18,600.00 | AB66: 0.00 | AC66: 0.00 | AD66: 79,700.15 | AE66: 87,127.35 | AF66: 85,736.20 | AG66: 2,038.55 | AH66: 28,100.00 | AI66: 0.00 | AJ66: 0.00 | AK66: 146,275.59 | AL66: 0.00 | AM66: 3,700.00 | AN66: 800.00 | AO66: 41,758.80 | AP66: 55,208.95 | AQ66: 0.00 | AR66: 0.00 | AS66: 48,767.80 | AT66: 0.00 | AU66: 12,338.50 | AV66: 31,722.00 | AW66: 0.00 | AX66: 0.00 | AY66: 0.00 | AZ66: 148,952.60 | BA66: 0.00 | BB66: 46,154.88 | BC66: 0.00 | BD66: 0.00 | BE66: 15,500.00 | BF66: 2,601,496.37 | BG66: 1,749,015.00 | BH66: 301,302.25 | BI66: 551,179.12
C67: 392 | D67: Loyer, baux à ferme et frais d'utilisation | E67: 0.00 | F67: 0.00 | G67: 0.00 | H67: 0.00 | I67: 0.00 | J67: 0.00 | K67: 0.00 | L67: 110,000.00 | M67: 0.00 | N67: 0.00 | O67: 0.00 | P67: 0.00 | Q67: 0.00 | R67: 0.00 | S67: 0.00 | T67: 0.00 | U67: 0.00 | V67: 0.00 | W67: 0.00 | X67: 0.00 | Y67: 0.00 | Z67: 0.00 | AA67: 0.00 | AB67: 0.00 | AC67: 0.00 | AD67: 0.00 | AE67: 0.00 | AF67: 0.00 | AG67: 0.00 | AH67: 0.00 | AI67: 0.00 | AJ67: 0.00 | AK67: 0.00 | AL67: 0.00 | AM67: 0.00 | AN67: 0.00 | AO67: 0.00 | AP67: 0.00 | AQ67: 0.00 | AR67: 0.00 | AS67: 0.00 | AT67: 0.00 | AU67: 0.00 | AV67: 0.00 | AW67: 0.00 | AX67: 0.00 | AY67: 0.00 | AZ67: 0.00 | BA67: 0.00 | BB67: 0.00 | BC67: 0.00 | BD67: 0.00 | BE67: 0.00 | BF67: 110,000.00 | BG67: 110,000.00 | BH67: 0.00 | BI67: 0.00
C68: 393 | D68: Frais administratifs et d'exploitation | E68: 0.00 | F68: 0.00 | G68: 0.00 | H68: 0.00 | I68: 0.00 | J68: 0.00 | K68: 0.00 | L68: 0.00 | M68: 0.00 | N68: 0.00 | O68: 0.00 | P68: 0.00 | Q68: 0.00 | R68: 0.00 | S68: 0.00 | T68: 0.00 | U68: 0.00 | V68: 0.00 | W68: 4,000.00 | X68: 0.00 | Y68: 0.00 | Z68: 0.00 | AA68: 0.00 | AB68: 0.00 | AC68: 0.00 | AD68: 2,550.00 | AE68: 0.00 | AF68: 0.00 | AG68: 0.00 | AH68: 0.00 | AI68: 0.00 | AJ68: 0.00 | AK68: 0.00 | AL68: 0.00 | AM68: 0.00 | AN68: 0.00 | AO68: 0.00 | AP68: 0.00 | AQ68: 0.00 | AR68: 0.00 | AS68: 2,619.40 | AT68: 0.00 | AU68: 0.00 | AV68: 0.00 | AW68: 0.00 | AX68: 0.00 | AY68: 0.00 | AZ68: 0.00 | BA68: 0.00 | BB68: 0.00 | BC68: 0.00 | BD68: 0.00 | BE68: 0.00 | BF68: 9,169.40 | BG68: 4,000.00 | BH68: 2,550.00 | BI68: 2,619.40
C69: 394 | D69: Intérêts et charges financières théoriques | E69: 0.00 | F69: 24,948.44 | G69: 2,814.40 | H69: 0.00 | I69: 293,300.00 | J69: 0.00 | K69: 0.00 | L69: 692,394.00 | M69: 42,597.01 | N69: 0.00 | O69: 63,120.00 | P69: 0.00 | Q69: 0.00 | R69: 0.00 | S69: 0.00 | T69: 0.00 | U69: 0.00 | V69: 0.00 | W69: 174,801.15 | X69: 17.51 | Y69: 0.00 | Z69: 0.00 | AA69: 0.00 | AB69: 0.00 | AC69: 0.00 | AD69: 37,612.35 | AE69: 15.50 | AF69: 0.00 | AG69: 0.00 | AH69: 0.00 | AI69: 0.00 | AJ69: 1,051.15 | AK69: 0.00 | AL69: 59,318.75 | AM69: 0.00 | AN69: 0.00 | AO69: 0.00 | AP69: 37,034.15 | AQ69: 0.00 | AR69: 0.00 | AS69: 7,783.60 | AT69: 0.00 | AU69: 0.00 | AV69: 0.00 | AW69: 0.00 | AX69: 7,348.80 | AY69: 0.00 | AZ69: 0.00 | BA69: 0.00 | BB69: 0.00 | BC69: 2,684.00 | BD69: 0.00 | BE69: 0.00 | BF69: 1,446,840.81 | BG69: 1,293,975.00 | BH69: 38,696.51 | BI69: 114,169.30
C70: 395 | D70: Amortissements planifiés et non planifiés du PA | E70: 0.00 | F70: 0.00 | G70: 0.00 | H70: 356.00 | I70: 0.00 | J70: 0.00 | K70: 0.00 | L70: 0.00 | M70: 0.00 | N70: 0.00 | O70: 0.00 | P70: 0.00 | Q70: 0.00 | R70: 0.00 | S70: 0.00 | T70: 0.00 | U70: 0.00 | V70: 0.00 | W70: 0.00 | X70: 0.00 | Y70: 0.00 | Z70: 0.00 | AA70: 0.00 | AB70: 0.00 | AC70: 0.00 | AD70: 0.00 | AE70: 0.00 | AF70: 0.00 | AG70: 0.00 | AH70: 0.00 | AI70: 0.00 | AJ70: 0.00 | AK70: 0.00 | AL70: 0.00 | AM70: 0.00 | AN70: 0.00 | AO70: 0.00 | AP70: 0.00 | AQ70: 0.00 | AR70: 0.00 | AS70: 0.00 | AT70: 0.00 | AU70: 0.00 | AV70: 0.00 | AW70: 0.00 | AX70: 0.00 | AY70: 0.00 | AZ70: 0.00 | BA70: 0.00 | BB70: 0.00 | BC70: 0.00 | BD70: 0.00 | BE70: 0.00 | BF70: 356.00 | BG70: 356.00 | BH70: 0.00 | BI70: 0.00
C71: 398 | D71: Virements comptabiles | E71: 0.00 | F71: 0.00 | G71: 0.00 | H71: 0.00 | I71: 0.00 | J71: 0.00 | K71: 0.00 | L71: 2,465,786.82 | M71: 0.00 | N71: 0.00 | O71: 0.00 | P71: 0.00 | Q71: 0.00 | R71: 0.00 | S71: 0.00 | T71: 0.00 | U71: 0.00 | V71: 0.00 | W71: 0.00 | X71: 0.00 | Y71: 0.00 | Z71: 0.00 | AA71: 0.00 | AB71: 0.00 | AC71: 0.00 | AD71: 0.00 | AE71: 0.00 | AF71: 0.00 | AG71: 0.00 | AH71: 0.00 | AI71: 0.00 | AJ71: 0.00 | AK71: 0.00 | AL71: 0.00 | AM71: 0.00 | AN71: 0.00 | AO71: 0.00 | AP71: 0.00 | AQ71: 0.00 | AR71: 0.00 | AS71: 0.00 | AT71: 0.00 | AU71: 0.00 | AV71: 0.00 | AW71: 0.00 | AX71: 0.00 | AY71: 0.00 | AZ71: 0.00 | BA71: 0.00 | BB71: 0.00 | BC71: 0.00 | BD71: 0.00 | BE71: 0.00 | BF71: 2,465,786.82 | BG71: 2,465,786.82 | BH71: 0.00 | BI71: 0.00
C72: 399 | D72: Autres imputations internes | E72: 0.00 | F72: 0.00 | G72: 0.00 | H72: 0.00 | I72: 0.00 | J72: 0.00 | K72: 0.00 | L72: 1,951,993.76 | M72: 0.00 | N72: 0.00 | O72: 0.00 | P72: 0.00 | Q72: 0.00 | R72: 0.00 | S72: 0.00 | T72: 0.00 | U72: 0.00 | V72: 0.00 | W72: 5,400.00 | X72: 0.00 | Y72: 0.00 | Z72: 0.00 | AA72: 0.00 | AB72: 0.00 | AC72: 0.00 | AD72: 0.00 | AE72: 0.00 | AF72: 0.00 | AG72: 0.00 | AH72: 0.00 | AI72: 0.00 | AJ72: 0.00 | AK72: 0.00 | AL72: 0.00 | AM72: 0.00 | AN72: 0.00 | AO72: 0.00 | AP72: 0.00 | AQ72: 0.00 | AR72: 0.00 | AS72: 0.00 | AT72: 0.00 | AU72: 0.00 | AV72: 0.00 | AW72: 0.00 | AX72: 0.00 | AY72: 0.00 | AZ72: 3,500.00 | BA72: 0.00 | BB72: 0.00 | BC72: 0.00 | BD72: 0.00 | BE72: 0.00 | BF72: 1,960,893.76 | BG72: 1,957,393.76 | BH72: 0.00 | BI72: 3,500.00
A75: 4 | D75: Revenus | E75: =E76+E82+E88+E99+E105+E117+E121+E128+E131+E140 -> 4,361,735.78 | F75: =F76+F82+F88+F99+F105+F117+F121+F128+F131+F140 -> 1,207,844.12 | G75: 1,711,332.94 | H75: 1,760,161.37 | I75: 14,538,705.14 | J75: 14,408,137.58 | K75: 10,452,694.92 | L75: 101,210,223.21 | M75: 7,171,287.80 | N75: 401,271.82 | O75: 24,396,966.48 | P75: 1,930,657.32 | Q75: 369,154.47 | R75: 1,520,982.80 | S75: 1,343,281.05 | T75: 2,878,976.99 | U75: 1,013,666.76 | V75: 2,267,810.12 | W75: 12,122,055.15 | X75: 1,873,485.91 | Y75: 5,841,729.93 | Z75: 14,354,254.82 | AA75: 633,362.93 | AB75: 869,413.35 | AC75: 2,610,311.79 | AD75: 3,324,946.13 | AE75: 2,489,032.47 | AF75: 3,836,973.32 | AG75: 9,929,146.07 | AH75: 11,828,639.83 | AI75: 1,143,843.84 | AJ75: 664,822.05 | AK75: 8,151,911.83 | AL75: 5,723,935.53 | AM75: 4,607,006.10 | AN75: 577,834.24 | AO75: 8,690,705.18 | AP75: 3,975,611.92 | AQ75: 2,524,179.38 | AR75: 7,246,551.25 | AS75: 3,060,427.08 | AT75: 4,391,621.26 | AU75: 2,770,249.60 | AV75: 8,668,513.61 | AW75: 2,941,524.53 | AX75: 771,065.80 | AY75: 1,561,153.85 | AZ75: 7,102,958.83 | BA75: 1,899,981.13 | BB75: 5,863,435.42 | BC75: 621,441.60 | BD75: 41,724,841.98 | BE75: 2,444,835.34 | BF75: 389,786,693.72 | BG75: 205,066,945.82 | BH75: 59,399,962.44 | BI75: 125,319,785.46
B76: 40 | D76: Revenus fiscaux | E76: =E77+E78+E79+E80 -> 3,330,906.65 | F76: =F77+F78+F79+F80 -> 679,306.05 | G76: 1,158,191.25 | H76: 1,080,025.80 | I76: 8,115,298.70 | J76: 9,445,275.55 | K76: 7,112,250.36 | L76: 39,079,842.80 | M76: 3,500,855.94 | N76: 203,641.17 | O76: 16,522,242.00 | P76: 1,259,404.95 | Q76: 207,655.70 | R76: 1,011,482.65 | S76: 722,909.15 | T76: 2,005,442.10 | U76: 596,548.80 | V76: 1,366,723.30 | W76: 7,697,736.75 | X76: 848,811.35 | Y76: 3,758,598.17 | Z76: 9,945,240.50 | AA76: 235,146.95 | AB76: 312,610.30 | AC76: 1,246,815.85 | AD76: 1,439,744.55 | AE76: 1,317,292.60 | AF76: 1,892,861.90 | AG76: 6,935,242.85 | AH76: 7,704,002.45 | AI76: 522,916.35 | AJ76: 382,904.90 | AK76: 5,443,392.90 | AL76: 2,461,310.48 | AM76: 2,964,717.40 | AN76: 334,540.35 | AO76: 6,870,594.75 | AP76: 2,057,078.08 | AQ76: 1,951,760.24 | AR76: 3,448,745.25 | AS76: 1,748,640.05 | AT76: 2,441,707.95 | AU76: 2,265,017.35 | AV76: 6,073,809.83 | AW76: 2,202,056.90 | AX76: 406,157.70 | AY76: 902,646.45 | AZ76: 5,041,155.35 | BA76: 984,706.90 | BB76: 3,659,638.59 | BC76: 341,684.35 | BD76: 24,686,130.60 | BE76: 1,392,268.40 | BF76: 219,315,688.26 | BG76: 105,095,739.67 | BH76: 36,542,188.72 | BI76: 77,677,759.87
C77: 400 | D77: Impôts directs des personnes physiques | E77: 2,399,050.60 | F77: 470,355.45 | G77: 955,512.50 | H77: 877,308.40 | I77: 6,506,300.00 | J77: 7,933,663.85 | K77: 5,544,167.30 | L77: 28,553,161.50 | M77: 2,748,752.09 | N77: 181,518.40 | O77: 13,756,608.00 | P77: 1,011,339.50 | Q77: 180,720.20 | R77: 854,184.35 | S77: 602,762.50 | T77: 1,797,303.60 | U77: 494,316.95 | V77: 1,157,764.65 | W77: 6,519,291.80 | X77: 722,638.15 | Y77: 3,318,239.37 | Z77: 2,784,771.70 | AA77: 166,231.25 | AB77: 246,851.80 | AC77: 1,347,499.10 | AD77: 1,163,704.65 | AE77: 1,089,524.50 | AF77: 980,100.75 | AG77: 4,420,675.25 | AH77: 6,191,256.50 | AI77: 457,685.35 | AJ77: 243,519.25 | AK77: 4,302,044.30 | AL77: 2,118,729.04 | AM77: 2,498,137.95 | AN77: 261,580.65 | AO77: 3,827,633.75 | AP77: 1,314,195.30 | AQ77: 1,533,277.09 | AR77: 2,280,940.40 | AS77: 1,444,177.60 | AT77: 2,102,457.75 | AU77: 2,205,801.55 | AV77: 5,082,414.08 | AW77: 1,664,323.50 | AX77: 335,760.20 | AY77: 756,659.25 | AZ77: 4,231,081.10 | BA77: 807,108.35 | BB77: 2,596,328.95 | BC77: 306,282.30 | BD77: 19,029,351.10 | BE77: 1,073,776.35 | BF77: =SUM(E77:BE77) -> 165,448,839.82 | BG77: =SUM(E77:W77) -> 82,544,081.64 | BH77: =SUM(X77:AJ77) -> 23,132,697.62 | BI77: =SUM(AK77:BE77) -> 59,772,060.56
C78: 401 | D78: Impôts directs des personnes morales | E78: 186,863.75 | F78: 10,969.30 | G78: 72,576.70 | H78: 82,257.15 | I78: 402,269.80 | J78: 637,302.10 | K78: 948,116.15 | L78: 5,630,325.20 | M78: 440,551.95 | N78: 3,668.35 | O78: 648,784.60 | P78: 43,209.25 | Q78: -2,994.70 | R78: 11,294.05 | S78: -4,335.80 | T78: 39,931.45 | U78: 21,951.70 | V78: 91,657.95 | W78: 154,646.65 | X78: 5,100.25 | Y78: 115,383.25 | Z78: 6,765,508.15 | AA78: 927.20 | AB78: 8,935.80 | AC78: -224,747.75 | AD78: 70,136.85 | AE78: 33,283.55 | AF78: 728,213.45 | AG78: 1,712,675.40 | AH78: 682,151.50 | AI78: 7,264.65 | AJ78: 7,036.80 | AK78: 543,718.55 | AL78: -87,224.51 | AM78: 44,564.75 | AN78: 1,227.20 | AO78: 2,557,137.35 | AP78: 504,468.00 | AQ78: 144,303.25 | AR78: 234,509.05 | AS78: 17,997.35 | AT78: 5,799.00 | AU78: -66,532.05 | AV78: 121,676.35 | AW78: 271,631.65 | AX78: 10,577.20 | AY78: 20,567.45 | AZ78: 333,389.45 | BA78: 13,071.35 | BB78: 590,684.00 | BC78: 1,833.95 | BD78: 3,114,215.25 | BE78: 54,685.45 | BF78: 27,763,214.74 | BG78: 9,419,045.60 | BH78: 9,911,869.10 | BI78: 8,432,300.04
C79: 402 | D79: Autres impôts directs | E79: 731,404.75 | F79: 193,083.30 | G79: 125,370.05 | H79: 117,300.25 | I79: 1,155,162.85 | J79: 858,889.80 | K79: 603,788.86 | L79: 4,805,039.65 | M79: 306,027.00 | N79: 3,577.35 | O79: 2,065,244.60 | P79: 201,596.20 | Q79: 25,861.60 | R79: 129,743.50 | S79: 112,995.25 | T79: 165,077.05 | U79: 68,771.95 | V79: 108,644.10 | W79: 981,292.05 | X79: 88,712.95 | Y79: 309,706.15 | Z79: 384,754.90 | AA79: 57,724.80 | AB79: 53,504.70 | AC79: 115,397.10 | AD79: 189,921.65 | AE79: 163,073.15 | AF79: 175,788.10 | AG79: 779,451.25 | AH79: 747,954.45 | AI79: 49,796.55 | AJ79: 90,667.65 | AK79: 588,045.05 | AL79: 379,495.95 | AM79: 399,385.15 | AN79: 67,149.30 | AO79: 483,487.25 | AP79: 226,397.98 | AQ79: 266,250.50 | AR79: 815,220.25 | AS79: 279,977.30 | AT79: 325,815.20 | AU79: 121,529.85 | AV79: 863,280.80 | AW79: 262,032.55 | AX79: 59,010.00 | AY79: 118,839.75 | AZ79: 453,599.75 | BA79: 150,432.65 | BB79: 412,332.79 | BC79: 31,918.10 | BD79: 2,493,852.55 | BE79: 257,679.80 | BF79: 25,021,056.08 | BG79: 12,758,870.16 | BH79: 3,206,453.40 | BI79: 9,055,732.52
C80: 403 | D80: Impôts sur la possession et les dépenses | E80: 13,587.55 | F80: 4,898.00 | G80: 4,732.00 | H80: 3,160.00 | I80: 51,566.05 | J80: 15,419.80 | K80: 16,178.05 | L80: 91,316.45 | M80: 5,524.90 | N80: 14,877.07 | O80: 51,604.80 | P80: 3,260.00 | Q80: 4,068.60 | R80: 16,260.75 | S80: 11,487.20 | T80: 3,130.00 | U80: 11,508.20 | V80: 8,656.60 | W80: 42,506.25 | X80: 32,360.00 | Y80: 15,269.40 | Z80: 10,205.75 | AA80: 10,263.70 | AB80: 3,318.00 | AC80: 8,667.40 | AD80: 15,981.40 | AE80: 31,411.40 | AF80: 8,759.60 | AG80: 22,440.95 | AH80: 82,640.00 | AI80: 8,169.80 | AJ80: 41,681.20 | AK80: 9,585.00 | AL80: 50,310.00 | AM80: 22,629.55 | AN80: 4,583.20 | AO80: 2,336.40 | AP80: 12,016.80 | AQ80: 7,929.40 | AR80: 118,075.55 | AS80: 6,487.80 | AT80: 7,636.00 | AU80: 4,218.00 | AV80: 6,438.60 | AW80: 4,069.20 | AX80: 810.30 | AY80: 6,580.00 | AZ80: 23,085.05 | BA80: 14,094.55 | BB80: 60,292.85 | BC80: 1,650.00 | BD80: 48,711.70 | BE80: 6,126.80 | BF80: 1,082,577.62 | BG80: 373,742.27 | BH80: 291,168.60 | BI80: 417,666.75
B82: 41 | D82: Revenus de patentes et de concessions | E82: =E83+E84+E85+E86 -> 0.00 | F82: =F83+F84+F85+F86 -> 11,528.70 | G82: 0.00 | H82: 0.00 | I82: 636.75 | J82: 0.00 | K82: 0.00 | L82: 0.00 | M82: 46,976.20 | N82: 0.00 | O82: 47,138.70 | P82: 10,735.00 | Q82: 0.00 | R82: 0.00 | S82: 0.00 | T82: 0.00 | U82: 0.00 | V82: 0.00 | W82: 7,233.00 | X82: 242.00 | Y82: 0.00 | Z82: 245,833.50 | AA82: 4,083.30 | AB82: 292.00 | AC82: 0.00 | AD82: 0.00 | AE82: 0.00 | AF82: 16,727.00 | AG82: 3,000.00 | AH82: 690.00 | AI82: 32,507.75 | AJ82: 5,400.00 | AK82: 75,969.52 | AL82: 0.00 | AM82: 0.00 | AN82: 0.00 | AO82: 0.00 | AP82: 0.00 | AQ82: 0.00 | AR82: 19,774.00 | AS82: 352.00 | AT82: 75,870.45 | AU82: 0.00 | AV82: 8,500.00 | AW82: 0.00 | AX82: 8,070.00 | AY82: 0.00 | AZ82: 3,278.40 | BA82: 0.00 | BB82: 84,391.40 | BC82: 0.00 | BD82: 305,623.00 | BE82: 0.00 | BF82: 1,014,852.67 | BG82: 124,248.35 | BH82: 308,775.55 | BI82: 581,828.77
C83: 410 | D83: Revenus de patentes | E83: 0.00 | F83: 0.00 | G83: 0.00 | H83: 0.00 | I83: 0.00 | J83: 0.00 | K83: 0.00 | L83: 0.00 | M83: 0.00 | N83: 0.00 | O83: 0.00 | P83: 0.00 | Q83: 0.00 | R83: 0.00 | S83: 0.00 | T83: 0.00 | U83: 0.00 | V83: 0.00 | W83: 0.00 | X83: 0.00 | Y83: 0.00 | Z83: 0.00 | AA83: 0.00 | AB83: 0.00 | AC83: 0.00 | AD83: 0.00 | AE83: 0.00 | AF83: 0.00 | AG83: 0.00 | AH83: 0.00 | AI83: 0.00 | AJ83: 0.00 | AK83: 0.00 | AL83: 0.00 | AM83: 0.00 | AN83: 0.00 | AO83: 0.00 | AP83: 0.00 | AQ83: 0.00 | AR83: 0.00 | AS83: 0.00 | AT83: 0.00 | AU83: 0.00 | AV83: 0.00 | AW83: 0.00 | AX83: 0.00 | AY83: 0.00 | AZ83: 0.00 | BA83: 0.00 | BB83: 0.00 | BC83: 0.00 | BD83: 0.00 | BE83: 0.00 | BF83: =SUM(E83:BE83) -> 0.00 | BG83: =SUM(E83:W83) -> 0.00 | BH83: =SUM(X83:AJ83) -> 0.00 | BI83: =SUM(AK83:BE83) -> 0.00
C84: 411 | D84: Revenus de la Banque Nationale | E84: 0.00 | F84: 0.00 | G84: 0.00 | H84: 0.00 | I84: 0.00 | J84: 0.00 | K84: 0.00 | L84: 0.00 | M84: 0.00 | N84: 0.00 | O84: 0.00 | P84: 0.00 | Q84: 0.00 | R84: 0.00 | S84: 0.00 | T84: 0.00 | U84: 0.00 | V84: 0.00 | W84: 0.00 | X84: 0.00 | Y84: 0.00 | Z84: 0.00 | AA84: 0.00 | AB84: 0.00 | AC84: 0.00 | AD84: 0.00 | AE84: 0.00 | AF84: 0.00 | AG84: 0.00 | AH84: 0.00 | AI84: 0.00 | AJ84: 0.00 | AK84: 0.00 | AL84: 0.00 | AM84: 0.00 | AN84: 0.00 | AO84: 0.00 | AP84: 0.00 | AQ84: 0.00 | AR84: 0.00 | AS84: 0.00 | AT84: 0.00 | AU84: 0.00 | AV84: 0.00 | AW84: 0.00 | AX84: 0.00 | AY84: 0.00 | AZ84: 0.00 | BA84: 0.00 | BB84: 0.00 | BC84: 0.00 | BD84: 0.00 | BE84: 0.00 | BF84: 0.00 | BG84: 0.00 | BH84: 0.00 | BI84: 0.00
C85: 412 | D85: Revenus des concessions | E85: 0.00 | F85: 11,528.70 | G85: 0.00 | H85: 0.00 | I85: 636.75 | J85: 0.00 | K85: 0.00 | L85: 0.00 | M85: 46,976.20 | N85: 0.00 | O85: 47,138.70 | P85: 10,735.00 | Q85: 0.00 | R85: 0.00 | S85: 0.00 | T85: 0.00 | U85: 0.00 | V85: 0.00 | W85: 7,233.00 | X85: 242.00 | Y85: 0.00 | Z85: 245,833.50 | AA85: 4,083.30 | AB85: 292.00 | AC85: 0.00 | AD85: 0.00 | AE85: 0.00 | AF85: 16,727.00 | AG85: 3,000.00 | AH85: 690.00 | AI85: 32,507.75 | AJ85: 5,400.00 | AK85: 75,969.52 | AL85: 0.00 | AM85: 0.00 | AN85: 0.00 | AO85: 0.00 | AP85: 0.00 | AQ85: 0.00 | AR85: 19,774.00 | AS85: 352.00 | AT85: 75,870.45 | AU85: 0.00 | AV85: 8,500.00 | AW85: 0.00 | AX85: 8,070.00 | AY85: 0.00 | AZ85: 3,278.40 | BA85: 0.00 | BB85: 84,391.40 | BC85: 0.00 | BD85: 305,623.00 | BE85: 0.00 | BF85: 1,014,852.67 | BG85: 124,248.35 | BH85: 308,775.55 | BI85: 581,828.77
C86: 413 | D86: Parts des revenus de loterie et paris | E86: 0.00 | F86: 0.00 | G86: 0.00 | H86: 0.00 | I86: 0.00 | J86: 0.00 | K86: 0.00 | L86: 0.00 | M86: 0.00 | N86: 0.00 | O86: 0.00 | P86: 0.00 | Q86: 0.00 | R86: 0.00 | S86: 0.00 | T86: 0.00 | U86: 0.00 | V86: 0.00 | W86: 0.00 | X86: 0.00 | Y86: 0.00 | Z86: 0.00 | AA86: 0.00 | AB86: 0.00 | AC86: 0.00 | AD86: 0.00 | AE86: 0.00 | AF86: 0.00 | AG86: 0.00 | AH86: 0.00 | AI86: 0.00 | AJ86: 0.00 | AK86: 0.00 | AL86: 0.00 | AM86: 0.00 | AN86: 0.00 | AO86: 0.00 | AP86: 0.00 | AQ86: 0.00 | AR86: 0.00 | AS86: 0.00 | AT86: 0.00 | AU86: 0.00 | AV86: 0.00 | AW86: 0.00 | AX86: 0.00 | AY86: 0.00 | AZ86: 0.00 | BA86: 0.00 | BB86: 0.00 | BC86: 0.00 | BD86: 0.00 | BE86: 0.00 | BF86: 0.00 | BG86: 0.00 | BH86: 0.00 | BI86: 0.00
B88: 42 | D88: Taxes | E88: =E89+E90+E91+E92+E93+E94+E95+E96+E97 -> 643,920.73 | F88: =F89+F90+F91+F92+F93+F94+F95+F96+F97 -> 210,150.25 | G88: 179,660.35 | H88: 194,525.80 | I88: 3,219,220.69 | J88: 2,633,199.91 | K88: 1,989,720.58 | L88: 27,309,855.42 | M88: 2,122,949.68 | N88: 42,041.55 | O88: 4,069,066.06 | P88: 207,568.42 | Q88: 47,879.95 | R88: 255,612.28 | S88: 329,494.60 | T88: 745,643.19 | U88: 203,067.61 | V88: 250,500.89 | W88: 1,568,564.23 | X88: 386,642.25 | Y88: 1,022,124.70 | Z88: 1,774,692.73 | AA88: 75,957.60 | AB88: 185,752.85 | AC88: 637,460.80 | AD88: 680,213.43 | AE88: 543,537.69 | AF88: 700,074.59 | AG88: 1,454,457.96 | AH88: 2,309,308.91 | AI88: 275,930.50 | AJ88: 125,488.20 | AK88: 1,246,864.61 | AL88: 1,042,734.08 | AM88: 622,359.75 | AN88: 128,197.38 | AO88: 1,116,226.34 | AP88: 788,935.25 | AQ88: 374,163.95 | AR88: 852,155.30 | AS88: 609,374.97 | AT88: 673,646.35 | AU88: 299,020.25 | AV88: 1,244,153.10 | AW88: 480,500.91 | AX88: 154,039.88 | AY88: 231,811.60 | AZ88: 860,796.67 | BA88: 321,768.00 | BB88: 930,689.87 | BC88: 144,048.80 | BD88: 5,589,929.27 | BE88: 469,995.50 | BF88: 74,575,696.23 | BG88: 46,222,642.19 | BH88: 10,171,642.21 | BI88: 18,181,411.83
C89: 420 | D89: Taxes d'exemption et de compensation | E89: 36,109.75 | F89: 8,261.65 | G89: 21,451.35 | H89: 15,262.80 | I89: 158,088.75 | J89: 154,651.48 | K89: 136,765.45 | L89: 539,040.53 | M89: 56,180.45 | N89: 1,195.20 | O89: 284,879.85 | P89: 19,035.45 | Q89: 2,352.45 | R89: 16,950.10 | S89: 10,357.10 | T89: 35,412.70 | U89: 12,327.05 | V89: 19,761.25 | W89: 113,300.60 | X89: 7,221.30 | Y89: 56,342.95 | Z89: 63,251.45 | AA89: 1,766.55 | AB89: 3,276.40 | AC89: 15,965.80 | AD89: 42,841.70 | AE89: 24,656.65 | AF89: 12,013.15 | AG89: 90,718.65 | AH89: 112,526.90 | AI89: 6,235.25 | AJ89: 3,025.75 | AK89: 72,718.75 | AL89: 23,870.40 | AM89: 25,214.55 | AN89: 3,663.65 | AO89: 35,627.20 | AP89: 14,415.95 | AQ89: 18,640.05 | AR89: 32,366.65 | AS89: 30,256.00 | AT89: 43,615.50 | AU89: 9,006.95 | AV89: 0.00 | AW89: 20,255.35 | AX89: 5,707.55 | AY89: 7,683.05 | AZ89: 55,693.75 | BA89: 7,979.70 | BB89: 27,161.05 | BC89: 5,103.55 | BD89: 229,361.65 | BE89: 13,147.50 | BF89: =SUM(E89:BE89) -> 2,762,715.26 | BG89: =SUM(E89:W89) -> 1,641,383.96 | BH89: =SUM(X89:AJ89) -> 439,842.50 | BI89: =SUM(AK89:BE89) -> 681,488.80
C90: 421 | D90: Emoluments administratif | E90: 11,893.75 | F90: 4,675.25 | G90: 2,925.50 | H90: 7,180.80 | I90: 81,586.36 | J90: 35,181.05 | K90: 32,579.88 | L90: 1,059,550.73 | M90: 13,959.75 | N90: -166.00 | O90: 159,066.55 | P90: 12,977.60 | Q90: 4,100.40 | R90: 27,350.75 | S90: 6,664.90 | T90: 6,021.05 | U90: 2,590.00 | V90: 8,139.25 | W90: 40,907.20 | X90: 4,015.25 | Y90: 13,821.50 | Z90: 13,272.53 | AA90: 0.00 | AB90: 1,050.00 | AC90: 71,400.00 | AD90: 64,334.20 | AE90: 7,618.80 | AF90: 9,542.50 | AG90: 22,085.85 | AH90: 23,329.25 | AI90: 1,280.05 | AJ90: 1,241.75 | AK90: 56,489.45 | AL90: 10,187.60 | AM90: 10,436.25 | AN90: 3,328.20 | AO90: 16,483.76 | AP90: 8,007.85 | AQ90: 6,955.60 | AR90: 19,403.90 | AS90: 3,582.35 | AT90: 9,053.50 | AU90: 4,065.60 | AV90: 35,743.15 | AW90: 12,367.36 | AX90: 5,076.80 | AY90: 1,001.25 | AZ90: 23,381.27 | BA90: 8,626.05 | BB90: 16,007.91 | BC90: -1,602.45 | BD90: 339,774.65 | BE90: 17,011.70 | BF90: 2,355,558.20 | BG90: 1,517,184.77 | BH90: 232,991.68 | BI90: 605,381.75
C91: 422 | D91: Taxes et émoluments hospitaliers et médico-sociaux et foyers | E91: 0.00 | F91: 0.00 | G91: 0.00 | H91: 0.00 | I91: 0.00 | J91: 0.00 | K91: 0.00 | L91: 0.00 | M91: 0.00 | N91: 0.00 | O91: 0.00 | P91: 0.00 | Q91: 0.00 | R91: 0.00 | S91: 0.00 | T91: 0.00 | U91: 0.00 | V91: 0.00 | W91: 0.00 | X91: 0.00 | Y91: 0.00 | Z91: 0.00 | AA91: 0.00 | AB91: 0.00 | AC91: 0.00 | AD91: 0.00 | AE91: 0.00 | AF91: 0.00 | AG91: 0.00 | AH91: 0.00 | AI91: 0.00 | AJ91: 0.00 | AK91: 0.00 | AL91: 0.00 | AM91: 0.00 | AN91: 0.00 | AO91: 0.00 | AP91: 0.00 | AQ91: 0.00 | AR91: 0.00 | AS91: 0.00 | AT91: 0.00 | AU91: 0.00 | AV91: 0.00 | AW91: 0.00 | AX91: 0.00 | AY91: 0.00 | AZ91: 0.00 | BA91: 0.00 | BB91: 0.00 | BC91: 0.00 | BD91: 0.00 | BE91: 0.00 | BF91: 0.00 | BG91: 0.00 | BH91: 0.00 | BI91: 0.00
C92: 423 | D92: Frais d'écolage | E92: 4,080.00 | F92: 0.00 | G92: 0.00 | H92: 0.00 | I92: 10,015.00 | J92: 0.00 | K92: 0.00 | L92: 37,448.90 | M92: 0.00 | N92: 0.00 | O92: 0.00 | P92: 0.00 | Q92: 0.00 | R92: 0.00 | S92: 0.00 | T92: 0.00 | U92: 0.00 | V92: 7,900.00 | W92: 9,000.00 | X92: 36,692.95 | Y92: 0.00 | Z92: 341,249.25 | AA92: 0.00 | AB92: 0.00 | AC92: 0.00 | AD92: 0.00 | AE92: 0.00 | AF92: 0.00 | AG92: 0.00 | AH92: 68,081.25 | AI92: 0.00 | AJ92: 0.00 | AK92: 0.00 | AL92: 0.00 | AM92: 5,340.55 | AN92: 0.00 | AO92: 0.00 | AP92: 0.00 | AQ92: 0.00 | AR92: 3,598.00 | AS92: 58,988.60 | AT92: 0.00 | AU92: 0.00 | AV92: 0.00 | AW92: 0.00 | AX92: 0.00 | AY92: 0.00 | AZ92: 0.00 | BA92: 7,063.10 | BB92: 11,935.95 | BC92: 0.00 | BD92: 79,000.00 | BE92: 0.00 | BF92: 680,393.55 | BG92: 68,443.90 | BH92: 446,023.45 | BI92: 165,926.20
C93: 424 | D93: Taxes d'utilisation et de prestation de services | E93: 544,175.30 | F93: 186,332.00 | G93: 142,499.20 | H93: 135,369.50 | I93: 2,844,792.63 | J93: 2,379,891.70 | K93: 1,431,571.03 | L93: 24,861,771.06 | M93: 1,946,298.80 | N93: 41,012.35 | O93: 3,359,835.15 | P93: 130,197.30 | Q93: 38,668.10 | R93: 151,955.05 | S93: 265,638.20 | T93: 575,014.90 | U93: 154,405.05 | V93: 160,601.90 | W93: 1,342,279.70 | X93: 244,300.85 | Y93: 863,650.35 | Z93: 1,172,363.25 | AA93: 65,360.25 | AB93: 101,015.50 | AC93: 400,716.00 | AD93: 459,153.10 | AE93: 414,284.00 | AF93: 386,773.20 | AG93: 1,178,515.25 | AH93: 1,850,001.45 | AI93: 178,297.35 | AJ93: 104,812.35 | AK93: 928,170.50 | AL93: 628,294.95 | AM93: 572,524.70 | AN93: 70,870.20 | AO93: 1,007,023.93 | AP93: 525,372.10 | AQ93: 310,628.70 | AR93: 753,975.95 | AS93: 356,037.12 | AT93: 608,693.15 | AU93: 213,478.45 | AV93: 1,186,175.30 | AW93: 376,501.65 | AX93: 97,348.25 | AY93: 221,905.30 | AZ93: 711,569.35 | BA93: 282,800.65 | BB93: 829,275.41 | BC93: 91,285.00 | BD93: 4,286,693.64 | BE93: 249,738.95 | BF93: 62,419,915.07 | BG93: 40,692,308.92 | BH93: 7,419,242.90 | BI93: 14,308,363.25
C94: 425 | D94: Revenus des ventes | E94: 7,424.65 | F94: 1,896.85 | G94: 0.00 | H94: 0.00 | I94: 49,352.90 | J94: 30,055.30 | K94: 13,407.60 | L94: 213,621.44 | M94: 54,031.40 | N94: 0.00 | O94: 77,359.34 | P94: 20,812.02 | Q94: 486.90 | R94: 2,447.53 | S94: 171.65 | T94: 300.00 | U94: 1,865.80 | V94: 9,290.89 | W94: 27,500.44 | X94: 83,677.40 | Y94: 8,627.90 | Z94: 85,655.75 | AA94: 0.00 | AB94: 74,500.05 | AC94: 95,024.05 | AD94: 75,799.18 | AE94: 70,598.09 | AF94: 274,554.99 | AG94: 148,580.51 | AH94: 174,192.85 | AI94: 48,438.30 | AJ94: 1,680.00 | AK94: 155,530.91 | AL94: 332,870.15 | AM94: 734.95 | AN94: 46,156.18 | AO94: 1,503.80 | AP94: 179,862.65 | AQ94: 6,417.55 | AR94: 8,752.80 | AS94: 146,146.90 | AT94: 8,264.65 | AU94: 48,730.30 | AV94: 16,318.95 | AW94: 68,219.75 | AX94: 41,053.35 | AY94: 624.00 | AZ94: 10,370.20 | BA94: 1,240.50 | BB94: 8,502.80 | BC94: 48,769.35 | BD94: 110,731.46 | BE94: 152,656.55 | BF94: 3,044,811.53 | BG94: 510,024.71 | BH94: 1,141,329.07 | BI94: 1,393,457.75
C95: 426 | D95: remboursements | E95: 40,017.28 | F95: 8,984.50 | G95: 12,684.30 | H95: 36,712.70 | I95: 72,325.05 | J95: 32,220.38 | K95: 374,996.62 | L95: 473,034.66 | M95: 52,479.28 | N95: 0.00 | O95: 174,032.67 | P95: 24,546.05 | Q95: 2,272.10 | R95: 56,908.85 | S95: 46,662.75 | T95: 128,754.54 | U95: 30,421.36 | V95: 44,107.60 | W95: 35,576.29 | X95: 10,003.25 | Y95: 79,482.00 | Z95: 18,359.50 | AA95: 6,685.20 | AB95: 5,179.70 | AC95: 54,354.95 | AD95: 37,025.25 | AE95: 26,380.15 | AF95: 17,190.75 | AG95: 14,257.70 | AH95: 70,602.21 | AI95: 36,689.80 | AJ95: 9,680.85 | AK95: 33,955.00 | AL95: 47,510.98 | AM95: 8,108.75 | AN95: 4,179.15 | AO95: 47,163.20 | AP95: 61,276.70 | AQ95: 31,522.05 | AR95: 33,876.00 | AS95: 14,364.00 | AT95: 4,019.55 | AU95: 23,738.95 | AV95: 4,939.70 | AW95: 1,356.80 | AX95: 4,853.93 | AY95: 598.00 | AZ95: 58,891.70 | BA95: 14,058.00 | BB95: 37,806.75 | BC95: 493.35 | BD95: 438,474.02 | BE95: 37,440.80 | BF95: 2,941,255.67 | BG95: 1,646,736.98 | BH95: 385,891.31 | BI95: 908,627.38
C96: 427 | D96: Amendes | E96: 220.00 | F96: 0.00 | G96: 100.00 | H96: 0.00 | I96: 3,060.00 | J96: 1,200.00 | K96: 400.00 | L96: 125,388.10 | M96: 0.00 | N96: 0.00 | O96: 12,448.90 | P96: 0.00 | Q96: 0.00 | R96: 0.00 | S96: 0.00 | T96: 0.00 | U96: 0.00 | V96: 700.00 | W96: 0.00 | X96: 0.00 | Y96: 200.00 | Z96: 0.00 | AA96: 0.00 | AB96: 0.00 | AC96: 0.00 | AD96: 0.00 | AE96: 0.00 | AF96: 0.00 | AG96: 300.00 | AH96: 10,575.00 | AI96: 0.00 | AJ96: 0.00 | AK96: 0.00 | AL96: 0.00 | AM96: 0.00 | AN96: 0.00 | AO96: 250.00 | AP96: 0.00 | AQ96: 0.00 | AR96: 182.00 | AS96: 0.00 | AT96: 0.00 | AU96: 0.00 | AV96: 976.00 | AW96: 1,800.00 | AX96: 0.00 | AY96: 0.00 | AZ96: 890.40 | BA96: 0.00 | BB96: 0.00 | BC96: 0.00 | BD96: 105,893.85 | BE96: 0.00 | BF96: 264,584.25 | BG96: 143,517.00 | BH96: 11,075.00 | BI96: 109,992.25
C97: 429 | D97: Autres taxes et compensations | E97: 0.00 | F97: 0.00 | G97: 0.00 | H97: 0.00 | I97: 0.00 | J97: 0.00 | K97: 0.00 | L97: 0.00 | M97: 0.00 | N97: 0.00 | O97: 1,443.60 | P97: 0.00 | Q97: 0.00 | R97: 0.00 | S97: 0.00 | T97: 140.00 | U97: 1,458.35 | V97: 0.00 | W97: 0.00 | X97: 731.25 | Y97: 0.00 | Z97: 80,541.00 | AA97: 2,145.60 | AB97: 731.20 | AC97: 0.00 | AD97: 1,060.00 | AE97: 0.00 | AF97: 0.00 | AG97: 0.00 | AH97: 0.00 | AI97: 4,989.75 | AJ97: 5,047.50 | AK97: 0.00 | AL97: 0.00 | AM97: 0.00 | AN97: 0.00 | AO97: 8,174.45 | AP97: 0.00 | AQ97: 0.00 | AR97: 0.00 | AS97: 0.00 | AT97: 0.00 | AU97: 0.00 | AV97: 0.00 | AW97: 0.00 | AX97: 0.00 | AY97: 0.00 | AZ97: 0.00 | BA97: 0.00 | BB97: 0.00 | BC97: 0.00 | BD97: 0.00 | BE97: 0.00 | BF97: 106,462.70 | BG97: 3,041.95 | BH97: 95,246.30 | BI97: 8,174.45
B99: 43 | D99: Revenus divers | E99: =E100+E101+E102+E103 -> 0.00 | F99: =F100+F101+F102+F103 -> 3,178.30 | G99: 308.00 | H99: 0.00 | I99: 0.00 | J99: 0.00 | K99: 120.00 | L99: 1,514,196.64 | M99: 4,059.90 | N99: 18,032.25 | O99: 0.00 | P99: 0.00 | Q99: 0.00 | R99: 0.00 | S99: 0.00 | T99: 1,727.60 | U99: 108.00 | V99: 1,028.15 | W99: 3,069.50 | X99: 175.00 | Y99: 120.00 | Z99: 0.00 | AA99: 0.00 | AB99: 889.95 | AC99: 0.00 | AD99: 2,579.00 | AE99: 8,038.45 | AF99: 0.00 | AG99: 12,897.90 | AH99: 41,182.70 | AI99: 1,152.25 | AJ99: 5,278.95 | AK99: 87,567.24 | AL99: 31,266.30 | AM99: 0.00 | AN99: 0.00 | AO99: 0.00 | AP99: 0.00 | AQ99: 0.00 | AR99: 549.00 | AS99: 108.81 | AT99: 2,115.00 | AU99: 0.00 | AV99: 0.00 | AW99: 1,600.00 | AX99: 0.00 | AY99: 0.00 | AZ99: 0.00 | BA99: 0.00 | BB99: 0.00 | BC99: 0.00 | BD99: 0.00 | BE99: 0.00 | BF99: 1,741,348.89 | BG99: 1,545,828.34 | BH99: 72,314.20 | BI99: 123,206.35
C100: 430 | D100: Revenus divers d'exploitation | E100: 0.00 | F100: 3,178.30 | G100: 0.00 | H100: 0.00 | I100: 0.00 | J100: 0.00 | K100: 120.00 | L100: 1,514,196.64 | M100: 4,059.90 | N100: 0.00 | O100: 0.00 | P100: 0.00 | Q100: 0.00 | R100: 0.00 | S100: 0.00 | T100: 0.00 | U100: 0.00 | V100: 0.00 | W100: 3,069.50 | X100: 0.00 | Y100: 120.00 | Z100: 0.00 | AA100: 0.00 | AB100: 709.20 | AC100: 0.00 | AD100: 2,579.00 | AE100: 0.00 | AF100: 0.00 | AG100: 0.00 | AH100: 41,182.70 | AI100: 0.00 | AJ100: 0.00 | AK100: 87,567.24 | AL100: 31,266.30 | AM100: 0.00 | AN100: 0.00 | AO100: 0.00 | AP100: 0.00 | AQ100: 0.00 | AR100: 549.00 | AS100: 108.81 | AT100: 2,115.00 | AU100: 0.00 | AV100: 0.00 | AW100: 0.00 | AX100: 0.00 | AY100: 0.00 | AZ100: 0.00 | BA100: 0.00 | BB100: 0.00 | BC100: 0.00 | BD100: 0.00 | BE100: 0.00 | BF100: =SUM(E100:BE100) -> 1,690,821.59 | BG100: =SUM(E100:W100) -> 1,524,624.34 | BH100: =SUM(X100:AJ100) -> 44,590.90 | BI100: =SUM(AK100:BE100) -> 121,606.35
C101: 431 | D101: Inscriptions de prestations propres portées à l'actif | E101: 0.00 | F101: 0.00 | G101: 0.00 | H101: 0.00 | I101: 0.00 | J101: 0.00 | K101: 0.00 | L101: 0.00 | M101: 0.00 | N101: 0.00 | O101: 0.00 | P101: 0.00 | Q101: 0.00 | R101: 0.00 | S101: 0.00 | T101: 0.00 | U101: 0.00 | V101: 0.00 | W101: 0.00 | X101: 0.00 | Y101: 0.00 | Z101: 0.00 | AA101: 0.00 | AB101: 0.00 | AC101: 0.00 | AD101: 0.00 | AE101: 0.00 | AF101: 0.00 | AG101: 0.00 | AH101: 0.00 | AI101: 0.00 | AJ101: 0.00 | AK101: 0.00 | AL101: 0.00 | AM101: 0.00 | AN101: 0.00 | AO101: 0.00 | AP101: 0.00 | AQ101: 0.00 | AR101: 0.00 | AS101: 0.00 | AT101: 0.00 | AU101: 0.00 | AV101: 0.00 | AW101: 0.00 | AX101: 0.00 | AY101: 0.00 | AZ101: 0.00 | BA101: 0.00 | BB101: 0.00 | BC101: 0.00 | BD101: 0.00 | BE101: 0.00 | BF101: 0.00 | BG101: 0.00 | BH101: 0.00 | BI101: 0.00
C102: 432 | D102: Variation de stock | E102: 0.00 | F102: 0.00 | G102: 308.00 | H102: 0.00 | I102: 0.00 | J102: 0.00 | K102: 0.00 | L102: 0.00 | M102: 0.00 | N102: 0.00 | O102: 0.00 | P102: 0.00 | Q102: 0.00 | R102: 0.00 | S102: 0.00 | T102: 0.00 | U102: 0.00 | V102: -281.85 | W102: 0.00 | X102: 0.00 | Y102: 0.00 | Z102: 0.00 | AA102: 0.00 | AB102: 0.00 | AC102: 0.00 | AD102: 0.00 | AE102: 0.00 | AF102: 0.00 | AG102: 0.00 | AH102: 0.00 | AI102: 0.00 | AJ102: 5,058.50 | AK102: 0.00 | AL102: 0.00 | AM102: 0.00 | AN102: 0.00 | AO102: 0.00 | AP102: 0.00 | AQ102: 0.00 | AR102: 0.00 | AS102: 0.00 | AT102: 0.00 | AU102: 0.00 | AV102: 0.00 | AW102: 0.00 | AX102: 0.00 | AY102: 0.00 | AZ102: 0.00 | BA102: 0.00 | BB102: 0.00 | BC102: 0.00 | BD102: 0.00 | BE102: 0.00 | BF102: 5,084.65 | BG102: 26.15 | BH102: 5,058.50 | BI102: 0.00
C103: 439 | D103: Autres revenus divers | E103: 0.00 | F103: 0.00 | G103: 0.00 | H103: 0.00 | I103: 0.00 | J103: 0.00 | K103: 0.00 | L103: 0.00 | M103: 0.00 | N103: 18,032.25 | O103: 0.00 | P103: 0.00 | Q103: 0.00 | R103: 0.00 | S103: 0.00 | T103: 1,727.60 | U103: 108.00 | V103: 1,310.00 | W103: 0.00 | X103: 175.00 | Y103: 0.00 | Z103: 0.00 | AA103: 0.00 | AB103: 180.75 | AC103: 0.00 | AD103: 0.00 | AE103: 8,038.45 | AF103: 0.00 | AG103: 12,897.90 | AH103: 0.00 | AI103: 1,152.25 | AJ103: 220.45 | AK103: 0.00 | AL103: 0.00 | AM103: 0.00 | AN103: 0.00 | AO103: 0.00 | AP103: 0.00 | AQ103: 0.00 | AR103: 0.00 | AS103: 0.00 | AT103: 0.00 | AU103: 0.00 | AV103: 0.00 | AW103: 1,600.00 | AX103: 0.00 | AY103: 0.00 | AZ103: 0.00 | BA103: 0.00 | BB103: 0.00 | BC103: 0.00 | BD103: 0.00 | BE103: 0.00 | BF103: 45,442.65 | BG103: 21,177.85 | BH103: 22,664.80 | BI103: 1,600.00
B105: 44 | D105: Revenus financiers | E105: =E106+E107+E108+E109+E110+E111+E112+E113+E114+E115 -> 47,757.15 | F105: =F106+F107+F108+F109+F110+F111+F112+F113+F114+F115 -> 35,245.93 | G105: 114,694.29 | H105: 133,251.86 | I105: 669,906.45 | J105: 332,842.94 | K105: 262,823.25 | L105: 3,069,513.20 | M105: 79,612.88 | N105: 19,221.50 | O105: 466,783.76 | P105: 69,104.50 | Q105: 18,245.12 | R105: 30,458.27 | S105: 29,202.65 | T105: 79,203.05 | U105: 52,813.75 | V105: 57,381.93 | W105: 463,779.32 | X105: 64,832.76 | Y105: 103,282.25 | Z105: 146,611.57 | AA105: 40,131.38 | AB105: 31,355.00 | AC105: 74,062.97 | AD105: 259,998.55 | AE105: 68,116.08 | AF105: 146,631.60 | AG105: 212,957.71 | AH105: 448,072.87 | AI105: 26,326.88 | AJ105: 46,480.10 | AK105: 124,674.61 | AL105: 589,775.15 | AM105: 169,018.80 | AN105: 26,366.86 | AO105: 346,752.02 | AP105: 120,797.27 | AQ105: 39,242.14 | AR105: 645,157.75 | AS105: 238,564.46 | AT105: 217,499.09 | AU105: 43,849.40 | AV105: 434,769.03 | AW105: 61,014.97 | AX105: 17,055.54 | AY105: 59,613.80 | AZ105: 177,257.14 | BA105: 45,504.98 | BB105: 289,938.00 | BC105: 14,208.50 | BD105: 2,446,119.45 | BE105: 83,741.09 | BF105: 13,891,621.57 | BG105: 6,031,841.80 | BH105: 1,668,859.72 | BI105: 6,190,920.05
C106: 440 | D106: Revenus des intérets | E106: 23,418.30 | F106: 14,525.93 | G106: 8,419.74 | H106: 8,186.86 | I106: 153,171.55 | J106: 129,767.64 | K106: 41,256.25 | L106: 914,586.27 | M106: 43,961.48 | N106: 121.50 | O106: 135,941.74 | P106: 9,076.10 | Q106: 4,220.45 | R106: 158.27 | S106: 6,042.65 | T106: 18,851.05 | U106: 6,215.75 | V106: 10,386.93 | W106: 79,792.30 | X106: 3,271.71 | Y106: 41,377.25 | Z106: 36,365.22 | AA106: 562.18 | AB106: 6,035.00 | AC106: 8,592.87 | AD106: 115,681.05 | AE106: 10,361.08 | AF106: 296.70 | AG106: 29,889.65 | AH106: 41,242.37 | AI106: 12,365.65 | AJ106: 4,175.10 | AK106: 105,842.76 | AL106: 65,142.15 | AM106: 42,752.80 | AN106: 6,904.16 | AO106: 28,354.12 | AP106: 25,907.02 | AQ106: 17,455.14 | AR106: 31,166.18 | AS106: 43,082.61 | AT106: 66,001.04 | AU106: 4,916.35 | AV106: 51,808.72 | AW106: 15,471.29 | AX106: 3,549.64 | AY106: 8,404.10 | AZ106: 52,198.84 | BA106: 12,193.98 | BB106: 38,820.00 | BC106: 3,699.85 | BD106: 268,547.32 | BE106: 23,228.99 | BF106: =SUM(E106:BE106) -> 2,833,763.65 | BG106: =SUM(E106:W106) -> 1,608,100.76 | BH106: =SUM(X106:AJ106) -> 310,215.83 | BI106: =SUM(AK106:BE106) -> 915,447.06
C107: 441 | D107: Gains réalisés du PF | E107: 0.00 | F107: 0.00 | G107: 0.00 | H107: 0.00 | I107: 0.00 | J107: 0.00 | K107: 0.00 | L107: 0.00 | M107: 0.00 | N107: 0.00 | O107: 5,580.00 | P107: 0.00 | Q107: 0.00 | R107: 0.00 | S107: 0.00 | T107: 0.00 | U107: 0.00 | V107: 0.00 | W107: 86,244.20 | X107: 0.00 | Y107: 0.00 | Z107: 0.00 | AA107: 0.00 | AB107: 740.00 | AC107: 0.00 | AD107: 0.00 | AE107: 46,655.00 | AF107: 0.00 | AG107: 3,210.00 | AH107: 152,600.55 | AI107: 0.00 | AJ107: 0.00 | AK107: 0.00 | AL107: 0.00 | AM107: 1,400.00 | AN107: 0.00 | AO107: 75,390.00 | AP107: 0.00 | AQ107: 0.00 | AR107: 43,060.00 | AS107: 0.00 | AT107: 0.00 | AU107: 0.00 | AV107: 0.00 | AW107: 0.00 | AX107: 0.00 | AY107: 4,030.00 | AZ107: 0.00 | BA107: 0.00 | BB107: 24,672.50 | BC107: 0.00 | BD107: 0.00 | BE107: 0.00 | BF107: 443,582.25 | BG107: 91,824.20 | BH107: 203,205.55 | BI107: 148,552.50
C108: 442 | D108: Revenus de participations du PF | E108: 60.10 | F108: 0.00 | G108: 0.00 | H108: 0.00 | I108: 6,026.00 | J108: 37.00 | K108: 0.00 | L108: 56,657.50 | M108: 0.00 | N108: 0.00 | O108: 3,677.50 | P108: 0.00 | Q108: 34.67 | R108: 0.00 | S108: 0.00 | T108: 325.00 | U108: 0.00 | V108: 0.00 | W108: 219.42 | X108: 5.00 | Y108: 0.00 | Z108: 0.00 | AA108: 0.00 | AB108: 0.00 | AC108: 880.00 | AD108: 0.00 | AE108: 0.00 | AF108: 11,004.90 | AG108: 7,415.00 | AH108: 0.00 | AI108: 0.00 | AJ108: 0.00 | AK108: 0.00 | AL108: 16,218.00 | AM108: 0.00 | AN108: 0.00 | AO108: 0.00 | AP108: 20.00 | AQ108: 0.00 | AR108: 6,957.00 | AS108: 0.00 | AT108: 380.00 | AU108: 0.00 | AV108: 1,657.50 | AW108: 1,926.33 | AX108: 0.00 | AY108: 0.00 | AZ108: 0.00 | BA108: 0.00 | BB108: 302.25 | BC108: 0.00 | BD108: 22,531.75 | BE108: 20.00 | BF108: 136,354.92 | BG108: 67,037.19 | BH108: 19,304.90 | BI108: 50,012.83
C109: 443 | D109: Revenus des biens-fonds, des bâtiments et immeubles du PF | E109: 22,991.50 | F109: 19,700.00 | G109: 106,274.55 | H109: 75,065.00 | I109: 385,439.00 | J109: 130,480.00 | K109: 130,147.00 | L109: 570,442.55 | M109: 20,756.90 | N109: 19,000.00 | O109: 128,634.95 | P109: 27,510.00 | Q109: 10,140.00 | R109: 28,680.00 | S109: 11,400.00 | T109: 55,367.00 | U109: 0.00 | V109: 23,605.00 | W109: 126,933.50 | X109: 14,330.00 | Y109: 42,715.00 | Z109: 9,605.00 | AA109: 13,934.00 | AB109: 24,580.00 | AC109: 12,404.10 | AD109: 80,000.50 | AE109: 2,110.00 | AF109: 87,195.00 | AG109: 93,783.45 | AH109: 46,144.20 | AI109: 46.43 | AJ109: 41,705.00 | AK109: 0.00 | AL109: 243,841.90 | AM109: 75,767.00 | AN109: 10,735.70 | AO109: 204,430.20 | AP109: 25,952.20 | AQ109: 4,193.55 | AR109: 437,887.87 | AS109: 10,542.40 | AT109: 82,790.00 | AU109: 25,640.00 | AV109: 0.00 | AW109: 11,017.35 | AX109: 2,432.50 | AY109: 39,303.70 | AZ109: 66,998.30 | BA109: 32,771.00 | BB109: 113,307.50 | BC109: 3,000.00 | BD109: 261,552.30 | BE109: 49,874.60 | BF109: 4,063,157.70 | BG109: 1,892,566.95 | BH109: 468,552.68 | BI109: 1,702,038.07
C110: 444 | D110: Réévaluations des immobilisations du PF | E110: 0.00 | F110: 0.00 | G110: 0.00 | H110: 0.00 | I110: 61,160.00 | J110: 0.00 | K110: 0.00 | L110: 0.00 | M110: 140.00 | N110: 0.00 | O110: 22,240.00 | P110: 0.00 | Q110: 0.00 | R110: 0.00 | S110: 0.00 | T110: 0.00 | U110: 14,800.00 | V110: 0.00 | W110: 0.00 | X110: 0.00 | Y110: 0.00 | Z110: 0.00 | AA110: 200.00 | AB110: 0.00 | AC110: 11,120.00 | AD110: 0.00 | AE110: 0.00 | AF110: 0.00 | AG110: 0.00 | AH110: 26,840.00 | AI110: 0.00 | AJ110: 0.00 | AK110: 0.00 | AL110: 0.00 | AM110: 0.00 | AN110: 0.00 | AO110: 0.00 | AP110: 0.00 | AQ110: 0.00 | AR110: 0.00 | AS110: 140,026.00 | AT110: 0.00 | AU110: 0.00 | AV110: 0.00 | AW110: 22,240.00 | AX110: 0.00 | AY110: 0.00 | AZ110: 26,800.00 | BA110: 40.00 | BB110: 11,120.00 | BC110: 0.00 | BD110: 813,614.40 | BE110: 0.00 | BF110: 1,150,340.40 | BG110: 98,340.00 | BH110: 38,160.00 | BI110: 1,013,840.40
C111: 445 | D111: Revenus financiers de prêts et de participation du PA | E111: 0.00 | F111: 0.00 | G111: 0.00 | H111: 0.00 | I111: 0.00 | J111: 0.00 | K111: 0.00 | L111: 173,538.00 | M111: 0.00 | N111: 0.00 | O111: 0.00 | P111: 0.00 | Q111: 0.00 | R111: 0.00 | S111: 0.00 | T111: 0.00 | U111: 0.00 | V111: 0.00 | W111: 0.00 | X111: 0.00 | Y111: 0.00 | Z111: 0.00 | AA111: 0.00 | AB111: 0.00 | AC111: 0.00 | AD111: 0.00 | AE111: 0.00 | AF111: 0.00 | AG111: 0.00 | AH111: 0.00 | AI111: 0.00 | AJ111: 0.00 | AK111: 0.00 | AL111: 0.00 | AM111: 0.00 | AN111: 40.00 | AO111: 0.00 | AP111: 0.00 | AQ111: 0.00 | AR111: 0.00 | AS111: 0.00 | AT111: 0.00 | AU111: 0.00 | AV111: 0.00 | AW111: 0.00 | AX111: 0.00 | AY111: 0.00 | AZ111: 0.00 | BA111: 0.00 | BB111: 0.00 | BC111: 0.00 | BD111: 0.00 | BE111: 0.00 | BF111: 173,578.00 | BG111: 173,538.00 | BH111: 0.00 | BI111: 40.00
C112: 446 | D112: Revenus financiers d'entreprises publiques | E112: 0.00 | F112: 0.00 | G112: 0.00 | H112: 0.00 | I112: 0.00 | J112: 0.00 | K112: 0.00 | L112: 0.00 | M112: 0.00 | N112: 0.00 | O112: 0.00 | P112: 0.00 | Q112: 0.00 | R112: 0.00 | S112: 0.00 | T112: 0.00 | U112: 0.00 | V112: 0.00 | W112: 0.00 | X112: 0.00 | Y112: 0.00 | Z112: 0.00 | AA112: 0.00 | AB112: 0.00 | AC112: 0.00 | AD112: 0.00 | AE112: 0.00 | AF112: 0.00 | AG112: 0.00 | AH112: 0.00 | AI112: 0.00 | AJ112: 0.00 | AK112: 0.00 | AL112: 0.00 | AM112: 0.00 | AN112: 0.00 | AO112: 0.00 | AP112: 0.00 | AQ112: 0.00 | AR112: 0.00 | AS112: 0.00 | AT112: 0.00 | AU112: 0.00 | AV112: 0.00 | AW112: 0.00 | AX112: 0.00 | AY112: 0.00 | AZ112: 0.00 | BA112: 0.00 | BB112: 0.00 | BC112: 0.00 | BD112: 0.00 | BE112: 0.00 | BF112: 0.00 | BG112: 0.00 | BH112: 0.00 | BI112: 0.00
C113: 447 | D113: Revenus des biens-fonds, des bâtiments et immeubles du PA | E113: 1,287.25 | F113: 1,020.00 | G113: 0.00 | H113: 50,000.00 | I113: 64,109.90 | J113: 72,558.30 | K113: 91,420.00 | L113: 1,354,288.88 | M113: 14,754.50 | N113: 100.00 | O113: 168,155.95 | P113: 32,518.40 | Q113: 3,850.00 | R113: 1,620.00 | S113: 11,760.00 | T113: 4,660.00 | U113: 31,798.00 | V113: 23,390.00 | W113: 170,589.90 | X113: 47,101.05 | Y113: 19,190.00 | Z113: 16,641.35 | AA113: 25,435.20 | AB113: 0.00 | AC113: 41,066.00 | AD113: 64,317.00 | AE113: 8,990.00 | AF113: 48,135.00 | AG113: 78,656.50 | AH113: 181,245.75 | AI113: 13,914.80 | AJ113: 600.00 | AK113: 18,831.85 | AL113: 262,966.10 | AM113: 49,099.00 | AN113: 8,687.00 | AO113: 38,577.70 | AP113: 68,918.05 | AQ113: 17,593.45 | AR113: 126,086.70 | AS113: 44,913.45 | AT113: 68,328.05 | AU113: 13,200.00 | AV113: 81,198.60 | AW113: 10,360.00 | AX113: 11,073.40 | AY113: 7,876.00 | AZ113: 31,260.00 | BA113: 300.00 | BB113: 101,715.75 | BC113: 7,508.65 | BD113: 1,079,119.90 | BE113: 10,617.50 | BF113: 4,701,404.88 | BG113: 2,097,881.08 | BH113: 545,292.65 | BI113: 2,058,231.15
C114: 448 | D114: Revenus des biens-fonds loués | E114: 0.00 | F114: 0.00 | G114: 0.00 | H114: 0.00 | I114: 0.00 | K114: 0.00 | L114: 0.00 | M114: 0.00 | N114: 0.00 | O114: 0.00 | P114: 0.00 | Q114: 0.00 | R114: 0.00 | S114: 0.00 | T114: 0.00 | U114: 0.00 | V114: 0.00 | W114: 0.00 | X114: 125.00 | Y114: 0.00 | Z114: 0.00 | AA114: 0.00 | AB114: 0.00 | AC114: 0.00 | AD114: 0.00 | AE114: 0.00 | AF114: 0.00 | AG114: 0.00 | AH114: 0.00 | AI114: 0.00 | AJ114: 0.00 | AK114: 0.00 | AL114: 0.00 | AM114: 0.00 | AN114: 0.00 | AO114: 0.00 | AP114: 0.00 | AQ114: 0.00 | AR114: 0.00 | AS114: 0.00 | AT114: 0.00 | AU114: 0.00 | AV114: 0.00 | AW114: 0.00 | AX114: 0.00 | AY114: 0.00 | AZ114: 0.00 | BA114: 0.00 | BB114: 0.00 | BC114: 0.00 | BD114: 0.00 | BE114: 0.00 | BF114: 125.00 | BG114: 0.00 | BH114: 125.00 | BI114: 0.00
C115: 449 | D115: Autres revenus financiers | E115: 0.00 | F115: 0.00 | G115: 0.00 | H115: 0.00 | I115: 0.00 | K115: 0.00 | L115: 0.00 | M115: 0.00 | N115: 0.00 | O115: 2,553.62 | P115: 0.00 | Q115: 0.00 | R115: 0.00 | S115: 0.00 | T115: 0.00 | U115: 0.00 | V115: 0.00 | W115: 0.00 | Y115: 0.00 | Z115: 84,000.00 | AA115: 0.00 | AB115: 0.00 | AC115: 0.00 | AD115: 0.00 | AE115: 0.00 | AF115: 0.00 | AG115: 3.11 | AH115: 0.00 | AI115: 0.00 | AJ115: 0.00 | AK115: 0.00 | AL115: 1,607.00 | AM115: 0.00 | AN115: 0.00 | AO115: 0.00 | AP115: 0.00 | AQ115: 0.00 | AR115: 0.00 | AS115: 0.00 | AT115: 0.00 | AU115: 93.05 | AV115: 300,104.21 | AW115: 0.00 | AX115: 0.00 | AY115: 0.00 | AZ115: 0.00 | BA115: 200.00 | BB115: 0.00 | BC115: 0.00 | BD115: 753.78 | BE115: 0.00 | BF115: 389,314.77 | BG115: 2,553.62 | BH115: 84,003.11 | BI115: 302,758.04
B117: 45 | D117: Prélèvements sur les financements spéciaux | E117: =E118+E119 -> 2,612.45 | F117: =F118+F119 -> 0.00 | G117: 52,538.20 | H117: 88,690.26 | I117: 13,041.10 | J117: 9,247.60 | K117: 25,559.85 | L117: 41,211.35 | M117: 3,896.35 | N117: 0.00 | O117: 19,882.50 | P117: 28,838.60 | Q117: 37,386.00 | R117: 0.00 | S117: 0.00 | T117: 1,908.70 | U117: 760.75 | V117: 1,216.00 | W117: 9,045.50 | X117: 41,223.70 | Y117: 3,475.30 | Z117: 4,359.18 | AA117: 0.00 | AB117: 1,826.70 | AC117: 17,757.55 | AD117: 1,896.30 | AE117: 1,622.90 | AF117: 101,694.38 | AG117: 58,682.90 | AH117: 18,815.60 | AI117: 2.81 | AJ117: 13,682.00 | AK117: 19,457.70 | AL117: 37,404.50 | AM117: 0.00 | AN117: 329.10 | AO117: 30,380.65 | AP117: 10,472.85 | AQ117: 1,826.80 | AR117: 419,685.15 | AS117: 77,123.00 | AT117: 20,060.32 | AU117: 70,569.30 | AV117: 6,700.85 | AW117: 2,179.95 | AX117: 529.95 | AY117: 0.00 | AZ117: 9,743.15 | BA117: 0.00 | BB117: 0.00 | BC117: 0.00 | BD117: 820.95 | BE117: 96.00 | BF117: 1,308,254.75 | BG117: 335,835.21 | BH117: 265,039.32 | BI117: 707,380.22
C118: 450 | D118: Prélèvements sur les financements spéciaux des capitaux de tiers | E118: 2,612.45 | F118: 0.00 | G118: 0.00 | H118: 1,235.00 | I118: 9,924.85 | J118: 9,247.60 | K118: 12,779.50 | L118: 41,211.35 | M118: 3,896.35 | N118: 0.00 | O118: 19,882.50 | P118: 0.00 | Q118: 0.00 | R118: 0.00 | S118: 0.00 | T118: 1,908.70 | U118: 760.75 | V118: 1,216.00 | W118: 9,045.50 | X118: 1,960.00 | Y118: 3,475.30 | Z118: 4,327.60 | AA118: 0.00 | AB118: 423.35 | AC118: 0.00 | AD118: 1,896.30 | AE118: 1,622.90 | AF118: 0.00 | AG118: 15,235.50 | AH118: 7,403.95 | AI118: 0.50 | AJ118: 0.00 | AK118: 18,457.70 | AL118: 0.00 | AM118: 0.00 | AN118: 329.10 | AO118: 0.00 | AP118: 0.00 | AQ118: 1,826.80 | AR118: 21,308.90 | AS118: 0.00 | AT118: 20,000.00 | AU118: 3,856.70 | AV118: 6,699.85 | AW118: 2,179.95 | AX118: 505.70 | AY118: 0.00 | AZ118: 4,782.50 | BA118: 0.00 | BB118: 0.00 | BC118: 0.00 | BD118: 8,262.35 | BE118: 0.00 | BF118: =SUM(E118:BE118) -> 238,275.50 | BG118: =SUM(E118:W118) -> 113,720.55 | BH118: =SUM(X118:AJ118) -> 36,345.40 | BI118: =SUM(AK118:BE118) -> 88,209.55
C119: 451 | D119: Prélèvements sur les financements spéciaux du capital propre | E119: 0.00 | F119: 0.00 | G119: 52,538.20 | H119: 87,455.26 | I119: 3,116.25 | J119: 0.00 | K119: 12,780.35 | L119: 0.00 | M119: 0.00 | N119: 0.00 | O119: 0.00 | P119: 28,838.60 | Q119: 37,386.00 | R119: 0.00 | S119: 0.00 | T119: 0.00 | U119: 0.00 | V119: 0.00 | W119: 0.00 | X119: 39,263.70 | Y119: 0.00 | Z119: 31.58 | AA119: 0.00 | AB119: 1,403.35 | AC119: 17,757.55 | AD119: 0.00 | AE119: 0.00 | AF119: 101,694.38 | AG119: 43,447.40 | AH119: 11,411.65 | AI119: 2.31 | AJ119: 13,682.00 | AK119: 1,000.00 | AL119: 37,404.50 | AM119: 0.00 | AN119: 0.00 | AO119: 30,380.65 | AP119: 10,472.85 | AQ119: 0.00 | AR119: 398,376.25 | AS119: 77,123.00 | AT119: 60.32 | AU119: 66,712.60 | AV119: 1.00 | AW119: 0.00 | AX119: 24.25 | AY119: 0.00 | AZ119: 4,960.65 | BA119: 0.00 | BB119: 0.00 | BC119: 0.00 | BD119: -7,441.40 | BE119: 96.00 | BF119: 1,069,979.25 | BG119: 222,114.66 | BH119: 228,693.92 | BI119: 619,170.67
B121: 46 | D121: Revenus de transfert | E121: =E122+E123+E124+E125+E126 -> 287,612.80 | F121: =F122+F123+F124+F125+F126 -> 237,084.90 | G121: 203,126.45 | H121: 232,121.80 | I121: 1,911,301.45 | J121: 1,900,093.58 | K121: 895,208.35 | L121: 22,665,071.86 | M121: 1,271,552.44 | N121: 118,335.35 | O121: 3,180,872.16 | P121: 319,457.90 | Q121: 37,987.70 | R121: 201,129.60 | S121: 261,674.65 | T121: 28,857.40 | U121: 160,367.85 | V121: 530,601.75 | W121: 2,086,626.70 | X121: 531,558.85 | Y121: 954,129.51 | Z121: 1,808,841.54 | AA121: 93,839.05 | AB121: 134,834.45 | AC121: 237,824.80 | AD121: 659,318.30 | AE121: 463,283.70 | AF121: 338,418.10 | AG121: 827,160.65 | AH121: 1,278,467.30 | AI121: 279,714.65 | AJ121: 84,536.75 | AK121: 1,137,635.25 | AL121: 1,502,126.27 | AM121: 847,210.15 | AN121: 88,400.55 | AO121: 284,992.62 | AP121: 905,285.37 | AQ121: 157,186.25 | AR121: 1,803,434.80 | AS121: 326,865.74 | AT121: 895,130.95 | AU121: 80,993.30 | AV121: 357,421.50 | AW121: 194,171.80 | AX121: 157,863.93 | AY121: 367,082.00 | AZ121: 858,275.52 | BA121: 548,001.25 | BB121: 852,622.68 | BC121: 121,498.95 | BD121: 8,542,218.71 | BE121: 483,234.35 | BF121: 64,732,664.28 | BG121: 36,529,084.69 | BH121: 7,691,927.65 | BI121: 20,511,651.94
C122: 460 | D122: Parts à des revenus des collectivités publiques | E122: 4,183.00 | F122: 77.00 | G122: 1,018.00 | H122: 3,703.00 | I122: 33,792.00 | J122: 25,406.00 | K122: 32,775.00 | L122: 484,147.00 | M122: 31,239.00 | N122: 233.00 | O122: 0.00 | P122: 0.00 | Q122: 15.00 | R122: 0.00 | S122: 400.00 | T122: 2,458.00 | U122: 345.00 | V122: 13,725.00 | W122: 19,713.00 | X122: 80.00 | Y122: 6,438.00 | Z122: 203,183.00 | AA122: 0.00 | AB122: 616.00 | AC122: 0.00 | AD122: 2,912.00 | AE122: 1,051.00 | AF122: 2,433.00 | AG122: 109,985.00 | AH122: 35,330.00 | AI122: 765.00 | AJ122: 0.00 | AK122: 0.00 | AL122: 1,558.00 | AM122: 2,991.00 | AN122: 0.00 | AO122: 126,195.00 | AP122: 14,086.00 | AQ122: 4,803.00 | AR122: 3,539.00 | AS122: 621.00 | AT122: 8,459.00 | AU122: 12,280.00 | AV122: 75,565.00 | AW122: 19,246.00 | AX122: 0.00 | AY122: 493.00 | AZ122: 0.00 | BA122: 267.00 | BB122: 42,028.00 | BC122: 0.00 | BD122: 187,814.00 | BE122: 3,828.00 | BF122: =SUM(E122:BE122) -> 1,519,795.00 | BG122: =SUM(E122:W122) -> 653,229.00 | BH122: =SUM(X122:AJ122) -> 362,793.00 | BI122: =SUM(AK122:BE122) -> 503,773.00
C123: 461 | D123: Dédommagements des collectivités publiques | E123: 145,642.25 | F123: 9,055.35 | G123: 54,493.50 | H123: 1,763.00 | I123: 561,343.85 | J123: 806,770.23 | K123: 675,740.30 | L123: 12,310,929.50 | M123: 711,261.60 | N123: 135.00 | O123: 1,050,799.86 | P123: 9,613.75 | Q123: 2,943.20 | R123: 37,431.20 | S123: 59,806.85 | T123: 1,612.35 | U123: 306.80 | V123: 415,965.05 | W123: 388,781.80 | X123: 622.95 | Y123: 777,042.81 | Z123: 987,126.89 | AA123: 460.55 | AB123: 37,685.25 | AC123: 37,108.95 | AD123: 381,368.50 | AE123: 131,722.05 | AF123: 1,205.00 | AG123: 317,473.70 | AH123: 332,660.50 | AI123: 30,239.15 | AJ123: 15,460.45 | AK123: 781,171.80 | AL123: 515,516.57 | AM123: 215,219.20 | AN123: 0.00 | AO123: 15,304.45 | AP123: 769,270.57 | AQ123: 5,555.60 | AR123: 908,668.30 | AS123: 64,875.99 | AT123: 315,797.80 | AU123: 25,394.40 | AV123: 169,695.85 | AW123: 47,979.35 | AX123: 1,169.08 | AY123: 3,721.40 | AZ123: 347,429.92 | BA123: 214,526.10 | BB123: 720,204.68 | BC123: 1,764.00 | BD123: 6,736,238.30 | BE123: 161,655.55 | BF123: 32,315,731.10 | BG123: 17,244,395.44 | BH123: 3,050,176.75 | BI123: 12,021,158.91
C124: 462 | D124: Péréquation financière et compensation de charges | E124: 93,242.00 | F124: 211,892.00 | G124: 81,088.00 | H124: 159,252.00 | I124: 1,174,020.00 | J124: 534,289.00 | K124: 0.00 | L124: 962,414.35 | M124: 0.00 | N124: 98,312.00 | O124: 1,414,183.00 | P124: 283,212.00 | Q124: 28,845.00 | R124: 157,798.00 | S124: 175,314.00 | T124: 0.00 | U124: 136,502.00 | V124: 0.00 | W124: 1,341,516.00 | X124: 31,284.00 | Y124: 74,686.00 | Z124: 28,100.00 | AA124: 83,038.00 | AB124: 61,512.00 | AC124: 0.00 | AD124: 188,290.00 | AE124: 189,290.00 | AF124: 28,448.00 | AG124: 0.00 | AH124: 96,532.00 | AI124: 218,340.00 | AJ124: 52,532.00 | AK124: 218,212.00 | AL124: 662,458.00 | AM124: 482,860.00 | AN124: 66,682.00 | AO124: 0.00 | AP124: 523.00 | AQ124: 81,733.00 | AR124: 684,808.00 | AS124: 192,432.00 | AT124: 249,338.00 | AU124: 0.00 | AV124: 0.00 | AW124: 0.00 | AX124: 140,996.00 | AY124: 276,102.00 | AZ124: 408,224.00 | BA124: 295,366.00 | BB124: 0.00 | BC124: 92,938.00 | BD124: 332,198.00 | BE124: 182,616.00 | BF124: 12,271,417.35 | BG124: 6,851,879.35 | BH124: 1,052,052.00 | BI124: 4,367,486.00
C125: 463 | D125: Subventions de collectivités publiques et de tiers | E125: 44,349.15 | F125: 16,037.00 | G125: 66,526.95 | H125: 67,303.45 | I125: 141,979.55 | J125: 532,344.70 | K125: 186,329.90 | L125: 1,825,790.92 | M125: 199,719.59 | N125: 19,655.35 | O125: 687,993.80 | P125: 26,632.15 | Q125: 6,167.00 | R125: 5,796.00 | S125: 26,153.80 | T125: 24,787.05 | U125: 23,133.20 | V125: 100,766.85 | W125: 335,761.95 | X125: 498,980.45 | Y125: 92,090.70 | Z125: 589,714.10 | AA125: 10,135.00 | AB125: 33,934.00 | AC125: 199,581.85 | AD125: 85,915.70 | AE125: 141,093.70 | AF125: 306,332.10 | AG125: 396,541.25 | AH125: 813,130.50 | AI125: 30,176.60 | AJ125: 16,104.30 | AK125: 136,438.60 | AL125: 299,968.75 | AM125: 134,862.20 | AN125: 21,321.95 | AO125: 143,013.42 | AP125: 119,229.75 | AQ125: 57,865.95 | AR125: 193,737.15 | AS125: 67,463.00 | AT125: 321,380.55 | AU125: 43,277.30 | AV125: 111,739.00 | AW125: 125,656.05 | AX125: 13,799.00 | AY125: 83,127.95 | AZ125: 87,573.60 | BA125: 37,783.90 | BB125: 89,870.60 | BC125: 25,187.45 | BD125: 1,218,826.56 | BE125: 128,463.35 | BF125: 11,011,544.69 | BG125: 4,337,228.36 | BH125: 3,213,730.25 | BI125: 3,460,586.08
C126: 469 | D126: Différents revenus et transferts de collectivités publiques et de tiers | E126: 196.40 | F126: 23.55 | G126: 0.00 | H126: 100.35 | I126: 166.05 | J126: 1,283.65 | K126: 363.15 | L126: 7,081,790.09 | M126: 329,332.25 | N126: 0.00 | O126: 27,895.50 | P126: 0.00 | Q126: 17.50 | R126: 104.40 | S126: 0.00 | T126: 0.00 | U126: 80.85 | V126: 144.85 | W126: 853.95 | X126: 591.45 | Y126: 3,872.00 | Z126: 717.55 | AA126: 205.50 | AB126: 1,087.20 | AC126: 1,134.00 | AD126: 832.10 | AE126: 126.95 | AF126: 0.00 | AG126: 3,160.70 | AH126: 814.30 | AI126: 193.90 | AJ126: 440.00 | AK126: 1,812.85 | AL126: 22,624.95 | AM126: 11,277.75 | AN126: 396.60 | AO126: 479.75 | AP126: 2,176.05 | AQ126: 7,228.70 | AR126: 12,682.35 | AS126: 1,473.75 | AT126: 155.60 | AU126: 41.60 | AV126: 421.65 | AW126: 1,290.40 | AX126: 1,899.85 | AY126: 3,637.65 | AZ126: 15,048.00 | BA126: 58.25 | BB126: 519.40 | BC126: 1,609.50 | BD126: 67,141.85 | BE126: 6,671.45 | BF126: 7,614,176.14 | BG126: 7,442,352.54 | BH126: 13,175.65 | BI126: 158,647.95
B128: 47 | D128: Subventions à redistribuer | E128: =E129 -> 0.00 | F128: =F129 -> 0.00 | G128: 0.00 | H128: 0.00 | I128: 0.00 | J128: 0.00 | K128: 0.00 | L128: 0.00 | M128: 1,665.00 | N128: 0.00 | O128: 0.00 | P128: 0.00 | Q128: 0.00 | R128: 0.00 | S128: 0.00 | T128: 0.00 | U128: 0.00 | V128: 0.00 | W128: 0.00 | X128: 0.00 | Y128: 0.00 | Z128: 428,675.80 | AA128: 159,491.50 | AB128: 201,852.10 | AC128: 155,601.80 | AD128: 0.00 | AE128: 0.00 | AF128: 570,898.30 | AG128: 419,239.40 | AH128: 0.00 | AI128: 5,292.65 | AJ128: 0.00 | AK128: 0.00 | AL128: 0.00 | AM128: 0.00 | AN128: 0.00 | AO128: 0.00 | AP128: 0.00 | AQ128: 0.00 | AR128: 57,050.00 | AS128: 0.00 | AT128: 0.00 | AU128: 0.00 | AV128: 79,548.30 | AW128: 0.00 | AX128: 0.00 | AY128: 0.00 | AZ128: 0.00 | BA128: 0.00 | BB128: 0.00 | BC128: 0.00 | BD128: 0.00 | BE128: 0.00 | BF128: 2,079,314.85 | BG128: 1,665.00 | BH128: 1,941,051.55 | BI128: 136,598.30
C129: 470 | D129: Subventions à redistribuer des collectivités publiques et de tiers | E129: 0.00 | F129: 0.00 | G129: 0.00 | H129: 0.00 | I129: 0.00 | J129: 0.00 | K129: 0.00 | L129: 0.00 | M129: 1,665.00 | N129: 0.00 | O129: 0.00 | P129: 0.00 | Q129: 0.00 | R129: 0.00 | S129: 0.00 | T129: 0.00 | U129: 0.00 | V129: 0.00 | W129: 0.00 | X129: 0.00 | Y129: 0.00 | Z129: 428,675.80 | AA129: 159,491.50 | AB129: 201,852.10 | AC129: 155,601.80 | AD129: 0.00 | AE129: 0.00 | AF129: 570,898.30 | AG129: 419,239.40 | AH129: 0.00 | AI129: 5,292.65 | AJ129: 0.00 | AK129: 0.00 | AL129: 0.00 | AM129: 0.00 | AN129: 0.00 | AO129: 0.00 | AP129: 0.00 | AQ129: 0.00 | AR129: 57,050.00 | AS129: 0.00 | AT129: 0.00 | AU129: 0.00 | AV129: 79,548.30 | AW129: 0.00 | AX129: 0.00 | AY129: 0.00 | AZ129: 0.00 | BA129: 0.00 | BB129: 0.00 | BC129: 0.00 | BD129: 0.00 | BE129: 0.00 | BF129: =SUM(E129:BE129) -> 2,079,314.85 | BG129: =SUM(E129:W129) -> 1,665.00 | BH129: =SUM(X129:AJ129) -> 1,941,051.55 | BI129: =SUM(AK129:BE129) -> 136,598.30
B131: 48 | D131: Revenus extraordinaires | E131: =E132+E133+E134+E135+E136+E137+E138 -> 0.00 | F131: =F132+F133+F134+F135+F136+F137+F138 -> 0.00 | G131: 0.00 | H131: 0.00 | I131: 300,000.00 | J131: 28,320.00 | K131: 1,254.78 | L131: 1,100,000.00 | M131: 40,000.00 | N131: 0.00 | O131: 27,861.30 | P131: 0.00 | Q131: 20,000.00 | R131: 0.00 | S131: 0.00 | T131: 9,694.95 | U131: 0.00 | V131: 0.00 | W131: 0.00 | X131: 0.00 | Y131: 0.00 | Z131: 0.00 | AA131: 0.00 | AB131: 0.00 | AC131: 213,946.32 | AD131: 161,133.50 | AE131: 13.70 | AF131: 0.00 | AG131: 0.00 | AH131: 0.00 | AI131: 0.00 | AJ131: 0.00 | AK131: 0.00 | AL131: 0.00 | AM131: 0.00 | AN131: 0.00 | AO131: 0.00 | AP131: 0.00 | AQ131: 0.00 | AR131: 0.00 | AS131: 0.00 | AT131: 65,591.15 | AU131: 0.00 | AV131: 425,359.00 | AW131: 0.00 | AX131: 20,000.00 | AY131: 0.00 | AZ131: 0.00 | BA131: 0.00 | BB131: 0.00 | BC131: 1.00 | BD131: 154,000.00 | BE131: 0.00 | BF131: 2,567,175.70 | BG131: 1,527,131.03 | BH131: 375,093.52 | BI131: 664,951.15
C132: 481 | D132: Revenus extraordinaires de patentes et de concessions | E132: 0.00 | F132: 0.00 | G132: 0.00 | H132: 0.00 | I132: 0.00 | J132: 0.00 | K132: 0.00 | L132: 0.00 | M132: 0.00 | N132: 0.00 | O132: 0.00 | P132: 0.00 | Q132: 0.00 | R132: 0.00 | S132: 0.00 | T132: 0.00 | U132: 0.00 | V132: 0.00 | W132: 0.00 | X132: 0.00 | Y132: 0.00 | Z132: 0.00 | AA132: 0.00 | AB132: 0.00 | AC132: 0.00 | AD132: 0.00 | AE132: 0.00 | AF132: 0.00 | AG132: 0.00 | AH132: 0.00 | AI132: 0.00 | AJ132: 0.00 | AK132: 0.00 | AL132: 0.00 | AM132: 0.00 | AN132: 0.00 | AO132: 0.00 | AP132: 0.00 | AQ132: 0.00 | AR132: 0.00 | AS132: 0.00 | AT132: 0.00 | AU132: 0.00 | AV132: 0.00 | AW132: 0.00 | AX132: 0.00 | AY132: 0.00 | AZ132: 0.00 | BA132: 0.00 | BB132: 0.00 | BC132: 0.00 | BD132: 0.00 | BE132: 0.00 | BF132: =SUM(E132:BE132) -> 0.00 | BG132: =SUM(E132:W132) -> 0.00 | BH132: =SUM(X132:AJ132) -> 0.00 | BI132: =SUM(AK132:BE132) -> 0.00
C133: 482 | D133: Contributions extraordinaires | E133: 0.00 | F133: 0.00 | G133: 0.00 | H133: 0.00 | I133: 0.00 | J133: 0.00 | K133: 0.00 | L133: 0.00 | M133: 0.00 | N133: 0.00 | O133: 0.00 | P133: 0.00 | Q133: 0.00 | R133: 0.00 | S133: 0.00 | T133: 0.00 | U133: 0.00 | V133: 0.00 | W133: 0.00 | X133: 0.00 | Y133: 0.00 | Z133: 0.00 | AA133: 0.00 | AB133: 0.00 | AC133: 0.00 | AD133: 10,000.00 | AE133: 0.00 | AF133: 0.00 | AG133: 0.00 | AH133: 0.00 | AI133: 0.00 | AJ133: 0.00 | AK133: 0.00 | AL133: 0.00 | AM133: 0.00 | AN133: 0.00 | AO133: 0.00 | AP133: 0.00 | AQ133: 0.00 | AR133: 0.00 | AS133: 0.00 | AT133: 0.00 | AU133: 0.00 | AV133: 0.00 | AW133: 0.00 | AX133: 0.00 | AY133: 0.00 | AZ133: 0.00 | BA133: 0.00 | BB133: 0.00 | BC133: 0.00 | BD133: 0.00 | BE133: 0.00 | BF133: 10,000.00 | BG133: 0.00 | BH133: 10,000.00 | BI133: 0.00
C134: 483 | D134: Revenus divers extraordinaires | E134: 0.00 | F134: 0.00 | G134: 0.00 | H134: 0.00 | I134: 0.00 | J134: 28,320.00 | K134: 0.00 | L134: 0.00 | M134: 0.00 | N134: 0.00 | O134: 0.00 | P134: 0.00 | Q134: 0.00 | R134: 0.00 | S134: 0.00 | T134: 9,694.95 | U134: 0.00 | V134: 0.00 | W134: 0.00 | X134: 0.00 | Y134: 0.00 | Z134: 0.00 | AA134: 0.00 | AB134: 0.00 | AC134: 0.00 | AD134: 0.00 | AE134: 0.00 | AF134: 0.00 | AG134: 0.00 | AH134: 0.00 | AI134: 0.00 | AJ134: 0.00 | AK134: 0.00 | AL134: 0.00 | AM134: 0.00 | AN134: 0.00 | AO134: 0.00 | AP134: 0.00 | AQ134: 0.00 | AR134: 0.00 | AS134: 0.00 | AT134: 0.00 | AU134: 0.00 | AV134: 0.00 | AW134: 0.00 | AX134: 0.00 | AY134: 0.00 | AZ134: 0.00 | BA134: 0.00 | BB134: 0.00 | BC134: 0.00 | BD134: 0.00 | BE134: 0.00 | BF134: 38,014.95 | BG134: 38,014.95 | BH134: 0.00 | BI134: 0.00
C135: 484 | D135: Revenus financiers extraordinaires | E135: 0.00 | F135: 0.00 | G135: 0.00 | H135: 0.00 | I135: 0.00 | J135: 0.00 | K135: 1,254.78 | L135: 0.00 | M135: 0.00 | N135: 0.00 | O135: 25,383.00 | P135: 0.00 | Q135: 0.00 | R135: 0.00 | S135: 0.00 | T135: 0.00 | U135: 0.00 | V135: 0.00 | W135: 0.00 | X135: 0.00 | Y135: 0.00 | Z135: 0.00 | AA135: 0.00 | AB135: 0.00 | AC135: 7,475.00 | AD135: 0.00 | AE135: 13.70 | AF135: 0.00 | AG135: 0.00 | AH135: 0.00 | AI135: 0.00 | AJ135: 0.00 | AK135: 0.00 | AL135: 0.00 | AM135: 0.00 | AN135: 0.00 | AO135: 0.00 | AP135: 0.00 | AQ135: 0.00 | AR135: 0.00 | AS135: 0.00 | AT135: 15,591.15 | AU135: 0.00 | AV135: 0.00 | AW135: 0.00 | AX135: 0.00 | AY135: 0.00 | AZ135: 0.00 | BA135: 0.00 | BB135: 0.00 | BC135: 0.00 | BD135: 154,000.00 | BE135: 0.00 | BF135: 203,717.63 | BG135: 26,637.78 | BH135: 7,488.70 | BI135: 169,591.15
C136: 485 | D136: Prélèvements extraordinaires sur les financements spéciaux | E136: 0.00 | F136: 0.00 | G136: 0.00 | I136: 0.00 | J136: 0.00 | K136: 0.00 | L136: 0.00 | M136: 0.00 | N136: 0.00 | O136: 0.00 | P136: 0.00 | Q136: 0.00 | R136: 0.00 | S136: 0.00 | T136: 0.00 | U136: 0.00 | V136: 0.00 | W136: 0.00 | X136: 0.00 | Y136: 0.00 | Z136: 0.00 | AA136: 0.00 | AB136: 0.00 | AC136: 0.00 | AD136: 0.00 | AE136: 0.00 | AF136: 0.00 | AG136: 0.00 | AH136: 0.00 | AI136: 0.00 | AJ136: 0.00 | AK136: 0.00 | AL136: 0.00 | AM136: 0.00 | AN136: 0.00 | AO136: 0.00 | AP136: 0.00 | AQ136: 0.00 | AR136: 0.00 | AS136: 0.00 | AT136: 0.00 | AU136: 0.00 | AV136: 0.00 | AW136: 0.00 | AX136: 0.00 | AY136: 0.00 | AZ136: 0.00 | BA136: 0.00 | BB136: 0.00 | BC136: 0.00 | BD136: 0.00 | BE136: 0.00 | BF136: 0.00 | BG136: 0.00 | BH136: 0.00 | BI136: 0.00
C137: 486 | D137: Parts aux revenus extraordinaires de transferts des collectivités et tiers | E137: 0.00 | F137: 0.00 | G137: 0.00 | H137: 0.00 | I137: 0.00 | J137: 0.00 | K137: 0.00 | L137: 0.00 | M137: 0.00 | N137: 0.00 | O137: 0.00 | P137: 0.00 | Q137: 0.00 | R137: 0.00 | S137: 0.00 | T137: 0.00 | U137: 0.00 | V137: 0.00 | W137: 0.00 | X137: 0.00 | Y137: 0.00 | Z137: 0.00 | AA137: 0.00 | AB137: 0.00 | AC137: 0.00 | AD137: 0.00 | AE137: 0.00 | AF137: 0.00 | AG137: 0.00 | AH137: 0.00 | AI137: 0.00 | AJ137: 0.00 | AK137: 0.00 | AL137: 0.00 | AM137: 0.00 | AN137: 0.00 | AO137: 0.00 | AP137: 0.00 | AQ137: 0.00 | AR137: 0.00 | AS137: 0.00 | AT137: 0.00 | AU137: 0.00 | AV137: 0.00 | AW137: 0.00 | AX137: 0.00 | AY137: 0.00 | AZ137: 0.00 | BA137: 0.00 | BB137: 0.00 | BC137: 0.00 | BD137: 0.00 | BE137: 0.00 | BF137: 0.00 | BG137: 0.00 | BH137: 0.00 | BI137: 0.00
C138: 489 | D138: Prélèvement sur le capital propre | E138: 0.00 | F138: 0.00 | G138: 0.00 | H138: 0.00 | I138: 300,000.00 | J138: 0.00 | K138: 0.00 | L138: 1,100,000.00 | M138: 40,000.00 | N138: 0.00 | O138: 2,478.30 | P138: 0.00 | Q138: 20,000.00 | R138: 0.00 | S138: 0.00 | T138: 0.00 | U138: 0.00 | V138: 0.00 | W138: 0.00 | X138: 0.00 | Y138: 0.00 | Z138: 0.00 | AA138: 0.00 | AB138: 0.00 | AC138: 206,471.32 | AD138: 151,133.50 | AE138: 0.00 | AF138: 0.00 | AG138: 0.00 | AH138: 0.00 | AI138: 0.00 | AJ138: 0.00 | AK138: 0.00 | AL138: 0.00 | AM138: 0.00 | AN138: 0.00 | AO138: 0.00 | AP138: 0.00 | AQ138: 0.00 | AR138: 0.00 | AS138: 0.00 | AT138: 50,000.00 | AU138: 0.00 | AV138: 425,359.00 | AW138: 0.00 | AX138: 20,000.00 | AY138: 0.00 | AZ138: 0.00 | BA138: 0.00 | BB138: 0.00 | BC138: 1.00 | BD138: 0.00 | BE138: 0.00 | BF138: 2,315,443.12 | BG138: 1,462,478.30 | BH138: 357,604.82 | BI138: 495,360.00
B140: 49 | D140: Imputations internes | E140: =E141+E142+E143+E144+E145+E146+E147+E148 -> 48,926.00 | F140: =F141+F142+F143+F144+F145+F146+F147+F148 -> 31,349.99 | G140: 2,814.40 | H140: 31,545.85 | I140: 309,300.00 | J140: 59,158.00 | K140: 165,757.75 | L140: 6,430,531.94 | M140: 99,719.41 | N140: 0.00 | O140: 63,120.00 | P140: 35,547.95 | Q140: 0.00 | R140: 22,300.00 | S140: 0.00 | T140: 6,500.00 | U140: 0.00 | V140: 60,358.10 | W140: 286,000.15 | X140: 0.00 | Y140: 0.00 | Z140: 0.00 | AA140: 24,713.15 | AB140: 0.00 | AC140: 26,841.70 | AD140: 120,062.50 | AE140: 87,127.35 | AF140: 69,667.45 | AG140: 5,506.70 | AH140: 28,100.00 | AI140: 0.00 | AJ140: 1,051.15 | AK140: 16,350.00 | AL140: 59,318.75 | AM140: 3,700.00 | AN140: 0.00 | AO140: 41,758.80 | AP140: 93,043.10 | AQ140: 0.00 | AR140: 0.00 | AS140: 59,398.05 | AT140: 0.00 | AU140: 10,800.00 | AV140: 38,252.00 | AW140: 0.00 | AX140: 7,348.80 | AY140: 0.00 | AZ140: 152,452.60 | BA140: 0.00 | BB140: 46,154.88 | BC140: 0.00 | BD140: 0.00 | BE140: 15,500.00 | BF140: 8,560,076.52 | BG140: 7,652,929.54 | BH140: 363,070.00 | BI140: 544,076.98
C141: 490 | D141: Approvisionnement en matériel et en marchandises | E141: 0.00 | F141: 200.00 | G141: 0.00 | H141: 0.00 | I141: 0.00 | J141: 0.00 | K141: 0.00 | L141: 30,000.00 | M141: 1,200.00 | N141: 0.00 | O141: 0.00 | P141: 0.00 | Q141: 0.00 | R141: 0.00 | S141: 0.00 | T141: 0.00 | U141: 0.00 | V141: 0.00 | W141: 3,000.00 | X141: 0.00 | Y141: 0.00 | Z141: 0.00 | AA141: 113.15 | AB141: 0.00 | AC141: 0.00 | AD141: 1,250.00 | AE141: 0.00 | AF141: 0.00 | AG141: 3,468.15 | AH141: 0.00 | AI141: 0.00 | AJ141: 0.00 | AK141: 0.00 | AL141: 0.00 | AM141: 0.00 | AN141: 0.00 | AO141: 0.00 | AP141: 800.00 | AQ141: 0.00 | AR141: 0.00 | AS141: 0.00 | AT141: 0.00 | AU141: 0.00 | AV141: 0.00 | AW141: 0.00 | AX141: 0.00 | AY141: 0.00 | AZ141: 0.00 | BA141: 0.00 | BB141: 0.00 | BC141: 0.00 | BD141: 0.00 | BE141: 0.00 | BF141: =SUM(E141:BE141) -> 40,031.30 | BG141: =SUM(E141:W141) -> 34,400.00 | BH141: =SUM(X141:AJ141) -> 4,831.30 | BI141: =SUM(AK141:BE141) -> 800.00
C142: 491 | D142: Prestations de services | E142: 48,926.00 | F142: 6,201.55 | G142: 0.00 | H142: 31,189.85 | I142: 309,300.00 | J142: 59,158.00 | K142: 128,170.00 | L142: 1,132,234.15 | M142: 55,922.40 | N142: 0.00 | O142: 0.00 | P142: 35,547.95 | Q142: 0.00 | R142: 22,300.00 | S142: 0.00 | T142: 6,500.00 | U142: 0.00 | V142: 60,358.10 | W142: 88,799.00 | X142: 0.00 | Y142: 0.00 | Z142: 0.00 | AA142: 24,600.00 | AB142: 0.00 | AC142: 26,841.70 | AD142: 79,700.15 | AE142: 87,127.35 | AF142: 69,667.45 | AG142: 2,038.55 | AH142: 28,100.00 | AI142: 0.00 | AJ142: 0.00 | AK142: 16,350.00 | AL142: 0.00 | AM142: 3,700.00 | AN142: 0.00 | AO142: 41,758.80 | AP142: 55,208.95 | AQ142: 0.00 | AR142: 0.00 | AS142: 48,767.80 | AT142: 0.00 | AU142: 10,800.00 | AV142: 38,252.00 | AW142: 0.00 | AX142: 0.00 | AY142: 0.00 | AZ142: 148,952.60 | BA142: 0.00 | BB142: 46,154.88 | BC142: 0.00 | BD142: 0.00 | BE142: 15,500.00 | BF142: 2,728,127.23 | BG142: 1,984,607.00 | BH142: 318,075.20 | BI142: 425,445.03
C143: 492 | D143: Fermages, loyers et frais d'utilisation | E143: 0.00 | F143: 0.00 | G143: 0.00 | H143: 0.00 | I143: 0.00 | J143: 0.00 | K143: 0.00 | L143: 110,000.00 | M143: 0.00 | N143: 0.00 | O143: 0.00 | P143: 0.00 | Q143: 0.00 | R143: 0.00 | S143: 0.00 | T143: 0.00 | U143: 0.00 | V143: 0.00 | W143: 6,400.00 | X143: 0.00 | Y143: 0.00 | Z143: 0.00 | AA143: 0.00 | AB143: 0.00 | AC143: 0.00 | AD143: 0.00 | AE143: 0.00 | AF143: 0.00 | AG143: 0.00 | AH143: 0.00 | AI143: 0.00 | AJ143: 0.00 | AK143: 0.00 | AL143: 0.00 | AM143: 0.00 | AN143: 0.00 | AO143: 0.00 | AP143: 0.00 | AQ143: 0.00 | AR143: 0.00 | AS143: 0.00 | AT143: 0.00 | AU143: 0.00 | AV143: 0.00 | AW143: 0.00 | AX143: 0.00 | AY143: 0.00 | AZ143: 0.00 | BA143: 0.00 | BB143: 0.00 | BC143: 0.00 | BD143: 0.00 | BE143: 0.00 | BF143: 116,400.00 | BG143: 116,400.00 | BH143: 0.00 | BI143: 0.00
C144: 493 | D144: Frais administratifs et d'exploitations | E144: 0.00 | F144: 0.00 | G144: 0.00 | H144: 0.00 | I144: 0.00 | J144: 0.00 | K144: 11,206.00 | L144: 32,269.50 | M144: 0.00 | N144: 0.00 | O144: 0.00 | P144: 0.00 | Q144: 0.00 | R144: 0.00 | S144: 0.00 | T144: 0.00 | U144: 0.00 | V144: 0.00 | W144: 10,000.00 | X144: 0.00 | Y144: 0.00 | Z144: 0.00 | AA144: 0.00 | AB144: 0.00 | AC144: 0.00 | AD144: 39,112.35 | AE144: 0.00 | AF144: 0.00 | AG144: 0.00 | AH144: 0.00 | AI144: 0.00 | AJ144: 0.00 | AK144: 0.00 | AL144: 0.00 | AM144: 0.00 | AN144: 0.00 | AO144: 0.00 | AP144: 0.00 | AQ144: 0.00 | AR144: 0.00 | AS144: 2,619.40 | AT144: 0.00 | AU144: 0.00 | AV144: 0.00 | AW144: 0.00 | AX144: 0.00 | AY144: 0.00 | AZ144: 0.00 | BA144: 0.00 | BB144: 0.00 | BC144: 0.00 | BD144: 0.00 | BE144: 0.00 | BF144: 95,207.25 | BG144: 53,475.50 | BH144: 39,112.35 | BI144: 2,619.40
C145: 494 | D145: Intérêts et charges financières théoriques | E145: 0.00 | F145: 24,948.44 | G145: 2,814.40 | H145: 0.00 | I145: 0.00 | J145: 0.00 | K145: 26,381.75 | L145: 714,657.00 | M145: 42,597.01 | N145: 0.00 | O145: 63,120.00 | P145: 0.00 | Q145: 0.00 | R145: 0.00 | S145: 0.00 | T145: 0.00 | U145: 0.00 | V145: 0.00 | W145: 174,801.15 | X145: 0.00 | Y145: 0.00 | Z145: 0.00 | AA145: 0.00 | AB145: 0.00 | AC145: 0.00 | AD145: 0.00 | AE145: 0.00 | AF145: 0.00 | AG145: 0.00 | AH145: 0.00 | AI145: 0.00 | AJ145: 1,051.15 | AK145: 0.00 | AL145: 59,318.75 | AM145: 0.00 | AN145: 0.00 | AO145: 0.00 | AP145: 37,034.15 | AQ145: 0.00 | AR145: 0.00 | AS145: 8,010.85 | AT145: 0.00 | AU145: 0.00 | AV145: 0.00 | AW145: 0.00 | AX145: 7,348.80 | AY145: 0.00 | AZ145: 0.00 | BA145: 0.00 | BB145: 0.00 | BC145: 0.00 | BD145: 0.00 | BE145: 0.00 | BF145: 1,162,083.45 | BG145: 1,049,319.75 | BH145: 1,051.15 | BI145: 111,712.55
C146: 495 | D146: Amortissements planifiés et non planifiés | E146: 0.00 | F146: 0.00 | G146: 0.00 | H146: 356.00 | I146: 0.00 | J146: 0.00 | K146: 0.00 | L146: 0.00 | M146: 0.00 | N146: 0.00 | O146: 0.00 | P146: 0.00 | Q146: 0.00 | R146: 0.00 | S146: 0.00 | T146: 0.00 | U146: 0.00 | V146: 0.00 | W146: 0.00 | X146: 0.00 | Y146: 0.00 | Z146: 0.00 | AA146: 0.00 | AB146: 0.00 | AC146: 0.00 | AD146: 0.00 | AE146: 0.00 | AF146: 0.00 | AG146: 0.00 | AH146: 0.00 | AI146: 0.00 | AJ146: 0.00 | AK146: 0.00 | AL146: 0.00 | AM146: 0.00 | AN146: 0.00 | AO146: 0.00 | AP146: 0.00 | AQ146: 0.00 | AR146: 0.00 | AS146: 0.00 | AT146: 0.00 | AU146: 0.00 | AV146: 0.00 | AW146: 0.00 | AX146: 0.00 | AY146: 0.00 | AZ146: 0.00 | BA146: 0.00 | BB146: 0.00 | BC146: 0.00 | BD146: 0.00 | BE146: 0.00 | BF146: 356.00 | BG146: 356.00 | BH146: 0.00 | BI146: 0.00
C147: 498 | D147: Virements comptables | E147: 0.00 | F147: 0.00 | G147: 0.00 | H147: 0.00 | I147: 0.00 | J147: 0.00 | K147: 0.00 | L147: 2,465,786.81 | M147: 0.00 | N147: 0.00 | O147: 0.00 | P147: 0.00 | Q147: 0.00 | R147: 0.00 | S147: 0.00 | T147: 0.00 | U147: 0.00 | V147: 0.00 | W147: 0.00 | X147: 0.00 | Y147: 0.00 | Z147: 0.00 | AA147: 0.00 | AB147: 0.00 | AC147: 0.00 | AD147: 0.00 | AE147: 0.00 | AF147: 0.00 | AG147: 0.00 | AH147: 0.00 | AI147: 0.00 | AJ147: 0.00 | AK147: 0.00 | AL147: 0.00 | AM147: 0.00 | AN147: 0.00 | AO147: 0.00 | AP147: 0.00 | AQ147: 0.00 | AR147: 0.00 | AS147: 0.00 | AT147: 0.00 | AU147: 0.00 | AV147: 0.00 | AW147: 0.00 | AX147: 0.00 | AY147: 0.00 | AZ147: 0.00 | BA147: 0.00 | BB147: 0.00 | BC147: 0.00 | BD147: 0.00 | BE147: 0.00 | BF147: 2,465,786.81 | BG147: 2,465,786.81 | BH147: 0.00 | BI147: 0.00
C148: 499 | D148: Autres imputations internes | E148: 0.00 | F148: 0.00 | G148: 0.00 | H148: 0.00 | I148: 0.00 | K148: 0.00 | L148: 1,945,584.48 | M148: 0.00 | N148: 0.00 | O148: 0.00 | P148: 0.00 | Q148: 0.00 | R148: 0.00 | S148: 0.00 | T148: 0.00 | U148: 0.00 | V148: 0.00 | W148: 3,000.00 | X148: 0.00 | Y148: 0.00 | Z148: 0.00 | AA148: 0.00 | AB148: 0.00 | AC148: 0.00 | AD148: 0.00 | AE148: 0.00 | AF148: 0.00 | AG148: 0.00 | AH148: 0.00 | AI148: 0.00 | AJ148: 0.00 | AK148: 0.00 | AL148: 0.00 | AM148: 0.00 | AN148: 0.00 | AO148: 0.00 | AP148: 0.00 | AQ148: 0.00 | AR148: 0.00 | AS148: 0.00 | AT148: 0.00 | AU148: 0.00 | AV148: 0.00 | AW148: 0.00 | AX148: 0.00 | AY148: 0.00 | AZ148: 3,500.00 | BA148: 0.00 | BB148: 0.00 | BC148: 0.00 | BD148: 0.00 | BE148: 0.00 | BF148: 1,952,084.48 | BG148: 1,948,584.48 | BH148: 0.00 | BI148: 3,500.00
P149: 0.00 | AR149: 0.00 | AV149: 0.00 | AW149: 0.00 | AY149: 0.00
A152: 9 | D152: Comptes de clôture
B153: 90 | D153: Clôture du compte de résultats | E153: =E154+E155 -> 338,069.00 | F153: =F154+F155 -> 183,367.53 | G153: -29,321.28 | H153: 21,653.66 | I153: 461,623.63 | J153: 1,051,215.94 | K153: 253,856.48 | L153: 2,089,673.18 | M153: -1,352.86 | N153: -63,918.92 | O153: -1,177,403.47 | P153: -93,731.80 | Q153: -9,460.81 | R153: -16,853.58 | S153: -13,071.37 | T153: 262,757.42 | U153: 9,048.71 | V153: -152,377.16 | W153: 364,711.41 | X153: 26,286.14 | Y153: 178,997.68 | Z153: 3,517,719.99 | AA153: -11,170.27 | AB153: 41,421.78 | AC153: -114,596.97 | AD153: -99,000.46 | AE153: -194,273.68 | AF153: 122,538.76 | AG153: 1,107,210.30 | AH153: 243,887.35 | AI153: -5,355.96 | AJ153: 22,586.40 | AK153: 153,720.00 | AL153: -32,824.59 | AM153: -5,589.77 | AN153: 13,711.05 | AO153: 341,994.52 | AP153: 197,653.74 | AQ153: 23,915.77 | AR153: 50,671.79 | AS153: 52,551.10 | AT153: 35,118.03 | AU153: 112,815.42 | AV153: -268,507.58 | AW153: -9,064.03 | AX153: 29,819.60 | AY153: 73,689.05 | AZ153: 79,042.83 | BA153: 160,878.05 | BB153: 192,186.95 | BC153: -14,911.23 | BD153: 1,253,727.51 | BE153: 49,199.93 | BF153: 10,804,534.91 | BG153: 3,478,485.71 | BH153: 4,836,251.06 | BI153: 2,489,798.14
C154: 900 | D154: Compte général (+ / -) | E154: 6,015.15 | F154: 149,441.67 | G154: -35,747.06 | H154: 21,653.66 | I154: -197,032.69 | J154: 643,336.21 | K154: 33,519.97 | L154: -574,634.73 | M154: -144,001.48 | N154: -63,918.92 | O154: -1,449,255.52 | P154: -93,731.80 | Q154: -28,876.52 | R154: -40,565.49 | S154: -162,663.04 | T154: 81,234.89 | U154: -1,983.29 | V154: -151,807.10 | W154: 8,997.45 | X154: 15,146.84 | Y154: 94,732.18 | Z154: 3,333,844.90 | AA154: -13,900.02 | AB154: -8,071.54 | AC154: -115,008.95 | AD154: -169,604.71 | AE154: -167,058.57 | AF154: 27,072.70 | AG154: 902,636.72 | AH154: 21,604.95 | AI154: -7,331.51 | AJ154: -28,280.90 | AK154: 92,720.00 | AL154: -32,824.59 | AM154: -97,730.00 | AN154: 8,760.22 | AO154: 313,035.14 | AP154: 163,646.92 | AQ154: 39,059.13 | AR154: 21,784.22 | AS154: 8,665.52 | AT154: -30,052.95 | AU154: 81,088.70 | AV154: -430,556.03 | AW154: -41,819.94 | AX154: 10,076.97 | AY154: 26,132.85 | AZ154: 40,793.43 | BA154: 24,133.40 | BB154: 52,053.97 | BC154: -17,187.81 | BD154: 189,954.45 | BE154: 7,796.33 | BF154: =SUM(E154:BE154) -> 2,315,293.38 | BG154: =SUM(E154:W154) -> -2,000,018.64 | BH154: =SUM(X154:AJ154) -> 3,885,782.09 | BI154: =SUM(AK154:BE154) -> 429,529.93
C155: 901 | D155: Financements spéciaux (+ / -) | E155: 332,053.85 | F155: 33,925.86 | G155: 6,425.78 | H155: 0.00 | I155: 658,656.32 | J155: 407,879.73 | K155: 220,336.51 | L155: 2,664,307.91 | M155: 142,648.62 | N155: 0.00 | O155: 271,852.05 | P155: 0.00 | Q155: 19,415.71 | R155: 23,711.91 | S155: 149,591.67 | T155: 181,522.53 | U155: 11,032.00 | V155: -570.06 | W155: 355,713.96 | X155: 11,139.30 | Y155: 84,265.50 | Z155: 183,875.09 | AA155: 2,729.75 | AB155: 49,493.32 | AC155: 411.98 | AD155: 70,604.25 | AE155: -27,215.11 | AF155: 95,466.06 | AG155: 204,573.58 | AH155: 222,282.40 | AI155: 1,975.55 | AJ155: 50,867.30 | AK155: 61,000.00 | AL155: 0.00 | AM155: 92,140.23 | AN155: 4,950.83 | AO155: 28,959.38 | AP155: 34,006.82 | AQ155: -15,143.36 | AR155: 28,887.57 | AS155: 43,885.58 | AT155: 65,170.98 | AU155: 31,726.72 | AV155: 162,048.45 | AW155: 32,755.91 | AX155: 19,742.63 | AY155: 47,556.20 | AZ155: 38,249.40 | BA155: 136,744.65 | BB155: 140,132.98 | BC155: 2,276.58 | BD155: 1,063,773.06 | BE155: 41,403.60 | BF155: 8,489,241.53 | BG155: 5,478,504.35 | BH155: 950,468.97 | BI155: 2,060,268.21
D157: Résultat global | E157: =E154+E155 -> 338,069.00 | F157: =F154+F155 -> 183,367.53 | G157: -29,321.28 | H157: 21,653.66 | I157: 461,623.63 | J157: 1,051,215.94 | K157: 253,856.48 | L157: 2,089,673.18 | M157: -1,352.86 | N157: -63,918.92 | O157: -1,177,403.47 | P157: -93,731.80 | Q157: -9,460.81 | R157: -16,853.58 | S157: -13,071.37 | T157: 262,757.42 | U157: 9,048.71 | V157: -152,377.16 | W157: 364,711.41 | X157: 26,286.14 | Y157: 178,997.68 | Z157: 3,517,719.99 | AA157: -11,170.27 | AB157: 41,421.78 | AC157: -114,596.97 | AD157: -99,000.46 | AE157: -194,273.68 | AF157: 122,538.76 | AG157: 1,107,210.30 | AH157: 243,887.35 | AI157: -5,355.96 | AJ157: 22,586.40 | AK157: 153,720.00 | AL157: -32,824.59 | AM157: -5,589.77 | AN157: 13,711.05 | AO157: 341,994.52 | AP157: 197,653.74 | AQ157: 23,915.77 | AR157: 50,671.79 | AS157: 52,551.10 | AT157: 35,118.03 | AU157: 112,815.42 | AV157: -268,507.58 | AW157: -9,064.03 | AX157: 29,819.60 | AY157: 73,689.05 | AZ157: 79,042.83 | BA157: 160,878.05 | BB157: 192,186.95 | BC157: -14,911.23 | BD157: 1,253,727.51 | BE157: 49,199.93 | BF157: 10,804,534.91 | BG157: 3,478,485.71 | BH157: 4,836,251.06 | BI157: 2,489,798.14
E159: =E75-E4 -> 338,069.00 | F159: 183,367.53 | G159: -29,321.28 | H159: 21,653.66 | I159: 461,623.63 | J159: 1,051,215.94 | K159: 253,856.48 | L159: 2,089,673.18 | M159: -1,352.86 | N159: -63,918.92 | O159: -1,177,403.47 | P159: -93,731.80 | Q159: -9,460.81 | R159: -16,853.58 | S159: -13,071.37 | T159: 262,757.42 | U159: 9,048.71 | V159: -152,377.16 | W159: 364,711.41 | X159: 26,286.14 | Y159: 178,997.68 | Z159: 3,517,719.99 | AA159: -11,170.27 | AB159: 41,421.78 | AC159: -114,596.97 | AD159: -99,000.46 | AE159: -194,273.68 | AF159: 122,538.76 | AG159: 1,107,210.30 | AH159: 243,887.35 | AI159: -5,355.96 | AJ159: 22,586.40 | AK159: =AK75-AK4 -> 153,720.00 | AL159: -32,824.59 | AM159: -5,589.77 | AN159: 13,711.05 | AO159: 341,994.52 | AP159: 197,653.74 | AQ159: 23,915.77 | AR159: 50,671.79 | AS159: 52,551.10 | AT159: 35,118.03 | AU159: 112,815.42 | AV159: -268,507.58 | AW159: -9,064.03 | AX159: 29,819.60 | AY159: 73,689.05 | AZ159: 79,042.83 | BA159: 160,878.05 | BB159: 192,186.95 | BC159: -14,911.23 | BD159: 1,253,727.51 | BE159: 49,199.93 | BF159: 10,804,534.91 | BG159: 3,478,485.71 | BH159: 4,836,251.06 | BI159: 2,489,798.14
D160: Contrôle | E160: =E157-E159 -> -0.00 | F160: -0.00 | G160: -0.00 | H160: -0.00 | I160: -0.00 | J160: 0.00 | K160: -0.00 | L160: -0.00 | M160: -0.00 | N160: 0.00 | O160: 0.00 | P160: 0.00 | Q160: 0.00 | R160: -0.00 | S160: 0.00 | T160: 0.00 | U160: 0.00 | V160: 0.00 | W160: 0.00 | X160: -0.00 | Y160: 0.00 | Z160: 0.00 | AA160: 0.00 | AB160: 0.00 | AC160: 0.00 | AD160: 0.00 | AE160: -0.00 | AF160: 0.00 | AG160: -0.00 | AH160: 0.00 | AI160: -0.00 | AJ160: 0.00 | AK160: =AK157-AK159 -> -0.00 | AL160: 0.00 | AM160: 0.00 | AN160: 0.00 | AO160: -0.00 | AP160: -0.00 | AQ160: 0.00 | AR160: -0.00 | AS160: -0.00 | AT160: -0.00 | AU160: 0.00 | AV160: 0.00 | AW160: -0.00 | AX160: -0.00 | AY160: 0.00 | AZ160: 0.00 | BA160: 0.00 | BB160: 0.00 | BC160: 0.00 | BD160: 0.00 | BE160: -0.00 | BF160: 0.00 | BG160: -0.00 | BH160: 0.00 | BI160: 0.00
D162: Comptes supplémentaires pour les indicateurs financiers
C163: 4021 | D163: Impôts fonciers | E163: 136,818.10 | F163: 110605.35 | G163: 64,027.05 | H163: 87,134.65 | I163: 655,908.50 | J163: 433,702.35 | K163: 376,321.51 | L163: 2,923,006.55 | M163: 230,188.10 | N163: 193.70 | O163: 1,165,063.40 | P163: 140,796.80 | Q163: 19,138.60 | R163: 68,199.05 | S163: 76,902.30 | T163: 100,223.75 | U163: 40,995.15 | V163: 89,022.15 | W163: 587,588.75 | X163: 55,025.00 | Y163: 170,833.40 | Z163: 232,910.65 | AA163: 34,230.60 | AB163: 38,855.25 | AC163: 90,045.05 | AD163: 123,413.10 | AE163: 136,351.05 | AF163: 148,840.25 | AG163: 422,329.40 | AH163: 478,413.05 | AI163: 39,731.45 | AJ163: 66,017.50 | AK163: 445,116.75 | AL163: 292,567.55 | AM163: 200,641.45 | AN163: 25,863.70 | AO163: 274,845.70 | AP163: 139,690.73 | AQ163: 108,070.85 | AR163: 363845.15 | AS163: 200,635.00 | AT163: 225,327.35 | AU163: 41,130.70 | AV163: 230,891.35 | AW163: 165,820.50 | AX163: 46,406.05 | AY163: 88,950.35 | AZ163: 310,651.50 | BA163: 112,134.60 | BB163: 302,472.24 | BC163: 31,918.10 | BD163: 1,668,766.05 | BE163: 119,792.60 | BF163: =SUM(E163:BE163) -> 14,738,369.83 | BG163: =SUM(E163:W163) -> 7,305,835.81 | BH163: =SUM(X163:AJ163) -> 2,036,995.75 | BI163: =SUM(AK163:BE163) -> 5,395,538.27
C164: 4490 | D164: Revalorisation du PF | E164: 0.00 | F164: 0.00 | G164: 0.00 | H164: 0.00 | I164: 0.00 | J164: 0.00 | K164: 0.00 | L164: 0.00 | M164: 0.00 | N164: 0.00 | O164: 0.00 | P164: 0.00 | Q164: 0.00 | R164: 0.00 | S164: 0.00 | T164: 0.00 | U164: 0.00 | V164: 0.00 | W164: 0.00 | X164: 0.00 | Y164: 0.00 | Z164: 0.00 | AA164: 0.00 | AB164: 0.00 | AC164: 0.00 | AD164: 0.00 | AE164: 0.00 | AF164: 0.00 | AG164: 390.00 | AH164: 0.00 | AI164: 0.00 | AJ164: 0.00 | AK164: 0.00 | AL164: 0.00 | AM164: 0.00 | AN164: 0.00 | AO164: 0.00 | AP164: 0.00 | AQ164: 0.00 | AR164: 0.00 | AS164: 0.00 | AT164: 0.00 | AU164: 0.00 | AV164: 299,999.00 | AW164: 0.00 | AX164: 0.00 | AY164: 0.00 | AZ164: 0.00 | BA164: 0.00 | BB164: 0.00 | BC164: 0.00 | BD164: 0.00 | BE164: 0.00 | BF164: 300,389.00 | BG164: 0.00 | BH164: 390.00 | BI164: 299,999.00
C165: 46227 | D165: Péréquation financière horizontal | E165: 0.00 | F165: 0.00 | G165: 0.00 | H165: 0.00 | I165: 0.00 | J165: 0.00 | K165: 0.00 | L165: 0.00 | M165: 0.00 | N165: 0.00 | O165: 0.00 | P165: 0.00 | Q165: 0.00 | R165: 0.00 | S165: 0.00 | T165: 0.00 | U165: 0.00 | V165: 0.00 | W165: 0.00 | X165: 0.00 | Y165: 0.00 | Z165: 0.00 | AA165: 0.00 | AB165: 0.00 | AC165: 0.00 | AD165: 0.00 | AE165: 0.00 | AF165: 0.00 | AG165: 0.00 | AH165: 0.00 | AI165: 0.00 | AJ165: 0.00 | AK165: 0.00 | AL165: 0.00 | AM165: 0.00 | AN165: 0.00 | AO165: 0.00 | AP165: 0.00 | AQ165: 0.00 | AR165: 0.00 | AS165: 0.00 | AT165: 0.00 | AU165: 0.00 | AV165: 0.00 | AW165: 0.00 | AX165: 0.00 | AY165: 0.00 | AZ165: 0.00 | BA165: 0.00 | BB165: 0.00 | BC165: 0.00 | BD165: 0.00 | BE165: 0.00 | BF165: 0.00 | BG165: 0.00 | BH165: 0.00 | BI165: 0.00
C166: 46228 | D166: Contributions des communes-centres | E166: 0.00 | F166: 0.00 | G166: 0.00 | H166: 0.00 | I166: 0.00 | J166: 0.00 | K166: 0.00 | L166: 0.00 | M166: 0.00 | N166: 0.00 | O166: 0.00 | P166: 0.00 | Q166: 0.00 | R166: 0.00 | S166: 0.00 | T166: 0.00 | U166: 0.00 | V166: 0.00 | W166: 0.00 | X166: 0.00 | Y166: 0.00 | Z166: 0.00 | AA166: 0.00 | AB166: 0.00 | AC166: 0.00 | AD166: 0.00 | AE166: 0.00 | AF166: 0.00 | AG166: 0.00 | AH166: 0.00 | AI166: 0.00 | AJ166: 0.00 | AK166: 0.00 | AL166: 0.00 | AM166: 0.00 | AN166: 0.00 | AO166: 0.00 | AP166: 0.00 | AQ166: 0.00 | AR166: 0.00 | AS166: 0.00 | AT166: 0.00 | AU166: 0.00 | AV166: 0.00 | AW166: 0.00 | AX166: 0.00 | AY166: 0.00 | AZ166: 0.00 | BA166: 0.00 | BB166: 0.00 | BC166: 0.00 | BD166: 0.00 | BE166: 0.00 | BF166: 0.00 | BG166: 0.00 | BH166: 0.00 | BI166: 0.00
C167: 4896 | D167: Prélèvement sur la réserve liée à la réévaluation | E167: 0.00 | F167: 0.00 | G167: 0.00 | H167: 0.00 | I167: 0.00 | J167: 0.00 | K167: 0.00 | L167: 0.00 | M167: 0.00 | N167: 0.00 | O167: 0.00 | P167: 0.00 | Q167: 0.00 | R167: 0.00 | S167: 0.00 | T167: 0.00 | U167: 0.00 | V167: 0.00 | W167: 0.00 | X167: 0.00 | Y167: 0.00 | Z167: 0.00 | AA167: 0.00 | AB167: 0.00 | AC167: 0.00 | AD167: 0.00 | AE167: 0.00 | AF167: 0.00 | AG167: 0.00 | AH167: 0.00 | AI167: 0.00 | AJ167: 0.00 | AK167: 0.00 | AL167: 0.00 | AM167: 0.00 | AN167: 0.00 | AO167: 0.00 | AP167: 0.00 | AQ167: 0.00 | AR167: 0.00 | AS167: 0.00 | AT167: 0.00 | AU167: 0.00 | AV167: 0.00 | AW167: 0.00 | AX167: 0.00 | AY167: 0.00 | AZ167: 0.00 | BA167: 0.00 | BB167: 0.00 | BC167: 0.00 | BD167: 0.00 | BE167: 0.00 | BF167: 0.00 | BG167: 0.00 | BH167: 0.00 | BI167: 0.00
C168: 9000 | D168: Clôture du compte de résultats / excédent de produits | E168: 0.00 | F168: 0.00 | G168: 0.00 | H168: 0.00 | I168: 0.00 | J168: 0.00 | K168: 0.00 | L168: 0.00 | M168: 0.00 | N168: 0.00 | O168: 0.00 | P168: 0.00 | Q168: 0.00 | R168: 0.00 | S168: 0.00 | T168: 0.00 | U168: 0.00 | V168: 0.00 | W168: 0.00 | X168: 0.00 | Y168: 0.00 | Z168: 0.00 | AA168: 0.00 | AB168: 0.00 | AC168: 0.00 | AD168: 0.00 | AE168: 0.00 | AF168: 0.00 | AG168: 0.00 | AH168: 0.00 | AI168: 0.00 | AJ168: 0.00 | AK168: 0.00 | AL168: 0.00 | AM168: 0.00 | AN168: 0.00 | AO168: 0.00 | AP168: 0.00 | AQ168: 0.00 | AR168: 0.00 | AS168: 0.00 | AT168: 0.00 | AU168: 0.00 | AV168: 0.00 | AW168: 0.00 | AX168: 0.00 | AY168: 0.00 | AZ168: 0.00 | BA168: 0.00 | BB168: 0.00 | BC168: 0.00 | BD168: 0.00 | BE168: 0.00 | BF168: 0.00 | BG168: 0.00 | BH168: 0.00 | BI168: 0.00
C169: 9029 | D169: Clôture d'autres capitaux propres / excédent de produits | E169: 0.00 | F169: 0.00 | G169: 0.00 | H169: 0.00 | I169: 0.00 | J169: 0.00 | K169: 0.00 | L169: 0.00 | M169: 0.00 | N169: 0.00 | O169: 0.00 | P169: 0.00 | Q169: 0.00 | R169: 0.00 | S169: 0.00 | T169: 0.00 | U169: 0.00 | V169: 0.00 | W169: 0.00 | X169: 0.00 | Y169: 0.00 | Z169: 0.00 | AA169: 0.00 | AB169: 0.00 | AC169: 0.00 | AD169: 0.00 | AE169: 0.00 | AF169: 0.00 | AG169: 0.00 | AH169: 0.00 | AI169: 0.00 | AJ169: 0.00 | AK169: 0.00 | AL169: 0.00 | AM169: 0.00 | AN169: 0.00 | AO169: 0.00 | AP169: 0.00 | AQ169: 0.00 | AR169: 0.00 | AS169: 0.00 | AT169: 0.00 | AU169: 0.00 | AV169: 0.00 | AW169: 0.00 | AX169: 0.00 | AY169: 0.00 | AZ169: 0.00 | BA169: 0.00 | BB169: 0.00 | BC169: 0.00 | BD169: 0.00 | BE169: 0.00 | BF169: 0.00 | BG169: 0.00 | BH169: 0.00 | BI169: 0.00
C170: 3180 | D170: Réévalutation de créances | E170: 0.00 | F170: 0.00 | G170: 0.00 | H170: 0.00 | I170: 0.00 | J170: 0.00 | K170: 0.00 | L170: 0.00 | M170: 0.00 | N170: 0.00 | O170: 0.00 | P170: 0.00 | Q170: 0.00 | R170: 0.00 | S170: 0.00 | T170: 0.00 | U170: 0.00 | V170: 0.00 | W170: 0.00 | X170: 0.00 | Y170: 0.00 | Z170: 0.00 | AA170: 0.00 | AB170: 0.00 | AC170: 0.00 | AD170: 0.00 | AE170: 0.00 | AF170: 0.00 | AG170: 0.00 | AH170: 0.00 | AI170: 0.00 | AJ170: 0.00 | AK170: 0.00 | AL170: 0.00 | AM170: 0.00 | AN170: 0.00 | AO170: 0.00 | AP170: 0.00 | AQ170: 0.00 | AR170: 0.00 | AS170: 0.00 | AT170: 0.00 | AU170: 0.00 | AV170: 0.00 | AW170: 0.00 | AX170: 0.00 | AY170: 0.00 | AZ170: 0.00 | BA170: 0.00 | BB170: 0.00 | BC170: 0.00 | BD170: 0.00 | BE170: 0.00 | BF170: 0.00 | BG170: 0.00 | BH170: 0.00 | BI170: 0.00
C171: 36227 | D171: Péréquation financière horizontal | E171: 0.00 | F171: 0.00 | G171: 0.00 | H171: 0.00 | I171: 0.00 | J171: 0.00 | K171: 0.00 | L171: 0.00 | M171: 0.00 | N171: 0.00 | O171: 0.00 | P171: 0.00 | Q171: 0.00 | R171: 0.00 | S171: 0.00 | T171: 0.00 | U171: 0.00 | V171: 0.00 | W171: 0.00 | X171: 0.00 | Y171: 0.00 | Z171: 0.00 | AA171: 0.00 | AB171: 0.00 | AC171: 0.00 | AD171: 0.00 | AE171: 0.00 | AF171: 0.00 | AG171: 0.00 | AH171: 0.00 | AI171: 0.00 | AJ171: 0.00 | AK171: 0.00 | AL171: 0.00 | AM171: 0.00 | AN171: 0.00 | AO171: 0.00 | AP171: 0.00 | AQ171: 0.00 | AR171: 0.00 | AS171: 0.00 | AT171: 0.00 | AU171: 0.00 | AV171: 0.00 | AW171: 0.00 | AX171: 0.00 | AY171: 0.00 | AZ171: 0.00 | BA171: 0.00 | BB171: 0.00 | BC171: 0.00 | BD171: 0.00 | BE171: 0.00 | BF171: 0.00 | BG171: 0.00 | BH171: 0.00 | BI171: 0.00
C172: 36228 | D172: Contributions des communes-centres | E172: 0.00 | F172: 0.00 | G172: 0.00 | H172: 0.00 | I172: 0.00 | J172: 0.00 | K172: 0.00 | L172: 0.00 | M172: 0.00 | N172: 0.00 | O172: 0.00 | P172: 0.00 | Q172: 0.00 | R172: 0.00 | S172: 0.00 | T172: 0.00 | U172: 0.00 | V172: 0.00 | W172: 0.00 | X172: 0.00 | Y172: 0.00 | Z172: 0.00 | AA172: 0.00 | AB172: 0.00 | AC172: 0.00 | AD172: 0.00 | AE172: 0.00 | AF172: 0.00 | AG172: 0.00 | AH172: 0.00 | AI172: 0.00 | AJ172: 0.00 | AK172: 0.00 | AL172: 0.00 | AM172: 0.00 | AN172: 0.00 | AO172: 0.00 | AP172: 0.00 | AQ172: 0.00 | AR172: 0.00 | AS172: 0.00 | AT172: 0.00 | AU172: 0.00 | AV172: 0.00 | AW172: 0.00 | AX172: 0.00 | AY172: 0.00 | AZ172: 0.00 | BA172: 0.00 | BB172: 0.00 | BC172: 0.00 | BD172: 0.00 | BE172: 0.00 | BF172: 0.00 | BG172: 0.00 | BH172: 0.00 | BI172: 0.00
C173: 3898 | D173: Attributions aux autres capitaux propres | E173: 0.00 | F173: 0.00 | G173: 0.00 | H173: 0.00 | I173: 0.00 | J173: 0.00 | K173: 0.00 | L173: 0.00 | M173: 0.00 | N173: 0.00 | O173: 0.00 | P173: 0.00 | Q173: 0.00 | R173: 0.00 | S173: 0.00 | T173: 0.00 | U173: 0.00 | V173: 0.00 | W173: 0.00 | X173: 0.00 | Y173: 0.00 | Z173: 0.00 | AA173: 0.00 | AB173: 0.00 | AC173: 0.00 | AD173: 0.00 | AE173: 0.00 | AF173: 0.00 | AG173: 0.00 | AH173: 0.00 | AI173: 0.00 | AJ173: 0.00 | AK173: 0.00 | AL173: 0.00 | AM173: 0.00 | AN173: 0.00 | AO173: 0.00 | AP173: 0.00 | AQ173: 0.00 | AR173: 0.00 | AS173: 0.00 | AT173: 0.00 | AU173: 0.00 | AV173: 0.00 | AW173: 0.00 | AX173: 0.00 | AY173: 0.00 | AZ173: 0.00 | BA173: 0.00 | BB173: 0.00 | BC173: 0.00 | BD173: 0.00 | BE173: 0.00 | BF173: 0.00 | BG173: 0.00 | BH173: 0.00 | BI173: 0.00
C174: 90010 | D174: Clôtures du compte de résultats / excédent de charge | E174: 0.00 | F174: 0.00 | G174: 0.00 | H174: 0.00 | I174: 0.00 | J174: 0.00 | K174: 0.00 | L174: 0.00 | M174: 0.00 | N174: 0.00 | O174: 0.00 | P174: 0.00 | Q174: 0.00 | R174: 0.00 | S174: 0.00 | T174: 0.00 | U174: 0.00 | V174: 0.00 | W174: 0.00 | X174: 0.00 | Y174: 0.00 | Z174: 0.00 | AA174: 0.00 | AB174: 0.00 | AC174: 0.00 | AD174: 0.00 | AE174: 0.00 | AF174: 0.00 | AG174: 0.00 | AH174: 0.00 | AI174: 0.00 | AJ174: 0.00 | AK174: 0.00 | AL174: 0.00 | AM174: 0.00 | AN174: 0.00 | AO174: 0.00 | AP174: 0.00 | AQ174: 0.00 | AR174: 0.00 | AS174: 0.00 | AT174: 0.00 | AU174: 0.00 | AV174: 0.00 | AW174: 0.00 | AX174: 0.00 | AY174: 0.00 | AZ174: 0.00 | BA174: 0.00 | BB174: 0.00 | BC174: 0.00 | BD174: 0.00 | BE174: 0.00 | BF174: 0.00 | BG174: 0.00 | BH174: 0.00 | BI174: 0.00
C175: 9031 | D175: Clôture d'autres capitaux propres / excédent de charges | E175: 0.00 | F175: 0.00 | G175: 0.00 | H175: 0.00 | I175: 0.00 | J175: 0.00 | K175: 0.00 | L175: 0.00 | M175: 0.00 | N175: 0.00 | O175: 0.00 | P175: 0.00 | Q175: 0.00 | R175: 0.00 | S175: 0.00 | T175: 0.00 | U175: 0.00 | V175: 0.00 | W175: 0.00 | X175: 0.00 | Y175: 0.00 | Z175: 0.00 | AA175: 0.00 | AB175: 0.00 | AC175: 0.00 | AD175: 0.00 | AE175: 0.00 | AF175: 0.00 | AG175: 0.00 | AH175: 0.00 | AI175: 0.00 | AJ175: 0.00 | AK175: 0.00 | AL175: 0.00 | AM175: 0.00 | AN175: 0.00 | AP175: 0.00 | AQ175: 0.00 | AR175: 0.00 | AS175: 0.00 | AT175: 0.00 | AU175: 0.00 | AV175: 0.00 | AW175: 0.00 | AX175: 0.00 | AY175: 0.00 | AZ175: 0.00 | BA175: 0.00 | BB175: 0.00 | BC175: 0.00 | BD175: 0.00 | BE175: 0.00 | BF175: 0.00 | BG175: 0.00 | BH175: 0.00 | BI175: 0.00
AO176: 0.00
C177: 690-590 | D177: Investissements nets | E177: ='6. Investissements'!E182 -> 1,441,429.61 | F177: ='6. Investissements'!F182 -> -213,871.90 | G177: ='6. Investissements'!G182 -> 1,711,974.90 | H177: ='6. Investissements'!H182 -> -73,816.65 | I177: ='6. Investissements'!I182 -> 2,181,341.78 | J177: ='6. Investissements'!J182 -> 1,910,540.22 | K177: ='6. Investissements'!K182 -> 1,074,389.24 | L177: ='6. Investissements'!L182 -> 14,843,351.19 | M177: ='6. Investissements'!M182 -> 259,678.55 | N177: ='6. Investissements'!N182 -> 41,267.75 | O177: ='6. Investissements'!O182 -> 2,584,951.25 | P177: ='6. Investissements'!P182 -> 31,019.23 | Q177: ='6. Investissements'!Q182 -> 0.00 | R177: ='6. Investissements'!R182 -> 19,797.85 | S177: ='6. Investissements'!S182 -> 171,236.70 | T177: ='6. Investissements'!T182 -> 263,158.75 | U177: ='6. Investissements'!U182 -> 114,020.50 | V177: ='6. Investissements'!V182 -> -95,018.59 | W177: ='6. Investissements'!W182 -> 340,342.60 | X177: ='6. Investissements'!X182 -> 67,578.35 | Y177: ='6. Investissements'!Y182 -> -1,037,183.80 | Z177: ='6. Investissements'!Z182 -> 503,623.38 | AA177: ='6. Investissements'!AA182 -> 0.00 | AB177: ='6. Investissements'!AB182 -> -43,584.75 | AC177: ='6. Investissements'!AC182 -> 92,793.80 | AD177: ='6. Investissements'!AD182 -> 563,080.98 | AE177: ='6. Investissements'!AE182 -> 56,302.70 | AF177: ='6. Investissements'!AF182 -> 256,378.40 | AG177: ='6. Investissements'!AG182 -> 402,753.40 | AH177: ='6. Investissements'!AH182 -> 3,937.65 | AI177: ='6. Investissements'!AI182 -> 9,496.55 | AJ177: ='6. Investissements'!AJ182 -> 326,865.00 | AK177: ='6. Investissements'!AK182 -> 2,035,877.68 | AL177: ='6. Investissements'!AL182 -> 713,644.60 | AM177: ='6. Investissements'!AM182 -> 332,171.75 | AN177: ='6. Investissements'!AN182 -> 562,754.00 | AO177: ='6. Investissements'!AO182 -> 989,111.15 | AP177: ='6. Investissements'!AP182 -> 390,825.25 | AQ177: ='6. Investissements'!AQ182 -> 39,386.10 | AR177: ='6. Investissements'!AR182 -> 757,217.90 | AS177: ='6. Investissements'!AS182 -> -81,659.45 | AT177: ='6. Investissements'!AT182 -> 183,289.80 | AU177: ='6. Investissements'!AU182 -> 191,917.30 | AV177: ='6. Investissements'!AV182 -> 606,274.71 | AW177: ='6. Investissements'!AW182 -> 53,025.60 | AX177: ='6. Investissements'!AX182 -> 49,000.00 | AY177: ='6. Investissements'!AY182 -> 0.00 | AZ177: ='6. Investissements'!AZ182 -> 281.60 | BA177: ='6. Investissements'!BA182 -> 478,773.55 | BB177: ='6. Investissements'!BB182 -> 349,925.75 | BC177: ='6. Investissements'!BC182 -> 0.00 | BD177: ='6. Investissements'!BD182 -> 562,904.32 | BE177: ='6. Investissements'!BE182 -> 6,219.65 | BF177: ='6. Investissements'!BF182 -> 36,028,775.90 | BG177: ='6. Investissements'!BG182 -> 26,605,792.98 | BH177: ='6. Investissements'!BH182 -> 1,202,041.66 | BI177: ='6. Investissements'!BI182 -> 8,220,941.26
D179: Contrôle des imputations internes | E179: =E64-E140 -> 0.00 | F179: =F64-F140 -> 0.00 | G179: 0.00 | H179: -17,089.85 | I179: 5,400.00 | J179: 0.00 | K179: 16,855.35 | L179: -15,853.61 | M179: 0.00 | N179: 0.00 | O179: 0.00 | P179: 400.00 | Q179: 0.00 | R179: -10,064.00 | S179: 0.00 | T179: -4,573.15 | U179: 0.00 | V179: -1,150.85 | W179: 0.00 | X179: 17.51 | Y179: 0.00 | Z179: 0.00 | AA179: -6,113.15 | AB179: 0.00 | AC179: -26,841.70 | AD179: 0.00 | AE179: 15.50 | AF179: 16,068.75 | AG179: 0.00 | AH179: 0.00 | AI179: 0.00 | AJ179: 0.00 | AK179: 129,925.59 | AL179: 0.00 | AM179: 0.00 | AN179: 800.00 | AO179: 0.00 | AP179: 0.00 | AQ179: 0.00 | AR179: 0.00 | AS179: -227.25 | AT179: 0.00 | AU179: 1,538.50 | AV179: -6,530.00 | AW179: 0.00 | AX179: 0.00 | AY179: 0.00 | AZ179: 0.00 | BA179: 0.00 | BB179: 0.00 | BC179: 2,684.00 | BD179: 0.00 | BE179: 0.00 | BF179: 85,261.64 | BG179: -26,076.11 | BH179: -16,853.09 | BI179: 128,190.84
D181: Charges d'exploitation (30, 31, 33, 35, 36, 37) | E181: =E5+E15+E27+E39+E43+E53 -> 3,617,613.14 | F181: =F5+F15+F27+F39+F43+F53 -> 930,360.71 | G181: 1,625,393.24 | H181: 1,643,908.45 | I181: 13,118,164.03 | J181: 12,509,663.69 | K181: 9,825,418.97 | L181: 90,567,496.07 | M181: 7,000,865.83 | N181: 457,494.84 | O181: 25,093,142.50 | P181: 1,930,306.80 | Q181: 369,289.75 | R181: 1,481,503.76 | S181: 1,293,846.29 | T181: 2,507,580.52 | U181: 990,788.84 | V181: 2,296,633.78 | W181: 10,985,116.66 | X181: 1,759,357.70 | Y181: 5,484,613.70 | Z181: 10,787,272.96 | AA181: 620,972.15 | AB181: 809,756.07 | AC181: 2,671,621.30 | AD181: 3,151,761.78 | AE181: 2,557,802.59 | AF181: 3,175,035.61 | AG181: 8,674,187.17 | AH181: 11,053,395.65 | AI181: 984,377.99 | AJ181: 597,467.72 | AK181: 7,370,253.07 | AL181: 5,298,440.87 | AM181: 4,445,127.07 | AN181: 534,184.90 | AO181: 8,047,298.08 | AP181: 3,318,169.58 | AQ181: 2,329,035.81 | AR181: 6,384,200.54 | AS181: 2,830,873.05 | AT181: 4,175,642.78 | AU181: 1,794,919.23 | AV181: 8,700,000.41 | AW181: 2,884,622.71 | AX181: 716,676.20 | AY181: 1,412,950.74 | AZ181: 6,390,464.22 | BA181: 1,527,550.97 | BB181: 5,410,990.70 | BC181: 633,218.63 | BD181: 38,679,492.58 | BE181: 2,309,846.46 | BF181: 355,766,168.86 | BG181: 188,244,587.87 | BH181: 52,327,622.39 | BI181: 115,193,958.60
D182: Revenus d'exploitation (40, 41, 42, 43, 45, 46, 47) | E182: =E76+E82+E88+E99+E117+E121+E128 -> 4,265,052.63 | F182: =F76+F82+F88+F99+F117+F121+F128 -> 1,141,248.20 | G182: 1,593,824.25 | H182: 1,595,363.66 | I182: 13,259,498.69 | J182: 13,987,816.64 | K182: 10,022,859.14 | L182: 90,610,178.07 | M182: 6,951,955.51 | N182: 382,050.32 | O182: 23,839,201.42 | P182: 1,826,004.87 | Q182: 330,909.35 | R182: 1,468,224.53 | S182: 1,314,078.40 | T182: 2,783,578.99 | U182: 960,853.01 | V182: 2,150,070.09 | W182: 11,372,275.68 | X182: 1,808,653.15 | Y182: 5,738,447.68 | Z182: 14,207,643.25 | AA182: 568,518.40 | AB182: 838,058.35 | AC182: 2,295,460.80 | AD182: 2,783,751.58 | AE182: 2,333,775.34 | AF182: 3,620,674.27 | AG182: 9,710,681.66 | AH182: 11,352,466.96 | AI182: 1,117,516.96 | AJ182: 617,290.80 | AK182: 8,010,887.22 | AL182: 5,074,841.63 | AM182: 4,434,287.30 | AN182: 551,467.38 | AO182: 8,302,194.36 | AP182: 3,761,771.55 | AQ182: 2,484,937.24 | AR182: 6,601,393.50 | AS182: 2,762,464.57 | AT182: 4,108,531.02 | AU182: 2,715,600.20 | AV182: 7,770,133.58 | AW182: 2,880,509.56 | AX182: 726,661.46 | AY182: 1,501,540.05 | AZ182: 6,773,249.09 | BA182: 1,854,476.15 | BB182: 5,527,342.54 | BC182: 607,232.10 | BD182: 39,124,722.53 | BE182: 2,345,594.25 | BF182: 364,767,819.93 | BG182: 189,855,043.45 | BH182: 56,992,939.20 | BI182: 117,919,837.28
A185: 4 | B185: 40 | C185: 40330 | D185: Taxe des chiens | L185: 65445.55 | N185: 970 | R185: 3841.55 | T185: 3130 | U185: 3280 | X185: 2900 | Y185: 7625 | AA185: 650 | AC185: 4960 | AE185: 5130 | AF185: 2800 | AH185: 16400 | AI185: 2820 | AJ185: 1550 | AL185: 14650 | AM185: 7933.8 | AO185: 1320 | AP185: 4520 | AQ185: 5140 | AR185: 9480 | AS185: 5100 | AT185: 7410 | AV185: 5565 | AW185: 3900 | AX185: 810.3 | AY185: 4500 | AZ185: 11060 | BC185: 1350

Sheet Graphique par nature (hidden)
A4: Charges
A5: 30 Charges du personnel | B5: ='4.1 Comptes 2020 natures'!BF5 -> 68,720,627.85
A6: 31 Charges de biens et de services et autres charges d'exploitation | B6: ='4.1 Comptes 2020 natures'!BF15 -> 71,449,713.73
A7: 33 Amortissements du patrimoine administratif | B7: ='4.1 Comptes 2020 natures'!BF27 -> 22,755,841.09
A8: 34 Charges financières | B8: ='4.1 Comptes 2020 natures'!BF31 -> 9,277,984.35
A9: 35 Attributions aux financements spéciaux des capitaux de tiers | B9: ='4.1 Comptes 2020 natures'!BF39 -> 2,143,078.84
A10: 36 Charges de transferts | B10: ='4.1 Comptes 2020 natures'!BF43 -> 188,221,332.50
A11: 37 Subventions à redistribuer | B11: ='4.1 Comptes 2020 natures'!BF53 -> 2,475,574.85
A12: 38 Charges extraordinaires | B12: ='4.1 Comptes 2020 natures'!BF56 -> 5,292,667.44
A13: 39 Imputations internes | B13: ='4.1 Comptes 2020 natures'!BF64 -> 8,645,338.16
A15: Revenus
A16: 40 Revenus fiscaux | B16: ='4.1 Comptes 2020 natures'!BF76 -> 219,315,688.26
A17: 41 Revenus de patentes et de concessions | B17: ='4.1 Comptes 2020 natures'!BF82 -> 1,014,852.67
A18: 42 Taxes | B18: ='4.1 Comptes 2020 natures'!BF88 -> 74,575,696.23
A19: 43 Revenus divers | B19: ='4.1 Comptes 2020 natures'!BF99 -> 1,741,348.89
A20: 44 Revenus financiers | B20: ='4.1 Comptes 2020 natures'!BF105 -> 13,891,621.57
A21: 45 Prélèvements sur les financements spéciaux | B21: ='4.1 Comptes 2020 natures'!BF117 -> 1,308,254.75
A22: 46 Revenus de transfert | B22: ='4.1 Comptes 2020 natures'!BF121 -> 64,732,664.28
A23: 47 Subventions à redistribuer | B23: ='4.1 Comptes 2020 natures'!BF128 -> 2,079,314.85
A24: 48 Revenus extraordinaires | B24: ='4.1 Comptes 2020 natures'!BF131 -> 2,567,175.70
A25: 49 Imputations internes | B25: ='4.1 Comptes 2020 natures'!BF140 -> 8,560,076.52

Sheet Résultats par commune (hidden)
A1: Clôture du compte de résutlats global par commune (90)
A3: Communes | B3: Compte 90 | C3: Compte 90 par hab.
A4: Boécourt | B4: ='4.1 Comptes 2020 natures'!AZ153 -> 79,042.83 | C4: ='4.9 Comptes 2020 par habitant'!E153 -> 366.27
A5: Bourrignon | B5: ='4.1 Comptes 2020 natures'!F153 -> 183,367.53 | C5: ='4.9 Comptes 2020 par habitant'!F153 -> 679.14
A6: Châtillon | B6: ='4.1 Comptes 2020 natures'!G153 -> -29,321.28 | C6: ='4.9 Comptes 2020 par habitant'!G153 -> -60.46
A7: Courchapoix | B7: ='4.1 Comptes 2020 natures'!H153 -> 21,653.66 | C7: ='4.9 Comptes 2020 par habitant'!H153 -> 48.55
A8: Courrendlin | B8: ='4.1 Comptes 2020 natures'!I153 -> 461,623.63 | C8: ='4.9 Comptes 2020 par habitant'!I153 -> 127.13
A9: Courroux | B9: ='4.1 Comptes 2020 natures'!J153 -> 1,051,215.94 | C9: ='4.9 Comptes 2020 par habitant'!J153 -> 317.30
A10: Courtételle | B10: ='4.1 Comptes 2020 natures'!K153 -> 253,856.48 | C10: ='4.9 Comptes 2020 par habitant'!K153 -> 96.01
A11: Delémont | B11: ='4.1 Comptes 2020 natures'!L153 -> 2,089,673.18 | C11: ='4.9 Comptes 2020 par habitant'!L153 -> 165.61
A12: Develier | B12: ='4.1 Comptes 2020 natures'!M153 -> -1,352.86 | C12: ='4.9 Comptes 2020 par habitant'!M153 -> -0.99
A13: Ederswiler | B13: ='4.1 Comptes 2020 natures'!N153 -> -63,918.92 | C13: ='4.9 Comptes 2020 par habitant'!N153 -> -541.69
A14: Haute-Sorne | B14: ='4.1 Comptes 2020 natures'!O153 -> -1,177,403.47 | C14: ='4.9 Comptes 2020 par habitant'!O153 -> -164.28
A15: Mervelier | B15: ='4.1 Comptes 2020 natures'!P153 -> -93,731.80 | C15: ='4.9 Comptes 2020 par habitant'!P153 -> -177.52
A16: Mettembert | B16: ='4.1 Comptes 2020 natures'!Q153 -> -9,460.81 | C16: ='4.9 Comptes 2020 par habitant'!Q153 -> -87.60
A17: Movelier | B17: ='4.1 Comptes 2020 natures'!R153 -> -16,853.58 | C17: ='4.9 Comptes 2020 par habitant'!R153 -> -40.61
A18: Pleigne | B18: ='4.1 Comptes 2020 natures'!S153 -> -13,071.37 | C18: ='4.9 Comptes 2020 par habitant'!S153 -> -37.45
A19: Rossemaison | B19: ='4.1 Comptes 2020 natures'!T153 -> 262,757.42 | C19: ='4.9 Comptes 2020 par habitant'!T153 -> 382.47
A20: Saulcy | B20: ='4.1 Comptes 2020 natures'!U153 -> 9,048.71 | C20: ='4.9 Comptes 2020 par habitant'!U153 -> 35.49
A21: Soyhières | B21: ='4.1 Comptes 2020 natures'!V153 -> -152,377.16 | C21: ='4.9 Comptes 2020 par habitant'!V153 -> -349.49
A22: Val Terbi | B22: ='4.1 Comptes 2020 natures'!W153 -> 364,711.41 | C22: ='4.9 Comptes 2020 par habitant'!W153 -> 114.33
A23: Le Bémont | B23: ='4.1 Comptes 2020 natures'!X153 -> 26,286.14 | C23: ='4.9 Comptes 2020 par habitant'!X153 -> 81.13
A24: Les Bois | B24: ='4.1 Comptes 2020 natures'!Y153 -> 178,997.68 | C24: ='4.9 Comptes 2020 par habitant'!Y153 -> 143.66
A25: Les Breuleux | B25: ='4.1 Comptes 2020 natures'!Z153 -> 3,517,719.99 | C25: ='4.9 Comptes 2020 par habitant'!Z153 -> 2,302.17
A26: La Chaux-B. | B26: ='4.1 Comptes 2020 natures'!AA153 -> -11,170.27 | C26: ='4.9 Comptes 2020 par habitant'!AA153 -> -116.36
A27: Les Enfers | B27: ='4.1 Comptes 2020 natures'!AB153 -> 41,421.78 | C27: ='4.9 Comptes 2020 par habitant'!AB153 -> 278.00
A28: Les Genevez | B28: ='4.1 Comptes 2020 natures'!AC153 -> -114,596.97 | C28: ='4.9 Comptes 2020 par habitant'!AC153 -> -222.09
A29: Lajoux | B29: ='4.1 Comptes 2020 natures'!AD153 -> -99,000.46 | C29: ='4.9 Comptes 2020 par habitant'!AD153 -> -147.54
A30: Montfaucon | B30: ='4.1 Comptes 2020 natures'!AE153 -> -194,273.68 | C30: ='4.9 Comptes 2020 par habitant'!AE153 -> -339.64
A31: Muriaux | B31: ='4.1 Comptes 2020 natures'!AF153 -> 122,538.76 | C31: ='4.9 Comptes 2020 par habitant'!AF153 -> 250.08
A32: Le Noirmont | B32: ='4.1 Comptes 2020 natures'!AG153 -> 1,107,210.30 | C32: ='4.9 Comptes 2020 par habitant'!AG153 -> 578.48
A33: Saignelégier | B33: ='4.1 Comptes 2020 natures'!AH153 -> 243,887.35 | C33: ='4.9 Comptes 2020 par habitant'!AH153 -> 93.26
A34: Saint-Brais | B34: ='4.1 Comptes 2020 natures'!AI153 -> -5,355.96 | C34: ='4.9 Comptes 2020 par habitant'!AI153 -> -23.59
A35: Soubey | B35: ='4.1 Comptes 2020 natures'!AJ153 -> 22,586.40 | C35: ='4.9 Comptes 2020 par habitant'!AJ153 -> 172.42
A36: Alle | B36: ='4.1 Comptes 2020 natures'!AK153 -> 153,720.00 | C36: ='4.9 Comptes 2020 par habitant'!AK153 -> 81.12
A37: La Baroche | B37: ='4.1 Comptes 2020 natures'!AL153 -> -32,824.59 | C37: ='4.9 Comptes 2020 par habitant'!AL153 -> -28.92
A38: Basse-Allaine | B38: ='4.1 Comptes 2020 natures'!AM153 -> -5,589.77 | C38: ='4.9 Comptes 2020 par habitant'!AM153 -> -4.50
A39: Beurnevésin | B39: ='4.1 Comptes 2020 natures'!AN153 -> 13,711.05 | C39: ='4.9 Comptes 2020 par habitant'!AN153 -> 115.22
A40: Boncourt | B40: ='4.1 Comptes 2020 natures'!AO153 -> 341,994.52 | C40: ='4.9 Comptes 2020 par habitant'!AO153 -> 286.19
A41: Bonfol | B41: ='4.1 Comptes 2020 natures'!AP153 -> 197,653.74 | C41: ='4.9 Comptes 2020 par habitant'!AP153 -> 298.12
A42: Bure | B42: ='4.1 Comptes 2020 natures'!AQ153 -> 23,915.77 | C42: ='4.9 Comptes 2020 par habitant'!AQ153 -> 37.08
A43: Clos du Doubs | B43: ='4.1 Comptes 2020 natures'!AR153 -> 50,671.79 | C43: ='4.9 Comptes 2020 par habitant'!AR153 -> 40.12
A44: Coeuve | B44: ='4.1 Comptes 2020 natures'!AS153 -> 52,551.10 | C44: ='4.9 Comptes 2020 par habitant'!AS153 -> 71.02
A45: Cornol | B45: ='4.1 Comptes 2020 natures'!AT153 -> 35,118.03 | C45: ='4.9 Comptes 2020 par habitant'!AT153 -> 34.16
A46: Courchavon | B46: ='4.1 Comptes 2020 natures'!AU153 -> 112,815.42 | C46: ='4.9 Comptes 2020 par habitant'!AU153 -> 359.28
A47: Courgenay | B47: ='4.1 Comptes 2020 natures'!AV153 -> -268,507.58 | C47: ='4.9 Comptes 2020 par habitant'!AV153 -> -111.88
A48: Courtedoux | B48: ='4.1 Comptes 2020 natures'!AW153 -> -9,064.03 | C48: ='4.9 Comptes 2020 par habitant'!AW153 -> -12.01
A49: Damphreux | B49: ='4.1 Comptes 2020 natures'!AX153 -> 29,819.60 | C49: ='4.9 Comptes 2020 par habitant'!AX153 -> 164.75
A50: Fahy | B50: ='4.1 Comptes 2020 natures'!AY153 -> 73,689.05 | C50: ='4.9 Comptes 2020 par habitant'!AY153 -> 212.36
A51: Fontenais | B51: ='4.1 Comptes 2020 natures'!AZ153 -> 79,042.83 | C51: ='4.9 Comptes 2020 par habitant'!AZ153 -> 46.77
A52: Grandfontaine | B52: ='4.1 Comptes 2020 natures'!BA153 -> 160,878.05 | C52: ='4.9 Comptes 2020 par habitant'!BA153 -> 415.71
A53: Haute-Ajoie | B53: ='4.1 Comptes 2020 natures'!BB153 -> 192,186.95 | C53: ='4.9 Comptes 2020 par habitant'!BB153 -> 175.35
A54: Lugnez | B54: ='4.1 Comptes 2020 natures'!BC153 -> -14,911.23 | C54: ='4.9 Comptes 2020 par habitant'!BC153 -> -79.32
A55: Porrentruy | B55: ='4.1 Comptes 2020 natures'!BD153 -> 1,253,727.51 | C55: ='4.9 Comptes 2020 par habitant'!BD153 -> 194.86
A56: Vendlincourt | B56: ='4.1 Comptes 2020 natures'!BE153 -> 49,199.93 | C56: ='4.9 Comptes 2020 par habitant'!BE153 -> 87.86
A57: Total | B57: ='4.1 Comptes 2020 natures'!BF153 -> 10,804,534.91 | C57: ='4.9 Comptes 2020 par habitant'!BF153 -> 6,305.54
A58: District de Delémont | B58: ='4.1 Comptes 2020 natures'!BG153 -> 3,478,485.71 | C58: ='4.9 Comptes 2020 par habitant'!BG153 -> 872.22
A59: District des Franches-Montagnes | B59: ='4.1 Comptes 2020 natures'!BH153 -> 4,836,251.06 | C59: ='4.9 Comptes 2020 par habitant'!BH153 -> 3,049.98
A60: District de Porrentruy | B60: ='4.1 Comptes 2020 natures'!BI153 -> 2,489,798.14 | C60: ='4.9 Comptes 2020 par habitant'!BI153 -> 2,383.34

Sheet 4.2 Comptes 2020 par commune (hidden)
A2: Comptes de résultats par natures 2020
A5: Communes : | D5: Fahy
E7: CHF
A8: 3 | D8: Charges | E8: =HLOOKUP(D5,'4.1 Comptes 2020 natures'!$E$3:$BE$158,2,0) -> 1,487,464.80
B9: 30 | D9: Charges du personnel | E9: =HLOOKUP($D$5,'4.1 Comptes 2020 natures'!$E$3:$BE$158,3,0) -> 141,865.75
C10: 300 | D10: Autorités et commissions | E10: =HLOOKUP($D$5,'4.1 Comptes 2020 natures'!$E$3:$BE$158,4,0) -> 13,207.60
C11: 301 | D11: Personnel administratif et d'exploitation | E11: =HLOOKUP($D$5,'4.1 Comptes 2020 natures'!$E$3:$BE$158,5,0) -> 109,173.00
C12: 302 | D12: Enseignants | E12: =HLOOKUP($D$5,'4.1 Comptes 2020 natures'!$E$3:$BE$158,6,0) -> 0.00
C13: 303 | D13: Personnel temporaire administratif et d'exploitation | E13: =HLOOKUP($D$5,'4.1 Comptes 2020 natures'!$E$3:$BE$158,7,0) -> 0.00
C14: 304 | D14: Allocations et indemnités | E14: =HLOOKUP($D$5,'4.1 Comptes 2020 natures'!$E$3:$BE$158,8,0) -> 0.00
C15: 305 | D15: Charges de l'employeur | E15: =HLOOKUP($D$5,'4.1 Comptes 2020 natures'!$E$3:$BE$158,9,0) -> 19,018.85
C16: 306 | D16: Prestations sociales de l'employeur | E16: =HLOOKUP($D$5,'4.1 Comptes 2020 natures'!$E$3:$BE$158,10,0) -> 0.00
C17: 309 | D17: Autres charges du personnel | E17: =HLOOKUP($D$5,'4.1 Comptes 2020 natures'!$E$3:$BE$158,11,0) -> 466.30
B19: 31 | D19: Charges de biens et de services et autres charges d'exploitation | E19: =SUM(E20:E29) -> 386,145.29
C20: 310 | D20: Charges de matériel et de marchandises | E20: =HLOOKUP($D$5,'4.1 Comptes 2020 natures'!$E$3:$BE$158,14,0) -> 84,169.05
C21: 311 | D21: Immobilisations ne pouvant être portées à l'actif | E21: =HLOOKUP($D$5,'4.1 Comptes 2020 natures'!$E$3:$BE$158,15,0) -> 5,603.10
C22: 312 | D22: Alimentations et éliminations des biens-fonds du PA | E22: =HLOOKUP($D$5,'4.1 Comptes 2020 natures'!$E$3:$BE$158,16,0) -> 82,644.85
C23: 313 | D23: Prestations de services et honoraires | E23: =HLOOKUP($D$5,'4.1 Comptes 2020 natures'!$E$3:$BE$158,17,0) -> 102,946.94
C24: 314 | D24: Gros entretien et entretien courtant du PA | E24: =HLOOKUP($D$5,'4.1 Comptes 2020 natures'!$E$3:$BE$158,18,0) -> 68,794.20
C25: 315 | D25: Entretien des biens mobiliers et des immobilisations corporelles du PA | E25: =HLOOKUP($D$5,'4.1 Comptes 2020 natures'!$E$3:$BE$158,19,0) -> 12,657.45
C26: 316 | D26: Loyers - crédits-bails (leasing) - baux à fermes - taxes d'utilisation | E26: =HLOOKUP($D$5,'4.1 Comptes 2020 natures'!$E$3:$BE$158,20,0) -> 2,739.70
C27: 317 | D27: Indemnités et dédommagements | E27: =HLOOKUP($D$5,'4.1 Comptes 2020 natures'!$E$3:$BE$158,21,0) -> 3,792.70
C28: 318 | D28: Réévaluations de créances | E28: =HLOOKUP($D$5,'4.1 Comptes 2020 natures'!$E$3:$BE$158,22,0) -> 22,797.30
C29: 319 | D29: Divers charges d'exploitation | E29: =HLOOKUP($D$5,'4.1 Comptes 2020 natures'!$E$3:$BE$158,23,0) -> 0.00
B31: 33 | D31: Amortissements du patrimoine administratif | E31: =SUM(E32:E33) -> 186,165.00
C32: 330 | D32: Amortissements des immobilisations corporelles du PA | E32: =HLOOKUP($D$5,'4.1 Comptes 2020 natures'!$E$3:$BE$158,26,0) -> 181,665.00
C33: 332 | D33: Amortissements des immobilisations incorporelles du PA | E33: =HLOOKUP($D$5,'4.1 Comptes 2020 natures'!$E$3:$BE$158,27,0) -> 4,500.00
B35: 34 | D35: Charges financières | E35: =SUM(E36:E41) -> 16,514.06
C36: 340 | D36: Charges d'intérets | E36: =HLOOKUP($D$5,'4.1 Comptes 2020 natures'!$E$3:$BE$158,30,0) -> 16,514.06
C37: 341 | D37: Pertes sur les placements financiers et les immobilisations du PF | E37: =HLOOKUP($D$5,'4.1 Comptes 2020 natures'!$E$3:$BE$158,31,0) -> 0.00
C38: 342 | D38: Frais d'acquisitions des capitaux et frais administratifs | E38: =HLOOKUP($D$5,'4.1 Comptes 2020 natures'!$E$3:$BE$158,32,0) -> 0.00
C39: 343 | D39: Charges pour les biens-fonds du PF | E39: =HLOOKUP($D$5,'4.1 Comptes 2020 natures'!$E$3:$BE$158,33,0) -> 0.00
C40: 344 | D40: Réévaluations des immobilisations du PF | E40: =HLOOKUP($D$5,'4.1 Comptes 2020 natures'!$E$3:$BE$158,34,0) -> 0.00
C41: 349 | D41: Autres charges financières | E41: =HLOOKUP($D$5,'4.1 Comptes 2020 natures'!$E$3:$BE$158,35,0) -> 0.00
B43: 35 | D43: Attributions aux financements spéciaux des capitaux de tiers | E43: =SUM(E44:E45) -> 310.00
C44: 350 | D44: Attributions aux financements spéciaux des capitaux de tiers | E44: =HLOOKUP($D$5,'4.1 Comptes 2020 natures'!$E$3:$BE$158,38,0) -> 0.00
C45: 351 | D45: Attributions aux financements spéciaux du capital propres | E45: =HLOOKUP($D$5,'4.1 Comptes 2020 natures'!$E$3:$BE$158,39,0) -> 310.00
B47: 36 | D47: Charges de transferts | E47: =SUM(E48:E55) -> 698,464.70
C48: 360 | D48: Parts de revenus destinés à des collectivités publiques | E48: =HLOOKUP($D$5,'4.1 Comptes 2020 natures'!$E$3:$BE$158,42,0) -> 1,723.20
C49: 361 | D49: Dédommagements aux collectivités publiques | E49: =HLOOKUP($D$5,'4.1 Comptes 2020 natures'!$E$3:$BE$158,43,0) -> 519,829.25
C50: 362 | D50: Péréquation financière et compensation de charges | E50: =HLOOKUP($D$5,'4.1 Comptes 2020 natures'!$E$3:$BE$158,44,0) -> 0.00
C51: 363 | D51: Subventions à des collectivités publiques et des tiers | E51: =HLOOKUP($D$5,'4.1 Comptes 2020 natures'!$E$3:$BE$158,45,0) -> 173,933.25
C52: 364 | D52: Réévaluations des prets du PA | E52: =HLOOKUP($D$5,'4.1 Comptes 2020 natures'!$E$3:$BE$158,46,0) -> 0.00
C53: 365 | D53: Réévaluations des participations du PA | E53: =HLOOKUP($D$5,'4.1 Comptes 2020 natures'!$E$3:$BE$158,47,0) -> 0.00
C54: 366 | D54: Amortissements des subventions des investissements | E54: =HLOOKUP($D$5,'4.1 Comptes 2020 natures'!$E$3:$BE$158,48,0) -> 0.00
C55: 369 | D55: Différentes charges de transfert à des collectivités publiques et tiers | E55: =HLOOKUP($D$5,'4.1 Comptes 2020 natures'!$E$3:$BE$158,49,0) -> 2,979.00
B57: 37 | D57: Subventions à redistribuer | E57: =SUM(E58) -> 0.00
C58: 370 | D58: Subventions à redistribuer à des collectivités publiques et des tiers | E58: =HLOOKUP($D$5,'4.1 Comptes 2020 natures'!$E$3:$BE$158,52,0) -> 0.00
B60: 38 | D60: Charges extraordinaires | E60: =SUM(E61:E66) -> 58,000.00
C61: 380 | D61: Charges extraordinaires du personnel administratif et d'exploitation | E61: =HLOOKUP($D$5,'4.1 Comptes 2020 natures'!$E$3:$BE$158,55,0) -> 0.00
C62: 381 | D62: charges extraordinaires de biens et de services d'exploitation | E62: =HLOOKUP($D$5,'4.1 Comptes 2020 natures'!$E$3:$BE$158,56,0) -> 0.00
C63: 384 | D63: Charges extraordinaires financières et comptables | E63: =HLOOKUP($D$5,'4.1 Comptes 2020 natures'!$E$3:$BE$158,57,0) -> 0.00
C64: 385 | D64: Attributions extraordinaires aux financements spéciaux | E64: =HLOOKUP($D$5,'4.1 Comptes 2020 natures'!$E$3:$BE$158,58,0) -> 0.00
C65: 386 | D65: Charges de transfert extraordinaires au collectivités et aux tiers | E65: =HLOOKUP($D$5,'4.1 Comptes 2020 natures'!$E$3:$BE$158,59,0) -> 0.00
C66: 389 | D66: Attributions au capital propre | E66: =HLOOKUP($D$5,'4.1 Comptes 2020 natures'!$E$3:$BE$158,60,0) -> 58,000.00
B68: 39 | D68: Imputations internes | E68: =SUM(E69:E76) -> 0.00
C69: 390 | D69: Approvisionnement en matériel et en marchandises | E69: =HLOOKUP($D$5,'4.1 Comptes 2020 natures'!$E$3:$BE$158,63,0) -> 0.00
C70: 391 | D70: Prestations de services | E70: =HLOOKUP($D$5,'4.1 Comptes 2020 natures'!$E$3:$BE$158,64,0) -> 0.00
C71: 392 | D71: Loyer, baux à ferme et frais d'utilisation | E71: =HLOOKUP($D$5,'4.1 Comptes 2020 natures'!$E$3:$BE$158,65,0) -> 0.00
C72: 393 | D72: Frais administratifs et d'exploitation | E72: =HLOOKUP($D$5,'4.1 Comptes 2020 natures'!$E$3:$BE$158,66,0) -> 0.00
C73: 394 | D73: Intérêts et charges financières théoriques | E73: =HLOOKUP($D$5,'4.1 Comptes 2020 natures'!$E$3:$BE$158,67,0) -> 0.00
C74: 395 | D74: Amortissements planifiés et non planifiés du PA | E74: =HLOOKUP($D$5,'4.1 Comptes 2020 natures'!$E$3:$BE$158,68,0) -> 0.00
C75: 398 | D75: Virements comptabiles | E75: =HLOOKUP($D$5,'4.1 Comptes 2020 natures'!$E$3:$BE$158,69,0) -> 0.00
C76: 399 | D76: Autres imputations internes | E76: =HLOOKUP($D$5,'4.1 Comptes 2020 natures'!$E$3:$BE$158,70,0) -> 0.00
A79: 4 | D79: Revenus | E79: =HLOOKUP($D$5,'4.1 Comptes 2020 natures'!$E$3:$BE$158,73,0) -> 1,561,153.85
B80: 40 | D80: Revenus fiscaux | E80: =SUM(E81:E84) -> 902,646.45
C81: 400 | D81: Impôts directs des personnes physiques | E81: =HLOOKUP($D$5,'4.1 Comptes 2020 natures'!$E$3:$BE$158,75,0) -> 756,659.25
C82: 401 | D82: Impôts directs des personnes morales | E82: =HLOOKUP($D$5,'4.1 Comptes 2020 natures'!$E$3:$BE$158,76,0) -> 20,567.45
C83: 402 | D83: Autres impôts directs | E83: =HLOOKUP($D$5,'4.1 Comptes 2020 natures'!$E$3:$BE$158,77,0) -> 118,839.75
C84: 403 | D84: Impôts sur la possession et les dépenses | E84: =HLOOKUP($D$5,'4.1 Comptes 2020 natures'!$E$3:$BE$158,78,0) -> 6,580.00
B86: 41 | D86: Revenus de patentes et de concessions | E86: =SUM(E87:E90) -> 0.00
C87: 410 | D87: Revenus de patentes | E87: =HLOOKUP($D$5,'4.1 Comptes 2020 natures'!$E$3:$BE$158,81,0) -> 0.00
C88: 411 | D88: Revenus de la Banque Nationale | E88: =HLOOKUP($D$5,'4.1 Comptes 2020 natures'!$E$3:$BE$158,82,0) -> 0.00
C89: 412 | D89: Revenus des concessions | E89: =HLOOKUP($D$5,'4.1 Comptes 2020 natures'!$E$3:$BE$158,83,0) -> 0.00
C90: 413 | D90: Parts des revenus de loterie et paris | E90: =HLOOKUP($D$5,'4.1 Comptes 2020 natures'!$E$3:$BE$158,84,0) -> 0.00
B92: 42 | D92: Taxes | E92: =SUM(E93:E101) -> 231,811.60
C93: 420 | D93: Taxes d'exemption et de compensation | E93: =HLOOKUP($D$5,'4.1 Comptes 2020 natures'!$E$3:$BE$158,87,0) -> 7,683.05
C94: 421 | D94: Emoluments administratif | E94: =HLOOKUP($D$5,'4.1 Comptes 2020 natures'!$E$3:$BE$158,88,0) -> 1,001.25
C95: 422 | D95: Taxes et émoluments hospitaliers et médico-sociaux et foyers | E95: =HLOOKUP($D$5,'4.1 Comptes 2020 natures'!$E$3:$BE$158,89,0) -> 0.00
C96: 423 | D96: Frais d'écolage | E96: =HLOOKUP($D$5,'4.1 Comptes 2020 natures'!$E$3:$BE$158,90,0) -> 0.00
C97: 424 | D97: Taxes d'utilisation et de prestation de services | E97: =HLOOKUP($D$5,'4.1 Comptes 2020 natures'!$E$3:$BE$158,91,0) -> 221,905.30
C98: 425 | D98: Revenus des ventes | E98: =HLOOKUP($D$5,'4.1 Comptes 2020 natures'!$E$3:$BE$158,92,0) -> 624.00
C99: 426 | D99: remboursements | E99: =HLOOKUP($D$5,'4.1 Comptes 2020 natures'!$E$3:$BE$158,93,0) -> 598.00
C100: 427 | D100: Amendes | E100: =HLOOKUP($D$5,'4.1 Comptes 2020 natures'!$E$3:$BE$158,94,0) -> 0.00
C101: 429 | D101: Autres taxes et compensations | E101: =HLOOKUP($D$5,'4.1 Comptes 2020 natures'!$E$3:$BE$158,95,0) -> 0.00
B103: 43 | D103: Revenus divers | E103: =SUM(E104:E107) -> 0.00
C104: 430 | D104: Revenus divers d'exploitation | E104: =HLOOKUP($D$5,'4.1 Comptes 2020 natures'!$E$3:$BE$158,98,0) -> 0.00
C105: 431 | D105: Inscriptions de prestations propres portées à l'actif | E105: =HLOOKUP($D$5,'4.1 Comptes 2020 natures'!$E$3:$BE$158,99,0) -> 0.00
C106: 432 | D106: Variation de stock | E106: =HLOOKUP($D$5,'4.1 Comptes 2020 natures'!$E$3:$BE$158,100,0) -> 0.00
C107: 439 | D107: Autres revenus divers | E107: =HLOOKUP($D$5,'4.1 Comptes 2020 natures'!$E$3:$BE$158,101,0) -> 0.00
B109: 44 | D109: Revenus financiers | E109: =SUM(E110:E119) -> 59,613.80
C110: 440 | D110: Revenus des intérets | E110: =HLOOKUP($D$5,'4.1 Comptes 2020 natures'!$E$3:$BE$158,104,0) -> 8,404.10
C111: 441 | D111: Gains réalisés du PF | E111: =HLOOKUP($D$5,'4.1 Comptes 2020 natures'!$E$3:$BE$158,105,0) -> 4,030.00
C112: 442 | D112: Revenus de participations du PF | E112: =HLOOKUP($D$5,'4.1 Comptes 2020 natures'!$E$3:$BE$158,106,0) -> 0.00
C113: 443 | D113: Revenus des biens-fonds, des bâtiments et immeubles du PF | E113: =HLOOKUP($D$5,'4.1 Comptes 2020 natures'!$E$3:$BE$158,107,0) -> 39,303.70
C114: 444 | D114: Réévaluations des immobilisations du PF | E114: =HLOOKUP($D$5,'4.1 Comptes 2020 natures'!$E$3:$BE$158,108,0) -> 0.00
C115: 445 | D115: Revenus financiers de prêts et de participation du PA | E115: =HLOOKUP($D$5,'4.1 Comptes 2020 natures'!$E$3:$BE$158,109,0) -> 0.00
C116: 446 | D116: Revenus financiers d'entreprises publiques | E116: =HLOOKUP($D$5,'4.1 Comptes 2020 natures'!$E$3:$BE$158,110,0) -> 0.00
C117: 447 | D117: Revenus des biens-fonds, des bâtiments et immeubles du PA | E117: =HLOOKUP($D$5,'4.1 Comptes 2020 natures'!$E$3:$BE$158,111,0) -> 7,876.00
C118: 448 | D118: Revenus des biens-fonds loués | E118: =HLOOKUP($D$5,'4.1 Comptes 2020 natures'!$E$3:$BE$158,112,0) -> 0.00
C119: 449 | D119: Autres revenus financiers | E119: =HLOOKUP($D$5,'4.1 Comptes 2020 natures'!$E$3:$BE$158,113,0) -> 0.00
B121: 45 | D121: Prélèvements sur les financements spéciaux | E121: =SUM(E122:E123) -> 0.00
C122: 450 | D122: Prélèvements sur les financements spéciaux des capitaux de tiers | E122: =HLOOKUP($D$5,'4.1 Comptes 2020 natures'!$E$3:$BE$158,116,0) -> 0.00
C123: 451 | D123: Prélèvements sur les financements spéciaux du capital propre | E123: =HLOOKUP($D$5,'4.1 Comptes 2020 natures'!$E$3:$BE$158,117,0) -> 0.00
B125: 46 | D125: Revenus de transfert | E125: =SUM(E126:E130) -> 367,082.00
C126: 460 | D126: Parts à des revenus des collectivités publiques | E126: =HLOOKUP($D$5,'4.1 Comptes 2020 natures'!$E$3:$BE$158,120,0) -> 493.00
C127: 461 | D127: Dédommagements des collectivités publiques | E127: =HLOOKUP($D$5,'4.1 Comptes 2020 natures'!$E$3:$BE$158,121,0) -> 3,721.40
C128: 462 | D128: Péréquation financière et compensation de charges | E128: =HLOOKUP($D$5,'4.1 Comptes 2020 natures'!$E$3:$BE$158,122,0) -> 276,102.00
C129: 463 | D129: Subventions de collectivités publiques et de tiers | E129: =HLOOKUP($D$5,'4.1 Comptes 2020 natures'!$E$3:$BE$158,123,0) -> 83,127.95
C130: 469 | D130: Différents revenus et transferts de collectivités publiques et de tiers | E130: =HLOOKUP($D$5,'4.1 Comptes 2020 natures'!$E$3:$BE$158,124,0) -> 3,637.65
B132: 47 | D132: Subventions à redistribuer | E132: =SUM(E133) -> 0.00
C133: 470 | D133: Subventions à redistribuer des collectivités publiques et de tiers | E133: =HLOOKUP($D$5,'4.1 Comptes 2020 natures'!$E$3:$BE$158,127,0) -> 0.00
B135: 48 | D135: Revenus extraordinaires | E135: =SUM(E136:E142) -> 0.00
C136: 481 | D136: Revenus extraordinaires de patentes et de concessions | E136: =HLOOKUP($D$5,'4.1 Comptes 2020 natures'!$E$3:$BE$158,130,0) -> 0.00
C137: 482 | D137: Contributions extraordinaires | E137: =HLOOKUP($D$5,'4.1 Comptes 2020 natures'!$E$3:$BE$158,131,0) -> 0.00
C138: 483 | D138: Revenus divers extraordinaires | E138: =HLOOKUP($D$5,'4.1 Comptes 2020 natures'!$E$3:$BE$158,132,0) -> 0.00
C139: 484 | D139: Revenus financiers extraordinaires | E139: =HLOOKUP($D$5,'4.1 Comptes 2020 natures'!$E$3:$BE$158,133,0) -> 0.00
C140: 485 | D140: Prélèvements extraordinaires sur les financements spéciaux | E140: =HLOOKUP($D$5,'4.1 Comptes 2020 natures'!$E$3:$BE$158,134,0) -> 0.00
C141: 486 | D141: Parts aux revenus extraordinaires de transferts des collectivités et tiers | E141: =HLOOKUP($D$5,'4.1 Comptes 2020 natures'!$E$3:$BE$158,135,0) -> 0.00
C142: 489 | D142: Prélèvement sur le capital propre | E142: =HLOOKUP($D$5,'4.1 Comptes 2020 natures'!$E$3:$BE$158,136,0) -> 0.00
B144: 49 | D144: Imputations internes | E144: =SUM(E145:E152) -> 0.00
C145: 490 | D145: Approvisionnement en matériel et en marchandises | E145: =HLOOKUP($D$5,'4.1 Comptes 2020 natures'!$E$3:$BE$158,139,0) -> 0.00
C146: 491 | D146: Prestations de services | E146: =HLOOKUP($D$5,'4.1 Comptes 2020 natures'!$E$3:$BE$158,140,0) -> 0.00
C147: 492 | D147: Fermages, loyers et frais d'utilisation | E147: =HLOOKUP($D$5,'4.1 Comptes 2020 natures'!$E$3:$BE$158,141,0) -> 0.00
C148: 493 | D148: Frais administratifs et d'exploitations | E148: =HLOOKUP($D$5,'4.1 Comptes 2020 natures'!$E$3:$BE$158,142,0) -> 0.00
C149: 494 | D149: Intérêts et charges financières théoriques | E149: =HLOOKUP($D$5,'4.1 Comptes 2020 natures'!$E$3:$BE$158,143,0) -> 0.00
C150: 495 | D150: Amortissements planifiés et non planifiés | E150: =HLOOKUP($D$5,'4.1 Comptes 2020 natures'!$E$3:$BE$158,144,0) -> 0.00
C151: 498 | D151: Virements comptables | E151: =HLOOKUP($D$5,'4.1 Comptes 2020 natures'!$E$3:$BE$158,145,0) -> 0.00
C152: 499 | D152: Autres imputations internes | E152: =HLOOKUP($D$5,'4.1 Comptes 2020 natures'!$E$3:$BE$158,146,0) -> 0.00
A156: 9 | D156: Comptes de clôture
B157: 90 | D157: Clôture du compte de résultats | E157: =SUM(E158:E159) -> 73,689.05
C158: 900 | D158: Compte général (+ / -) | E158: =HLOOKUP($D$5,'4.1 Comptes 2020 natures'!$E$3:$BE$158,152,0) -> 26,132.85
C159: 901 | D159: Financements spéciaux (+ / -) | E159: =HLOOKUP($D$5,'4.1 Comptes 2020 natures'!$E$3:$BE$158,153,0) -> 47,556.20
D161: Résultat global | E161: =HLOOKUP($D$5,'4.1 Comptes 2020 natures'!$E$3:$BE$158,155,0) -> 73,689.05

Sheet 4.9 Comptes 2020 par habitant
A1: Comptes de résultats par natures 2020
E2: ='Base de données pop.'!C2 -> 923 | F2: ='Base de données pop.'!C3 -> 270 | G2: ='Base de données pop.'!C4 -> 485 | H2: ='Base de données pop.'!C5 -> 446 | I2: ='Base de données pop.'!C6 -> 3,631 | J2: ='Base de données pop.'!C7 -> 3,313 | K2: ='Base de données pop.'!C8 -> 2,644 | L2: ='Base de données pop.'!C9 -> 12,618 | M2: ='Base de données pop.'!C10 -> 1,371 | N2: ='Base de données pop.'!C11 -> 118 | O2: ='Base de données pop.'!C12 -> 7,167 | P2: ='Base de données pop.'!C13 -> 528 | Q2: ='Base de données pop.'!C14 -> 108 | R2: ='Base de données pop.'!C15 -> 415 | S2: ='Base de données pop.'!C16 -> 349 | T2: ='Base de données pop.'!C17 -> 687 | U2: ='Base de données pop.'!C18 -> 255 | V2: ='Base de données pop.'!C19 -> 436 | W2: ='Base de données pop.'!C20 -> 3,190 | X2: ='Base de données pop.'!C21 -> 324 | Y2: ='Base de données pop.'!C22 -> 1,246 | Z2: ='Base de données pop.'!C23 -> 1,528 | AA2: ='Base de données pop.'!C24 -> 96 | AB2: ='Base de données pop.'!C25 -> 149 | AC2: ='Base de données pop.'!C26 -> 516 | AD2: ='Base de données pop.'!C27 -> 671 | AE2: ='Base de données pop.'!C28 -> 572 | AF2: ='Base de données pop.'!C29 -> 490 | AG2: ='Base de données pop.'!C30 -> 1,914 | AH2: ='Base de données pop.'!C31 -> 2,615 | AI2: ='Base de données pop.'!C32 -> 227 | AJ2: ='Base de données pop.'!C33 -> 131 | AK2: ='Base de données pop.'!C34 -> 1,895 | AL2: ='Base de données pop.'!C35 -> 1,135 | AM2: ='Base de données pop.'!C36 -> 1,241 | AN2: ='Base de données pop.'!C37 -> 119 | AO2: ='Base de données pop.'!C38 -> 1,195 | AP2: ='Base de données pop.'!C39 -> 663 | AQ2: ='Base de données pop.'!C40 -> 645 | AR2: ='Base de données pop.'!C41 -> 1,263 | AS2: ='Base de données pop.'!C42 -> 740 | AT2: ='Base de données pop.'!C43 -> 1,028 | AU2: ='Base de données pop.'!C44 -> 314 | AV2: ='Base de données pop.'!C45 -> 2,400 | AW2: ='Base de données pop.'!C46 -> 755 | AX2: ='Base de données pop.'!C47 -> 181 | AY2: ='Base de données pop.'!C48 -> 347 | AZ2: ='Base de données pop.'!C49 -> 1,690 | BA2: ='Base de données pop.'!C50 -> 387 | BB2: ='Base de données pop.'!C51 -> 1,096 | BC2: ='Base de données pop.'!C52 -> 188 | BD2: ='Base de données pop.'!C53 -> 6,434 | BE2: ='Base de données pop.'!C54 -> 560 | BF2: =SUM(E2:BE2) -> 73,709 | BG2: =SUM(E2:W2) -> 38,954 | BH2: =SUM(X2:AJ2) -> 10,479 | BI2: =SUM(AK2:BE2) -> 24,276
E3: Boécourt | F3: Bourrignon | G3: Châtillon | H3: Courchapoix | I3: Courrendlin | J3: Courroux | K3: Courtételle | L3: Delémont | M3: Develier | N3: Ederswiler | O3: Haute-Sorne | P3: Mervelier | Q3: Mettembert | R3: Movelier | S3: Pleigne | T3: Rossemaison | U3: Saulcy | V3: Soyhières | W3: Val Terbi | X3: Le Bémont | Y3: Les Bois | Z3: Les Breuleux | AA3: La Chaux-B. | AB3: Les Enfers | AC3: Les Genevez | AD3: Lajoux | AE3: Montfaucon | AF3: Muriaux | AG3: Le Noirmont | AH3: Saignelégier | AI3: Saint-Brais | AJ3: Soubey | AK3: Alle | AL3: La Baroche | AM3: Basse-Allaine | AN3: Beurnevésin | AO3: Boncourt | AP3: Bonfol | AQ3: Bure | AR3: Clos du Doubs | AS3: Coeuve | AT3: Cornol | AU3: Courchavon | AV3: Courgenay | AW3: Courtedoux | AX3: Damphreux | AY3: Fahy | AZ3: Fontenais | BA3: Grandfontaine | BB3: Haute-Ajoie | BC3: Lugnez | BD3: Porrentruy | BE3: Vendlincourt | BF3: Total | BG3: Delémont | BH3: Franches-Montagnes | BI3: Porrentruy
A4: 3 | D4: Charges | E4: =E5+E15+E27+E31+E39+E43+E53+E56+E64 -> 4,359.34 | F4: =F5+F15+F27+F31+F39+F43+F53+F56+F64 -> 3,794.36 | G4: 3,588.98 | H4: 3,898.00 | I4: 3,876.92 | J4: 4,031.67 | K4: 3,857.35 | L4: 7,855.49 | M4: 5,231.69 | N4: 3,942.29 | O4: 3,568.35 | P4: 3,834.07 | Q4: 3,505.70 | R4: 3,705.63 | S4: 3,886.40 | T4: 3,808.18 | U4: 3,939.68 | V4: 5,550.89 | W4: 3,685.69 | X4: 5,701.23 | Y4: 4,544.73 | Z4: 7,091.97 | AA4: 6,713.89 | AB4: 5,556.99 | AC4: 5,280.83 | AD4: 5,102.75 | AE4: 4,691.09 | AF4: 7,580.48 | AG4: 4,609.16 | AH4: 4,430.12 | AI4: 5,062.55 | AJ4: 4,902.56 | AK4: 4,220.68 | AL4: 5,072.04 | AM4: 3,716.84 | AN4: 4,740.53 | AO4: 6,986.37 | AP4: 5,698.28 | AQ4: 3,876.38 | AR4: 5,697.45 | AS4: 4,064.70 | AT4: 4,237.84 | AU4: 8,463.17 | AV4: 3,723.76 | AW4: 3,908.06 | AX4: 4,095.28 | AY4: 4,286.64 | AZ4: 4,156.16 | BA4: 4,493.81 | BB4: 5,174.50 | BC4: 3,384.86 | BD4: 6,290.19 | BE4: 4,277.92 | BF4: 251,754.47 | BG4: 79,920.65 | BH4: 71,268.36 | BI4: 100,565.45
B5: 30 | D5: Charges du personnel | E5: =E6+E7+E8+E9+E10+E11+E12+E13 -> 508.97 | F5: =F6+F7+F8+F9+F10+F11+F12+F13 -> 195.81 | G5: 286.02 | H5: 525.18 | I5: 720.96 | J5: 879.84 | K5: 407.51 | L5: 1,887.70 | M5: 906.68 | N5: 352.31 | O5: 500.54 | P5: 316.06 | Q5: 644.41 | R5: 574.08 | S5: 346.01 | T5: 429.09 | U5: 452.67 | V5: 782.79 | W5: 666.63 | X5: 307.34 | Y5: 1,003.75 | Z5: 1,067.88 | AA5: 974.56 | AB5: 446.06 | AC5: 529.94 | AD5: 839.16 | AE5: 520.27 | AF5: 728.69 | AG5: 504.31 | AH5: 702.81 | AI5: 441.91 | AJ5: 506.40 | AK5: 408.28 | AL5: 568.18 | AM5: 398.66 | AN5: 558.24 | AO5: 1,063.26 | AP5: 1,194.06 | AQ5: 376.64 | AR5: 872.62 | AS5: 596.33 | AT5: 426.62 | AU5: 341.06 | AV5: 420.22 | AW5: 628.53 | AX5: 483.64 | AY5: 408.84 | AZ5: 516.81 | BA5: 305.92 | BB5: 1,160.67 | BC5: 388.22 | BD5: 1,663.73 | BE5: 570.60 | BF5: 33,307.47 | BG5: 11,383.27 | BH5: 8,573.08 | BI5: 13,351.12
C6: 300 | D6: Autorités et commissions | E6: ='4.1 Comptes 2020 natures'!E6/'4.1 Comptes 2020 natures'!E2 -> 43.04 | F6: ='4.1 Comptes 2020 natures'!F6/'4.1 Comptes 2020 natures'!F2 -> 74.09 | G6: ='4.1 Comptes 2020 natures'!G6/'4.1 Comptes 2020 natures'!G2 -> 58.88 | H6: ='4.1 Comptes 2020 natures'!H6/'4.1 Comptes 2020 natures'!H2 -> 90.50 | I6: ='4.1 Comptes 2020 natures'!I6/'4.1 Comptes 2020 natures'!I2 -> 50.70 | J6: ='4.1 Comptes 2020 natures'!J6/'4.1 Comptes 2020 natures'!J2 -> 41.90 | K6: ='4.1 Comptes 2020 natures'!K6/'4.1 Comptes 2020 natures'!K2 -> 38.41 | L6: ='4.1 Comptes 2020 natures'!L6/'4.1 Comptes 2020 natures'!L2 -> 58.67 | M6: ='4.1 Comptes 2020 natures'!M6/'4.1 Comptes 2020 natures'!M2 -> 47.36 | N6: ='4.1 Comptes 2020 natures'!N6/'4.1 Comptes 2020 natures'!N2 -> 150.67 | O6: ='4.1 Comptes 2020 natures'!O6/'4.1 Comptes 2020 natures'!O2 -> 39.18 | P6: ='4.1 Comptes 2020 natures'!P6/'4.1 Comptes 2020 natures'!P2 -> 68.49 | Q6: ='4.1 Comptes 2020 natures'!Q6/'4.1 Comptes 2020 natures'!Q2 -> 135.78 | R6: ='4.1 Comptes 2020 natures'!R6/'4.1 Comptes 2020 natures'!R2 -> 60.63 | S6: ='4.1 Comptes 2020 natures'!S6/'4.1 Comptes 2020 natures'!S2 -> 75.70 | T6: ='4.1 Comptes 2020 natures'!T6/'4.1 Comptes 2020 natures'!T2 -> 82.68 | U6: ='4.1 Comptes 2020 natures'!U6/'4.1 Comptes 2020 natures'!U2 -> 48.78 | V6: ='4.1 Comptes 2020 natures'!V6/'4.1 Comptes 2020 natures'!V2 -> 130.66 | W6: ='4.1 Comptes 2020 natures'!W6/'4.1 Comptes 2020 natures'!W2 -> 29.75 | X6: ='4.1 Comptes 2020 natures'!X6/'4.1 Comptes 2020 natures'!X2 -> 118.16 | Y6: ='4.1 Comptes 2020 natures'!Y6/'4.1 Comptes 2020 natures'!Y2 -> 46.30 | Z6: ='4.1 Comptes 2020 natures'!Z6/'4.1 Comptes 2020 natures'!Z2 -> 33.40 | AA6: ='4.1 Comptes 2020 natures'!AA6/'4.1 Comptes 2020 natures'!AA2 -> 68.10 | AB6: ='4.1 Comptes 2020 natures'!AB6/'4.1 Comptes 2020 natures'!AB2 -> 77.76 | AC6: ='4.1 Comptes 2020 natures'!AC6/'4.1 Comptes 2020 natures'!AC2 -> 45.21 | AD6: ='4.1 Comptes 2020 natures'!AD6/'4.1 Comptes 2020 natures'!AD2 -> 28.78 | AE6: ='4.1 Comptes 2020 natures'!AE6/'4.1 Comptes 2020 natures'!AE2 -> 39.39 | AF6: ='4.1 Comptes 2020 natures'!AF6/'4.1 Comptes 2020 natures'!AF2 -> 53.54 | AG6: ='4.1 Comptes 2020 natures'!AG6/'4.1 Comptes 2020 natures'!AG2 -> 45.81 | AH6: ='4.1 Comptes 2020 natures'!AH6/'4.1 Comptes 2020 natures'!AH2 -> 21.73 | AI6: ='4.1 Comptes 2020 natures'!AI6/'4.1 Comptes 2020 natures'!AI2 -> 86.51 | AJ6: ='4.1 Comptes 2020 natures'!AJ6/'4.1 Comptes 2020 natures'!AJ2 -> 112.84 | AK6: ='4.1 Comptes 2020 natures'!AK6/'4.1 Comptes 2020 natures'!AK2 -> 78.95 | AL6: ='4.1 Comptes 2020 natures'!AL6/'4.1 Comptes 2020 natures'!AL2 -> 42.83 | AM6: ='4.1 Comptes 2020 natures'!AM6/'4.1 Comptes 2020 natures'!AM2 -> 38.76 | AN6: ='4.1 Comptes 2020 natures'!AN6/'4.1 Comptes 2020 natures'!AN2 -> 149.39 | AO6: ='4.1 Comptes 2020 natures'!AO6/'4.1 Comptes 2020 natures'!AO2 -> 77.70 | AP6: ='4.1 Comptes 2020 natures'!AP6/'4.1 Comptes 2020 natures'!AP2 -> 39.54 | AQ6: ='4.1 Comptes 2020 natures'!AQ6/'4.1 Comptes 2020 natures'!AQ2 -> 63.61 | AR6: ='4.1 Comptes 2020 natures'!AR6/'4.1 Comptes 2020 natures'!AR2 -> 58.51 | AS6: ='4.1 Comptes 2020 natures'!AS6/'4.1 Comptes 2020 natures'!AS2 -> 47.30 | AT6: ='4.1 Comptes 2020 natures'!AT6/'4.1 Comptes 2020 natures'!AT2 -> 37.62 | AU6: ='4.1 Comptes 2020 natures'!AU6/'4.1 Comptes 2020 natures'!AU2 -> 43.04 | AV6: ='4.1 Comptes 2020 natures'!AV6/'4.1 Comptes 2020 natures'!AV2 -> 23.20 | AW6: ='4.1 Comptes 2020 natures'!AW6/'4.1 Comptes 2020 natures'!AW2 -> 71.14 | AX6: ='4.1 Comptes 2020 natures'!AX6/'4.1 Comptes 2020 natures'!AX2 -> 63.63 | AY6: ='4.1 Comptes 2020 natures'!AY6/'4.1 Comptes 2020 natures'!AY2 -> 38.06 | AZ6: ='4.1 Comptes 2020 natures'!AZ6/'4.1 Comptes 2020 natures'!AZ2 -> 30.75 | BA6: ='4.1 Comptes 2020 natures'!BA6/'4.1 Comptes 2020 natures'!BA2 -> 59.84 | BB6: ='4.1 Comptes 2020 natures'!BB6/'4.1 Comptes 2020 natures'!BB2 -> 47.12 | BC6: ='4.1 Comptes 2020 natures'!BC6/'4.1 Comptes 2020 natures'!BC2 -> 71.62 | BD6: ='4.1 Comptes 2020 natures'!BD6/'4.1 Comptes 2020 natures'!BD2 -> 38.63 | BE6: ='4.1 Comptes 2020 natures'!BE6/'4.1 Comptes 2020 natures'!BE2 -> 45.95 | BF6: =SUM(E6:BE6) -> 3,270.61 | BG6: =SUM(E6:W6) -> 1,325.86 | BH6: =SUM(X6:AJ6) -> 777.54 | BI6: =SUM(AK6:BE6) -> 1,167.21
C7: 301 | D7: Personnel administratif et d'exploitation | E7: ='4.1 Comptes 2020 natures'!E7/'4.1 Comptes 2020 natures'!E2 -> 382.70 | F7: ='4.1 Comptes 2020 natures'!F7/'4.1 Comptes 2020 natures'!F2 -> 109.25 | G7: ='4.1 Comptes 2020 natures'!G7/'4.1 Comptes 2020 natures'!G2 -> 192.26 | H7: ='4.1 Comptes 2020 natures'!H7/'4.1 Comptes 2020 natures'!H2 -> 349.21 | I7: ='4.1 Comptes 2020 natures'!I7/'4.1 Comptes 2020 natures'!I2 -> 543.10 | J7: ='4.1 Comptes 2020 natures'!J7/'4.1 Comptes 2020 natures'!J2 -> 648.39 | K7: ='4.1 Comptes 2020 natures'!K7/'4.1 Comptes 2020 natures'!K2 -> 286.02 | L7: ='4.1 Comptes 2020 natures'!L7/'4.1 Comptes 2020 natures'!L2 -> 1,495.65 | M7: ='4.1 Comptes 2020 natures'!M7/'4.1 Comptes 2020 natures'!M2 -> 719.67 | N7: ='4.1 Comptes 2020 natures'!N7/'4.1 Comptes 2020 natures'!N2 -> 163.52 | O7: ='4.1 Comptes 2020 natures'!O7/'4.1 Comptes 2020 natures'!O2 -> 373.75 | P7: ='4.1 Comptes 2020 natures'!P7/'4.1 Comptes 2020 natures'!P2 -> 189.24 | Q7: ='4.1 Comptes 2020 natures'!Q7/'4.1 Comptes 2020 natures'!Q2 -> 420.88 | R7: ='4.1 Comptes 2020 natures'!R7/'4.1 Comptes 2020 natures'!R2 -> 398.69 | S7: ='4.1 Comptes 2020 natures'!S7/'4.1 Comptes 2020 natures'!S2 -> 247.30 | T7: ='4.1 Comptes 2020 natures'!T7/'4.1 Comptes 2020 natures'!T2 -> 280.53 | U7: ='4.1 Comptes 2020 natures'!U7/'4.1 Comptes 2020 natures'!U2 -> 353.89 | V7: ='4.1 Comptes 2020 natures'!V7/'4.1 Comptes 2020 natures'!V2 -> 541.35 | W7: ='4.1 Comptes 2020 natures'!W7/'4.1 Comptes 2020 natures'!W2 -> 531.00 | X7: ='4.1 Comptes 2020 natures'!X7/'4.1 Comptes 2020 natures'!X2 -> 155.09 | Y7: ='4.1 Comptes 2020 natures'!Y7/'4.1 Comptes 2020 natures'!Y2 -> 805.31 | Z7: ='4.1 Comptes 2020 natures'!Z7/'4.1 Comptes 2020 natures'!Z2 -> 863.83 | AA7: ='4.1 Comptes 2020 natures'!AA7/'4.1 Comptes 2020 natures'!AA2 -> 781.45 | AB7: ='4.1 Comptes 2020 natures'!AB7/'4.1 Comptes 2020 natures'!AB2 -> 326.23 | AC7: ='4.1 Comptes 2020 natures'!AC7/'4.1 Comptes 2020 natures'!AC2 -> 406.72 | AD7: ='4.1 Comptes 2020 natures'!AD7/'4.1 Comptes 2020 natures'!AD2 -> 661.17 | AE7: ='4.1 Comptes 2020 natures'!AE7/'4.1 Comptes 2020 natures'!AE2 -> 395.14 | AF7: ='4.1 Comptes 2020 natures'!AF7/'4.1 Comptes 2020 natures'!AF2 -> 532.07 | AG7: ='4.1 Comptes 2020 natures'!AG7/'4.1 Comptes 2020 natures'!AG2 -> 367.61 | AH7: ='4.1 Comptes 2020 natures'!AH7/'4.1 Comptes 2020 natures'!AH2 -> 555.78 | AI7: ='4.1 Comptes 2020 natures'!AI7/'4.1 Comptes 2020 natures'!AI2 -> 306.61 | AJ7: ='4.1 Comptes 2020 natures'!AJ7/'4.1 Comptes 2020 natures'!AJ2 -> 332.67 | AK7: ='4.1 Comptes 2020 natures'!AK7/'4.1 Comptes 2020 natures'!AK2 -> 320.58 | AL7: ='4.1 Comptes 2020 natures'!AL7/'4.1 Comptes 2020 natures'!AL2 -> 434.19 | AM7: ='4.1 Comptes 2020 natures'!AM7/'4.1 Comptes 2020 natures'!AM2 -> 303.09 | AN7: ='4.1 Comptes 2020 natures'!AN7/'4.1 Comptes 2020 natures'!AN2 -> 320.00 | AO7: ='4.1 Comptes 2020 natures'!AO7/'4.1 Comptes 2020 natures'!AO2 -> 824.75 | AP7: ='4.1 Comptes 2020 natures'!AP7/'4.1 Comptes 2020 natures'!AP2 -> 969.70 | AQ7: ='4.1 Comptes 2020 natures'!AQ7/'4.1 Comptes 2020 natures'!AQ2 -> 250.93 | AR7: ='4.1 Comptes 2020 natures'!AR7/'4.1 Comptes 2020 natures'!AR2 -> 693.10 | AS7: ='4.1 Comptes 2020 natures'!AS7/'4.1 Comptes 2020 natures'!AS2 -> 453.18 | AT7: ='4.1 Comptes 2020 natures'!AT7/'4.1 Comptes 2020 natures'!AT2 -> 320.96 | AU7: ='4.1 Comptes 2020 natures'!AU7/'4.1 Comptes 2020 natures'!AU2 -> 245.94 | AV7: ='4.1 Comptes 2020 natures'!AV7/'4.1 Comptes 2020 natures'!AV2 -> 319.61 | AW7: ='4.1 Comptes 2020 natures'!AW7/'4.1 Comptes 2020 natures'!AW2 -> 459.98 | AX7: ='4.1 Comptes 2020 natures'!AX7/'4.1 Comptes 2020 natures'!AX2 -> 341.39 | AY7: ='4.1 Comptes 2020 natures'!AY7/'4.1 Comptes 2020 natures'!AY2 -> 314.62 | AZ7: ='4.1 Comptes 2020 natures'!AZ7/'4.1 Comptes 2020 natures'!AZ2 -> 397.95 | BA7: ='4.1 Comptes 2020 natures'!BA7/'4.1 Comptes 2020 natures'!BA2 -> 195.10 | BB7: ='4.1 Comptes 2020 natures'!BB7/'4.1 Comptes 2020 natures'!BB2 -> 912.43 | BC7: ='4.1 Comptes 2020 natures'!BC7/'4.1 Comptes 2020 natures'!BC2 -> 262.10 | BD7: ='4.1 Comptes 2020 natures'!BD7/'4.1 Comptes 2020 natures'!BD2 -> 1,339.11 | BE7: ='4.1 Comptes 2020 natures'!BE7/'4.1 Comptes 2020 natures'!BE2 -> 445.25 | BF7: =SUM(E7:BE7) -> 24,840.03 | BG7: =SUM(E7:W7) -> 8,226.41 | BH7: =SUM(X7:AJ7) -> 6,489.67 | BI7: =SUM(AK7:BE7) -> 10,123.95
C8: 302 | D8: Enseignants | E8: ='4.1 Comptes 2020 natures'!E8/'4.1 Comptes 2020 natures'!E2 -> 0.00 | F8: ='4.1 Comptes 2020 natures'!F8/'4.1 Comptes 2020 natures'!F2 -> 0.00 | G8: ='4.1 Comptes 2020 natures'!G8/'4.1 Comptes 2020 natures'!G2 -> 0.00 | H8: ='4.1 Comptes 2020 natures'!H8/'4.1 Comptes 2020 natures'!H2 -> 0.00 | I8: ='4.1 Comptes 2020 natures'!I8/'4.1 Comptes 2020 natures'!I2 -> 0.00 | J8: ='4.1 Comptes 2020 natures'!J8/'4.1 Comptes 2020 natures'!J2 -> 0.00 | K8: ='4.1 Comptes 2020 natures'!K8/'4.1 Comptes 2020 natures'!K2 -> 0.00 | L8: ='4.1 Comptes 2020 natures'!L8/'4.1 Comptes 2020 natures'!L2 -> 0.00 | M8: ='4.1 Comptes 2020 natures'!M8/'4.1 Comptes 2020 natures'!M2 -> 0.00 | N8: ='4.1 Comptes 2020 natures'!N8/'4.1 Comptes 2020 natures'!N2 -> 0.00 | O8: ='4.1 Comptes 2020 natures'!O8/'4.1 Comptes 2020 natures'!O2 -> 0.00 | P8: ='4.1 Comptes 2020 natures'!P8/'4.1 Comptes 2020 natures'!P2 -> 0.00 | Q8: ='4.1 Comptes 2020 natures'!Q8/'4.1 Comptes 2020 natures'!Q2 -> 0.00 | R8: ='4.1 Comptes 2020 natures'!R8/'4.1 Comptes 2020 natures'!R2 -> 0.00 | S8: ='4.1 Comptes 2020 natures'!S8/'4.1 Comptes 2020 natures'!S2 -> 0.00 | T8: ='4.1 Comptes 2020 natures'!T8/'4.1 Comptes 2020 natures'!T2 -> 0.00 | U8: ='4.1 Comptes 2020 natures'!U8/'4.1 Comptes 2020 natures'!U2 -> 0.00 | V8: ='4.1 Comptes 2020 natures'!V8/'4.1 Comptes 2020 natures'!V2 -> 0.00 | W8: ='4.1 Comptes 2020 natures'!W8/'4.1 Comptes 2020 natures'!W2 -> 0.00 | X8: ='4.1 Comptes 2020 natures'!X8/'4.1 Comptes 2020 natures'!X2 -> 0.00 | Y8: ='4.1 Comptes 2020 natures'!Y8/'4.1 Comptes 2020 natures'!Y2 -> 0.00 | Z8: ='4.1 Comptes 2020 natures'!Z8/'4.1 Comptes 2020 natures'!Z2 -> 0.00 | AA8: ='4.1 Comptes 2020 natures'!AA8/'4.1 Comptes 2020 natures'!AA2 -> 0.00 | AB8: ='4.1 Comptes 2020 natures'!AB8/'4.1 Comptes 2020 natures'!AB2 -> 0.00 | AC8: ='4.1 Comptes 2020 natures'!AC8/'4.1 Comptes 2020 natures'!AC2 -> 0.00 | AD8: ='4.1 Comptes 2020 natures'!AD8/'4.1 Comptes 2020 natures'!AD2 -> 0.00 | AE8: ='4.1 Comptes 2020 natures'!AE8/'4.1 Comptes 2020 natures'!AE2 -> 0.00 | AF8: ='4.1 Comptes 2020 natures'!AF8/'4.1 Comptes 2020 natures'!AF2 -> 0.00 | AG8: ='4.1 Comptes 2020 natures'!AG8/'4.1 Comptes 2020 natures'!AG2 -> 1.90 | AH8: ='4.1 Comptes 2020 natures'!AH8/'4.1 Comptes 2020 natures'!AH2 -> 0.00 | AI8: ='4.1 Comptes 2020 natures'!AI8/'4.1 Comptes 2020 natures'!AI2 -> 0.00 | AJ8: ='4.1 Comptes 2020 natures'!AJ8/'4.1 Comptes 2020 natures'!AJ2 -> 0.00 | AK8: ='4.1 Comptes 2020 natures'!AK8/'4.1 Comptes 2020 natures'!AK2 -> 0.00 | AL8: ='4.1 Comptes 2020 natures'!AL8/'4.1 Comptes 2020 natures'!AL2 -> 0.00 | AM8: ='4.1 Comptes 2020 natures'!AM8/'4.1 Comptes 2020 natures'!AM2 -> 0.00 | AN8: ='4.1 Comptes 2020 natures'!AN8/'4.1 Comptes 2020 natures'!AN2 -> 0.00 | AO8: ='4.1 Comptes 2020 natures'!AO8/'4.1 Comptes 2020 natures'!AO2 -> 0.00 | AP8: ='4.1 Comptes 2020 natures'!AP8/'4.1 Comptes 2020 natures'!AP2 -> 0.00 | AQ8: ='4.1 Comptes 2020 natures'!AQ8/'4.1 Comptes 2020 natures'!AQ2 -> 0.00 | AR8: ='4.1 Comptes 2020 natures'!AR8/'4.1 Comptes 2020 natures'!AR2 -> 0.00 | AS8: ='4.1 Comptes 2020 natures'!AS8/'4.1 Comptes 2020 natures'!AS2 -> 0.00 | AT8: ='4.1 Comptes 2020 natures'!AT8/'4.1 Comptes 2020 natures'!AT2 -> 0.00 | AU8: ='4.1 Comptes 2020 natures'!AU8/'4.1 Comptes 2020 natures'!AU2 -> 0.00 | AV8: ='4.1 Comptes 2020 natures'!AV8/'4.1 Comptes 2020 natures'!AV2 -> 0.00 | AW8: ='4.1 Comptes 2020 natures'!AW8/'4.1 Comptes 2020 natures'!AW2 -> 0.00 | AX8: ='4.1 Comptes 2020 natures'!AX8/'4.1 Comptes 2020 natures'!AX2 -> 0.00 | AY8: ='4.1 Comptes 2020 natures'!AY8/'4.1 Comptes 2020 natures'!AY2 -> 0.00 | AZ8: ='4.1 Comptes 2020 natures'!AZ8/'4.1 Comptes 2020 natures'!AZ2 -> 0.00 | BA8: ='4.1 Comptes 2020 natures'!BA8/'4.1 Comptes 2020 natures'!BA2 -> 0.00 | BB8: ='4.1 Comptes 2020 natures'!BB8/'4.1 Comptes 2020 natures'!BB2 -> 0.00 | BC8: ='4.1 Comptes 2020 natures'!BC8/'4.1 Comptes 2020 natures'!BC2 -> 0.00 | BD8: ='4.1 Comptes 2020 natures'!BD8/'4.1 Comptes 2020 natures'!BD2 -> 0.00 | BE8: ='4.1 Comptes 2020 natures'!BE8/'4.1 Comptes 2020 natures'!BE2 -> 0.00 | BF8: 1.90 | BG8: 0.00 | BH8: 1.90 | BI8: 0.00
C9: 303 | D9: Personnel temporaire administratif et d'exploitation | E9: ='4.1 Comptes 2020 natures'!E9/'4.1 Comptes 2020 natures'!E2 -> 0.00 | F9: ='4.1 Comptes 2020 natures'!F9/'4.1 Comptes 2020 natures'!F2 -> 0.00 | G9: ='4.1 Comptes 2020 natures'!G9/'4.1 Comptes 2020 natures'!G2 -> 0.00 | H9: ='4.1 Comptes 2020 natures'!H9/'4.1 Comptes 2020 natures'!H2 -> 0.00 | I9: ='4.1 Comptes 2020 natures'!I9/'4.1 Comptes 2020 natures'!I2 -> 0.00 | J9: ='4.1 Comptes 2020 natures'!J9/'4.1 Comptes 2020 natures'!J2 -> 0.00 | K9: ='4.1 Comptes 2020 natures'!K9/'4.1 Comptes 2020 natures'!K2 -> 0.00 | L9: ='4.1 Comptes 2020 natures'!L9/'4.1 Comptes 2020 natures'!L2 -> 0.00 | M9: ='4.1 Comptes 2020 natures'!M9/'4.1 Comptes 2020 natures'!M2 -> 2.92 | N9: ='4.1 Comptes 2020 natures'!N9/'4.1 Comptes 2020 natures'!N2 -> 0.00 | O9: ='4.1 Comptes 2020 natures'!O9/'4.1 Comptes 2020 natures'!O2 -> 0.00 | P9: ='4.1 Comptes 2020 natures'!P9/'4.1 Comptes 2020 natures'!P2 -> 0.00 | Q9: ='4.1 Comptes 2020 natures'!Q9/'4.1 Comptes 2020 natures'!Q2 -> 0.00 | R9: ='4.1 Comptes 2020 natures'!R9/'4.1 Comptes 2020 natures'!R2 -> 0.00 | S9: ='4.1 Comptes 2020 natures'!S9/'4.1 Comptes 2020 natures'!S2 -> 0.00 | T9: ='4.1 Comptes 2020 natures'!T9/'4.1 Comptes 2020 natures'!T2 -> 0.00 | U9: ='4.1 Comptes 2020 natures'!U9/'4.1 Comptes 2020 natures'!U2 -> 0.00 | V9: ='4.1 Comptes 2020 natures'!V9/'4.1 Comptes 2020 natures'!V2 -> 0.00 | W9: ='4.1 Comptes 2020 natures'!W9/'4.1 Comptes 2020 natures'!W2 -> 0.00 | X9: ='4.1 Comptes 2020 natures'!X9/'4.1 Comptes 2020 natures'!X2 -> 0.00 | Y9: ='4.1 Comptes 2020 natures'!Y9/'4.1 Comptes 2020 natures'!Y2 -> 0.00 | Z9: ='4.1 Comptes 2020 natures'!Z9/'4.1 Comptes 2020 natures'!Z2 -> 0.00 | AA9: ='4.1 Comptes 2020 natures'!AA9/'4.1 Comptes 2020 natures'!AA2 -> 0.00 | AB9: ='4.1 Comptes 2020 natures'!AB9/'4.1 Comptes 2020 natures'!AB2 -> 0.00 | AC9: ='4.1 Comptes 2020 natures'!AC9/'4.1 Comptes 2020 natures'!AC2 -> 0.00 | AD9: ='4.1 Comptes 2020 natures'!AD9/'4.1 Comptes 2020 natures'!AD2 -> 0.00 | AE9: ='4.1 Comptes 2020 natures'!AE9/'4.1 Comptes 2020 natures'!AE2 -> 0.00 | AF9: ='4.1 Comptes 2020 natures'!AF9/'4.1 Comptes 2020 natures'!AF2 -> 0.00 | AG9: ='4.1 Comptes 2020 natures'!AG9/'4.1 Comptes 2020 natures'!AG2 -> 0.00 | AH9: ='4.1 Comptes 2020 natures'!AH9/'4.1 Comptes 2020 natures'!AH2 -> 0.00 | AI9: ='4.1 Comptes 2020 natures'!AI9/'4.1 Comptes 2020 natures'!AI2 -> 0.88 | AJ9: ='4.1 Comptes 2020 natures'!AJ9/'4.1 Comptes 2020 natures'!AJ2 -> 0.00 | AK9: ='4.1 Comptes 2020 natures'!AK9/'4.1 Comptes 2020 natures'!AK2 -> 0.00 | AL9: ='4.1 Comptes 2020 natures'!AL9/'4.1 Comptes 2020 natures'!AL2 -> 0.00 | AM9: ='4.1 Comptes 2020 natures'!AM9/'4.1 Comptes 2020 natures'!AM2 -> 0.00 | AN9: ='4.1 Comptes 2020 natures'!AN9/'4.1 Comptes 2020 natures'!AN2 -> 5.04 | AO9: ='4.1 Comptes 2020 natures'!AO9/'4.1 Comptes 2020 natures'!AO2 -> 0.00 | AP9: ='4.1 Comptes 2020 natures'!AP9/'4.1 Comptes 2020 natures'!AP2 -> 0.00 | AQ9: ='4.1 Comptes 2020 natures'!AQ9/'4.1 Comptes 2020 natures'!AQ2 -> 0.00 | AR9: ='4.1 Comptes 2020 natures'!AR9/'4.1 Comptes 2020 natures'!AR2 -> 0.00 | AS9: ='4.1 Comptes 2020 natures'!AS9/'4.1 Comptes 2020 natures'!AS2 -> 0.00 | AT9: ='4.1 Comptes 2020 natures'!AT9/'4.1 Comptes 2020 natures'!AT2 -> 0.00 | AU9: ='4.1 Comptes 2020 natures'!AU9/'4.1 Comptes 2020 natures'!AU2 -> 0.00 | AV9: ='4.1 Comptes 2020 natures'!AV9/'4.1 Comptes 2020 natures'!AV2 -> 0.00 | AW9: ='4.1 Comptes 2020 natures'!AW9/'4.1 Comptes 2020 natures'!AW2 -> 0.66 | AX9: ='4.1 Comptes 2020 natures'!AX9/'4.1 Comptes 2020 natures'!AX2 -> 0.00 | AY9: ='4.1 Comptes 2020 natures'!AY9/'4.1 Comptes 2020 natures'!AY2 -> 0.00 | AZ9: ='4.1 Comptes 2020 natures'!AZ9/'4.1 Comptes 2020 natures'!AZ2 -> 0.00 | BA9: ='4.1 Comptes 2020 natures'!BA9/'4.1 Comptes 2020 natures'!BA2 -> 0.65 | BB9: ='4.1 Comptes 2020 natures'!BB9/'4.1 Comptes 2020 natures'!BB2 -> 1.13 | BC9: ='4.1 Comptes 2020 natures'!BC9/'4.1 Comptes 2020 natures'!BC2 -> 0.00 | BD9: ='4.1 Comptes 2020 natures'!BD9/'4.1 Comptes 2020 natures'!BD2 -> 0.00 | BE9: ='4.1 Comptes 2020 natures'!BE9/'4.1 Comptes 2020 natures'!BE2 -> 0.00 | BF9: 11.28 | BG9: 2.92 | BH9: 0.88 | BI9: 7.48
C10: 304 | D10: Allocations et indemnités | E10: ='4.1 Comptes 2020 natures'!E10/'4.1 Comptes 2020 natures'!E2 -> 0.00 | F10: ='4.1 Comptes 2020 natures'!F10/'4.1 Comptes 2020 natures'!F2 -> 0.00 | G10: ='4.1 Comptes 2020 natures'!G10/'4.1 Comptes 2020 natures'!G2 -> 0.00 | H10: ='4.1 Comptes 2020 natures'!H10/'4.1 Comptes 2020 natures'!H2 -> 0.00 | I10: ='4.1 Comptes 2020 natures'!I10/'4.1 Comptes 2020 natures'!I2 -> 0.00 | J10: ='4.1 Comptes 2020 natures'!J10/'4.1 Comptes 2020 natures'!J2 -> 6.61 | K10: ='4.1 Comptes 2020 natures'!K10/'4.1 Comptes 2020 natures'!K2 -> 0.00 | L10: ='4.1 Comptes 2020 natures'!L10/'4.1 Comptes 2020 natures'!L2 -> 0.00 | M10: ='4.1 Comptes 2020 natures'!M10/'4.1 Comptes 2020 natures'!M2 -> 0.00 | N10: ='4.1 Comptes 2020 natures'!N10/'4.1 Comptes 2020 natures'!N2 -> 0.00 | O10: ='4.1 Comptes 2020 natures'!O10/'4.1 Comptes 2020 natures'!O2 -> 0.00 | P10: ='4.1 Comptes 2020 natures'!P10/'4.1 Comptes 2020 natures'!P2 -> 0.00 | Q10: ='4.1 Comptes 2020 natures'!Q10/'4.1 Comptes 2020 natures'!Q2 -> 0.00 | R10: ='4.1 Comptes 2020 natures'!R10/'4.1 Comptes 2020 natures'!R2 -> 0.00 | S10: ='4.1 Comptes 2020 natures'!S10/'4.1 Comptes 2020 natures'!S2 -> 0.00 | T10: ='4.1 Comptes 2020 natures'!T10/'4.1 Comptes 2020 natures'!T2 -> 0.00 | U10: ='4.1 Comptes 2020 natures'!U10/'4.1 Comptes 2020 natures'!U2 -> 0.00 | V10: ='4.1 Comptes 2020 natures'!V10/'4.1 Comptes 2020 natures'!V2 -> 0.00 | W10: ='4.1 Comptes 2020 natures'!W10/'4.1 Comptes 2020 natures'!W2 -> 0.00 | X10: ='4.1 Comptes 2020 natures'!X10/'4.1 Comptes 2020 natures'!X2 -> 0.00 | Y10: ='4.1 Comptes 2020 natures'!Y10/'4.1 Comptes 2020 natures'!Y2 -> 0.00 | Z10: ='4.1 Comptes 2020 natures'!Z10/'4.1 Comptes 2020 natures'!Z2 -> 0.00 | AA10: ='4.1 Comptes 2020 natures'!AA10/'4.1 Comptes 2020 natures'!AA2 -> 0.00 | AB10: ='4.1 Comptes 2020 natures'!AB10/'4.1 Comptes 2020 natures'!AB2 -> 0.00 | AC10: ='4.1 Comptes 2020 natures'!AC10/'4.1 Comptes 2020 natures'!AC2 -> 0.00 | AD10: ='4.1 Comptes 2020 natures'!AD10/'4.1 Comptes 2020 natures'!AD2 -> 0.00 | AE10: ='4.1 Comptes 2020 natures'!AE10/'4.1 Comptes 2020 natures'!AE2 -> 0.00 | AF10: ='4.1 Comptes 2020 natures'!AF10/'4.1 Comptes 2020 natures'!AF2 -> 0.00 | AG10: ='4.1 Comptes 2020 natures'!AG10/'4.1 Comptes 2020 natures'!AG2 -> 0.00 | AH10: ='4.1 Comptes 2020 natures'!AH10/'4.1 Comptes 2020 natures'!AH2 -> 19.12 | AI10: ='4.1 Comptes 2020 natures'!AI10/'4.1 Comptes 2020 natures'!AI2 -> 7.88 | AJ10: ='4.1 Comptes 2020 natures'!AJ10/'4.1 Comptes 2020 natures'!AJ2 -> 0.00 | AK10: ='4.1 Comptes 2020 natures'!AK10/'4.1 Comptes 2020 natures'!AK2 -> 0.00 | AL10: ='4.1 Comptes 2020 natures'!AL10/'4.1 Comptes 2020 natures'!AL2 -> 0.00 | AM10: ='4.1 Comptes 2020 natures'!AM10/'4.1 Comptes 2020 natures'!AM2 -> 0.00 | AN10: ='4.1 Comptes 2020 natures'!AN10/'4.1 Comptes 2020 natures'!AN2 -> 0.00 | AO10: ='4.1 Comptes 2020 natures'!AO10/'4.1 Comptes 2020 natures'!AO2 -> 0.00 | AP10: ='4.1 Comptes 2020 natures'!AP10/'4.1 Comptes 2020 natures'!AP2 -> 0.00 | AQ10: ='4.1 Comptes 2020 natures'!AQ10/'4.1 Comptes 2020 natures'!AQ2 -> 0.00 | AR10: ='4.1 Comptes 2020 natures'!AR10/'4.1 Comptes 2020 natures'!AR2 -> 0.00 | AS10: ='4.1 Comptes 2020 natures'!AS10/'4.1 Comptes 2020 natures'!AS2 -> 0.00 | AT10: ='4.1 Comptes 2020 natures'!AT10/'4.1 Comptes 2020 natures'!AT2 -> 0.00 | AU10: ='4.1 Comptes 2020 natures'!AU10/'4.1 Comptes 2020 natures'!AU2 -> 0.00 | AV10: ='4.1 Comptes 2020 natures'!AV10/'4.1 Comptes 2020 natures'!AV2 -> 0.00 | AW10: ='4.1 Comptes 2020 natures'!AW10/'4.1 Comptes 2020 natures'!AW2 -> 0.00 | AX10: ='4.1 Comptes 2020 natures'!AX10/'4.1 Comptes 2020 natures'!AX2 -> 0.00 | AY10: ='4.1 Comptes 2020 natures'!AY10/'4.1 Comptes 2020 natures'!AY2 -> 0.00 | AZ10: ='4.1 Comptes 2020 natures'!AZ10/'4.1 Comptes 2020 natures'!AZ2 -> 0.00 | BA10: ='4.1 Comptes 2020 natures'!BA10/'4.1 Comptes 2020 natures'!BA2 -> 0.00 | BB10: ='4.1 Comptes 2020 natures'!BB10/'4.1 Comptes 2020 natures'!BB2 -> 0.00 | BC10: ='4.1 Comptes 2020 natures'!BC10/'4.1 Comptes 2020 natures'!BC2 -> 0.00 | BD10: ='4.1 Comptes 2020 natures'!BD10/'4.1 Comptes 2020 natures'!BD2 -> 0.00 | BE10: ='4.1 Comptes 2020 natures'!BE10/'4.1 Comptes 2020 natures'!BE2 -> 0.00 | BF10: 33.61 | BG10: 6.61 | BH10: 27.00 | BI10: 0.00
C11: 305 | D11: Charges de l'employeur | E11: ='4.1 Comptes 2020 natures'!E11/'4.1 Comptes 2020 natures'!E2 -> 77.63 | F11: ='4.1 Comptes 2020 natures'!F11/'4.1 Comptes 2020 natures'!F2 -> 11.84 | G11: ='4.1 Comptes 2020 natures'!G11/'4.1 Comptes 2020 natures'!G2 -> 32.18 | H11: ='4.1 Comptes 2020 natures'!H11/'4.1 Comptes 2020 natures'!H2 -> 81.60 | I11: ='4.1 Comptes 2020 natures'!I11/'4.1 Comptes 2020 natures'!I2 -> 121.55 | J11: ='4.1 Comptes 2020 natures'!J11/'4.1 Comptes 2020 natures'!J2 -> 177.42 | K11: ='4.1 Comptes 2020 natures'!K11/'4.1 Comptes 2020 natures'!K2 -> 68.91 | L11: ='4.1 Comptes 2020 natures'!L11/'4.1 Comptes 2020 natures'!L2 -> 309.81 | M11: ='4.1 Comptes 2020 natures'!M11/'4.1 Comptes 2020 natures'!M2 -> 132.50 | N11: ='4.1 Comptes 2020 natures'!N11/'4.1 Comptes 2020 natures'!N2 -> 29.09 | O11: ='4.1 Comptes 2020 natures'!O11/'4.1 Comptes 2020 natures'!O2 -> 84.37 | P11: ='4.1 Comptes 2020 natures'!P11/'4.1 Comptes 2020 natures'!P2 -> 41.78 | Q11: ='4.1 Comptes 2020 natures'!Q11/'4.1 Comptes 2020 natures'!Q2 -> 80.45 | R11: ='4.1 Comptes 2020 natures'!R11/'4.1 Comptes 2020 natures'!R2 -> 112.71 | S11: ='4.1 Comptes 2020 natures'!S11/'4.1 Comptes 2020 natures'!S2 -> 21.64 | T11: ='4.1 Comptes 2020 natures'!T11/'4.1 Comptes 2020 natures'!T2 -> 65.00 | U11: ='4.1 Comptes 2020 natures'!U11/'4.1 Comptes 2020 natures'!U2 -> 46.75 | V11: ='4.1 Comptes 2020 natures'!V11/'4.1 Comptes 2020 natures'!V2 -> 105.06 | W11: ='4.1 Comptes 2020 natures'!W11/'4.1 Comptes 2020 natures'!W2 -> 100.69 | X11: ='4.1 Comptes 2020 natures'!X11/'4.1 Comptes 2020 natures'!X2 -> 29.02 | Y11: ='4.1 Comptes 2020 natures'!Y11/'4.1 Comptes 2020 natures'!Y2 -> 148.13 | Z11: ='4.1 Comptes 2020 natures'!Z11/'4.1 Comptes 2020 natures'!Z2 -> 158.12 | AA11: ='4.1 Comptes 2020 natures'!AA11/'4.1 Comptes 2020 natures'!AA2 -> 114.64 | AB11: ='4.1 Comptes 2020 natures'!AB11/'4.1 Comptes 2020 natures'!AB2 -> 41.67 | AC11: ='4.1 Comptes 2020 natures'!AC11/'4.1 Comptes 2020 natures'!AC2 -> 66.86 | AD11: ='4.1 Comptes 2020 natures'!AD11/'4.1 Comptes 2020 natures'!AD2 -> 137.06 | AE11: ='4.1 Comptes 2020 natures'!AE11/'4.1 Comptes 2020 natures'!AE2 -> 82.72 | AF11: ='4.1 Comptes 2020 natures'!AF11/'4.1 Comptes 2020 natures'!AF2 -> 140.98 | AG11: ='4.1 Comptes 2020 natures'!AG11/'4.1 Comptes 2020 natures'!AG2 -> 84.04 | AH11: ='4.1 Comptes 2020 natures'!AH11/'4.1 Comptes 2020 natures'!AH2 -> 104.45 | AI11: ='4.1 Comptes 2020 natures'!AI11/'4.1 Comptes 2020 natures'!AI2 -> 39.33 | AJ11: ='4.1 Comptes 2020 natures'!AJ11/'4.1 Comptes 2020 natures'!AJ2 -> 60.88 | AK11: ='4.1 Comptes 2020 natures'!AK11/'4.1 Comptes 2020 natures'!AK2 -> 1.94 | AL11: ='4.1 Comptes 2020 natures'!AL11/'4.1 Comptes 2020 natures'!AL2 -> 89.66 | AM11: ='4.1 Comptes 2020 natures'!AM11/'4.1 Comptes 2020 natures'!AM2 -> 55.48 | AN11: ='4.1 Comptes 2020 natures'!AN11/'4.1 Comptes 2020 natures'!AN2 -> 79.17 | AO11: ='4.1 Comptes 2020 natures'!AO11/'4.1 Comptes 2020 natures'!AO2 -> 147.81 | AP11: ='4.1 Comptes 2020 natures'!AP11/'4.1 Comptes 2020 natures'!AP2 -> 176.89 | AQ11: ='4.1 Comptes 2020 natures'!AQ11/'4.1 Comptes 2020 natures'!AQ2 -> 58.32 | AR11: ='4.1 Comptes 2020 natures'!AR11/'4.1 Comptes 2020 natures'!AR2 -> 117.15 | AS11: ='4.1 Comptes 2020 natures'!AS11/'4.1 Comptes 2020 natures'!AS2 -> 91.15 | AT11: ='4.1 Comptes 2020 natures'!AT11/'4.1 Comptes 2020 natures'!AT2 -> 57.30 | AU11: ='4.1 Comptes 2020 natures'!AU11/'4.1 Comptes 2020 natures'!AU2 -> 48.27 | AV11: ='4.1 Comptes 2020 natures'!AV11/'4.1 Comptes 2020 natures'!AV2 -> 73.45 | AW11: ='4.1 Comptes 2020 natures'!AW11/'4.1 Comptes 2020 natures'!AW2 -> 86.66 | AX11: ='4.1 Comptes 2020 natures'!AX11/'4.1 Comptes 2020 natures'!AX2 -> 74.38 | AY11: ='4.1 Comptes 2020 natures'!AY11/'4.1 Comptes 2020 natures'!AY2 -> 54.81 | AZ11: ='4.1 Comptes 2020 natures'!AZ11/'4.1 Comptes 2020 natures'!AZ2 -> 84.30 | BA11: ='4.1 Comptes 2020 natures'!BA11/'4.1 Comptes 2020 natures'!BA2 -> 46.52 | BB11: ='4.1 Comptes 2020 natures'!BB11/'4.1 Comptes 2020 natures'!BB2 -> 184.42 | BC11: ='4.1 Comptes 2020 natures'!BC11/'4.1 Comptes 2020 natures'!BC2 -> 51.74 | BD11: ='4.1 Comptes 2020 natures'!BD11/'4.1 Comptes 2020 natures'!BD2 -> 273.89 | BE11: ='4.1 Comptes 2020 natures'!BE11/'4.1 Comptes 2020 natures'!BE2 -> 79.40 | BF11: 4,841.57 | BG11: 1,700.95 | BH11: 1,207.91 | BI11: 1,932.71
C12: 306 | D12: Prestations sociales de l'employeur | E12: ='4.1 Comptes 2020 natures'!E12/'4.1 Comptes 2020 natures'!E2 -> 0.00 | F12: ='4.1 Comptes 2020 natures'!F12/'4.1 Comptes 2020 natures'!F2 -> 0.00 | G12: ='4.1 Comptes 2020 natures'!G12/'4.1 Comptes 2020 natures'!G2 -> 0.00 | H12: ='4.1 Comptes 2020 natures'!H12/'4.1 Comptes 2020 natures'!H2 -> 0.00 | I12: ='4.1 Comptes 2020 natures'!I12/'4.1 Comptes 2020 natures'!I2 -> 0.83 | J12: ='4.1 Comptes 2020 natures'!J12/'4.1 Comptes 2020 natures'!J2 -> 0.00 | K12: ='4.1 Comptes 2020 natures'!K12/'4.1 Comptes 2020 natures'!K2 -> 0.00 | L12: ='4.1 Comptes 2020 natures'!L12/'4.1 Comptes 2020 natures'!L2 -> 4.15 | M12: ='4.1 Comptes 2020 natures'!M12/'4.1 Comptes 2020 natures'!M2 -> 0.00 | N12: ='4.1 Comptes 2020 natures'!N12/'4.1 Comptes 2020 natures'!N2 -> 0.00 | O12: ='4.1 Comptes 2020 natures'!O12/'4.1 Comptes 2020 natures'!O2 -> 0.00 | P12: ='4.1 Comptes 2020 natures'!P12/'4.1 Comptes 2020 natures'!P2 -> 0.00 | Q12: ='4.1 Comptes 2020 natures'!Q12/'4.1 Comptes 2020 natures'!Q2 -> 0.00 | R12: ='4.1 Comptes 2020 natures'!R12/'4.1 Comptes 2020 natures'!R2 -> 0.00 | S12: ='4.1 Comptes 2020 natures'!S12/'4.1 Comptes 2020 natures'!S2 -> 0.00 | T12: ='4.1 Comptes 2020 natures'!T12/'4.1 Comptes 2020 natures'!T2 -> 0.00 | U12: ='4.1 Comptes 2020 natures'!U12/'4.1 Comptes 2020 natures'!U2 -> 0.00 | V12: ='4.1 Comptes 2020 natures'!V12/'4.1 Comptes 2020 natures'!V2 -> 0.00 | W12: ='4.1 Comptes 2020 natures'!W12/'4.1 Comptes 2020 natures'!W2 -> 0.00 | X12: ='4.1 Comptes 2020 natures'!X12/'4.1 Comptes 2020 natures'!X2 -> 0.00 | Y12: ='4.1 Comptes 2020 natures'!Y12/'4.1 Comptes 2020 natures'!Y2 -> 0.00 | Z12: ='4.1 Comptes 2020 natures'!Z12/'4.1 Comptes 2020 natures'!Z2 -> 0.33 | AA12: ='4.1 Comptes 2020 natures'!AA12/'4.1 Comptes 2020 natures'!AA2 -> 0.00 | AB12: ='4.1 Comptes 2020 natures'!AB12/'4.1 Comptes 2020 natures'!AB2 -> 0.00 | AC12: ='4.1 Comptes 2020 natures'!AC12/'4.1 Comptes 2020 natures'!AC2 -> 0.00 | AD12: ='4.1 Comptes 2020 natures'!AD12/'4.1 Comptes 2020 natures'!AD2 -> 0.00 | AE12: ='4.1 Comptes 2020 natures'!AE12/'4.1 Comptes 2020 natures'!AE2 -> 0.00 | AF12: ='4.1 Comptes 2020 natures'!AF12/'4.1 Comptes 2020 natures'!AF2 -> 0.00 | AG12: ='4.1 Comptes 2020 natures'!AG12/'4.1 Comptes 2020 natures'!AG2 -> 0.00 | AH12: ='4.1 Comptes 2020 natures'!AH12/'4.1 Comptes 2020 natures'!AH2 -> 0.00 | AI12: ='4.1 Comptes 2020 natures'!AI12/'4.1 Comptes 2020 natures'!AI2 -> 0.00 | AJ12: ='4.1 Comptes 2020 natures'!AJ12/'4.1 Comptes 2020 natures'!AJ2 -> 0.00 | AK12: ='4.1 Comptes 2020 natures'!AK12/'4.1 Comptes 2020 natures'!AK2 -> 0.00 | AL12: ='4.1 Comptes 2020 natures'!AL12/'4.1 Comptes 2020 natures'!AL2 -> 0.00 | AM12: ='4.1 Comptes 2020 natures'!AM12/'4.1 Comptes 2020 natures'!AM2 -> 0.00 | AN12: ='4.1 Comptes 2020 natures'!AN12/'4.1 Comptes 2020 natures'!AN2 -> 0.00 | AO12: ='4.1 Comptes 2020 natures'!AO12/'4.1 Comptes 2020 natures'!AO2 -> 0.00 | AP12: ='4.1 Comptes 2020 natures'!AP12/'4.1 Comptes 2020 natures'!AP2 -> 0.00 | AQ12: ='4.1 Comptes 2020 natures'!AQ12/'4.1 Comptes 2020 natures'!AQ2 -> 0.00 | AR12: ='4.1 Comptes 2020 natures'!AR12/'4.1 Comptes 2020 natures'!AR2 -> 0.00 | AS12: ='4.1 Comptes 2020 natures'!AS12/'4.1 Comptes 2020 natures'!AS2 -> 0.00 | AT12: ='4.1 Comptes 2020 natures'!AT12/'4.1 Comptes 2020 natures'!AT2 -> 0.00 | AU12: ='4.1 Comptes 2020 natures'!AU12/'4.1 Comptes 2020 natures'!AU2 -> 0.00 | AV12: ='4.1 Comptes 2020 natures'!AV12/'4.1 Comptes 2020 natures'!AV2 -> 0.08 | AW12: ='4.1 Comptes 2020 natures'!AW12/'4.1 Comptes 2020 natures'!AW2 -> 0.00 | AX12: ='4.1 Comptes 2020 natures'!AX12/'4.1 Comptes 2020 natures'!AX2 -> 0.00 | AY12: ='4.1 Comptes 2020 natures'!AY12/'4.1 Comptes 2020 natures'!AY2 -> 0.00 | AZ12: ='4.1 Comptes 2020 natures'!AZ12/'4.1 Comptes 2020 natures'!AZ2 -> 0.00 | BA12: ='4.1 Comptes 2020 natures'!BA12/'4.1 Comptes 2020 natures'!BA2 -> 0.00 | BB12: ='4.1 Comptes 2020 natures'!BB12/'4.1 Comptes 2020 natures'!BB2 -> 0.00 | BC12: ='4.1 Comptes 2020 natures'!BC12/'4.1 Comptes 2020 natures'!BC2 -> 0.00 | BD12: ='4.1 Comptes 2020 natures'!BD12/'4.1 Comptes 2020 natures'!BD2 -> 0.00 | BE12: ='4.1 Comptes 2020 natures'!BE12/'4.1 Comptes 2020 natures'!BE2 -> 0.00 | BF12: 5.40 | BG12: 4.99 | BH12: 0.33 | BI12: 0.08
C13: 309 | D13: Autres charges du personnel | E13: ='4.1 Comptes 2020 natures'!E13/'4.1 Comptes 2020 natures'!E2 -> 5.59 | F13: ='4.1 Comptes 2020 natures'!F13/'4.1 Comptes 2020 natures'!F2 -> 0.63 | G13: ='4.1 Comptes 2020 natures'!G13/'4.1 Comptes 2020 natures'!G2 -> 2.70 | H13: ='4.1 Comptes 2020 natures'!H13/'4.1 Comptes 2020 natures'!H2 -> 3.88 | I13: ='4.1 Comptes 2020 natures'!I13/'4.1 Comptes 2020 natures'!I2 -> 4.78 | J13: ='4.1 Comptes 2020 natures'!J13/'4.1 Comptes 2020 natures'!J2 -> 5.52 | K13: ='4.1 Comptes 2020 natures'!K13/'4.1 Comptes 2020 natures'!K2 -> 14.16 | L13: ='4.1 Comptes 2020 natures'!L13/'4.1 Comptes 2020 natures'!L2 -> 19.42 | M13: ='4.1 Comptes 2020 natures'!M13/'4.1 Comptes 2020 natures'!M2 -> 4.23 | N13: ='4.1 Comptes 2020 natures'!N13/'4.1 Comptes 2020 natures'!N2 -> 9.02 | O13: ='4.1 Comptes 2020 natures'!O13/'4.1 Comptes 2020 natures'!O2 -> 3.24 | P13: ='4.1 Comptes 2020 natures'!P13/'4.1 Comptes 2020 natures'!P2 -> 16.56 | Q13: ='4.1 Comptes 2020 natures'!Q13/'4.1 Comptes 2020 natures'!Q2 -> 7.31 | R13: ='4.1 Comptes 2020 natures'!R13/'4.1 Comptes 2020 natures'!R2 -> 2.04 | S13: ='4.1 Comptes 2020 natures'!S13/'4.1 Comptes 2020 natures'!S2 -> 1.37 | T13: ='4.1 Comptes 2020 natures'!T13/'4.1 Comptes 2020 natures'!T2 -> 0.87 | U13: ='4.1 Comptes 2020 natures'!U13/'4.1 Comptes 2020 natures'!U2 -> 3.25 | V13: ='4.1 Comptes 2020 natures'!V13/'4.1 Comptes 2020 natures'!V2 -> 5.72 | W13: ='4.1 Comptes 2020 natures'!W13/'4.1 Comptes 2020 natures'!W2 -> 5.20 | X13: ='4.1 Comptes 2020 natures'!X13/'4.1 Comptes 2020 natures'!X2 -> 5.07 | Y13: ='4.1 Comptes 2020 natures'!Y13/'4.1 Comptes 2020 natures'!Y2 -> 4.02 | Z13: ='4.1 Comptes 2020 natures'!Z13/'4.1 Comptes 2020 natures'!Z2 -> 12.19 | AA13: ='4.1 Comptes 2020 natures'!AA13/'4.1 Comptes 2020 natures'!AA2 -> 10.37 | AB13: ='4.1 Comptes 2020 natures'!AB13/'4.1 Comptes 2020 natures'!AB2 -> 0.40 | AC13: ='4.1 Comptes 2020 natures'!AC13/'4.1 Comptes 2020 natures'!AC2 -> 11.15 | AD13: ='4.1 Comptes 2020 natures'!AD13/'4.1 Comptes 2020 natures'!AD2 -> 12.14 | AE13: ='4.1 Comptes 2020 natures'!AE13/'4.1 Comptes 2020 natures'!AE2 -> 3.03 | AF13: ='4.1 Comptes 2020 natures'!AF13/'4.1 Comptes 2020 natures'!AF2 -> 2.10 | AG13: ='4.1 Comptes 2020 natures'!AG13/'4.1 Comptes 2020 natures'!AG2 -> 4.95 | AH13: ='4.1 Comptes 2020 natures'!AH13/'4.1 Comptes 2020 natures'!AH2 -> 1.73 | AI13: ='4.1 Comptes 2020 natures'!AI13/'4.1 Comptes 2020 natures'!AI2 -> 0.70 | AJ13: ='4.1 Comptes 2020 natures'!AJ13/'4.1 Comptes 2020 natures'!AJ2 -> 0.00 | AK13: ='4.1 Comptes 2020 natures'!AK13/'4.1 Comptes 2020 natures'!AK2 -> 6.82 | AL13: ='4.1 Comptes 2020 natures'!AL13/'4.1 Comptes 2020 natures'!AL2 -> 1.50 | AM13: ='4.1 Comptes 2020 natures'!AM13/'4.1 Comptes 2020 natures'!AM2 -> 1.34 | AN13: ='4.1 Comptes 2020 natures'!AN13/'4.1 Comptes 2020 natures'!AN2 -> 4.63 | AO13: ='4.1 Comptes 2020 natures'!AO13/'4.1 Comptes 2020 natures'!AO2 -> 13.00 | AP13: ='4.1 Comptes 2020 natures'!AP13/'4.1 Comptes 2020 natures'!AP2 -> 7.93 | AQ13: ='4.1 Comptes 2020 natures'!AQ13/'4.1 Comptes 2020 natures'!AQ2 -> 3.79 | AR13: ='4.1 Comptes 2020 natures'!AR13/'4.1 Comptes 2020 natures'!AR2 -> 3.85 | AS13: ='4.1 Comptes 2020 natures'!AS13/'4.1 Comptes 2020 natures'!AS2 -> 4.70 | AT13: ='4.1 Comptes 2020 natures'!AT13/'4.1 Comptes 2020 natures'!AT2 -> 10.74 | AU13: ='4.1 Comptes 2020 natures'!AU13/'4.1 Comptes 2020 natures'!AU2 -> 3.80 | AV13: ='4.1 Comptes 2020 natures'!AV13/'4.1 Comptes 2020 natures'!AV2 -> 3.88 | AW13: ='4.1 Comptes 2020 natures'!AW13/'4.1 Comptes 2020 natures'!AW2 -> 10.10 | AX13: ='4.1 Comptes 2020 natures'!AX13/'4.1 Comptes 2020 natures'!AX2 -> 4.23 | AY13: ='4.1 Comptes 2020 natures'!AY13/'4.1 Comptes 2020 natures'!AY2 -> 1.34 | AZ13: ='4.1 Comptes 2020 natures'!AZ13/'4.1 Comptes 2020 natures'!AZ2 -> 3.81 | BA13: ='4.1 Comptes 2020 natures'!BA13/'4.1 Comptes 2020 natures'!BA2 -> 3.81 | BB13: ='4.1 Comptes 2020 natures'!BB13/'4.1 Comptes 2020 natures'!BB2 -> 15.57 | BC13: ='4.1 Comptes 2020 natures'!BC13/'4.1 Comptes 2020 natures'!BC2 -> 2.75 | BD13: ='4.1 Comptes 2020 natures'!BD13/'4.1 Comptes 2020 natures'!BD2 -> 12.09 | BE13: ='4.1 Comptes 2020 natures'!BE13/'4.1 Comptes 2020 natures'!BE2 -> 0.00 | BF13: 303.08 | BG13: 115.52 | BH13: 67.86 | BI13: 119.69
B15: 31 | D15: Charges de biens et de services et autres charges d'exploitation | E15: =E16+E17+E18+E19+E20+E21+E22+E23+E24+E25 -> 563.03 | F15: =F16+F17+F18+F19+F20+F21+F22+F23+F24+F25 -> 750.34 | G15: 507.98 | H15: 629.53 | I15: 744.78 | J15: 595.32 | K15: 615.00 | L15: 1,574.09 | M15: 1,274.36 | N15: 578.93 | O15: 491.16 | P15: 925.06 | Q15: 436.48 | R15: 612.53 | S15: 1,107.19 | T15: 890.47 | U15: 875.65 | V15: 1,294.21 | W15: 565.38 | X15: 1,513.95 | Y15: 959.74 | Z15: 1,638.88 | AA15: 1,423.40 | AB15: 1,447.41 | AC15: 1,438.26 | AD15: 1,208.25 | AE15: 1,552.39 | AF15: 1,885.14 | AG15: 891.72 | AH15: 949.05 | AI15: 1,238.72 | AJ15: 1,769.90 | AK15: 674.29 | AL15: 1,285.02 | AM15: 819.19 | AN15: 1,140.84 | AO15: 1,240.33 | AP15: 776.62 | AQ15: 704.36 | AR15: 1,183.48 | AS15: 715.84 | AT15: 673.42 | AU15: 1,269.76 | AV15: 726.71 | AW15: 728.42 | AX15: 782.33 | AY15: 1,112.81 | AZ15: 610.55 | BA15: 1,330.81 | BB15: 929.13 | BC15: 733.11 | BD15: 981.11 | BE15: 748.89 | BF15: 52,115.36 | BG15: 15,031.50 | BH15: 17,916.82 | BI15: 19,167.03
C16: 310 | D16: Charges de matériel et de marchandises | E16: ='4.1 Comptes 2020 natures'!E16/'4.1 Comptes 2020 natures'!E2 -> 59.82 | F16: ='4.1 Comptes 2020 natures'!F16/'4.1 Comptes 2020 natures'!F2 -> 65.83 | G16: ='4.1 Comptes 2020 natures'!G16/'4.1 Comptes 2020 natures'!G2 -> 27.17 | H16: ='4.1 Comptes 2020 natures'!H16/'4.1 Comptes 2020 natures'!H2 -> 65.06 | I16: ='4.1 Comptes 2020 natures'!I16/'4.1 Comptes 2020 natures'!I2 -> 82.48 | J16: ='4.1 Comptes 2020 natures'!J16/'4.1 Comptes 2020 natures'!J2 -> 84.56 | K16: ='4.1 Comptes 2020 natures'!K16/'4.1 Comptes 2020 natures'!K2 -> 87.96 | L16: ='4.1 Comptes 2020 natures'!L16/'4.1 Comptes 2020 natures'!L2 -> 143.70 | M16: ='4.1 Comptes 2020 natures'!M16/'4.1 Comptes 2020 natures'!M2 -> 142.72 | N16: ='4.1 Comptes 2020 natures'!N16/'4.1 Comptes 2020 natures'!N2 -> 74.43 | O16: ='4.1 Comptes 2020 natures'!O16/'4.1 Comptes 2020 natures'!O2 -> 72.78 | P16: ='4.1 Comptes 2020 natures'!P16/'4.1 Comptes 2020 natures'!P2 -> 111.26 | Q16: ='4.1 Comptes 2020 natures'!Q16/'4.1 Comptes 2020 natures'!Q2 -> 78.05 | R16: ='4.1 Comptes 2020 natures'!R16/'4.1 Comptes 2020 natures'!R2 -> 81.90 | S16: ='4.1 Comptes 2020 natures'!S16/'4.1 Comptes 2020 natures'!S2 -> 114.14 | T16: ='4.1 Comptes 2020 natures'!T16/'4.1 Comptes 2020 natures'!T2 -> 81.64 | U16: ='4.1 Comptes 2020 natures'!U16/'4.1 Comptes 2020 natures'!U2 -> 70.47 | V16: ='4.1 Comptes 2020 natures'!V16/'4.1 Comptes 2020 natures'!V2 -> 99.30 | W16: ='4.1 Comptes 2020 natures'!W16/'4.1 Comptes 2020 natures'!W2 -> 74.70 | X16: ='4.1 Comptes 2020 natures'!X16/'4.1 Comptes 2020 natures'!X2 -> 238.66 | Y16: ='4.1 Comptes 2020 natures'!Y16/'4.1 Comptes 2020 natures'!Y2 -> 118.43 | Z16: ='4.1 Comptes 2020 natures'!Z16/'4.1 Comptes 2020 natures'!Z2 -> 211.49 | AA16: ='4.1 Comptes 2020 natures'!AA16/'4.1 Comptes 2020 natures'!AA2 -> 41.76 | AB16: ='4.1 Comptes 2020 natures'!AB16/'4.1 Comptes 2020 natures'!AB2 -> 164.14 | AC16: ='4.1 Comptes 2020 natures'!AC16/'4.1 Comptes 2020 natures'!AC2 -> 184.09 | AD16: ='4.1 Comptes 2020 natures'!AD16/'4.1 Comptes 2020 natures'!AD2 -> 97.53 | AE16: ='4.1 Comptes 2020 natures'!AE16/'4.1 Comptes 2020 natures'!AE2 -> 113.44 | AF16: ='4.1 Comptes 2020 natures'!AF16/'4.1 Comptes 2020 natures'!AF2 -> 193.70 | AG16: ='4.1 Comptes 2020 natures'!AG16/'4.1 Comptes 2020 natures'!AG2 -> 120.80 | AH16: ='4.1 Comptes 2020 natures'!AH16/'4.1 Comptes 2020 natures'!AH2 -> 144.68 | AI16: ='4.1 Comptes 2020 natures'!AI16/'4.1 Comptes 2020 natures'!AI2 -> 23.46 | AJ16: ='4.1 Comptes 2020 natures'!AJ16/'4.1 Comptes 2020 natures'!AJ2 -> 184.30 | AK16: ='4.1 Comptes 2020 natures'!AK16/'4.1 Comptes 2020 natures'!AK2 -> 118.41 | AL16: ='4.1 Comptes 2020 natures'!AL16/'4.1 Comptes 2020 natures'!AL2 -> 94.48 | AM16: ='4.1 Comptes 2020 natures'!AM16/'4.1 Comptes 2020 natures'!AM2 -> 42.85 | AN16: ='4.1 Comptes 2020 natures'!AN16/'4.1 Comptes 2020 natures'!AN2 -> 182.87 | AO16: ='4.1 Comptes 2020 natures'!AO16/'4.1 Comptes 2020 natures'!AO2 -> 183.70 | AP16: ='4.1 Comptes 2020 natures'!AP16/'4.1 Comptes 2020 natures'!AP2 -> 103.94 | AQ16: ='4.1 Comptes 2020 natures'!AQ16/'4.1 Comptes 2020 natures'!AQ2 -> 20.30 | AR16: ='4.1 Comptes 2020 natures'!AR16/'4.1 Comptes 2020 natures'!AR2 -> 73.92 | AS16: ='4.1 Comptes 2020 natures'!AS16/'4.1 Comptes 2020 natures'!AS2 -> 103.46 | AT16: ='4.1 Comptes 2020 natures'!AT16/'4.1 Comptes 2020 natures'!AT2 -> 102.48 | AU16: ='4.1 Comptes 2020 natures'!AU16/'4.1 Comptes 2020 natures'!AU2 -> 81.34 | AV16: ='4.1 Comptes 2020 natures'!AV16/'4.1 Comptes 2020 natures'!AV2 -> 75.21 | AW16: ='4.1 Comptes 2020 natures'!AW16/'4.1 Comptes 2020 natures'!AW2 -> 47.18 | AX16: ='4.1 Comptes 2020 natures'!AX16/'4.1 Comptes 2020 natures'!AX2 -> 81.02 | AY16: ='4.1 Comptes 2020 natures'!AY16/'4.1 Comptes 2020 natures'!AY2 -> 242.56 | AZ16: ='4.1 Comptes 2020 natures'!AZ16/'4.1 Comptes 2020 natures'!AZ2 -> 44.67 | BA16: ='4.1 Comptes 2020 natures'!BA16/'4.1 Comptes 2020 natures'!BA2 -> 51.69 | BB16: ='4.1 Comptes 2020 natures'!BB16/'4.1 Comptes 2020 natures'!BB2 -> 87.39 | BC16: ='4.1 Comptes 2020 natures'!BC16/'4.1 Comptes 2020 natures'!BC2 -> 21.40 | BD16: ='4.1 Comptes 2020 natures'!BD16/'4.1 Comptes 2020 natures'!BD2 -> 112.22 | BE16: ='4.1 Comptes 2020 natures'!BE16/'4.1 Comptes 2020 natures'!BE2 -> 116.66 | BF16: =SUM(E16:BE16) -> 5,442.20 | BG16: =SUM(E16:W16) -> 1,618.00 | BH16: =SUM(X16:AJ16) -> 1,836.49 | BI16: =SUM(AK16:BE16) -> 1,987.72
C17: 311 | D17: Immobilisation ne pouvant être portées à l'actif | E17: ='4.1 Comptes 2020 natures'!E17/'4.1 Comptes 2020 natures'!E2 -> 61.00 | F17: ='4.1 Comptes 2020 natures'!F17/'4.1 Comptes 2020 natures'!F2 -> 12.60 | G17: ='4.1 Comptes 2020 natures'!G17/'4.1 Comptes 2020 natures'!G2 -> 26.97 | H17: ='4.1 Comptes 2020 natures'!H17/'4.1 Comptes 2020 natures'!H2 -> 31.01 | I17: ='4.1 Comptes 2020 natures'!I17/'4.1 Comptes 2020 natures'!I2 -> 25.38 | J17: ='4.1 Comptes 2020 natures'!J17/'4.1 Comptes 2020 natures'!J2 -> 7.16 | K17: ='4.1 Comptes 2020 natures'!K17/'4.1 Comptes 2020 natures'!K2 -> 11.46 | L17: ='4.1 Comptes 2020 natures'!L17/'4.1 Comptes 2020 natures'!L2 -> 46.67 | M17: ='4.1 Comptes 2020 natures'!M17/'4.1 Comptes 2020 natures'!M2 -> 112.74 | N17: ='4.1 Comptes 2020 natures'!N17/'4.1 Comptes 2020 natures'!N2 -> 44.92 | O17: ='4.1 Comptes 2020 natures'!O17/'4.1 Comptes 2020 natures'!O2 -> 16.95 | P17: ='4.1 Comptes 2020 natures'!P17/'4.1 Comptes 2020 natures'!P2 -> 46.98 | Q17: ='4.1 Comptes 2020 natures'!Q17/'4.1 Comptes 2020 natures'!Q2 -> 1.83 | R17: ='4.1 Comptes 2020 natures'!R17/'4.1 Comptes 2020 natures'!R2 -> 2.50 | S17: ='4.1 Comptes 2020 natures'!S17/'4.1 Comptes 2020 natures'!S2 -> 13.18 | T17: ='4.1 Comptes 2020 natures'!T17/'4.1 Comptes 2020 natures'!T2 -> 28.77 | U17: ='4.1 Comptes 2020 natures'!U17/'4.1 Comptes 2020 natures'!U2 -> 26.42 | V17: ='4.1 Comptes 2020 natures'!V17/'4.1 Comptes 2020 natures'!V2 -> 74.32 | W17: ='4.1 Comptes 2020 natures'!W17/'4.1 Comptes 2020 natures'!W2 -> 20.62 | X17: ='4.1 Comptes 2020 natures'!X17/'4.1 Comptes 2020 natures'!X2 -> 19.92 | Y17: ='4.1 Comptes 2020 natures'!Y17/'4.1 Comptes 2020 natures'!Y2 -> 21.34 | Z17: ='4.1 Comptes 2020 natures'!Z17/'4.1 Comptes 2020 natures'!Z2 -> 27.03 | AA17: ='4.1 Comptes 2020 natures'!AA17/'4.1 Comptes 2020 natures'!AA2 -> 0.00 | AB17: ='4.1 Comptes 2020 natures'!AB17/'4.1 Comptes 2020 natures'!AB2 -> 1.34 | AC17: ='4.1 Comptes 2020 natures'!AC17/'4.1 Comptes 2020 natures'!AC2 -> 34.23 | AD17: ='4.1 Comptes 2020 natures'!AD17/'4.1 Comptes 2020 natures'!AD2 -> 93.83 | AE17: ='4.1 Comptes 2020 natures'!AE17/'4.1 Comptes 2020 natures'!AE2 -> 35.45 | AF17: ='4.1 Comptes 2020 natures'!AF17/'4.1 Comptes 2020 natures'!AF2 -> 98.40 | AG17: ='4.1 Comptes 2020 natures'!AG17/'4.1 Comptes 2020 natures'!AG2 -> 42.26 | AH17: ='4.1 Comptes 2020 natures'!AH17/'4.1 Comptes 2020 natures'!AH2 -> 14.53 | AI17: ='4.1 Comptes 2020 natures'!AI17/'4.1 Comptes 2020 natures'!AI2 -> 2.35 | AJ17: ='4.1 Comptes 2020 natures'!AJ17/'4.1 Comptes 2020 natures'!AJ2 -> 7.63 | AK17: ='4.1 Comptes 2020 natures'!AK17/'4.1 Comptes 2020 natures'!AK2 -> 62.98 | AL17: ='4.1 Comptes 2020 natures'!AL17/'4.1 Comptes 2020 natures'!AL2 -> 3.88 | AM17: ='4.1 Comptes 2020 natures'!AM17/'4.1 Comptes 2020 natures'!AM2 -> 15.69 | AN17: ='4.1 Comptes 2020 natures'!AN17/'4.1 Comptes 2020 natures'!AN2 -> 122.11 | AO17: ='4.1 Comptes 2020 natures'!AO17/'4.1 Comptes 2020 natures'!AO2 -> 28.07 | AP17: ='4.1 Comptes 2020 natures'!AP17/'4.1 Comptes 2020 natures'!AP2 -> 24.81 | AQ17: ='4.1 Comptes 2020 natures'!AQ17/'4.1 Comptes 2020 natures'!AQ2 -> 27.06 | AR17: ='4.1 Comptes 2020 natures'!AR17/'4.1 Comptes 2020 natures'!AR2 -> 59.64 | AS17: ='4.1 Comptes 2020 natures'!AS17/'4.1 Comptes 2020 natures'!AS2 -> 45.38 | AT17: ='4.1 Comptes 2020 natures'!AT17/'4.1 Comptes 2020 natures'!AT2 -> 77.21 | AU17: ='4.1 Comptes 2020 natures'!AU17/'4.1 Comptes 2020 natures'!AU2 -> 89.65 | AV17: ='4.1 Comptes 2020 natures'!AV17/'4.1 Comptes 2020 natures'!AV2 -> 48.71 | AW17: ='4.1 Comptes 2020 natures'!AW17/'4.1 Comptes 2020 natures'!AW2 -> 5.39 | AX17: ='4.1 Comptes 2020 natures'!AX17/'4.1 Comptes 2020 natures'!AX2 -> 0.49 | AY17: ='4.1 Comptes 2020 natures'!AY17/'4.1 Comptes 2020 natures'!AY2 -> 16.15 | AZ17: ='4.1 Comptes 2020 natures'!AZ17/'4.1 Comptes 2020 natures'!AZ2 -> 23.21 | BA17: ='4.1 Comptes 2020 natures'!BA17/'4.1 Comptes 2020 natures'!BA2 -> 78.99 | BB17: ='4.1 Comptes 2020 natures'!BB17/'4.1 Comptes 2020 natures'!BB2 -> 73.69 | BC17: ='4.1 Comptes 2020 natures'!BC17/'4.1 Comptes 2020 natures'!BC2 -> 0.00 | BD17: ='4.1 Comptes 2020 natures'!BD17/'4.1 Comptes 2020 natures'!BD2 -> 21.99 | BE17: ='4.1 Comptes 2020 natures'!BE17/'4.1 Comptes 2020 natures'!BE2 -> 132.31 | BF17: =SUM(E17:BE17) -> 1,967.18 | BG17: 611.47 | BH17: 398.32 | BI17: 957.39
C18: 312 | D18: Alimentations et éliminations des biens-fonds du PA | E18: ='4.1 Comptes 2020 natures'!E18/'4.1 Comptes 2020 natures'!E2 -> 72.25 | F18: ='4.1 Comptes 2020 natures'!F18/'4.1 Comptes 2020 natures'!F2 -> 193.80 | G18: ='4.1 Comptes 2020 natures'!G18/'4.1 Comptes 2020 natures'!G2 -> 48.86 | H18: ='4.1 Comptes 2020 natures'!H18/'4.1 Comptes 2020 natures'!H2 -> 50.10 | I18: ='4.1 Comptes 2020 natures'!I18/'4.1 Comptes 2020 natures'!I2 -> 213.00 | J18: ='4.1 Comptes 2020 natures'!J18/'4.1 Comptes 2020 natures'!J2 -> 200.25 | K18: ='4.1 Comptes 2020 natures'!K18/'4.1 Comptes 2020 natures'!K2 -> 137.31 | L18: ='4.1 Comptes 2020 natures'!L18/'4.1 Comptes 2020 natures'!L2 -> 861.65 | M18: ='4.1 Comptes 2020 natures'!M18/'4.1 Comptes 2020 natures'!M2 -> 621.71 | N18: ='4.1 Comptes 2020 natures'!N18/'4.1 Comptes 2020 natures'!N2 -> 104.05 | O18: ='4.1 Comptes 2020 natures'!O18/'4.1 Comptes 2020 natures'!O2 -> 65.63 | P18: ='4.1 Comptes 2020 natures'!P18/'4.1 Comptes 2020 natures'!P2 -> 67.59 | Q18: ='4.1 Comptes 2020 natures'!Q18/'4.1 Comptes 2020 natures'!Q2 -> 86.44 | R18: ='4.1 Comptes 2020 natures'!R18/'4.1 Comptes 2020 natures'!R2 -> 100.44 | S18: ='4.1 Comptes 2020 natures'!S18/'4.1 Comptes 2020 natures'!S2 -> 111.51 | T18: ='4.1 Comptes 2020 natures'!T18/'4.1 Comptes 2020 natures'!T2 -> 245.97 | U18: ='4.1 Comptes 2020 natures'!U18/'4.1 Comptes 2020 natures'!U2 -> 244.28 | V18: ='4.1 Comptes 2020 natures'!V18/'4.1 Comptes 2020 natures'!V2 -> 108.49 | W18: ='4.1 Comptes 2020 natures'!W18/'4.1 Comptes 2020 natures'!W2 -> 80.44 | X18: ='4.1 Comptes 2020 natures'!X18/'4.1 Comptes 2020 natures'!X2 -> 414.28 | Y18: ='4.1 Comptes 2020 natures'!Y18/'4.1 Comptes 2020 natures'!Y2 -> 196.84 | Z18: ='4.1 Comptes 2020 natures'!Z18/'4.1 Comptes 2020 natures'!Z2 -> 253.57 | AA18: ='4.1 Comptes 2020 natures'!AA18/'4.1 Comptes 2020 natures'!AA2 -> 472.66 | AB18: ='4.1 Comptes 2020 natures'!AB18/'4.1 Comptes 2020 natures'!AB2 -> 253.68 | AC18: ='4.1 Comptes 2020 natures'!AC18/'4.1 Comptes 2020 natures'!AC2 -> 260.87 | AD18: ='4.1 Comptes 2020 natures'!AD18/'4.1 Comptes 2020 natures'!AD2 -> 237.68 | AE18: ='4.1 Comptes 2020 natures'!AE18/'4.1 Comptes 2020 natures'!AE2 -> 368.35 | AF18: ='4.1 Comptes 2020 natures'!AF18/'4.1 Comptes 2020 natures'!AF2 -> 275.13 | AG18: ='4.1 Comptes 2020 natures'!AG18/'4.1 Comptes 2020 natures'!AG2 -> 160.26 | AH18: ='4.1 Comptes 2020 natures'!AH18/'4.1 Comptes 2020 natures'!AH2 -> 222.74 | AI18: ='4.1 Comptes 2020 natures'!AI18/'4.1 Comptes 2020 natures'!AI2 -> 428.90 | AJ18: ='4.1 Comptes 2020 natures'!AJ18/'4.1 Comptes 2020 natures'!AJ2 -> 243.86 | AK18: ='4.1 Comptes 2020 natures'!AK18/'4.1 Comptes 2020 natures'!AK2 -> 62.13 | AL18: ='4.1 Comptes 2020 natures'!AL18/'4.1 Comptes 2020 natures'!AL2 -> 90.47 | AM18: ='4.1 Comptes 2020 natures'!AM18/'4.1 Comptes 2020 natures'!AM2 -> 214.58 | AN18: ='4.1 Comptes 2020 natures'!AN18/'4.1 Comptes 2020 natures'!AN2 -> 244.16 | AO18: ='4.1 Comptes 2020 natures'!AO18/'4.1 Comptes 2020 natures'!AO2 -> 262.03 | AP18: ='4.1 Comptes 2020 natures'!AP18/'4.1 Comptes 2020 natures'!AP2 -> 411.03 | AQ18: ='4.1 Comptes 2020 natures'!AQ18/'4.1 Comptes 2020 natures'!AQ2 -> 165.91 | AR18: ='4.1 Comptes 2020 natures'!AR18/'4.1 Comptes 2020 natures'!AR2 -> 150.75 | AS18: ='4.1 Comptes 2020 natures'!AS18/'4.1 Comptes 2020 natures'!AS2 -> 165.48 | AT18: ='4.1 Comptes 2020 natures'!AT18/'4.1 Comptes 2020 natures'!AT2 -> 119.96 | AU18: ='4.1 Comptes 2020 natures'!AU18/'4.1 Comptes 2020 natures'!AU2 -> 199.25 | AV18: ='4.1 Comptes 2020 natures'!AV18/'4.1 Comptes 2020 natures'!AV2 -> 147.71 | AW18: ='4.1 Comptes 2020 natures'!AW18/'4.1 Comptes 2020 natures'!AW2 -> 50.88 | AX18: ='4.1 Comptes 2020 natures'!AX18/'4.1 Comptes 2020 natures'!AX2 -> 225.30 | AY18: ='4.1 Comptes 2020 natures'!AY18/'4.1 Comptes 2020 natures'!AY2 -> 238.17 | AZ18: ='4.1 Comptes 2020 natures'!AZ18/'4.1 Comptes 2020 natures'!AZ2 -> 161.90 | BA18: ='4.1 Comptes 2020 natures'!BA18/'4.1 Comptes 2020 natures'!BA2 -> 146.63 | BB18: ='4.1 Comptes 2020 natures'!BB18/'4.1 Comptes 2020 natures'!BB2 -> 229.69 | BC18: ='4.1 Comptes 2020 natures'!BC18/'4.1 Comptes 2020 natures'!BC2 -> 203.49 | BD18: ='4.1 Comptes 2020 natures'!BD18/'4.1 Comptes 2020 natures'!BD2 -> 140.28 | BE18: ='4.1 Comptes 2020 natures'!BE18/'4.1 Comptes 2020 natures'!BE2 -> 64.92 | BF18: 11,097.30 | BG18: 3,613.75 | BH18: 3,788.82 | BI18: 3,694.73
C19: 313 | D19: Prestations de services et honoraires | E19: ='4.1 Comptes 2020 natures'!E19/'4.1 Comptes 2020 natures'!E2 -> 86.04 | F19: ='4.1 Comptes 2020 natures'!F19/'4.1 Comptes 2020 natures'!F2 -> 299.77 | G19: ='4.1 Comptes 2020 natures'!G19/'4.1 Comptes 2020 natures'!G2 -> 220.85 | H19: ='4.1 Comptes 2020 natures'!H19/'4.1 Comptes 2020 natures'!H2 -> 64.12 | I19: ='4.1 Comptes 2020 natures'!I19/'4.1 Comptes 2020 natures'!I2 -> 208.50 | J19: ='4.1 Comptes 2020 natures'!J19/'4.1 Comptes 2020 natures'!J2 -> 194.37 | K19: ='4.1 Comptes 2020 natures'!K19/'4.1 Comptes 2020 natures'!K2 -> 130.18 | L19: ='4.1 Comptes 2020 natures'!L19/'4.1 Comptes 2020 natures'!L2 -> 265.63 | M19: ='4.1 Comptes 2020 natures'!M19/'4.1 Comptes 2020 natures'!M2 -> 169.92 | N19: ='4.1 Comptes 2020 natures'!N19/'4.1 Comptes 2020 natures'!N2 -> 155.49 | O19: ='4.1 Comptes 2020 natures'!O19/'4.1 Comptes 2020 natures'!O2 -> 186.14 | P19: ='4.1 Comptes 2020 natures'!P19/'4.1 Comptes 2020 natures'!P2 -> 296.09 | Q19: ='4.1 Comptes 2020 natures'!Q19/'4.1 Comptes 2020 natures'!Q2 -> 201.90 | R19: ='4.1 Comptes 2020 natures'!R19/'4.1 Comptes 2020 natures'!R2 -> 176.41 | S19: ='4.1 Comptes 2020 natures'!S19/'4.1 Comptes 2020 natures'!S2 -> 368.88 | T19: ='4.1 Comptes 2020 natures'!T19/'4.1 Comptes 2020 natures'!T2 -> 245.50 | U19: ='4.1 Comptes 2020 natures'!U19/'4.1 Comptes 2020 natures'!U2 -> 237.50 | V19: ='4.1 Comptes 2020 natures'!V19/'4.1 Comptes 2020 natures'!V2 -> 646.33 | W19: ='4.1 Comptes 2020 natures'!W19/'4.1 Comptes 2020 natures'!W2 -> 181.64 | X19: ='4.1 Comptes 2020 natures'!X19/'4.1 Comptes 2020 natures'!X2 -> 581.69 | Y19: ='4.1 Comptes 2020 natures'!Y19/'4.1 Comptes 2020 natures'!Y2 -> 322.83 | Z19: ='4.1 Comptes 2020 natures'!Z19/'4.1 Comptes 2020 natures'!Z2 -> 672.11 | AA19: ='4.1 Comptes 2020 natures'!AA19/'4.1 Comptes 2020 natures'!AA2 -> 509.41 | AB19: ='4.1 Comptes 2020 natures'!AB19/'4.1 Comptes 2020 natures'!AB2 -> 841.94 | AC19: ='4.1 Comptes 2020 natures'!AC19/'4.1 Comptes 2020 natures'!AC2 -> 625.29 | AD19: ='4.1 Comptes 2020 natures'!AD19/'4.1 Comptes 2020 natures'!AD2 -> 372.19 | AE19: ='4.1 Comptes 2020 natures'!AE19/'4.1 Comptes 2020 natures'!AE2 -> 677.33 | AF19: ='4.1 Comptes 2020 natures'!AF19/'4.1 Comptes 2020 natures'!AF2 -> 963.98 | AG19: ='4.1 Comptes 2020 natures'!AG19/'4.1 Comptes 2020 natures'!AG2 -> 305.45 | AH19: ='4.1 Comptes 2020 natures'!AH19/'4.1 Comptes 2020 natures'!AH2 -> 296.91 | AI19: ='4.1 Comptes 2020 natures'!AI19/'4.1 Comptes 2020 natures'!AI2 -> 399.26 | AJ19: ='4.1 Comptes 2020 natures'!AJ19/'4.1 Comptes 2020 natures'!AJ2 -> 578.63 | AK19: ='4.1 Comptes 2020 natures'!AK19/'4.1 Comptes 2020 natures'!AK2 -> 229.28 | AL19: ='4.1 Comptes 2020 natures'!AL19/'4.1 Comptes 2020 natures'!AL2 -> 585.68 | AM19: ='4.1 Comptes 2020 natures'!AM19/'4.1 Comptes 2020 natures'!AM2 -> 294.12 | AN19: ='4.1 Comptes 2020 natures'!AN19/'4.1 Comptes 2020 natures'!AN2 -> 348.84 | AO19: ='4.1 Comptes 2020 natures'!AO19/'4.1 Comptes 2020 natures'!AO2 -> 443.04 | AP19: ='4.1 Comptes 2020 natures'!AP19/'4.1 Comptes 2020 natures'!AP2 -> 157.11 | AQ19: ='4.1 Comptes 2020 natures'!AQ19/'4.1 Comptes 2020 natures'!AQ2 -> 201.77 | AR19: ='4.1 Comptes 2020 natures'!AR19/'4.1 Comptes 2020 natures'!AR2 -> 456.94 | AS19: ='4.1 Comptes 2020 natures'!AS19/'4.1 Comptes 2020 natures'!AS2 -> 205.58 | AT19: ='4.1 Comptes 2020 natures'!AT19/'4.1 Comptes 2020 natures'!AT2 -> 172.34 | AU19: ='4.1 Comptes 2020 natures'!AU19/'4.1 Comptes 2020 natures'!AU2 -> 412.00 | AV19: ='4.1 Comptes 2020 natures'!AV19/'4.1 Comptes 2020 natures'!AV2 -> 189.67 | AW19: ='4.1 Comptes 2020 natures'!AW19/'4.1 Comptes 2020 natures'!AW2 -> 366.41 | AX19: ='4.1 Comptes 2020 natures'!AX19/'4.1 Comptes 2020 natures'!AX2 -> 225.60 | AY19: ='4.1 Comptes 2020 natures'!AY19/'4.1 Comptes 2020 natures'!AY2 -> 296.68 | AZ19: ='4.1 Comptes 2020 natures'!AZ19/'4.1 Comptes 2020 natures'!AZ2 -> 200.59 | BA19: ='4.1 Comptes 2020 natures'!BA19/'4.1 Comptes 2020 natures'!BA2 -> 744.21 | BB19: ='4.1 Comptes 2020 natures'!BB19/'4.1 Comptes 2020 natures'!BB2 -> 288.09 | BC19: ='4.1 Comptes 2020 natures'!BC19/'4.1 Comptes 2020 natures'!BC2 -> 217.63 | BD19: ='4.1 Comptes 2020 natures'!BD19/'4.1 Comptes 2020 natures'!BD2 -> 277.29 | BE19: ='4.1 Comptes 2020 natures'!BE19/'4.1 Comptes 2020 natures'!BE2 -> 227.61 | BF19: 18,022.75 | BG19: 4,335.27 | BH19: 7,147.03 | BI19: 6,540.45
C20: 314 | D20: Gros entretien et entretien courtant du PA | E20: ='4.1 Comptes 2020 natures'!E20/'4.1 Comptes 2020 natures'!E2 -> 125.43 | F20: ='4.1 Comptes 2020 natures'!F20/'4.1 Comptes 2020 natures'!F2 -> 212.15 | G20: ='4.1 Comptes 2020 natures'!G20/'4.1 Comptes 2020 natures'!G2 -> 122.76 | H20: ='4.1 Comptes 2020 natures'!H20/'4.1 Comptes 2020 natures'!H2 -> 328.51 | I20: ='4.1 Comptes 2020 natures'!I20/'4.1 Comptes 2020 natures'!I2 -> 121.47 | J20: ='4.1 Comptes 2020 natures'!J20/'4.1 Comptes 2020 natures'!J2 -> 67.89 | K20: ='4.1 Comptes 2020 natures'!K20/'4.1 Comptes 2020 natures'!K2 -> 175.82 | L20: ='4.1 Comptes 2020 natures'!L20/'4.1 Comptes 2020 natures'!L2 -> 106.10 | M20: ='4.1 Comptes 2020 natures'!M20/'4.1 Comptes 2020 natures'!M2 -> 157.93 | N20: ='4.1 Comptes 2020 natures'!N20/'4.1 Comptes 2020 natures'!N2 -> 57.24 | O20: ='4.1 Comptes 2020 natures'!O20/'4.1 Comptes 2020 natures'!O2 -> 97.53 | P20: ='4.1 Comptes 2020 natures'!P20/'4.1 Comptes 2020 natures'!P2 -> 241.99 | Q20: ='4.1 Comptes 2020 natures'!Q20/'4.1 Comptes 2020 natures'!Q2 -> 27.28 | R20: ='4.1 Comptes 2020 natures'!R20/'4.1 Comptes 2020 natures'!R2 -> 182.84 | S20: ='4.1 Comptes 2020 natures'!S20/'4.1 Comptes 2020 natures'!S2 -> 356.25 | T20: ='4.1 Comptes 2020 natures'!T20/'4.1 Comptes 2020 natures'!T2 -> 182.28 | U20: ='4.1 Comptes 2020 natures'!U20/'4.1 Comptes 2020 natures'!U2 -> 192.36 | V20: ='4.1 Comptes 2020 natures'!V20/'4.1 Comptes 2020 natures'!V2 -> 197.43 | W20: ='4.1 Comptes 2020 natures'!W20/'4.1 Comptes 2020 natures'!W2 -> 73.80 | X20: ='4.1 Comptes 2020 natures'!X20/'4.1 Comptes 2020 natures'!X2 -> 70.65 | Y20: ='4.1 Comptes 2020 natures'!Y20/'4.1 Comptes 2020 natures'!Y2 -> 170.93 | Z20: ='4.1 Comptes 2020 natures'!Z20/'4.1 Comptes 2020 natures'!Z2 -> 258.06 | AA20: ='4.1 Comptes 2020 natures'!AA20/'4.1 Comptes 2020 natures'!AA2 -> 264.26 | AB20: ='4.1 Comptes 2020 natures'!AB20/'4.1 Comptes 2020 natures'!AB2 -> 96.83 | AC20: ='4.1 Comptes 2020 natures'!AC20/'4.1 Comptes 2020 natures'!AC2 -> 403.24 | AD20: ='4.1 Comptes 2020 natures'!AD20/'4.1 Comptes 2020 natures'!AD2 -> 145.40 | AE20: ='4.1 Comptes 2020 natures'!AE20/'4.1 Comptes 2020 natures'!AE2 -> 235.92 | AF20: ='4.1 Comptes 2020 natures'!AF20/'4.1 Comptes 2020 natures'!AF2 -> 292.34 | AG20: ='4.1 Comptes 2020 natures'!AG20/'4.1 Comptes 2020 natures'!AG2 -> 183.80 | AH20: ='4.1 Comptes 2020 natures'!AH20/'4.1 Comptes 2020 natures'!AH2 -> 164.97 | AI20: ='4.1 Comptes 2020 natures'!AI20/'4.1 Comptes 2020 natures'!AI2 -> 210.75 | AJ20: ='4.1 Comptes 2020 natures'!AJ20/'4.1 Comptes 2020 natures'!AJ2 -> 623.26 | AK20: ='4.1 Comptes 2020 natures'!AK20/'4.1 Comptes 2020 natures'!AK2 -> 118.28 | AL20: ='4.1 Comptes 2020 natures'!AL20/'4.1 Comptes 2020 natures'!AL2 -> 265.12 | AM20: ='4.1 Comptes 2020 natures'!AM20/'4.1 Comptes 2020 natures'!AM2 -> 114.90 | AN20: ='4.1 Comptes 2020 natures'!AN20/'4.1 Comptes 2020 natures'!AN2 -> 117.48 | AO20: ='4.1 Comptes 2020 natures'!AO20/'4.1 Comptes 2020 natures'!AO2 -> 331.06 | AP20: ='4.1 Comptes 2020 natures'!AP20/'4.1 Comptes 2020 natures'!AP2 -> 152.14 | AQ20: ='4.1 Comptes 2020 natures'!AQ20/'4.1 Comptes 2020 natures'!AQ2 -> 202.48 | AR20: ='4.1 Comptes 2020 natures'!AR20/'4.1 Comptes 2020 natures'!AR2 -> 244.76 | AS20: ='4.1 Comptes 2020 natures'!AS20/'4.1 Comptes 2020 natures'!AS2 -> 72.18 | AT20: ='4.1 Comptes 2020 natures'!AT20/'4.1 Comptes 2020 natures'!AT2 -> 106.66 | AU20: ='4.1 Comptes 2020 natures'!AU20/'4.1 Comptes 2020 natures'!AU2 -> 173.66 | AV20: ='4.1 Comptes 2020 natures'!AV20/'4.1 Comptes 2020 natures'!AV2 -> 110.01 | AW20: ='4.1 Comptes 2020 natures'!AW20/'4.1 Comptes 2020 natures'!AW2 -> 100.73 | AX20: ='4.1 Comptes 2020 natures'!AX20/'4.1 Comptes 2020 natures'!AX2 -> 151.58 | AY20: ='4.1 Comptes 2020 natures'!AY20/'4.1 Comptes 2020 natures'!AY2 -> 198.25 | AZ20: ='4.1 Comptes 2020 natures'!AZ20/'4.1 Comptes 2020 natures'!AZ2 -> 79.69 | BA20: ='4.1 Comptes 2020 natures'!BA20/'4.1 Comptes 2020 natures'!BA2 -> 235.17 | BB20: ='4.1 Comptes 2020 natures'!BB20/'4.1 Comptes 2020 natures'!BB2 -> 135.60 | BC20: ='4.1 Comptes 2020 natures'!BC20/'4.1 Comptes 2020 natures'!BC2 -> 215.73 | BD20: ='4.1 Comptes 2020 natures'!BD20/'4.1 Comptes 2020 natures'!BD2 -> 139.35 | BE20: ='4.1 Comptes 2020 natures'!BE20/'4.1 Comptes 2020 natures'!BE2 -> 85.57 | BF20: 9,497.85 | BG20: 3,027.04 | BH20: 3,120.40 | BI20: 3,350.41
C21: 315 | D21: Entretien des biens mobiliers et des immobilisations corporelles du PA | E21: ='4.1 Comptes 2020 natures'!E21/'4.1 Comptes 2020 natures'!E2 -> 35.93 | F21: ='4.1 Comptes 2020 natures'!F21/'4.1 Comptes 2020 natures'!F2 -> 48.68 | G21: ='4.1 Comptes 2020 natures'!G21/'4.1 Comptes 2020 natures'!G2 -> 26.83 | H21: ='4.1 Comptes 2020 natures'!H21/'4.1 Comptes 2020 natures'!H2 -> 44.63 | I21: ='4.1 Comptes 2020 natures'!I21/'4.1 Comptes 2020 natures'!I2 -> 38.50 | J21: ='4.1 Comptes 2020 natures'!J21/'4.1 Comptes 2020 natures'!J2 -> 4.50 | K21: ='4.1 Comptes 2020 natures'!K21/'4.1 Comptes 2020 natures'!K2 -> 33.16 | L21: ='4.1 Comptes 2020 natures'!L21/'4.1 Comptes 2020 natures'!L2 -> 76.16 | M21: ='4.1 Comptes 2020 natures'!M21/'4.1 Comptes 2020 natures'!M2 -> 44.05 | N21: ='4.1 Comptes 2020 natures'!N21/'4.1 Comptes 2020 natures'!N2 -> 17.04 | O21: ='4.1 Comptes 2020 natures'!O21/'4.1 Comptes 2020 natures'!O2 -> 31.51 | P21: ='4.1 Comptes 2020 natures'!P21/'4.1 Comptes 2020 natures'!P2 -> 17.16 | Q21: ='4.1 Comptes 2020 natures'!Q21/'4.1 Comptes 2020 natures'!Q2 -> 22.80 | R21: ='4.1 Comptes 2020 natures'!R21/'4.1 Comptes 2020 natures'!R2 -> 51.24 | S21: ='4.1 Comptes 2020 natures'!S21/'4.1 Comptes 2020 natures'!S2 -> 15.97 | T21: ='4.1 Comptes 2020 natures'!T21/'4.1 Comptes 2020 natures'!T2 -> 18.62 | U21: ='4.1 Comptes 2020 natures'!U21/'4.1 Comptes 2020 natures'!U2 -> 33.27 | V21: ='4.1 Comptes 2020 natures'!V21/'4.1 Comptes 2020 natures'!V2 -> 49.82 | W21: ='4.1 Comptes 2020 natures'!W21/'4.1 Comptes 2020 natures'!W2 -> 39.22 | X21: ='4.1 Comptes 2020 natures'!X21/'4.1 Comptes 2020 natures'!X2 -> 5.28 | Y21: ='4.1 Comptes 2020 natures'!Y21/'4.1 Comptes 2020 natures'!Y2 -> 70.81 | Z21: ='4.1 Comptes 2020 natures'!Z21/'4.1 Comptes 2020 natures'!Z2 -> 41.63 | AA21: ='4.1 Comptes 2020 natures'!AA21/'4.1 Comptes 2020 natures'!AA2 -> 79.61 | AB21: ='4.1 Comptes 2020 natures'!AB21/'4.1 Comptes 2020 natures'!AB2 -> 30.74 | AC21: ='4.1 Comptes 2020 natures'!AC21/'4.1 Comptes 2020 natures'!AC2 -> 83.47 | AD21: ='4.1 Comptes 2020 natures'!AD21/'4.1 Comptes 2020 natures'!AD2 -> 135.92 | AE21: ='4.1 Comptes 2020 natures'!AE21/'4.1 Comptes 2020 natures'!AE2 -> 87.54 | AF21: ='4.1 Comptes 2020 natures'!AF21/'4.1 Comptes 2020 natures'!AF2 -> 6.56 | AG21: ='4.1 Comptes 2020 natures'!AG21/'4.1 Comptes 2020 natures'!AG2 -> 53.22 | AH21: ='4.1 Comptes 2020 natures'!AH21/'4.1 Comptes 2020 natures'!AH2 -> 16.41 | AI21: ='4.1 Comptes 2020 natures'!AI21/'4.1 Comptes 2020 natures'!AI2 -> 116.40 | AJ21: ='4.1 Comptes 2020 natures'!AJ21/'4.1 Comptes 2020 natures'!AJ2 -> 64.57 | AK21: ='4.1 Comptes 2020 natures'!AK21/'4.1 Comptes 2020 natures'!AK2 -> 10.39 | AL21: ='4.1 Comptes 2020 natures'!AL21/'4.1 Comptes 2020 natures'!AL2 -> 115.34 | AM21: ='4.1 Comptes 2020 natures'!AM21/'4.1 Comptes 2020 natures'!AM2 -> 36.72 | AN21: ='4.1 Comptes 2020 natures'!AN21/'4.1 Comptes 2020 natures'!AN2 -> 0.00 | AO21: ='4.1 Comptes 2020 natures'!AO21/'4.1 Comptes 2020 natures'!AO2 -> 44.93 | AP21: ='4.1 Comptes 2020 natures'!AP21/'4.1 Comptes 2020 natures'!AP2 -> 45.88 | AQ21: ='4.1 Comptes 2020 natures'!AQ21/'4.1 Comptes 2020 natures'!AQ2 -> 52.76 | AR21: ='4.1 Comptes 2020 natures'!AR21/'4.1 Comptes 2020 natures'!AR2 -> 55.39 | AS21: ='4.1 Comptes 2020 natures'!AS21/'4.1 Comptes 2020 natures'!AS2 -> 54.30 | AT21: ='4.1 Comptes 2020 natures'!AT21/'4.1 Comptes 2020 natures'!AT2 -> 40.03 | AU21: ='4.1 Comptes 2020 natures'!AU21/'4.1 Comptes 2020 natures'!AU2 -> 71.70 | AV21: ='4.1 Comptes 2020 natures'!AV21/'4.1 Comptes 2020 natures'!AV2 -> 23.02 | AW21: ='4.1 Comptes 2020 natures'!AW21/'4.1 Comptes 2020 natures'!AW2 -> 37.52 | AX21: ='4.1 Comptes 2020 natures'!AX21/'4.1 Comptes 2020 natures'!AX2 -> 40.44 | AY21: ='4.1 Comptes 2020 natures'!AY21/'4.1 Comptes 2020 natures'!AY2 -> 36.48 | AZ21: ='4.1 Comptes 2020 natures'!AZ21/'4.1 Comptes 2020 natures'!AZ2 -> 25.73 | BA21: ='4.1 Comptes 2020 natures'!BA21/'4.1 Comptes 2020 natures'!BA2 -> 22.60 | BB21: ='4.1 Comptes 2020 natures'!BB21/'4.1 Comptes 2020 natures'!BB2 -> 72.87 | BC21: ='4.1 Comptes 2020 natures'!BC21/'4.1 Comptes 2020 natures'!BC2 -> 28.83 | BD21: ='4.1 Comptes 2020 natures'!BD21/'4.1 Comptes 2020 natures'!BD2 -> 65.08 | BE21: ='4.1 Comptes 2020 natures'!BE21/'4.1 Comptes 2020 natures'!BE2 -> 75.33 | BF21: 2,396.61 | BG21: 649.11 | BH21: 792.16 | BI21: 955.34
C22: 316 | D22: Loyers - crédits-bails (leasing) - baux à fermes - taxes d'utilisation | E22: ='4.1 Comptes 2020 natures'!E22/'4.1 Comptes 2020 natures'!E2 -> 4.20 | F22: ='4.1 Comptes 2020 natures'!F22/'4.1 Comptes 2020 natures'!F2 -> 10.50 | G22: ='4.1 Comptes 2020 natures'!G22/'4.1 Comptes 2020 natures'!G2 -> 1.22 | H22: ='4.1 Comptes 2020 natures'!H22/'4.1 Comptes 2020 natures'!H2 -> 9.25 | I22: ='4.1 Comptes 2020 natures'!I22/'4.1 Comptes 2020 natures'!I2 -> 18.68 | J22: ='4.1 Comptes 2020 natures'!J22/'4.1 Comptes 2020 natures'!J2 -> 10.69 | K22: ='4.1 Comptes 2020 natures'!K22/'4.1 Comptes 2020 natures'!K2 -> 12.45 | L22: ='4.1 Comptes 2020 natures'!L22/'4.1 Comptes 2020 natures'!L2 -> 72.81 | M22: ='4.1 Comptes 2020 natures'!M22/'4.1 Comptes 2020 natures'!M2 -> 22.97 | N22: ='4.1 Comptes 2020 natures'!N22/'4.1 Comptes 2020 natures'!N2 -> 10.17 | O22: ='4.1 Comptes 2020 natures'!O22/'4.1 Comptes 2020 natures'!O2 -> 14.86 | P22: ='4.1 Comptes 2020 natures'!P22/'4.1 Comptes 2020 natures'!P2 -> 0.00 | Q22: ='4.1 Comptes 2020 natures'!Q22/'4.1 Comptes 2020 natures'!Q2 -> 0.00 | R22: ='4.1 Comptes 2020 natures'!R22/'4.1 Comptes 2020 natures'!R2 -> 0.00 | S22: ='4.1 Comptes 2020 natures'!S22/'4.1 Comptes 2020 natures'!S2 -> 0.00 | T22: ='4.1 Comptes 2020 natures'!T22/'4.1 Comptes 2020 natures'!T2 -> 2.04 | U22: ='4.1 Comptes 2020 natures'!U22/'4.1 Comptes 2020 natures'!U2 -> 0.00 | V22: ='4.1 Comptes 2020 natures'!V22/'4.1 Comptes 2020 natures'!V2 -> 11.01 | W22: ='4.1 Comptes 2020 natures'!W22/'4.1 Comptes 2020 natures'!W2 -> 35.63 | X22: ='4.1 Comptes 2020 natures'!X22/'4.1 Comptes 2020 natures'!X2 -> 68.67 | Y22: ='4.1 Comptes 2020 natures'!Y22/'4.1 Comptes 2020 natures'!Y2 -> 11.80 | Z22: ='4.1 Comptes 2020 natures'!Z22/'4.1 Comptes 2020 natures'!Z2 -> 104.87 | AA22: ='4.1 Comptes 2020 natures'!AA22/'4.1 Comptes 2020 natures'!AA2 -> 0.00 | AB22: ='4.1 Comptes 2020 natures'!AB22/'4.1 Comptes 2020 natures'!AB2 -> 5.37 | AC22: ='4.1 Comptes 2020 natures'!AC22/'4.1 Comptes 2020 natures'!AC2 -> 6.71 | AD22: ='4.1 Comptes 2020 natures'!AD22/'4.1 Comptes 2020 natures'!AD2 -> 66.98 | AE22: ='4.1 Comptes 2020 natures'!AE22/'4.1 Comptes 2020 natures'!AE2 -> 4.31 | AF22: ='4.1 Comptes 2020 natures'!AF22/'4.1 Comptes 2020 natures'!AF2 -> 0.00 | AG22: ='4.1 Comptes 2020 natures'!AG22/'4.1 Comptes 2020 natures'!AG2 -> 1.16 | AH22: ='4.1 Comptes 2020 natures'!AH22/'4.1 Comptes 2020 natures'!AH2 -> 41.66 | AI22: ='4.1 Comptes 2020 natures'!AI22/'4.1 Comptes 2020 natures'!AI2 -> 0.00 | AJ22: ='4.1 Comptes 2020 natures'!AJ22/'4.1 Comptes 2020 natures'!AJ2 -> 0.00 | AK22: ='4.1 Comptes 2020 natures'!AK22/'4.1 Comptes 2020 natures'!AK2 -> 0.00 | AL22: ='4.1 Comptes 2020 natures'!AL22/'4.1 Comptes 2020 natures'!AL2 -> 7.90 | AM22: ='4.1 Comptes 2020 natures'!AM22/'4.1 Comptes 2020 natures'!AM2 -> 12.05 | AN22: ='4.1 Comptes 2020 natures'!AN22/'4.1 Comptes 2020 natures'!AN2 -> 5.04 | AO22: ='4.1 Comptes 2020 natures'!AO22/'4.1 Comptes 2020 natures'!AO2 -> 30.13 | AP22: ='4.1 Comptes 2020 natures'!AP22/'4.1 Comptes 2020 natures'!AP2 -> 58.33 | AQ22: ='4.1 Comptes 2020 natures'!AQ22/'4.1 Comptes 2020 natures'!AQ2 -> 0.00 | AR22: ='4.1 Comptes 2020 natures'!AR22/'4.1 Comptes 2020 natures'!AR2 -> 33.84 | AS22: ='4.1 Comptes 2020 natures'!AS22/'4.1 Comptes 2020 natures'!AS2 -> 13.16 | AT22: ='4.1 Comptes 2020 natures'!AT22/'4.1 Comptes 2020 natures'!AT2 -> 0.00 | AU22: ='4.1 Comptes 2020 natures'!AU22/'4.1 Comptes 2020 natures'!AU2 -> 0.00 | AV22: ='4.1 Comptes 2020 natures'!AV22/'4.1 Comptes 2020 natures'!AV2 -> 4.37 | AW22: ='4.1 Comptes 2020 natures'!AW22/'4.1 Comptes 2020 natures'!AW2 -> 25.30 | AX22: ='4.1 Comptes 2020 natures'!AX22/'4.1 Comptes 2020 natures'!AX2 -> 0.00 | AY22: ='4.1 Comptes 2020 natures'!AY22/'4.1 Comptes 2020 natures'!AY2 -> 7.90 | AZ22: ='4.1 Comptes 2020 natures'!AZ22/'4.1 Comptes 2020 natures'!AZ2 -> 23.52 | BA22: ='4.1 Comptes 2020 natures'!BA22/'4.1 Comptes 2020 natures'!BA2 -> 15.19 | BB22: ='4.1 Comptes 2020 natures'!BB22/'4.1 Comptes 2020 natures'!BB2 -> 7.02 | BC22: ='4.1 Comptes 2020 natures'!BC22/'4.1 Comptes 2020 natures'!BC2 -> 0.00 | BD22: ='4.1 Comptes 2020 natures'!BD22/'4.1 Comptes 2020 natures'!BD2 -> 121.91 | BE22: ='4.1 Comptes 2020 natures'!BE22/'4.1 Comptes 2020 natures'!BE2 -> 1.07 | BF22: 914.76 | BG22: 236.48 | BH22: 311.54 | BI22: 366.74
C23: 317 | D23: Indemnités et dédommagements | E23: ='4.1 Comptes 2020 natures'!E23/'4.1 Comptes 2020 natures'!E2 -> 18.96 | F23: ='4.1 Comptes 2020 natures'!F23/'4.1 Comptes 2020 natures'!F2 -> 6.49 | G23: ='4.1 Comptes 2020 natures'!G23/'4.1 Comptes 2020 natures'!G2 -> 1.25 | H23: ='4.1 Comptes 2020 natures'!H23/'4.1 Comptes 2020 natures'!H2 -> 2.02 | I23: ='4.1 Comptes 2020 natures'!I23/'4.1 Comptes 2020 natures'!I2 -> 7.76 | J23: ='4.1 Comptes 2020 natures'!J23/'4.1 Comptes 2020 natures'!J2 -> 12.79 | K23: ='4.1 Comptes 2020 natures'!K23/'4.1 Comptes 2020 natures'!K2 -> 7.03 | L23: ='4.1 Comptes 2020 natures'!L23/'4.1 Comptes 2020 natures'!L2 -> 5.11 | M23: ='4.1 Comptes 2020 natures'!M23/'4.1 Comptes 2020 natures'!M2 -> 8.99 | N23: ='4.1 Comptes 2020 natures'!N23/'4.1 Comptes 2020 natures'!N2 -> 1.31 | O23: ='4.1 Comptes 2020 natures'!O23/'4.1 Comptes 2020 natures'!O2 -> 9.87 | P23: ='4.1 Comptes 2020 natures'!P23/'4.1 Comptes 2020 natures'!P2 -> 5.19 | Q23: ='4.1 Comptes 2020 natures'!Q23/'4.1 Comptes 2020 natures'!Q2 -> 12.13 | R23: ='4.1 Comptes 2020 natures'!R23/'4.1 Comptes 2020 natures'!R2 -> 2.98 | S23: ='4.1 Comptes 2020 natures'!S23/'4.1 Comptes 2020 natures'!S2 -> 16.69 | T23: ='4.1 Comptes 2020 natures'!T23/'4.1 Comptes 2020 natures'!T2 -> 38.15 | U23: ='4.1 Comptes 2020 natures'!U23/'4.1 Comptes 2020 natures'!U2 -> 10.75 | V23: ='4.1 Comptes 2020 natures'!V23/'4.1 Comptes 2020 natures'!V2 -> 7.26 | W23: ='4.1 Comptes 2020 natures'!W23/'4.1 Comptes 2020 natures'!W2 -> 5.39 | X23: ='4.1 Comptes 2020 natures'!X23/'4.1 Comptes 2020 natures'!X2 -> 65.50 | Y23: ='4.1 Comptes 2020 natures'!Y23/'4.1 Comptes 2020 natures'!Y2 -> 5.67 | Z23: ='4.1 Comptes 2020 natures'!Z23/'4.1 Comptes 2020 natures'!Z2 -> 19.63 | AA23: ='4.1 Comptes 2020 natures'!AA23/'4.1 Comptes 2020 natures'!AA2 -> 4.26 | AB23: ='4.1 Comptes 2020 natures'!AB23/'4.1 Comptes 2020 natures'!AB2 -> 3.73 | AC23: ='4.1 Comptes 2020 natures'!AC23/'4.1 Comptes 2020 natures'!AC2 -> 5.53 | AD23: ='4.1 Comptes 2020 natures'!AD23/'4.1 Comptes 2020 natures'!AD2 -> 11.76 | AE23: ='4.1 Comptes 2020 natures'!AE23/'4.1 Comptes 2020 natures'!AE2 -> 11.91 | AF23: ='4.1 Comptes 2020 natures'!AF23/'4.1 Comptes 2020 natures'!AF2 -> 0.00 | AG23: ='4.1 Comptes 2020 natures'!AG23/'4.1 Comptes 2020 natures'!AG2 -> 8.35 | AH23: ='4.1 Comptes 2020 natures'!AH23/'4.1 Comptes 2020 natures'!AH2 -> 2.98 | AI23: ='4.1 Comptes 2020 natures'!AI23/'4.1 Comptes 2020 natures'!AI2 -> 7.47 | AJ23: ='4.1 Comptes 2020 natures'!AJ23/'4.1 Comptes 2020 natures'!AJ2 -> 4.08 | AK23: ='4.1 Comptes 2020 natures'!AK23/'4.1 Comptes 2020 natures'!AK2 -> 16.04 | AL23: ='4.1 Comptes 2020 natures'!AL23/'4.1 Comptes 2020 natures'!AL2 -> 12.66 | AM23: ='4.1 Comptes 2020 natures'!AM23/'4.1 Comptes 2020 natures'!AM2 -> 11.91 | AN23: ='4.1 Comptes 2020 natures'!AN23/'4.1 Comptes 2020 natures'!AN2 -> 3.71 | AO23: ='4.1 Comptes 2020 natures'!AO23/'4.1 Comptes 2020 natures'!AO2 -> 21.83 | AP23: ='4.1 Comptes 2020 natures'!AP23/'4.1 Comptes 2020 natures'!AP2 -> 4.03 | AQ23: ='4.1 Comptes 2020 natures'!AQ23/'4.1 Comptes 2020 natures'!AQ2 -> 0.71 | AR23: ='4.1 Comptes 2020 natures'!AR23/'4.1 Comptes 2020 natures'!AR2 -> 15.17 | AS23: ='4.1 Comptes 2020 natures'!AS23/'4.1 Comptes 2020 natures'!AS2 -> 36.37 | AT23: ='4.1 Comptes 2020 natures'!AT23/'4.1 Comptes 2020 natures'!AT2 -> 6.70 | AU23: ='4.1 Comptes 2020 natures'!AU23/'4.1 Comptes 2020 natures'!AU2 -> 5.20 | AV23: ='4.1 Comptes 2020 natures'!AV23/'4.1 Comptes 2020 natures'!AV2 -> 12.82 | AW23: ='4.1 Comptes 2020 natures'!AW23/'4.1 Comptes 2020 natures'!AW2 -> 1.90 | AX23: ='4.1 Comptes 2020 natures'!AX23/'4.1 Comptes 2020 natures'!AX2 -> 3.43 | AY23: ='4.1 Comptes 2020 natures'!AY23/'4.1 Comptes 2020 natures'!AY2 -> 10.93 | AZ23: ='4.1 Comptes 2020 natures'!AZ23/'4.1 Comptes 2020 natures'!AZ2 -> 11.67 | BA23: ='4.1 Comptes 2020 natures'!BA23/'4.1 Comptes 2020 natures'!BA2 -> 7.91 | BB23: ='4.1 Comptes 2020 natures'!BB23/'4.1 Comptes 2020 natures'!BB2 -> 15.39 | BC23: ='4.1 Comptes 2020 natures'!BC23/'4.1 Comptes 2020 natures'!BC2 -> 1.77 | BD23: ='4.1 Comptes 2020 natures'!BD23/'4.1 Comptes 2020 natures'!BD2 -> 5.81 | BE23: ='4.1 Comptes 2020 natures'!BE23/'4.1 Comptes 2020 natures'!BE2 -> 1.98 | BF23: 538.94 | BG23: 180.11 | BH23: 150.88 | BI23: 207.96
C24: 318 | D24: Réévaluations de créances | E24: ='4.1 Comptes 2020 natures'!E24/'4.1 Comptes 2020 natures'!E2 -> 96.87 | F24: ='4.1 Comptes 2020 natures'!F24/'4.1 Comptes 2020 natures'!F2 -> -99.66 | G24: ='4.1 Comptes 2020 natures'!G24/'4.1 Comptes 2020 natures'!G2 -> 23.07 | H24: ='4.1 Comptes 2020 natures'!H24/'4.1 Comptes 2020 natures'!H2 -> 28.76 | I24: ='4.1 Comptes 2020 natures'!I24/'4.1 Comptes 2020 natures'!I2 -> 19.92 | J24: ='4.1 Comptes 2020 natures'!J24/'4.1 Comptes 2020 natures'!J2 -> 5.95 | K24: ='4.1 Comptes 2020 natures'!K24/'4.1 Comptes 2020 natures'!K2 -> 11.52 | L24: ='4.1 Comptes 2020 natures'!L24/'4.1 Comptes 2020 natures'!L2 -> -18.42 | M24: ='4.1 Comptes 2020 natures'!M24/'4.1 Comptes 2020 natures'!M2 -> -45.69 | N24: ='4.1 Comptes 2020 natures'!N24/'4.1 Comptes 2020 natures'!N2 -> 89.28 | O24: ='4.1 Comptes 2020 natures'!O24/'4.1 Comptes 2020 natures'!O2 -> -6.02 | P24: ='4.1 Comptes 2020 natures'!P24/'4.1 Comptes 2020 natures'!P2 -> 138.44 | Q24: ='4.1 Comptes 2020 natures'!Q24/'4.1 Comptes 2020 natures'!Q2 -> 0.55 | R24: ='4.1 Comptes 2020 natures'!R24/'4.1 Comptes 2020 natures'!R2 -> 14.22 | S24: ='4.1 Comptes 2020 natures'!S24/'4.1 Comptes 2020 natures'!S2 -> 106.71 | T24: ='4.1 Comptes 2020 natures'!T24/'4.1 Comptes 2020 natures'!T2 -> 40.53 | U24: ='4.1 Comptes 2020 natures'!U24/'4.1 Comptes 2020 natures'!U2 -> 57.90 | V24: ='4.1 Comptes 2020 natures'!V24/'4.1 Comptes 2020 natures'!V2 -> 97.51 | W24: ='4.1 Comptes 2020 natures'!W24/'4.1 Comptes 2020 natures'!W2 -> 51.75 | X24: ='4.1 Comptes 2020 natures'!X24/'4.1 Comptes 2020 natures'!X2 -> 44.72 | Y24: ='4.1 Comptes 2020 natures'!Y24/'4.1 Comptes 2020 natures'!Y2 -> 28.86 | Z24: ='4.1 Comptes 2020 natures'!Z24/'4.1 Comptes 2020 natures'!Z2 -> 39.55 | AA24: ='4.1 Comptes 2020 natures'!AA24/'4.1 Comptes 2020 natures'!AA2 -> 41.29 | AB24: ='4.1 Comptes 2020 natures'!AB24/'4.1 Comptes 2020 natures'!AB2 -> 40.52 | AC24: ='4.1 Comptes 2020 natures'!AC24/'4.1 Comptes 2020 natures'!AC2 -> -167.10 | AD24: ='4.1 Comptes 2020 natures'!AD24/'4.1 Comptes 2020 natures'!AD2 -> 36.28 | AE24: ='4.1 Comptes 2020 natures'!AE24/'4.1 Comptes 2020 natures'!AE2 -> 12.99 | AF24: ='4.1 Comptes 2020 natures'!AF24/'4.1 Comptes 2020 natures'!AF2 -> 51.37 | AG24: ='4.1 Comptes 2020 natures'!AG24/'4.1 Comptes 2020 natures'!AG2 -> 12.98 | AH24: ='4.1 Comptes 2020 natures'!AH24/'4.1 Comptes 2020 natures'!AH2 -> 39.60 | AI24: ='4.1 Comptes 2020 natures'!AI24/'4.1 Comptes 2020 natures'!AI2 -> 47.10 | AJ24: ='4.1 Comptes 2020 natures'!AJ24/'4.1 Comptes 2020 natures'!AJ2 -> 51.75 | AK24: ='4.1 Comptes 2020 natures'!AK24/'4.1 Comptes 2020 natures'!AK2 -> 56.79 | AL24: ='4.1 Comptes 2020 natures'!AL24/'4.1 Comptes 2020 natures'!AL2 -> 93.84 | AM24: ='4.1 Comptes 2020 natures'!AM24/'4.1 Comptes 2020 natures'!AM2 -> 75.62 | AN24: ='4.1 Comptes 2020 natures'!AN24/'4.1 Comptes 2020 natures'!AN2 -> 116.63 | AO24: ='4.1 Comptes 2020 natures'!AO24/'4.1 Comptes 2020 natures'!AO2 -> -132.31 | AP24: ='4.1 Comptes 2020 natures'!AP24/'4.1 Comptes 2020 natures'!AP2 -> -182.70 | AQ24: ='4.1 Comptes 2020 natures'!AQ24/'4.1 Comptes 2020 natures'!AQ2 -> 33.21 | AR24: ='4.1 Comptes 2020 natures'!AR24/'4.1 Comptes 2020 natures'!AR2 -> 80.42 | AS24: ='4.1 Comptes 2020 natures'!AS24/'4.1 Comptes 2020 natures'!AS2 -> 16.70 | AT24: ='4.1 Comptes 2020 natures'!AT24/'4.1 Comptes 2020 natures'!AT2 -> 26.12 | AU24: ='4.1 Comptes 2020 natures'!AU24/'4.1 Comptes 2020 natures'!AU2 -> 229.91 | AV24: ='4.1 Comptes 2020 natures'!AV24/'4.1 Comptes 2020 natures'!AV2 -> 106.45 | AW24: ='4.1 Comptes 2020 natures'!AW24/'4.1 Comptes 2020 natures'!AW2 -> 78.87 | AX24: ='4.1 Comptes 2020 natures'!AX24/'4.1 Comptes 2020 natures'!AX2 -> 53.50 | AY24: ='4.1 Comptes 2020 natures'!AY24/'4.1 Comptes 2020 natures'!AY2 -> 65.70 | AZ24: ='4.1 Comptes 2020 natures'!AZ24/'4.1 Comptes 2020 natures'!AZ2 -> 37.61 | BA24: ='4.1 Comptes 2020 natures'!BA24/'4.1 Comptes 2020 natures'!BA2 -> 28.43 | BB24: ='4.1 Comptes 2020 natures'!BB24/'4.1 Comptes 2020 natures'!BB2 -> 12.46 | BC24: ='4.1 Comptes 2020 natures'!BC24/'4.1 Comptes 2020 natures'!BC2 -> 40.32 | BD24: ='4.1 Comptes 2020 natures'!BD24/'4.1 Comptes 2020 natures'!BD2 -> 72.41 | BE24: ='4.1 Comptes 2020 natures'!BE24/'4.1 Comptes 2020 natures'!BE2 -> 37.57 | BF24: 1,840.66 | BG24: 613.20 | BH24: 279.93 | BI24: 947.53
C25: 319 | D25: Divers charges d'exploitation | E25: ='4.1 Comptes 2020 natures'!E25/'4.1 Comptes 2020 natures'!E2 -> 2.52 | F25: ='4.1 Comptes 2020 natures'!F25/'4.1 Comptes 2020 natures'!F2 -> 0.19 | G25: ='4.1 Comptes 2020 natures'!G25/'4.1 Comptes 2020 natures'!G2 -> 9.01 | H25: ='4.1 Comptes 2020 natures'!H25/'4.1 Comptes 2020 natures'!H2 -> 6.07 | I25: ='4.1 Comptes 2020 natures'!I25/'4.1 Comptes 2020 natures'!I2 -> 9.09 | J25: ='4.1 Comptes 2020 natures'!J25/'4.1 Comptes 2020 natures'!J2 -> 7.15 | K25: ='4.1 Comptes 2020 natures'!K25/'4.1 Comptes 2020 natures'!K2 -> 8.11 | L25: ='4.1 Comptes 2020 natures'!L25/'4.1 Comptes 2020 natures'!L2 -> 14.67 | M25: ='4.1 Comptes 2020 natures'!M25/'4.1 Comptes 2020 natures'!M2 -> 39.02 | N25: ='4.1 Comptes 2020 natures'!N25/'4.1 Comptes 2020 natures'!N2 -> 25.01 | O25: ='4.1 Comptes 2020 natures'!O25/'4.1 Comptes 2020 natures'!O2 -> 1.90 | P25: ='4.1 Comptes 2020 natures'!P25/'4.1 Comptes 2020 natures'!P2 -> 0.36 | Q25: ='4.1 Comptes 2020 natures'!Q25/'4.1 Comptes 2020 natures'!Q2 -> 5.49 | R25: ='4.1 Comptes 2020 natures'!R25/'4.1 Comptes 2020 natures'!R2 -> 0.00 | S25: ='4.1 Comptes 2020 natures'!S25/'4.1 Comptes 2020 natures'!S2 -> 3.86 | T25: ='4.1 Comptes 2020 natures'!T25/'4.1 Comptes 2020 natures'!T2 -> 6.98 | U25: ='4.1 Comptes 2020 natures'!U25/'4.1 Comptes 2020 natures'!U2 -> 2.70 | V25: ='4.1 Comptes 2020 natures'!V25/'4.1 Comptes 2020 natures'!V2 -> 2.75 | W25: ='4.1 Comptes 2020 natures'!W25/'4.1 Comptes 2020 natures'!W2 -> 2.18 | X25: ='4.1 Comptes 2020 natures'!X25/'4.1 Comptes 2020 natures'!X2 -> 4.58 | Y25: ='4.1 Comptes 2020 natures'!Y25/'4.1 Comptes 2020 natures'!Y2 -> 12.22 | Z25: ='4.1 Comptes 2020 natures'!Z25/'4.1 Comptes 2020 natures'!Z2 -> 10.92 | AA25: ='4.1 Comptes 2020 natures'!AA25/'4.1 Comptes 2020 natures'!AA2 -> 10.16 | AB25: ='4.1 Comptes 2020 natures'!AB25/'4.1 Comptes 2020 natures'!AB2 -> 9.13 | AC25: ='4.1 Comptes 2020 natures'!AC25/'4.1 Comptes 2020 natures'!AC2 -> 1.92 | AD25: ='4.1 Comptes 2020 natures'!AD25/'4.1 Comptes 2020 natures'!AD2 -> 10.68 | AE25: ='4.1 Comptes 2020 natures'!AE25/'4.1 Comptes 2020 natures'!AE2 -> 5.14 | AF25: ='4.1 Comptes 2020 natures'!AF25/'4.1 Comptes 2020 natures'!AF2 -> 3.65 | AG25: ='4.1 Comptes 2020 natures'!AG25/'4.1 Comptes 2020 natures'!AG2 -> 3.45 | AH25: ='4.1 Comptes 2020 natures'!AH25/'4.1 Comptes 2020 natures'!AH2 -> 4.56 | AI25: ='4.1 Comptes 2020 natures'!AI25/'4.1 Comptes 2020 natures'!AI2 -> 3.04 | AJ25: ='4.1 Comptes 2020 natures'!AJ25/'4.1 Comptes 2020 natures'!AJ2 -> 11.81 | AK25: ='4.1 Comptes 2020 natures'!AK25/'4.1 Comptes 2020 natures'!AK2 -> 0.00 | AL25: ='4.1 Comptes 2020 natures'!AL25/'4.1 Comptes 2020 natures'!AL2 -> 15.64 | AM25: ='4.1 Comptes 2020 natures'!AM25/'4.1 Comptes 2020 natures'!AM2 -> 0.76 | AN25: ='4.1 Comptes 2020 natures'!AN25/'4.1 Comptes 2020 natures'!AN2 -> 0.00 | AO25: ='4.1 Comptes 2020 natures'!AO25/'4.1 Comptes 2020 natures'!AO2 -> 27.86 | AP25: ='4.1 Comptes 2020 natures'!AP25/'4.1 Comptes 2020 natures'!AP2 -> 2.05 | AQ25: ='4.1 Comptes 2020 natures'!AQ25/'4.1 Comptes 2020 natures'!AQ2 -> 0.16 | AR25: ='4.1 Comptes 2020 natures'!AR25/'4.1 Comptes 2020 natures'!AR2 -> 12.65 | AS25: ='4.1 Comptes 2020 natures'!AS25/'4.1 Comptes 2020 natures'!AS2 -> 3.23 | AT25: ='4.1 Comptes 2020 natures'!AT25/'4.1 Comptes 2020 natures'!AT2 -> 21.92 | AU25: ='4.1 Comptes 2020 natures'!AU25/'4.1 Comptes 2020 natures'!AU2 -> 7.06 | AV25: ='4.1 Comptes 2020 natures'!AV25/'4.1 Comptes 2020 natures'!AV2 -> 8.75 | AW25: ='4.1 Comptes 2020 natures'!AW25/'4.1 Comptes 2020 natures'!AW2 -> 14.23 | AX25: ='4.1 Comptes 2020 natures'!AX25/'4.1 Comptes 2020 natures'!AX2 -> 0.97 | AY25: ='4.1 Comptes 2020 natures'!AY25/'4.1 Comptes 2020 natures'!AY2 -> 0.00 | AZ25: ='4.1 Comptes 2020 natures'!AZ25/'4.1 Comptes 2020 natures'!AZ2 -> 1.96 | BA25: ='4.1 Comptes 2020 natures'!BA25/'4.1 Comptes 2020 natures'!BA2 -> 0.00 | BB25: ='4.1 Comptes 2020 natures'!BB25/'4.1 Comptes 2020 natures'!BB2 -> 6.93 | BC25: ='4.1 Comptes 2020 natures'!BC25/'4.1 Comptes 2020 natures'!BC2 -> 3.94 | BD25: ='4.1 Comptes 2020 natures'!BD25/'4.1 Comptes 2020 natures'!BD2 -> 24.78 | BE25: ='4.1 Comptes 2020 natures'!BE25/'4.1 Comptes 2020 natures'!BE2 -> 5.88 | BF25: 397.10 | BG25: 147.07 | BH25: 91.26 | BI25: 158.77
B27: 33 | D27: Amortissements du patrimoine administratif | E27: =E28+E29 -> 547.52 | F27: =F28+F29 -> 294.76 | G27: 75.14 | H27: 224.80 | I27: 204.53 | J27: 304.36 | K27: 212.65 | L27: 405.70 | M27: 192.87 | N27: 463.85 | O27: 182.98 | P27: 259.62 | Q27: 118.94 | R27: 228.67 | S27: 193.55 | T27: 217.09 | U27: 129.45 | V27: 356.44 | W27: 299.33 | X27: 159.48 | Y27: 211.63 | Z27: 203.17 | AA27: 419.14 | AB27: 4.70 | AC27: 188.64 | AD27: 261.42 | AE27: 197.38 | AF27: 94.08 | AG27: 314.60 | AH27: 430.78 | AI27: 323.88 | AJ27: 85.65 | AK27: 222.46 | AL27: 338.19 | AM27: 212.61 | AN27: 156.30 | AO27: 513.41 | AP27: 101.58 | AQ27: 320.14 | AR27: 468.66 | AS27: 179.59 | AT27: 229.58 | AU27: 1,376.10 | AV27: 181.38 | AW27: 141.03 | AX27: 173.54 | AY27: 536.50 | AZ27: 338.34 | BA27: 75.04 | BB27: 348.00 | BC27: 66.36 | BD27: 501.99 | BE27: 183.18 | BF27: 14,470.77 | BG27: 4,912.25 | BH27: 2,894.55 | BI27: 6,663.98
C28: 330 | D28: Amortissements des immobilisations corporelles du PA | E28: ='4.1 Comptes 2020 natures'!E28/'4.1 Comptes 2020 natures'!E2 -> 512.00 | F28: ='4.1 Comptes 2020 natures'!F28/'4.1 Comptes 2020 natures'!F2 -> 251.50 | G28: ='4.1 Comptes 2020 natures'!G28/'4.1 Comptes 2020 natures'!G2 -> 71.54 | H28: ='4.1 Comptes 2020 natures'!H28/'4.1 Comptes 2020 natures'!H2 -> 224.80 | I28: ='4.1 Comptes 2020 natures'!I28/'4.1 Comptes 2020 natures'!I2 -> 199.51 | J28: ='4.1 Comptes 2020 natures'!J28/'4.1 Comptes 2020 natures'!J2 -> 301.71 | K28: ='4.1 Comptes 2020 natures'!K28/'4.1 Comptes 2020 natures'!K2 -> 212.65 | L28: ='4.1 Comptes 2020 natures'!L28/'4.1 Comptes 2020 natures'!L2 -> 405.70 | M28: ='4.1 Comptes 2020 natures'!M28/'4.1 Comptes 2020 natures'!M2 -> 191.54 | N28: ='4.1 Comptes 2020 natures'!N28/'4.1 Comptes 2020 natures'!N2 -> 463.85 | O28: ='4.1 Comptes 2020 natures'!O28/'4.1 Comptes 2020 natures'!O2 -> 179.49 | P28: ='4.1 Comptes 2020 natures'!P28/'4.1 Comptes 2020 natures'!P2 -> 259.62 | Q28: ='4.1 Comptes 2020 natures'!Q28/'4.1 Comptes 2020 natures'!Q2 -> 118.94 | R28: ='4.1 Comptes 2020 natures'!R28/'4.1 Comptes 2020 natures'!R2 -> 228.67 | S28: ='4.1 Comptes 2020 natures'!S28/'4.1 Comptes 2020 natures'!S2 -> 193.55 | T28: ='4.1 Comptes 2020 natures'!T28/'4.1 Comptes 2020 natures'!T2 -> 217.09 | U28: ='4.1 Comptes 2020 natures'!U28/'4.1 Comptes 2020 natures'!U2 -> 129.45 | V28: ='4.1 Comptes 2020 natures'!V28/'4.1 Comptes 2020 natures'!V2 -> 315.37 | W28: ='4.1 Comptes 2020 natures'!W28/'4.1 Comptes 2020 natures'!W2 -> 282.30 | X28: ='4.1 Comptes 2020 natures'!X28/'4.1 Comptes 2020 natures'!X2 -> 159.48 | Y28: ='4.1 Comptes 2020 natures'!Y28/'4.1 Comptes 2020 natures'!Y2 -> 211.63 | Z28: ='4.1 Comptes 2020 natures'!Z28/'4.1 Comptes 2020 natures'!Z2 -> 203.17 | AA28: ='4.1 Comptes 2020 natures'!AA28/'4.1 Comptes 2020 natures'!AA2 -> 419.14 | AB28: ='4.1 Comptes 2020 natures'!AB28/'4.1 Comptes 2020 natures'!AB2 -> 4.70 | AC28: ='4.1 Comptes 2020 natures'!AC28/'4.1 Comptes 2020 natures'!AC2 -> 178.91 | AD28: ='4.1 Comptes 2020 natures'!AD28/'4.1 Comptes 2020 natures'!AD2 -> 261.42 | AE28: ='4.1 Comptes 2020 natures'!AE28/'4.1 Comptes 2020 natures'!AE2 -> 197.38 | AF28: ='4.1 Comptes 2020 natures'!AF28/'4.1 Comptes 2020 natures'!AF2 -> 94.08 | AG28: ='4.1 Comptes 2020 natures'!AG28/'4.1 Comptes 2020 natures'!AG2 -> 314.60 | AH28: ='4.1 Comptes 2020 natures'!AH28/'4.1 Comptes 2020 natures'!AH2 -> 415.42 | AI28: ='4.1 Comptes 2020 natures'!AI28/'4.1 Comptes 2020 natures'!AI2 -> 323.88 | AJ28: ='4.1 Comptes 2020 natures'!AJ28/'4.1 Comptes 2020 natures'!AJ2 -> 85.65 | AK28: ='4.1 Comptes 2020 natures'!AK28/'4.1 Comptes 2020 natures'!AK2 -> 222.46 | AL28: ='4.1 Comptes 2020 natures'!AL28/'4.1 Comptes 2020 natures'!AL2 -> 338.19 | AM28: ='4.1 Comptes 2020 natures'!AM28/'4.1 Comptes 2020 natures'!AM2 -> 196.70 | AN28: ='4.1 Comptes 2020 natures'!AN28/'4.1 Comptes 2020 natures'!AN2 -> 156.30 | AO28: ='4.1 Comptes 2020 natures'!AO28/'4.1 Comptes 2020 natures'!AO2 -> 504.71 | AP28: ='4.1 Comptes 2020 natures'!AP28/'4.1 Comptes 2020 natures'!AP2 -> 101.58 | AQ28: ='4.1 Comptes 2020 natures'!AQ28/'4.1 Comptes 2020 natures'!AQ2 -> 320.14 | AR28: ='4.1 Comptes 2020 natures'!AR28/'4.1 Comptes 2020 natures'!AR2 -> 461.53 | AS28: ='4.1 Comptes 2020 natures'!AS28/'4.1 Comptes 2020 natures'!AS2 -> 179.59 | AT28: ='4.1 Comptes 2020 natures'!AT28/'4.1 Comptes 2020 natures'!AT2 -> 229.13 | AU28: ='4.1 Comptes 2020 natures'!AU28/'4.1 Comptes 2020 natures'!AU2 -> 1,376.10 | AV28: ='4.1 Comptes 2020 natures'!AV28/'4.1 Comptes 2020 natures'!AV2 -> 181.38 | AW28: ='4.1 Comptes 2020 natures'!AW28/'4.1 Comptes 2020 natures'!AW2 -> 141.03 | AX28: ='4.1 Comptes 2020 natures'!AX28/'4.1 Comptes 2020 natures'!AX2 -> 173.54 | AY28: ='4.1 Comptes 2020 natures'!AY28/'4.1 Comptes 2020 natures'!AY2 -> 523.53 | AZ28: ='4.1 Comptes 2020 natures'!AZ28/'4.1 Comptes 2020 natures'!AZ2 -> 313.54 | BA28: ='4.1 Comptes 2020 natures'!BA28/'4.1 Comptes 2020 natures'!BA2 -> 75.04 | BB28: ='4.1 Comptes 2020 natures'!BB28/'4.1 Comptes 2020 natures'!BB2 -> 348.00 | BC28: ='4.1 Comptes 2020 natures'!BC28/'4.1 Comptes 2020 natures'!BC2 -> 66.36 | BD28: ='4.1 Comptes 2020 natures'!BD28/'4.1 Comptes 2020 natures'!BD2 -> 459.97 | BE28: ='4.1 Comptes 2020 natures'!BE28/'4.1 Comptes 2020 natures'!BE2 -> 183.18 | BF28: =SUM(E28:BE28) -> 14,180.72 | BG28: =SUM(E28:W28) -> 4,759.27 | BH28: =SUM(X28:AJ28) -> 2,869.45 | BI28: =SUM(AK28:BE28) -> 6,552.00
C29: 332 | D29: Amortissements des immobilisations incorporelles du PA | E29: ='4.1 Comptes 2020 natures'!E29/'4.1 Comptes 2020 natures'!E2 -> 35.52 | F29: ='4.1 Comptes 2020 natures'!F29/'4.1 Comptes 2020 natures'!F2 -> 43.26 | G29: ='4.1 Comptes 2020 natures'!G29/'4.1 Comptes 2020 natures'!G2 -> 3.60 | H29: ='4.1 Comptes 2020 natures'!H29/'4.1 Comptes 2020 natures'!H2 -> 0.00 | I29: ='4.1 Comptes 2020 natures'!I29/'4.1 Comptes 2020 natures'!I2 -> 5.02 | J29: ='4.1 Comptes 2020 natures'!J29/'4.1 Comptes 2020 natures'!J2 -> 2.65 | K29: ='4.1 Comptes 2020 natures'!K29/'4.1 Comptes 2020 natures'!K2 -> 0.00 | L29: ='4.1 Comptes 2020 natures'!L29/'4.1 Comptes 2020 natures'!L2 -> 0.00 | M29: ='4.1 Comptes 2020 natures'!M29/'4.1 Comptes 2020 natures'!M2 -> 1.33 | N29: ='4.1 Comptes 2020 natures'!N29/'4.1 Comptes 2020 natures'!N2 -> 0.00 | O29: ='4.1 Comptes 2020 natures'!O29/'4.1 Comptes 2020 natures'!O2 -> 3.49 | P29: ='4.1 Comptes 2020 natures'!P29/'4.1 Comptes 2020 natures'!P2 -> 0.00 | Q29: ='4.1 Comptes 2020 natures'!Q29/'4.1 Comptes 2020 natures'!Q2 -> 0.00 | R29: ='4.1 Comptes 2020 natures'!R29/'4.1 Comptes 2020 natures'!R2 -> 0.00 | S29: ='4.1 Comptes 2020 natures'!S29/'4.1 Comptes 2020 natures'!S2 -> 0.00 | T29: ='4.1 Comptes 2020 natures'!T29/'4.1 Comptes 2020 natures'!T2 -> 0.00 | U29: ='4.1 Comptes 2020 natures'!U29/'4.1 Comptes 2020 natures'!U2 -> 0.00 | V29: ='4.1 Comptes 2020 natures'!V29/'4.1 Comptes 2020 natures'!V2 -> 41.08 | W29: ='4.1 Comptes 2020 natures'!W29/'4.1 Comptes 2020 natures'!W2 -> 17.03 | X29: ='4.1 Comptes 2020 natures'!X29/'4.1 Comptes 2020 natures'!X2 -> 0.00 | Y29: ='4.1 Comptes 2020 natures'!Y29/'4.1 Comptes 2020 natures'!Y2 -> 0.00 | Z29: ='4.1 Comptes 2020 natures'!Z29/'4.1 Comptes 2020 natures'!Z2 -> 0.00 | AA29: ='4.1 Comptes 2020 natures'!AA29/'4.1 Comptes 2020 natures'!AA2 -> 0.00 | AB29: ='4.1 Comptes 2020 natures'!AB29/'4.1 Comptes 2020 natures'!AB2 -> 0.00 | AC29: ='4.1 Comptes 2020 natures'!AC29/'4.1 Comptes 2020 natures'!AC2 -> 9.74 | AD29: ='4.1 Comptes 2020 natures'!AD29/'4.1 Comptes 2020 natures'!AD2 -> 0.00 | AE29: ='4.1 Comptes 2020 natures'!AE29/'4.1 Comptes 2020 natures'!AE2 -> 0.00 | AF29: ='4.1 Comptes 2020 natures'!AF29/'4.1 Comptes 2020 natures'!AF2 -> 0.00 | AG29: ='4.1 Comptes 2020 natures'!AG29/'4.1 Comptes 2020 natures'!AG2 -> 0.00 | AH29: ='4.1 Comptes 2020 natures'!AH29/'4.1 Comptes 2020 natures'!AH2 -> 15.36 | AI29: ='4.1 Comptes 2020 natures'!AI29/'4.1 Comptes 2020 natures'!AI2 -> 0.00 | AJ29: ='4.1 Comptes 2020 natures'!AJ29/'4.1 Comptes 2020 natures'!AJ2 -> 0.00 | AK29: ='4.1 Comptes 2020 natures'!AK29/'4.1 Comptes 2020 natures'!AK2 -> 0.00 | AL29: ='4.1 Comptes 2020 natures'!AL29/'4.1 Comptes 2020 natures'!AL2 -> 0.00 | AM29: ='4.1 Comptes 2020 natures'!AM29/'4.1 Comptes 2020 natures'!AM2 -> 15.91 | AN29: ='4.1 Comptes 2020 natures'!AN29/'4.1 Comptes 2020 natures'!AN2 -> 0.00 | AO29: ='4.1 Comptes 2020 natures'!AO29/'4.1 Comptes 2020 natures'!AO2 -> 8.70 | AP29: ='4.1 Comptes 2020 natures'!AP29/'4.1 Comptes 2020 natures'!AP2 -> 0.00 | AQ29: ='4.1 Comptes 2020 natures'!AQ29/'4.1 Comptes 2020 natures'!AQ2 -> 0.00 | AR29: ='4.1 Comptes 2020 natures'!AR29/'4.1 Comptes 2020 natures'!AR2 -> 7.13 | AS29: ='4.1 Comptes 2020 natures'!AS29/'4.1 Comptes 2020 natures'!AS2 -> 0.00 | AT29: ='4.1 Comptes 2020 natures'!AT29/'4.1 Comptes 2020 natures'!AT2 -> 0.45 | AU29: ='4.1 Comptes 2020 natures'!AU29/'4.1 Comptes 2020 natures'!AU2 -> 0.00 | AV29: ='4.1 Comptes 2020 natures'!AV29/'4.1 Comptes 2020 natures'!AV2 -> 0.00 | AW29: ='4.1 Comptes 2020 natures'!AW29/'4.1 Comptes 2020 natures'!AW2 -> 0.00 | AX29: ='4.1 Comptes 2020 natures'!AX29/'4.1 Comptes 2020 natures'!AX2 -> 0.00 | AY29: ='4.1 Comptes 2020 natures'!AY29/'4.1 Comptes 2020 natures'!AY2 -> 12.97 | AZ29: ='4.1 Comptes 2020 natures'!AZ29/'4.1 Comptes 2020 natures'!AZ2 -> 24.80 | BA29: ='4.1 Comptes 2020 natures'!BA29/'4.1 Comptes 2020 natures'!BA2 -> 0.00 | BB29: ='4.1 Comptes 2020 natures'!BB29/'4.1 Comptes 2020 natures'!BB2 -> 0.00 | BC29: ='4.1 Comptes 2020 natures'!BC29/'4.1 Comptes 2020 natures'!BC2 -> 0.00 | BD29: ='4.1 Comptes 2020 natures'!BD29/'4.1 Comptes 2020 natures'!BD2 -> 42.02 | BE29: ='4.1 Comptes 2020 natures'!BE29/'4.1 Comptes 2020 natures'!BE2 -> 0.00 | BF29: 290.05 | BG29: 152.98 | BH29: 25.10 | BI29: 111.98
B31: 34 | D31: Charges financières | E31: =E32+E33+E34+E35+E36+E37 -> 40.22 | F31: =F32+F33+F34+F35+F36+F37 -> 232.47 | G31: 231.85 | H31: 178.48 | I31: 177.39 | J31: 117.14 | K31: 72.17 | L31: 169.47 | M31: 52.56 | N31: 65.22 | O31: 57.10 | P31: 94.33 | Q31: 86.35 | R31: 106.26 | S31: 179.10 | T31: 155.33 | U31: 54.23 | V31: 147.58 | W31: 74.05 | X31: 55.01 | Y31: 142.95 | Z31: 32.24 | AA31: 51.68 | AB31: 122.39 | AC31: 98.56 | AD31: 226.71 | AE31: 67.06 | AF31: 109.52 | AG31: 74.32 | AH31: 135.09 | AI31: 109.35 | AJ31: 333.72 | AK31: 127.53 | AL31: 167.51 | AM31: 131.97 | AN31: 240.72 | AO31: 217.28 | AP31: 100.67 | AQ31: 110.43 | AR31: 211.15 | AS31: 159.23 | AT31: 175.93 | AU31: 73.90 | AV31: 85.54 | AW31: 87.37 | AX31: 73.13 | AY31: 47.59 | AZ31: 195.86 | BA31: 29.85 | BB31: 104.11 | BC31: 2.39 | BD31: 152.71 | BE31: 125.52 | BF31: 6,470.29 | BG31: 2,291.31 | BH31: 1,558.59 | BI31: 2,620.40
C32: 340 | D32: Charges d'intérets | E32: ='4.1 Comptes 2020 natures'!E32/'4.1 Comptes 2020 natures'!E2 -> 40.22 | F32: ='4.1 Comptes 2020 natures'!F32/'4.1 Comptes 2020 natures'!F2 -> 162.52 | G32: ='4.1 Comptes 2020 natures'!G32/'4.1 Comptes 2020 natures'!G2 -> 136.68 | H32: ='4.1 Comptes 2020 natures'!H32/'4.1 Comptes 2020 natures'!H2 -> 140.86 | I32: ='4.1 Comptes 2020 natures'!I32/'4.1 Comptes 2020 natures'!I2 -> 131.19 | J32: ='4.1 Comptes 2020 natures'!J32/'4.1 Comptes 2020 natures'!J2 -> 97.84 | K32: ='4.1 Comptes 2020 natures'!K32/'4.1 Comptes 2020 natures'!K2 -> 49.57 | L32: ='4.1 Comptes 2020 natures'!L32/'4.1 Comptes 2020 natures'!L2 -> 154.04 | M32: ='4.1 Comptes 2020 natures'!M32/'4.1 Comptes 2020 natures'!M2 -> 45.03 | N32: ='4.1 Comptes 2020 natures'!N32/'4.1 Comptes 2020 natures'!N2 -> 65.22 | O32: ='4.1 Comptes 2020 natures'!O32/'4.1 Comptes 2020 natures'!O2 -> 48.30 | P32: ='4.1 Comptes 2020 natures'!P32/'4.1 Comptes 2020 natures'!P2 -> 74.27 | Q32: ='4.1 Comptes 2020 natures'!Q32/'4.1 Comptes 2020 natures'!Q2 -> 84.22 | R32: ='4.1 Comptes 2020 natures'!R32/'4.1 Comptes 2020 natures'!R2 -> 88.86 | S32: ='4.1 Comptes 2020 natures'!S32/'4.1 Comptes 2020 natures'!S2 -> 162.88 | T32: ='4.1 Comptes 2020 natures'!T32/'4.1 Comptes 2020 natures'!T2 -> 76.09 | U32: ='4.1 Comptes 2020 natures'!U32/'4.1 Comptes 2020 natures'!U2 -> 32.57 | V32: ='4.1 Comptes 2020 natures'!V32/'4.1 Comptes 2020 natures'!V2 -> 124.33 | W32: ='4.1 Comptes 2020 natures'!W32/'4.1 Comptes 2020 natures'!W2 -> 70.22 | X32: ='4.1 Comptes 2020 natures'!X32/'4.1 Comptes 2020 natures'!X2 -> 19.21 | Y32: ='4.1 Comptes 2020 natures'!Y32/'4.1 Comptes 2020 natures'!Y2 -> 143.07 | Z32: ='4.1 Comptes 2020 natures'!Z32/'4.1 Comptes 2020 natures'!Z2 -> 7.93 | AA32: ='4.1 Comptes 2020 natures'!AA32/'4.1 Comptes 2020 natures'!AA2 -> 50.59 | AB32: ='4.1 Comptes 2020 natures'!AB32/'4.1 Comptes 2020 natures'!AB2 -> 47.64 | AC32: ='4.1 Comptes 2020 natures'!AC32/'4.1 Comptes 2020 natures'!AC2 -> 85.26 | AD32: ='4.1 Comptes 2020 natures'!AD32/'4.1 Comptes 2020 natures'!AD2 -> 183.69 | AE32: ='4.1 Comptes 2020 natures'!AE32/'4.1 Comptes 2020 natures'!AE2 -> 66.71 | AF32: ='4.1 Comptes 2020 natures'!AF32/'4.1 Comptes 2020 natures'!AF2 -> 5.58 | AG32: ='4.1 Comptes 2020 natures'!AG32/'4.1 Comptes 2020 natures'!AG2 -> 49.76 | AH32: ='4.1 Comptes 2020 natures'!AH32/'4.1 Comptes 2020 natures'!AH2 -> 88.20 | AI32: ='4.1 Comptes 2020 natures'!AI32/'4.1 Comptes 2020 natures'!AI2 -> 82.25 | AJ32: ='4.1 Comptes 2020 natures'!AJ32/'4.1 Comptes 2020 natures'!AJ2 -> 41.97 | AK32: ='4.1 Comptes 2020 natures'!AK32/'4.1 Comptes 2020 natures'!AK2 -> 75.54 | AL32: ='4.1 Comptes 2020 natures'!AL32/'4.1 Comptes 2020 natures'!AL2 -> 129.47 | AM32: ='4.1 Comptes 2020 natures'!AM32/'4.1 Comptes 2020 natures'!AM2 -> 108.15 | AN32: ='4.1 Comptes 2020 natures'!AN32/'4.1 Comptes 2020 natures'!AN2 -> 159.41 | AO32: ='4.1 Comptes 2020 natures'!AO32/'4.1 Comptes 2020 natures'!AO2 -> 66.16 | AP32: ='4.1 Comptes 2020 natures'!AP32/'4.1 Comptes 2020 natures'!AP2 -> 88.20 | AQ32: ='4.1 Comptes 2020 natures'!AQ32/'4.1 Comptes 2020 natures'!AQ2 -> 110.43 | AR32: ='4.1 Comptes 2020 natures'!AR32/'4.1 Comptes 2020 natures'!AR2 -> 70.97 | AS32: ='4.1 Comptes 2020 natures'!AS32/'4.1 Comptes 2020 natures'!AS2 -> 118.85 | AT32: ='4.1 Comptes 2020 natures'!AT32/'4.1 Comptes 2020 natures'!AT2 -> 148.03 | AU32: ='4.1 Comptes 2020 natures'!AU32/'4.1 Comptes 2020 natures'!AU2 -> 73.90 | AV32: ='4.1 Comptes 2020 natures'!AV32/'4.1 Comptes 2020 natures'!AV2 -> 83.46 | AW32: ='4.1 Comptes 2020 natures'!AW32/'4.1 Comptes 2020 natures'!AW2 -> 86.02 | AX32: ='4.1 Comptes 2020 natures'!AX32/'4.1 Comptes 2020 natures'!AX2 -> 40.60 | AY32: ='4.1 Comptes 2020 natures'!AY32/'4.1 Comptes 2020 natures'!AY2 -> 47.59 | AZ32: ='4.1 Comptes 2020 natures'!AZ32/'4.1 Comptes 2020 natures'!AZ2 -> 187.62 | BA32: ='4.1 Comptes 2020 natures'!BA32/'4.1 Comptes 2020 natures'!BA2 -> 23.54 | BB32: ='4.1 Comptes 2020 natures'!BB32/'4.1 Comptes 2020 natures'!BB2 -> 83.86 | BC32: ='4.1 Comptes 2020 natures'!BC32/'4.1 Comptes 2020 natures'!BC2 -> 0.00 | BD32: ='4.1 Comptes 2020 natures'!BD32/'4.1 Comptes 2020 natures'!BD2 -> 138.16 | BE32: ='4.1 Comptes 2020 natures'!BE32/'4.1 Comptes 2020 natures'!BE2 -> 87.75 | BF32: =SUM(E32:BE32) -> 4,584.47 | BG32: =SUM(E32:W32) -> 1,784.91 | BH32: =SUM(X32:AJ32) -> 871.85 | BI32: =SUM(AK32:BE32) -> 1,927.71
C33: 341 | D33: Pertes sur les placements financiers et les immobilisations du PF | E33: ='4.1 Comptes 2020 natures'!E33/'4.1 Comptes 2020 natures'!E2 -> 0.00 | F33: ='4.1 Comptes 2020 natures'!F33/'4.1 Comptes 2020 natures'!F2 -> 0.00 | G33: ='4.1 Comptes 2020 natures'!G33/'4.1 Comptes 2020 natures'!G2 -> 0.00 | H33: ='4.1 Comptes 2020 natures'!H33/'4.1 Comptes 2020 natures'!H2 -> 0.00 | I33: ='4.1 Comptes 2020 natures'!I33/'4.1 Comptes 2020 natures'!I2 -> 0.00 | J33: ='4.1 Comptes 2020 natures'!J33/'4.1 Comptes 2020 natures'!J2 -> 0.00 | K33: ='4.1 Comptes 2020 natures'!K33/'4.1 Comptes 2020 natures'!K2 -> 0.00 | L33: ='4.1 Comptes 2020 natures'!L33/'4.1 Comptes 2020 natures'!L2 -> 0.00 | M33: ='4.1 Comptes 2020 natures'!M33/'4.1 Comptes 2020 natures'!M2 -> 0.00 | N33: ='4.1 Comptes 2020 natures'!N33/'4.1 Comptes 2020 natures'!N2 -> 0.00 | O33: ='4.1 Comptes 2020 natures'!O33/'4.1 Comptes 2020 natures'!O2 -> 0.00 | P33: ='4.1 Comptes 2020 natures'!P33/'4.1 Comptes 2020 natures'!P2 -> 0.00 | Q33: ='4.1 Comptes 2020 natures'!Q33/'4.1 Comptes 2020 natures'!Q2 -> 0.00 | R33: ='4.1 Comptes 2020 natures'!R33/'4.1 Comptes 2020 natures'!R2 -> 0.00 | S33: ='4.1 Comptes 2020 natures'!S33/'4.1 Comptes 2020 natures'!S2 -> 0.00 | T33: ='4.1 Comptes 2020 natures'!T33/'4.1 Comptes 2020 natures'!T2 -> 0.00 | U33: ='4.1 Comptes 2020 natures'!U33/'4.1 Comptes 2020 natures'!U2 -> 0.00 | V33: ='4.1 Comptes 2020 natures'!V33/'4.1 Comptes 2020 natures'!V2 -> 0.00 | W33: ='4.1 Comptes 2020 natures'!W33/'4.1 Comptes 2020 natures'!W2 -> 0.00 | X33: ='4.1 Comptes 2020 natures'!X33/'4.1 Comptes 2020 natures'!X2 -> 0.00 | Y33: ='4.1 Comptes 2020 natures'!Y33/'4.1 Comptes 2020 natures'!Y2 -> -0.12 | Z33: ='4.1 Comptes 2020 natures'!Z33/'4.1 Comptes 2020 natures'!Z2 -> 0.00 | AA33: ='4.1 Comptes 2020 natures'!AA33/'4.1 Comptes 2020 natures'!AA2 -> 0.00 | AB33: ='4.1 Comptes 2020 natures'!AB33/'4.1 Comptes 2020 natures'!AB2 -> 0.00 | AC33: ='4.1 Comptes 2020 natures'!AC33/'4.1 Comptes 2020 natures'!AC2 -> 0.00 | AD33: ='4.1 Comptes 2020 natures'!AD33/'4.1 Comptes 2020 natures'!AD2 -> 0.00 | AE33: ='4.1 Comptes 2020 natures'!AE33/'4.1 Comptes 2020 natures'!AE2 -> 0.00 | AF33: ='4.1 Comptes 2020 natures'!AF33/'4.1 Comptes 2020 natures'!AF2 -> 0.00 | AG33: ='4.1 Comptes 2020 natures'!AG33/'4.1 Comptes 2020 natures'!AG2 -> 0.00 | AH33: ='4.1 Comptes 2020 natures'!AH33/'4.1 Comptes 2020 natures'!AH2 -> 38.24 | AI33: ='4.1 Comptes 2020 natures'!AI33/'4.1 Comptes 2020 natures'!AI2 -> 0.00 | AJ33: ='4.1 Comptes 2020 natures'!AJ33/'4.1 Comptes 2020 natures'!AJ2 -> 0.00 | AK33: ='4.1 Comptes 2020 natures'!AK33/'4.1 Comptes 2020 natures'!AK2 -> 0.00 | AL33: ='4.1 Comptes 2020 natures'!AL33/'4.1 Comptes 2020 natures'!AL2 -> 0.51 | AM33: ='4.1 Comptes 2020 natures'!AM33/'4.1 Comptes 2020 natures'!AM2 -> 0.00 | AN33: ='4.1 Comptes 2020 natures'!AN33/'4.1 Comptes 2020 natures'!AN2 -> 0.00 | AO33: ='4.1 Comptes 2020 natures'!AO33/'4.1 Comptes 2020 natures'!AO2 -> 0.00 | AP33: ='4.1 Comptes 2020 natures'!AP33/'4.1 Comptes 2020 natures'!AP2 -> 0.00 | AQ33: ='4.1 Comptes 2020 natures'!AQ33/'4.1 Comptes 2020 natures'!AQ2 -> 0.00 | AR33: ='4.1 Comptes 2020 natures'!AR33/'4.1 Comptes 2020 natures'!AR2 -> 0.00 | AS33: ='4.1 Comptes 2020 natures'!AS33/'4.1 Comptes 2020 natures'!AS2 -> 0.00 | AT33: ='4.1 Comptes 2020 natures'!AT33/'4.1 Comptes 2020 natures'!AT2 -> 0.00 | AU33: ='4.1 Comptes 2020 natures'!AU33/'4.1 Comptes 2020 natures'!AU2 -> 0.00 | AV33: ='4.1 Comptes 2020 natures'!AV33/'4.1 Comptes 2020 natures'!AV2 -> 0.00 | AW33: ='4.1 Comptes 2020 natures'!AW33/'4.1 Comptes 2020 natures'!AW2 -> 0.00 | AX33: ='4.1 Comptes 2020 natures'!AX33/'4.1 Comptes 2020 natures'!AX2 -> 0.00 | AY33: ='4.1 Comptes 2020 natures'!AY33/'4.1 Comptes 2020 natures'!AY2 -> 0.00 | AZ33: ='4.1 Comptes 2020 natures'!AZ33/'4.1 Comptes 2020 natures'!AZ2 -> 0.00 | BA33: ='4.1 Comptes 2020 natures'!BA33/'4.1 Comptes 2020 natures'!BA2 -> 0.01 | BB33: ='4.1 Comptes 2020 natures'!BB33/'4.1 Comptes 2020 natures'!BB2 -> 0.00 | BC33: ='4.1 Comptes 2020 natures'!BC33/'4.1 Comptes 2020 natures'!BC2 -> 0.00 | BD33: ='4.1 Comptes 2020 natures'!BD33/'4.1 Comptes 2020 natures'!BD2 -> 0.00 | BE33: ='4.1 Comptes 2020 natures'!BE33/'4.1 Comptes 2020 natures'!BE2 -> 0.00 | BF33: 38.64 | BG33: 0.00 | BH33: 38.12 | BI33: 0.52
C34: 342 | D34: Frais d'acquisitions des capitaux et frais administratifs | E34: ='4.1 Comptes 2020 natures'!E34/'4.1 Comptes 2020 natures'!E2 -> 0.00 | F34: ='4.1 Comptes 2020 natures'!F34/'4.1 Comptes 2020 natures'!F2 -> 0.00 | G34: ='4.1 Comptes 2020 natures'!G34/'4.1 Comptes 2020 natures'!G2 -> 0.00 | H34: ='4.1 Comptes 2020 natures'!H34/'4.1 Comptes 2020 natures'!H2 -> 0.00 | I34: ='4.1 Comptes 2020 natures'!I34/'4.1 Comptes 2020 natures'!I2 -> 0.00 | J34: ='4.1 Comptes 2020 natures'!J34/'4.1 Comptes 2020 natures'!J2 -> 0.00 | K34: ='4.1 Comptes 2020 natures'!K34/'4.1 Comptes 2020 natures'!K2 -> 0.00 | L34: ='4.1 Comptes 2020 natures'!L34/'4.1 Comptes 2020 natures'!L2 -> 0.00 | M34: ='4.1 Comptes 2020 natures'!M34/'4.1 Comptes 2020 natures'!M2 -> 0.00 | N34: ='4.1 Comptes 2020 natures'!N34/'4.1 Comptes 2020 natures'!N2 -> 0.00 | O34: ='4.1 Comptes 2020 natures'!O34/'4.1 Comptes 2020 natures'!O2 -> 0.00 | P34: ='4.1 Comptes 2020 natures'!P34/'4.1 Comptes 2020 natures'!P2 -> 0.00 | Q34: ='4.1 Comptes 2020 natures'!Q34/'4.1 Comptes 2020 natures'!Q2 -> 0.00 | R34: ='4.1 Comptes 2020 natures'!R34/'4.1 Comptes 2020 natures'!R2 -> 0.00 | S34: ='4.1 Comptes 2020 natures'!S34/'4.1 Comptes 2020 natures'!S2 -> 0.00 | T34: ='4.1 Comptes 2020 natures'!T34/'4.1 Comptes 2020 natures'!T2 -> 0.00 | U34: ='4.1 Comptes 2020 natures'!U34/'4.1 Comptes 2020 natures'!U2 -> 0.00 | V34: ='4.1 Comptes 2020 natures'!V34/'4.1 Comptes 2020 natures'!V2 -> 0.00 | W34: ='4.1 Comptes 2020 natures'!W34/'4.1 Comptes 2020 natures'!W2 -> 0.00 | X34: ='4.1 Comptes 2020 natures'!X34/'4.1 Comptes 2020 natures'!X2 -> 0.00 | Y34: ='4.1 Comptes 2020 natures'!Y34/'4.1 Comptes 2020 natures'!Y2 -> 0.00 | Z34: ='4.1 Comptes 2020 natures'!Z34/'4.1 Comptes 2020 natures'!Z2 -> 0.00 | AA34: ='4.1 Comptes 2020 natures'!AA34/'4.1 Comptes 2020 natures'!AA2 -> 0.00 | AB34: ='4.1 Comptes 2020 natures'!AB34/'4.1 Comptes 2020 natures'!AB2 -> 0.00 | AC34: ='4.1 Comptes 2020 natures'!AC34/'4.1 Comptes 2020 natures'!AC2 -> 0.00 | AD34: ='4.1 Comptes 2020 natures'!AD34/'4.1 Comptes 2020 natures'!AD2 -> 0.00 | AE34: ='4.1 Comptes 2020 natures'!AE34/'4.1 Comptes 2020 natures'!AE2 -> 0.00 | AF34: ='4.1 Comptes 2020 natures'!AF34/'4.1 Comptes 2020 natures'!AF2 -> 0.00 | AG34: ='4.1 Comptes 2020 natures'!AG34/'4.1 Comptes 2020 natures'!AG2 -> 0.00 | AH34: ='4.1 Comptes 2020 natures'!AH34/'4.1 Comptes 2020 natures'!AH2 -> 0.00 | AI34: ='4.1 Comptes 2020 natures'!AI34/'4.1 Comptes 2020 natures'!AI2 -> 0.00 | AJ34: ='4.1 Comptes 2020 natures'!AJ34/'4.1 Comptes 2020 natures'!AJ2 -> 0.00 | AK34: ='4.1 Comptes 2020 natures'!AK34/'4.1 Comptes 2020 natures'!AK2 -> 0.00 | AL34: ='4.1 Comptes 2020 natures'!AL34/'4.1 Comptes 2020 natures'!AL2 -> 0.00 | AM34: ='4.1 Comptes 2020 natures'!AM34/'4.1 Comptes 2020 natures'!AM2 -> 0.00 | AN34: ='4.1 Comptes 2020 natures'!AN34/'4.1 Comptes 2020 natures'!AN2 -> 0.00 | AO34: ='4.1 Comptes 2020 natures'!AO34/'4.1 Comptes 2020 natures'!AO2 -> 0.00 | AP34: ='4.1 Comptes 2020 natures'!AP34/'4.1 Comptes 2020 natures'!AP2 -> 0.00 | AQ34: ='4.1 Comptes 2020 natures'!AQ34/'4.1 Comptes 2020 natures'!AQ2 -> 0.00 | AR34: ='4.1 Comptes 2020 natures'!AR34/'4.1 Comptes 2020 natures'!AR2 -> 0.00 | AS34: ='4.1 Comptes 2020 natures'!AS34/'4.1 Comptes 2020 natures'!AS2 -> 0.00 | AT34: ='4.1 Comptes 2020 natures'!AT34/'4.1 Comptes 2020 natures'!AT2 -> 0.00 | AU34: ='4.1 Comptes 2020 natures'!AU34/'4.1 Comptes 2020 natures'!AU2 -> 0.00 | AV34: ='4.1 Comptes 2020 natures'!AV34/'4.1 Comptes 2020 natures'!AV2 -> 0.00 | AW34: ='4.1 Comptes 2020 natures'!AW34/'4.1 Comptes 2020 natures'!AW2 -> 0.00 | AX34: ='4.1 Comptes 2020 natures'!AX34/'4.1 Comptes 2020 natures'!AX2 -> 0.00 | AY34: ='4.1 Comptes 2020 natures'!AY34/'4.1 Comptes 2020 natures'!AY2 -> 0.00 | AZ34: ='4.1 Comptes 2020 natures'!AZ34/'4.1 Comptes 2020 natures'!AZ2 -> 0.00 | BA34: ='4.1 Comptes 2020 natures'!BA34/'4.1 Comptes 2020 natures'!BA2 -> 0.00 | BB34: ='4.1 Comptes 2020 natures'!BB34/'4.1 Comptes 2020 natures'!BB2 -> 0.00 | BC34: ='4.1 Comptes 2020 natures'!BC34/'4.1 Comptes 2020 natures'!BC2 -> 0.00 | BD34: ='4.1 Comptes 2020 natures'!BD34/'4.1 Comptes 2020 natures'!BD2 -> 0.00 | BE34: ='4.1 Comptes 2020 natures'!BE34/'4.1 Comptes 2020 natures'!BE2 -> 0.00 | BF34: 0.00 | BG34: 0.00 | BH34: 0.00 | BI34: 0.00
